Workbook

Sheet About JEDI
B3: JEDI - NATURAL GAS
B5: Jobs and Economic Development Model (JEDI)
B9: Release Number: NG4.17.17
B12: The Jobs and Economic Development Impact Model (JEDI) for gas was developed in 2005 to demonstrate the economic benefits associated with developing
B13: gas power plants in the United States. The primary goal in developing the state level model was to provide a tool for power plant developers, renewable energy
B14: advocates, government officials, decision makers and other potential users, to easily identify the local economic impacts associated with constructing and operating
B15: power plants. The second goal was to facilitate broad access and usage of the model by making it adaptable to a web based application that can be put on
B16: a web site.
B17: Consistent with these goals, a strong emphasis was placed on designing the model in a user-friendly format that could be easily modified - reflecting different
B18: levels of project specific information and user skill. This insures the greatest flexibility, for inexperienced spreadsheet users, those unfamiliar with economic impact
B19: analysis, and more experienced and knowledgeable users who have a need for this specific type of analysis.
B20: Persons wishing more information on how and/or where the model is being used or the role of the National Renewable Energy Laboratory in analyzing
B21: natural gas and other conventional and renewable technologies should contact NREL at:
B23: National Renewable Energy Laboratory
B24: 15013 Denver West Parkway
B25: Golden, Colorado, 80401
B26: Email: jedisupport@nrel.gov
B28: The model was developed by Marshall Goldberg of MRG & Associates, under contract with the National Renewable Energy Laboratory. Persons wishing
B29: more information on the methodology or data in the model should contact him at:
B31: MRG & Associates
B32: 17935 Starduster Dr.
B33: Nevada City, California, 95959
B34: Tel.: 530.432.9373
B35: Email: MRGAssociates@earthlink.net
B37: The JEDI model utilizes multipliers derived from IMPLAN data using the IMPLAN Version 3.0 Social Accounting & Impact Analysis software.
B38: Persons wishing more information on the IMPLAN data or the software should contact the IMPLAN Group.
B40: IMPLAN Group, LLC
B41: 16740 Birkdale Commons Parkway Suite 206
B42: Huntersville, North Carolina 28078
B43: Tel: 651.439.4421
B44: www.implan.com

Sheet FAQ
B2: JEDI - NATURAL GAS
B4: Jobs and Economic Development Model (JEDI)
B6: Frequently Asked Questions (FAQ)
B9: How do I know if I have the most current version of the JEDI model?
B10: The most current version of the JEDI model is available on the National Renewable Energy Laboratory web site at http://www.nrel.gov/analysis/jedi/. Click on "Download
B11: JEDI" on the left side of the page. Once there, choose the "Jobs and Economic Development Impact (JEDI) Model" you wish to download. Click on the link to initiate
B12: the download. (See also, getting on the JEDI mailing list, in FAQ.)
B14: How can I determine which version of the JEDI model I have?
B15: The version (release number) of the model you are currently using is listed in the "About JEDI" worksheet contained in this model and is contained in the model's file
B16: name.
B18: Is there a mailing list I can get on to be notified by email when new versions of JEDI are released?
B19: Yes. Prior to downloading, all users are required to register with their contact information and accept our User Agreement. You may elect to “Opt-In” and
B20: be placed on the JEDI mailing list.
B22: When I open up the model I receive a security alert message stating "the macros in the file have been disabled," how do I change the security setting so I
B23: can run the model with the macros enabled?
B24: The message you are receiving is related to the level of security you have chosen in your Excel™ set up. To change the setting for opening files, open Excel™, on the
B25: top toolbar, click on "tools," then "macros" then "security." Reset the security level to "medium," this will enable you to choose to enable or disable macros each
B26: time you open a file. Alternately, the model can be successfully run with the macros disabled.
B28: Where can I get more information on input-output modeling and using the JEDI model?
B29: To view and/or download JEDI related publications go to the National Renewable Energy Laboratory web site at http://www.nrel.gov/analysis/jedi/. Click on "Interpreting
B30: Results" or "Publications" from the lisgt on the left side of the page.
B32: How do I run a county or regional level analysis?
B33: Running a county or regional level analysis is similar to running a state level analysis, although there are two key differences users must keep in mind. First, the model
B34: does not contain county or regional level multipliers, thus users must obtain these and add them into the model. (See FAQ on obtaining county or regional level
B35: multipliers and how to add in the data) Second, to run a county or regional level analysis users must enter the county or regional population in the Project Description
B36: area. The population provides a reference for the model to automatically insert 'local share" defaults for the analysis.
B38: Where can I get county or regional level data to add-in to the model to run a county or region specific analysis?
B39: County level multipliers and personal consumption expenditure patterns are available from a number of sources. Users familiar with IMPLAN or input-output modeling can
B40: purchase the raw county level data and derive the multipliers themselves, purchase them from someone familiar with input-output modeling, purchase them directly from
B41: IMPLAN (www.implan.com), or contact MRG & Associates (mrgassociates@earthlink.net), the model developer.
B43: How do I add in county or regional level multipliers and the personal consumption expenditure data?
B44: Adding-in county or regional level multipliers and personal consumtption expenditure data involves going to the "User Add-in Location" worksheet in this model and
B45: cutting and pasting the data into their respective locations. With the data installed it is also necessary to insert the county or region name and the year of the data.
B47: What does the "local share" refer to?
B48: The "local share" refers to the percentage of each expenditure that is actually spent locally (i.e., in the state, county or region being analyzed).
B49: For example, if $1 million is going to be spent on construction materials and half ($500,000) of this total will be purchased from local suppliers, the "local share"
B50: is 50 percent.
B52: I want to make my analysis as accurate as possible, where can I get information to adjust the default "local share" values (in the ProjectData worksheet)
B53: for my state or county?
B54: Since the "local share" is directly related to the availability of local businesses and services and their ability to meet the construction and annual operating demands
B55: of the project, it is important to have an accurate picture of these local resources. This can be obtained in a number of ways: contacting experienced and knowlegeable
B56: persons in the area, contacting local business and contractor organizations and/or the local chamber of commerce, among others.
B58: I am interested in viewing and possibly editting internal formulas within the model, how do I access them?
B59: The JEDI model contains several intermediate worksheets that are an integral part of the model analysis. These worksheets are not designed to be changed by users.
B60: Several of these worksheets, including default data, calculations, and deflators may be viewed by merely clicking on the respective worksheet and scrolling to the right.
B61: Although these sheets may be viewed by users they are protected and can not be editted. The model contains two additional worksheets: multipliers and household
B62: expenditures. These worksheets are hidden to protect proprietary data derived from IMPLAN (Minnesota Implan Group).
B64: Is additional technical support available?
B65: Yes, technical support is available. Please see our JEDI Help Web page (http://www.nrel.gov/analysis/jedi/help.html) and select the appropriate contact based on the
B66: technology and type of support being sought.

Sheet Start
D3: JEDI - Natural GAS
D4: Jobs and Economic Development Impact Model

Sheet ProjectData
A1: Natural Gas Combined Cycle Plant Project Data
A3: INSTRUCTIONS: Begin by entering Project Location (from pull-down list) and other Descriptive Data.
A4: After inserting required data press enter (or cursor to the next cell) to continue.
A5: Once Descriptive Data is complete, choose "Y" or "N" on Line 26 to continue.
A6: Enter "Y" to accept Project Cost defaults or "N" to review/edit Cost default values below.
A7: To utilize changed/editted default values you must enter an "N" in "Utilize Model Default Values?" - Line 26.
A8: Additional information is available by pointing to the red triangles located in cell corners.
A9: Only those cells with a white background can accept new values.
C11: =IF(B13="MYREGION",IF('User Add-in Location'!F23=0,"Error - No Regional multiplier data in User Add-in Location",""),IF(B13="MYCOUNTY",IF('User Add-in Location'!E23=0,"Error - No County multiplier data in User Add-in Location",""),"")) -> 
A12: System Descriptive Data | C12: =IF(B13="MYREGION",IF('User Add-in Location'!F23=0,"",IF(B13="MYREGION"," Enter Region Population","")),IF(B13="MYCOUNTY",IF('User Add-in Location'!E23=0,"",IF(B13="MYCOUNTY"," Enter County Population","")),"")) ->  | T12: =IF(B13="MYCOUNTY",IF(F13="",2,1),IF(B13="MYREGION",IF(F13="",2,1),0)) -> 0
A13: Project Location | B13: WYOMING | D13: Population (entry required)
A14: Year Construction Starts | B14: 2014 | C14: =IF(B14>2030," **Error - Year of Construction exceeds 2030 - please revise**","") -> 
A15: Project Size - Nameplate Capacity (MW) | B15: 500
A16: Capacity Factor (Percentage) | B16: 0.65 | C16: =IF(B16<100,"","Error, entry must below 100 percent") -> 
A17: Heat Rate (Btu per kWh) | B17: 7000
A18: Construction Period (Months) | B18: 36
A19: Plant Construction Cost ($/KW) | B19: 1250
A20: Cost of Fuel ($/mmbtu) | B20: =T20 -> 3.25 | T20: =Calculations!D243 -> 3.25
A21: Produced Locally (Percent) | B21: =DefaultData!H57 -> 0 | O21: =UPPER('User Add-in Location'!B8) -> MYCOUNTY
A22: Fixed Operations and Maintenance Cost ($/kW) | B22: 8.25 | O22: =UPPER('User Add-in Location'!C8) -> MYREGION
A23: Variable Operations and Maintenance Cost ($/MWh) | B23: 2.9 | O23: ALABAMA
A24: Money Value (Dollar Year) | B24: 2010 | C24: =IF(B24>2030," **Error - Money Value (Dollar Year) Exceeds 2030 - please revise**",IF(B24<1999," **Error - Money Value (Dollar Year) is Below 1999 - please revise**","")) ->  | O24: ALASKA
O25: ARIZONA
A26: Utilize Model Default Values (below)? (Y or N) | B26: N | C26: =IF(B26="y","Press 'Go To Summary Impacts' Button",IF(B26="N","Review/Edit Values below","Error - Re-enter 'Y' or 'N'")) -> Review/Edit Values below | O26: ARKANSAS
E27: =IF(C12="","",IF(F13<1,"**Error - Population Data Missing**","")) ->  | O27: CALIFORNIA
O28: COLORADO
A29: If desired, default values (in cells below - based on Project Descriptive Data entered above) may be restored by pressing the 'Restore Default Values' button below. Note: it is not necessary to restore defaults to incorporate default Project Cost Data in system analysis (simply enter a "Y" in cell B26 above). | O29: CONNECTICUT
O30: DELAWARE
A31: =DefaultData!C13 -> Project Cost Data - Default Values | O31: DISTRICT OF COLUMBIA | AE31: Project Cost Data - Default Values
A32: =DefaultData!C14 -> Construction Costs | B32: Cost | C32: Cost | D32: Percent of | E32: Local Share | O32: FLORIDA | AE32: Construction Costs | AF32: Cost | AG32: Cost | AH32: Percent of | AI32: Local Share
A33: =DefaultData!C15 -> Facility and Equipment | C33: Per KW | D33: Total Cost | O33: GEORGIA | AE33: Facility and Equipment | AG33: Per KW | AH33: Total Cost
A34: =DefaultData!C16 -> Power Generation | B34: =+DefaultData!$D16 -> 220588235.3 | C34: =B34/(B$15*1000) -> 441.1764706 | D34: =B34/(B$54) -> 0.344589938 | E34: =$T34 -> 0 | O34: HAWAII | T34: =IF($T$12=0,DefaultData!$G16,IF($T$12=2,"Error",IF($F$13<DefaultData!$H$13,DefaultData!$H16,IF($F$13<DefaultData!$I$13,DefaultData!$O16,IF($F$13<DefaultData!$J$13,DefaultData!$R16,DefaultData!$U16))))) -> 0 | AE34: Power Generation | AF34: =+DefaultData!$D16 -> 220588235.3 | AG34: =AF34/($B$15*1000) -> 441.1764706 | AH34: =AF34/AF$52 -> 0.3550295858 | AI34: =$T34 -> 0
A35: =DefaultData!C17 -> General facilities | B35: =+DefaultData!$D17 -> 55147058.82 | C35: =B35/(B$15*1000) -> 110.2941176 | D35: =B35/(B$54) -> 0.08614748449 | E35: =$T35 -> 0.75 | O35: IDAHO | T35: =IF($T$12=0,DefaultData!$G17,IF($T$12=2,"Error",IF($F$13<DefaultData!$H$13,DefaultData!$H17,IF($F$13<DefaultData!$I$13,DefaultData!$O17,IF($F$13<DefaultData!$J$13,DefaultData!$R17,DefaultData!$U17))))) -> 0.75 | AE35: General facilities | AF35: =+DefaultData!$D17 -> 55147058.82 | AG35: =AF35/($B$15*1000) -> 110.2941176 | AH35: =AF35/AF$52 -> 0.08875739645 | AI35: =$T35 -> 0.75
A36: =DefaultData!C18 -> Plant Equipment | B36: =+DefaultData!$D18 -> 99264705.88 | C36: =B36/(B$15*1000) -> 198.5294118 | D36: =B36/(B$54) -> 0.1550654721 | E36: =$T36 -> 0.05 | O36: ILLINOIS | T36: =IF($T$12=0,DefaultData!$G18,IF($T$12=2,"Error",IF($F$13<DefaultData!$H$13,DefaultData!$H18,IF($F$13<DefaultData!$I$13,DefaultData!$O18,IF($F$13<DefaultData!$J$13,DefaultData!$R18,DefaultData!$U18))))) -> 0.05 | AE36: Plant Equipment | AF36: =+DefaultData!$D18 -> 99264705.88 | AG36: =AF36/($B$15*1000) -> 198.5294118 | AH36: 0.1597633136 | AI36: =$T36 -> 0.05
A37: =DefaultData!C19 -> Subtotal | B37: =SUM(B34:B36) -> 375000000 | C37: =SUM(C34:C36) -> 750 | D37: =SUM(D34:D36) -> 0.5858028946 | O37: INDIANA | T37: =IF($T$12=0,DefaultData!$G19,IF($T$12=2,"Error",IF($F$13<DefaultData!$H$13,DefaultData!$H19,IF($F$13<DefaultData!$I$13,DefaultData!$O19,IF($F$13<DefaultData!$J$13,DefaultData!$R19,DefaultData!$U19))))) -> 0 | AE37: Facility and Equipment Subtotal | AF37: =SUM(AF34:AF36) -> 375000000 | AG37: =SUM(AG34:AG36) -> 750 | AH37: 0.6035502959
A38: =DefaultData!C20 -> Labor and Management | O38: IOWA | T38: =IF($T$12=0,DefaultData!$G20,IF($T$12=2,"Error",IF($F$13<DefaultData!$H$13,DefaultData!$H20,IF($F$13<DefaultData!$I$13,DefaultData!$O20,IF($F$13<DefaultData!$J$13,DefaultData!$R20,DefaultData!$U20))))) -> 0 | AE38: Labor
A39: =DefaultData!C21 -> Construction Labor | B39: =+DefaultData!$D21 -> 106617647.1 | C39: =B39/(B$15*1000) -> 213.2352941 | D39: =B39/(B$54) -> 0.1665518034 | E39: =$T39 -> 0.5 | O39: KANSAS | T39: =IF($T$12=0,DefaultData!$G21,IF($T$12=2,"Error",IF($F$13<DefaultData!$H$13,DefaultData!$H21,IF($F$13<DefaultData!$I$13,DefaultData!$O21,IF($F$13<DefaultData!$J$13,DefaultData!$R21,DefaultData!$U21))))) -> 0.5 | AE39: Construction Labor | AF39: =+DefaultData!$D21 -> 106617647.1 | AG39: =AF39/($B$15*1000) -> 213.2352941 | AH39: 0.1715976331 | AI39: =$T39 -> 0.5
A40: =DefaultData!C22 -> Project management (contruction and owner's) | B40: =+DefaultData!$D22 -> 58823529.41 | C40: =B40/(B$15*1000) -> 117.6470588 | D40: =B40/(B$54) -> 0.09189065013 | E40: =$T40 -> 0 | O40: KENTUCKY | T40: =IF($T$12=0,DefaultData!$G22,IF($T$12=2,"Error",IF($F$13<DefaultData!$H$13,DefaultData!$H22,IF($F$13<DefaultData!$I$13,DefaultData!$O22,IF($F$13<DefaultData!$J$13,DefaultData!$R22,DefaultData!$U22))))) -> 0 | AE40: Project management | AF40: =+DefaultData!$D22 -> 58823529.41 | AG40: =AF40/($B$15*1000) -> 117.6470588 | AH40: 0.09467455621 | AI40: =$T40 -> 0
A41: =DefaultData!C23 -> Construction Utilities | B41: =+DefaultData!$D23 -> 3676470.588 | C41: =B41/(B$15*1000) -> 7.352941176 | D41: =B41/(B$54) -> 0.005743165633 | E41: =$T41 -> 1 | O41: LOUISIANA | T41: =IF($T$12=0,DefaultData!$G23,IF($T$12=2,"Error",IF($F$13<DefaultData!$H$13,DefaultData!$H23,IF($F$13<DefaultData!$I$13,DefaultData!$O23,IF($F$13<DefaultData!$J$13,DefaultData!$R23,DefaultData!$U23))))) -> 1 | AE41: Construction Utilities | AF41: =+DefaultData!$D23 -> 3676470.588 | AG41: =AF41/($B$15*1000) -> 7.352941176 | AH41: =AF41/AF$52 -> 0.005917159763 | AI41: =$T41 -> 1
A42: =DefaultData!C24 -> Subtotal | B42: =SUM(B39:B41) -> 169117647.1 | C42: =SUM(C39:C41) -> 338.2352941 | D42: =SUM(D39:D41) -> 0.2641856191 | O42: MAINE | AE42: Labor Subtotal | AF42: =AF40+AF39 -> 165441176.5 | AG42: =AF42/($B$15*1000) -> 330.8823529 | AH42: 0.2662721893 | AI42: =$T42 -> 0
A43: =DefaultData!C25 -> Construction Subtotal | B43: =B42+B37 -> 544117647.1 | C43: =C42+C37 -> 1088.235294 | D43: =D42+D37 -> 0.8499885137 | O43: MARYLAND | AE43: Construction Subtotal | AF43: =AF42+AF37 -> 540441176.5 | AG43: =SUM(AG39:AG42) -> 669.1176471 | AH43: 0.8698224852 | AI43: =$T43 -> 0
A44: =DefaultData!C26 -> Other Costs | O44: MASSACHUSETTS | AE44: Other Costs
A45: =DefaultData!C27 -> Engineering/Design | B45: =+DefaultData!$D27 -> 14705882.35 | C45: =B45/(B$15*1000) -> 29.41176471 | D45: =B45/(B$54) -> 0.02297266253 | E45: =$T45 -> 0 | O45: MICHIGAN | T45: =IF($T$12=0,DefaultData!$G27,IF($T$12=2,"Error",IF($F$13<DefaultData!$H$13,DefaultData!$H27,IF($F$13<DefaultData!$I$13,DefaultData!$O27,IF($F$13<DefaultData!$J$13,DefaultData!$R27,DefaultData!$U27))))) -> 0 | AE45: Engineering | AF45: =+DefaultData!$D27 -> 14705882.35 | AG45: =AF45/($B$15*1000) -> 29.41176471 | AH45: 0.02366863905 | AI45: =$T45 -> 0
A46: =DefaultData!C28 -> Construction insurance | B46: =+DefaultData!$D28 -> 3676470.588 | C46: 7.352941176 | D46: 0.005743165633 | E46: 0 | O46: MINNESOTA | T46: =IF($T$12=0,DefaultData!$G28,IF($T$12=2,"Error",IF($F$13<DefaultData!$H$13,DefaultData!$H28,IF($F$13<DefaultData!$I$13,DefaultData!$O28,IF($F$13<DefaultData!$J$13,DefaultData!$R28,DefaultData!$U28))))) -> 0 | AE46: Construction insurance | AF46: =+DefaultData!$D28 -> 3676470.588 | AG46: 7.352941176 | AH46: 0.005917159763 | AI46: 0
A47: =DefaultData!C29 -> Land | B47: =+DefaultData!$D29 -> 29411764.71 | C47: 58.82352941 | D47: 0.04594532506 | E47: 1 | O47: MISSISSIPPI | T47: =IF($T$12=0,DefaultData!$G29,IF($T$12=2,"Error",IF($F$13<DefaultData!$H$13,DefaultData!$H29,IF($F$13<DefaultData!$I$13,DefaultData!$O29,IF($F$13<DefaultData!$J$13,DefaultData!$R29,DefaultData!$U29))))) -> 1 | AE47: Land | AF47: =+DefaultData!$D29 -> 29411764.71 | AG47: 58.82352941 | AH47: 0.04733727811 | AI47: 1
A48: =DefaultData!C30 -> Permitting Fees | B48: =+DefaultData!$D30 -> 14705882.35 | C48: 29.41176471 | D48: 0.02297266253 | E48: 1 | O48: MISSOURI | T48: =IF($T$12=0,DefaultData!$G30,IF($T$12=2,"Error",IF($F$13<DefaultData!$H$13,DefaultData!$H30,IF($F$13<DefaultData!$I$13,DefaultData!$O30,IF($F$13<DefaultData!$J$13,DefaultData!$R30,DefaultData!$U30))))) -> 1 | AE48: Catalysts & chemicals | AF48: =+DefaultData!$D30 -> 14705882.35 | AG48: 29.41176471 | AH48: 0.02366863905 | AI48: 1
A49: =DefaultData!C31 -> Grid intertie | B49: =+DefaultData!$D31 -> 14705882.35 | C49: 29.41176471 | D49: 0.02297266253 | E49: 0.25 | O49: MONTANA | T49: =IF($T$12=0,DefaultData!$G31,IF($T$12=2,"Error",IF($F$13<DefaultData!$H$13,DefaultData!$H31,IF($F$13<DefaultData!$I$13,DefaultData!$O31,IF($F$13<DefaultData!$J$13,DefaultData!$R31,DefaultData!$U31))))) -> 0.25 | AE49: Grid intertie | AF49: =+DefaultData!$D31 -> 14705882.35 | AG49: 29.41176471 | AH49: 0.02366863905 | AI49: 0.25
A50: =DefaultData!C32 -> Spare Parts | B50: =+DefaultData!$D32 -> 3676470.588 | C50: 7.352941176 | D50: 0.005743165633 | E50: 0.05 | O50: NEBRASKA | T50: =IF($T$12=0,DefaultData!$G32,IF($T$12=2,"Error",IF($F$13<DefaultData!$H$13,DefaultData!$H32,IF($F$13<DefaultData!$I$13,DefaultData!$O32,IF($F$13<DefaultData!$J$13,DefaultData!$R32,DefaultData!$U32))))) -> 0.05 | AE50: Spare Parts | AF50: =+DefaultData!$D32 -> 3676470.588 | AG50: 7.352941176 | AH50: 0.005917159763 | AI50: 0.05
A51: =DefaultData!C33 -> Other Subtotal | B51: =SUM(B45:B50) -> 80882352.94 | C51: =SUM(C45:C50) -> 161.7647059 | D51: =SUM(D45:D50) -> 0.1263496439 | O51: NEVADA | AE51: Other Subtotal | AF51: =SUM(AF45:AF50) -> 80882352.94 | AG51: =SUM(AG45:AG50) -> 161.7647059 | AH51: 0.1301775148
A52: =DefaultData!C34 -> Subtotal All Costs (without sales tax) | B52: =B51+B43 -> 625000000 | C52: =C51+C43 -> 1250 | D52: =D51+D43 -> 0.9763381576 | O52: NEW HAMPSHIRE | AE52: Subtotal All Costs (without sales tax) | AF52: =AF51+AF43 -> 621323529.4 | AG52: =AG51+AG43 -> 830.8823529 | AH52: 1
A53: =DefaultData!C35 -> Sales Tax (Materials & Equipment Purchases) | B53: =($B37+$B50)*$B$94 -> 15147058.82 | C53: 30.29411765 | D53: 0.02366184241 | E53: =$D94 -> 1 | O53: NEW JERSEY | T53: =IF($T$12=0,DefaultData!$G35,IF($T$12=2,"Error",IF($F$13<DefaultData!$H$13,DefaultData!$H35,IF($F$13<DefaultData!$I$13,DefaultData!$O35,IF($F$13<DefaultData!$J$13,DefaultData!$R35,DefaultData!$U35))))) -> 1 | AE53: Sales Tax (Materials & Equipment Purchases) | AF53: =($B37+$B50)*$B$94 -> 15147058.82 | AG53: =AF53/($B$15*1000) -> 30.29411765 | AH53: =AF53/AF$52 -> 0.02437869822 | AI53: =$T53 -> 1
A54: =DefaultData!C36 -> Total Project Cost | B54: =B53+B52 -> 640147058.8 | C54: =C53+C52 -> 1280.294118 | D54: =D53+D52 -> 1 | O54: NEW MEXICO | AE54: Total Project Cost
O55: NEW YORK
A56: =DefaultData!C41 -> Annual Operating and Maintenance Costs | O56: NORTH CAROLINA | AE56: Annual Operating and Maintenance Costs
O57: NORTH DAKOTO
B58: Cost | C58: Cost | D58: Percent of | E58: Local Share | O58: OHIO | AF58: Cost | AG58: Cost | AH58: Percent of | AI58: Local Share
A59: =DefaultData!C42 -> Fixed Costs | C59: Per KW | D59: Total Cost | O59: OKLAHOMA | AE59: Fixed Costs | AG59: Per KW | AH59: Total Cost
A60: =DefaultData!C44 -> Labor | B60: =DefaultData!$D44 -> 1725075 | C60: =B60/(B$15*1000) -> 3.45015 | D60: =B60/B$74 -> 0.02234211735 | E60: =$T60 -> 1 | O60: OREGON | T60: =IF($T$12=0,DefaultData!$G44,IF($T$12=2,"Error",IF($F$13<DefaultData!$H$13,DefaultData!$H44,IF($F$13<DefaultData!$I$13,DefaultData!$O44,IF($F$13<DefaultData!$J$13,DefaultData!$R44,DefaultData!$U44))))) -> 1 | AE60: Labor | AF60: =DefaultData!$D44 -> 1725075 | AG60: =AF60/($B$15*1000) -> 3.45015 | AH60: =AF60/(AF$74) -> 0.02458233227 | AI60: =$T60 -> 1
A61: =DefaultData!C48 -> Materials | B61: =DefaultData!$D48 -> 249992.1875 | C61: =B61/(B$15*1000) -> 0.499984375 | D61: =B61/B$74 -> 0.003237746063 | E61: =$T61 -> 0.25 | O61: PENNSYLVANIA | T61: =IF($T$12=0,DefaultData!$G48,IF($T$12=2,"Error",IF($F$13<DefaultData!$H$13,DefaultData!$H48,IF($F$13<DefaultData!$I$13,DefaultData!$O48,IF($F$13<DefaultData!$J$13,DefaultData!$R48,DefaultData!$U48))))) -> 0.25 | AE61: Materials | AF61: =DefaultData!$D48 -> 249992.1875 | AG61: =AF61/($B$15*1000) -> 0.499984375 | AH61: =AF61/(AF$74) -> 0.003562390631 | AI61: =$T61 -> 0.25
A62: =DefaultData!C49 -> Services | B62: =DefaultData!$D49 -> 2149932.812 | C62: =B62/(B$15*1000) -> 4.299865625 | D62: =B62/B$74 -> 0.02784461614 | E62: =$T62 -> 0.85 | O62: RHODE ISLAND | T62: =IF($T$12=0,DefaultData!$G49,IF($T$12=2,"Error",IF($F$13<DefaultData!$H$13,DefaultData!$H49,IF($F$13<DefaultData!$I$13,DefaultData!$O49,IF($F$13<DefaultData!$J$13,DefaultData!$R49,DefaultData!$U49))))) -> 0.85 | AE62: Services | AF62: =DefaultData!$D49 -> 2149932.812 | AG62: =AF62/($B$15*1000) -> 4.299865625 | AH62: =AF62/(AF$74) -> 0.03063655943 | AI62: =$T62 -> 0.85
A63: =DefaultData!C50 -> Fixed Subtotal | B63: =SUM(B60:B62) -> 4125000 | C63: =SUM(C60:C62) -> 8.25 | D63: =SUM(D60:D62) -> 0.05342447955 | O63: SOUTH CAROLINA | AE63: Fixed Subtotal | AF63: =SUM(AF60:AF62) -> 4125000 | AG63: =SUM(AG60:AG62) -> 8.25 | AH63: =AF63/(AF$74) -> 0.05878128233
O64: SOUTH DAKOTO
C65: Cost | O65: TENNESSEE | AG65: Cost
A66: =DefaultData!C52 -> Variable Costs | C66: Per MWh | O66: TEXAS | AE66: Variable Costs | AG66: Per MWh
A67: =DefaultData!C53 -> Routine Turbine Maintenance | B67: =DefaultData!$D53 -> 6975150 | C67: =B67/DefaultData!E$5 -> 2.45 | D67: =B67/B$74 -> 0.09033788086 | E67: =$T67 -> 0.05 | O67: UNITED STATES | T67: =IF($T$12=0,DefaultData!$G53,IF($T$12=2,"Error",IF($F$13<DefaultData!$H$13,DefaultData!$H53,IF($F$13<DefaultData!$I$13,DefaultData!$O53,IF($F$13<DefaultData!$J$13,DefaultData!$R53,DefaultData!$U53))))) -> 0.05 | AE67: Routine Turbine Maintenance | AF67: =DefaultData!$D53 -> 6975150 | AG67: =AF67/(DefaultData!$E$5) -> 2.45 | AH67: =AF67/(AF$74) -> 0.09939594217 | AI67: =$T67 -> 0.05
A68: =DefaultData!C54 -> Water | B68: =DefaultData!$D54 -> 427050 | C68: =B68/DefaultData!E$5 -> 0.15 | D68: 0.005530890665 | E68: =$T68 -> 1 | O68: UTAH | T68: =IF($T$12=0,DefaultData!$G54,IF($T$12=2,"Error",IF($F$13<DefaultData!$H$13,DefaultData!$H54,IF($F$13<DefaultData!$I$13,DefaultData!$O54,IF($F$13<DefaultData!$J$13,DefaultData!$R54,DefaultData!$U54))))) -> 1 | AE68: Water | AF68: =DefaultData!$D54 -> 427050 | AG68: =AF68/(DefaultData!$E$5) -> 0.15 | AH68: 0.006085465847 | AI68: =$T68 -> 1
A69: =DefaultData!C55 -> Catalysts & chemicals | B69: =DefaultData!$D55 -> 854100 | C69: =B69/DefaultData!E$5 -> 0.3 | D69: 0.01106178133 | E69: =$T69 -> 0.85 | O69: VERMONT | T69: =IF($T$12=0,DefaultData!$G55,IF($T$12=2,"Error",IF($F$13<DefaultData!$H$13,DefaultData!$H55,IF($F$13<DefaultData!$I$13,DefaultData!$O55,IF($F$13<DefaultData!$J$13,DefaultData!$R55,DefaultData!$U55))))) -> 0.85 | AE69: Catalysts & chemicals | AF69: =DefaultData!$D55 -> 854100 | AG69: =AF69/(DefaultData!$E$5) -> 0.3 | AH69: 0.01217093169 | AI69: =$T69 -> 0.85
A70: =DefaultData!C56 -> Variable Subtotal | B70: =SUM(B67:B69) -> 8256300 | C70: =SUM(C67:C69) -> 2.9 | D70: =SUM(D67:D69) -> 0.1069305529 | O70: VIRGINIA | AE70: Variable Subtotal | AF70: =AF69+AF68 -> 1281150 | AG70: =AF70/(DefaultData!$E$5) -> 0.45 | AH70: 0.01825639754
A71: =DefaultData!C57 -> Fuel Cost | B71: =DefaultData!$D57 -> 64769250 | C71: =B71/DefaultData!E$5 -> 22.75 | D71: 0.8388517509 | E71: =B21 -> 0 | O71: WASHINGTON | T71: =DefaultData!G57 -> 0 | AE71: Fuel Cost | AF71: =DefaultData!$D57 -> 64769250 | AG71: =AF71/(DefaultData!$E$5) -> 22.75 | AH71: 0.9229623201 | AI71: =$T71 -> 0
A72: =DefaultData!C58 -> Sales Tax (Materials & Equipment Purchases) | B72: =($B61+$B68+$B69)*$B94 -> 61245.6875 | D72: 0.0007932167223 | E72: =$D94 -> 1 | O72: WEST VIRGINIA | T72: =DefaultData!G58 -> 1 | AE72: Sales Tax | AF72: =($B61+$B68+$B69)*$B94 -> 61245.6875 | AG72: =AF72/(DefaultData!$E$5) -> 0.0215123595 | AH72: 0.0008727515269 | AI72: =$T72 -> 1
A73: =DefaultData!C59 -> Other Taxes/Payments | B73: =DefaultData!$D59 -> 0 | D73: 0 | E73: =$T73 -> 1 | O73: WISCONSIN | T73: =DefaultData!G59 -> 1 | AE73: Other Tax/Payments | AF73: =DefaultData!$D59 -> 0 | AG73: =AF73/(DefaultData!$E$5) -> 0 | AH73: 0 | AI73: =$T73 -> 1
A74: =DefaultData!C60 -> Total (with Sales Tax and Other Taxes/Payments | B74: =B73+B72+B71+B70+B63 -> 77211795.69 | D74: =D73+D72+D71+D70+D63 -> 1 | O74: WYOMING | AE74: Total | AF74: =AF71+AF70+AF63 -> 70175400 | AH74: 1
A76: =DefaultData!C68 -> Other Parameters | AE76: Other Parameters
A77: =DefaultData!C69 -> Financial Parameters | D77: Local Share | AE77: Financial Parameters | AH77: Local Share
A78: =DefaultData!C70 -> Debt Financing | AE78: Debt Financing
A79: =DefaultData!C71 -> Percentage financed | B79: =DefaultData!$D71 -> 0.8 | D79: =DefaultData!$F71 -> 0 | AE79: Percentage financed | AF79: =DefaultData!$D71 -> 0.8 | AH79: =DefaultData!$F71 -> 0
A80: =DefaultData!C72 -> Years financed (term) | B80: =DefaultData!$D72 -> 20 | C80: =IF(B80<=1," Error, entry required. Please enter number of years financed (term).","") ->  | AE80: Years financed (term) | AF80: =DefaultData!$D72 -> 20
A81: =DefaultData!C73 -> Interest rate | B81: =DefaultData!$D73 -> 0.1 | AE81: Interest rate | AF81: =DefaultData!$D73 -> 0.1
A82: =DefaultData!C75 -> Equity Financing/Repayment | AE82: Equity Financing/Repayment
A83: =DefaultData!C76 -> Percentage equity | B83: =1-B79 -> 0.2 | AE83: Percentage equity | AF83: =1-AF79 -> 0.2
A84: =DefaultData!C77 -> Individual Investors (percent of equity) | B84: =DefaultData!$D77 -> 0 | D84: =DefaultData!$F77 -> 1 | AE84: Individual Investors (percent of equity) | AF84: =DefaultData!$D77 -> 0 | AH84: =DefaultData!$F77 -> 1
A85: =DefaultData!C78 -> Corporate Investors (percent of equity) | B85: =1-B84 -> 1 | D85: =DefaultData!$F78 -> 0 | AE85: Corporate Investors (percent of equity) | AF85: =1-AF84 -> 1 | AH85: =DefaultData!$F78 -> 0
A86: =DefaultData!C79 -> Return on equity | B86: =DefaultData!$D79 -> 0.16 | AE86: Return on equity | AF86: =DefaultData!$D79 -> 0.16
A87: =DefaultData!C80 -> Repayment term (years) | B87: =DefaultData!$D80 -> 10 | C87: =IF(B87<=1," Error, entry required. Please enter number of years financed (term).","") ->  | AE87: Repayment term (years) | AF87: =DefaultData!$D80 -> 10
A88: =DefaultData!C81 -> Tax Parameters | AE88: Tax Parameters
A89: =DefaultData!C82 -> Local Property/Other Tax Rate (percent of taxable value) | B89: =DefaultData!$D82 -> 0 | AE89: Local Property/Other Tax Rate (percent of taxable value) | AF89: =DefaultData!$D82 -> 0
A90: =DefaultData!C83 -> Assessed Value (percent of construction cost) | B90: =DefaultData!$D83 -> 1 | AE90: Assessed Value (percent of construction cost) | AF90: =DefaultData!$D83 -> 1
A91: =DefaultData!C84 -> Taxable Value (percent of assessed value) | B91: =DefaultData!$D84 -> 1 | AE91: Taxable Value (percent of assessed value) | AF91: =DefaultData!$D84 -> 1
A92: =DefaultData!C85 -> Taxable Value | B92: =B91*B90*B52 -> 625000000 | AE92: Taxable Value | AF92: =AF91*AF90*AF52 -> 621323529.4
A93: =DefaultData!C86 -> Local Taxes | B93: =B92*B89 -> 0 | D93: =DefaultData!$F86 -> 1 | AE93: Local Taxes | AF93: =AF92*AF89 -> 0 | AH93: =DefaultData!$F86 -> 1
A94: =DefaultData!C87 -> Local Sales Tax Rate | B94: =DefaultData!$D87 -> 0.04 | D94: =DefaultData!$F87 -> 1 | AE94: Local Sales Tax Rate | AF94: =DefaultData!$D87 -> 0.04 | AH94: =DefaultData!$F87 -> 1
A95: =DefaultData!C88 -> Land Lease Parameters | AE95: Land Lease Parameters
A96: =DefaultData!C89 -> Land Lease (total cost) | B96: =DefaultData!$D89 -> 0 | AE96: Land Lease (total cost) | AF96: =DefaultData!$D89 -> 0
A97: =DefaultData!C90 -> Lease Payment Recipient (F = farmer/household, O = Other) | B97: =DefaultData!$D90 -> O | D97: =DefaultData!$F90 -> 1 | AE97: Lease Payment Recipient (F = farmer/household, O = Other) | AF97: =DefaultData!$D90 -> O | AH97: =DefaultData!$F90 -> 1
A98: Payroll Parameters | B98: Wage per hour | D98: Employer Payroll Overhead | AE98: Payroll Parameters
A99: Labor (average wage per hour for all plant workers) | B99: =DefaultData!$E93 -> 23.79985773 | D99: =DefaultData!$G93 -> 0.3760611025 | AE99: Labor (average wage per hour for all plant workers) | AF99: =DefaultData!$E93 -> 23.79985773 | AH99: =DefaultData!$G93 -> 0.3760611025
J211: 1

Sheet SummaryResults
A1: =CONCATENATE("Natural Gas Plant - Project Data Summary based on ",$AE$40, " values") -> Natural Gas Plant - Project Data Summary based on User modifications to default values | BB1: =Summary_Results -> Natural Gas Plant - Project Data Summary based on User modifications to default values
A2: =ProjectData!A13 -> Project Location | C2: =IF(ProjectData!B13="MyCounty",'User Add-in Location'!B3,IF(ProjectData!B13="MyRegion",'User Add-in Location'!B4,ProjectData!B13)) -> WYOMING | BB2: =A2 -> Project Location | BD2: =C2 -> WYOMING
A3: =ProjectData!A14 -> Year Construction Starts | C3: =ProjectData!B14 -> 2014 | BB3: =A3 -> Year Construction Starts | BD3: 2014
A4: =ProjectData!A15 -> Project Size - Nameplate Capacity (MW) | C4: =ProjectData!B15 -> 500 | D4: =ProjectData!C11 ->  | BB4: Project Size - Nameplate Capacity (MW) | BD4: 500
A5: =ProjectData!A16 -> Capacity Factor (Percentage) | C5: =ProjectData!B16 -> 0.65 | BB5: Capacity Factor (Percentage) | BD5: 0.65
A6: =ProjectData!A17 -> Heat Rate (Btu per kWh) | C6: =ProjectData!B17 -> 7000 | BB6: Heat Rate (Btu per kWh) | BD6: 7000
A7: =ProjectData!A18 -> Construction Period (Months) | C7: =ProjectData!B18 -> 36 | BB7: Construction Period (Months) | BD7: 36
A8: =ProjectData!A19 -> Plant Construction Cost ($/KW) | C8: =C14/C4/1000 -> 1250 | BB8: Plant Construction Cost ($/KW) | BD8: 1250
A9: =ProjectData!A20 -> Cost of Fuel ($/mmbtu) | C9: =ProjectData!B20 -> 3.25 | BB9: Cost of Fuel ($/mmbtu) | BD9: 3.25
A10: =ProjectData!A21 -> Produced Locally (Percent) | C10: =Calculations!AD42 -> 0 | BB10: Produced Locally (Percent) | BD10: 0
A11: =ProjectData!A22 -> Fixed Operations and Maintenance Cost ($/kW) | C11: =Calculations!AC36/SummaryResults!C4/1000 -> 8.25 | BB11: Fixed Operations and Maintenance Cost ($/kW) | BD11: 8.25
A12: =ProjectData!A23 -> Variable Operations and Maintenance Cost ($/MWh) | C12: =Calculations!AC41/DefaultData!E5 -> 2.9 | BB12: Variable Operations and Maintenance Cost ($/MWh) | BD12: 2.9
A13: =ProjectData!A24 -> Money Value (Dollar Year) | C13: =ProjectData!B24 -> 2010 | BB13: Money Value (Dollar Year) | BD13: 2010
A14: Project Construction Cost | C14: =Calculations!D26 -> 625000000 | BB14: Project Construction Cost | BD14: 625000000
A15: Local Spending | C15: =+Calculations!F60 -> 166433823.5 | BB15: Local Spending | BD15: 166433823.5
A16: Total Annual Operational Expenses | C16: =C17+C19 -> 147461795.7 | BB16: Total Annual Operational Expenses | BD16: 147461795.7
A17: Direct Operating and Maintenance Costs | C17: =Calculations!D90 -> 77150550 | BB17: Direct Operating and Maintenance Costs | BD17: 77150550
A18: Local Spending | C18: =Calculations!G90 -> 4468074.831 | BB18: Local Spending | BD18: 4468074.831
A19: Other Annual Costs | C19: =Calculations!E90 -> 70311245.69 | BB19: Other Annual Costs | BD19: 70311245.69
A20: Local Spending | C20: =Calculations!H90 -> 4590566.206 | BB20: Local Spending | BD20: 4590566.206
A21: Debt and Equity Payments | C21: =SUM(Calculations!G84:G86) -> 0 | BB21: Debt and Equity Payments | BD21: 0
A22: Property Taxes | C22: =Calculations!G87 -> 0 | BB22: Property Taxes | BD22: 0
A23: =ProjectData!C14 ->  | C23: =ProjectData!C24 -> 
A24: Local Economic Impacts - Summary Results | BB24: Local Economic Impacts - Summary Results
B25: Jobs | C25: Earnings | D25: Output | E25: Value Added | BC25: =B25 -> Jobs | BD25: Earnings | BE25: Output | BF25: Value Added
A26: During construction period | BB26: During construction period
A27: Project Development and Onsite Labor Impacts | B27: =Calculations!AH38 -> 544.1740212 | C27: =Calculations!AI38 -> 69.64154412 | D27: =Calculations!AJ38 -> 98.34558824 | E27: =Calculations!AK38 -> 76.83823529 | Z27: =B32/(C7/12) -> 426.584647 | BB27: Project Development and Onsite Labor Impacts | BC27: =B27 -> 544.1740212 | BD27: 69.64154412 | BE27: 98.34558824 | BF27: 76.83823529
A28: Construction and Interconnection Labor | B28: =Calculations!AH39 -> 544.1740212 | C28: =Calculations!AI39 -> 69.64154412 | Z28: =ROUND(Z27,-1) -> 430 | BB28: Construction and Interconnection Labor | BC28: 544.1740212 | BD28: 69.64154412
A29: Construction Related Services | B29: =Calculations!AH40 -> 0 | C29: =Calculations!AI40 -> 0 | BB29: =A29 -> Construction Related Services | BC29: 0 | BD29: =C29 -> 0
A30: Power Generation and Supply Chain Impacts | B30: =Calculations!AH41 -> 503.1888172 | C30: =Calculations!AI41 -> 18.53533088 | D30: =Calculations!AJ41 -> 80.38268382 | E30: =Calculations!AK41 -> 41.37419118 | BB30: Power Generation and Supply Chain Impacts | BC30: 503.1888172 | BD30: 18.53533088 | BE30: 80.38268382 | BF30: 41.37419118
A31: Induced Impacts | B31: =Calculations!AH42 -> 232.3911025 | C31: =Calculations!AI42 -> 9.095845588 | D31: =Calculations!AJ42 -> 30.32268382 | E31: =Calculations!AK42 -> 17.35113971 | BB31: Induced Impacts | BC31: 232.3911025 | BD31: 9.095845588 | BE31: 30.32268382 | BF31: 17.35113971
A32: Total Impacts | B32: =Calculations!AH43 -> 1279.753941 | C32: =Calculations!AI43 -> 97.27272059 | D32: =Calculations!AJ43 -> 209.0509559 | E32: =Calculations!AK43 -> 135.5635662 | BB32: Total Impacts | BC32: 1279.753941 | BD32: 97.27272059 | BE32: 209.0509559 | BF32: 135.5635662
A34: During operating years (annual) | BB34: During operating years (annual)
A35: Onsite Labor Impacts | B35: =Calculations!AH47 -> 25.32401528 | C35: =Calculations!AI47 -> 1.60227218 | D35: =Calculations!AJ46 -> 1.60227218 | E35: =Calculations!AK46 -> 1.60227218 | BB35: Onsite Labor Impacts | BC35: =B35 -> 25.32401528 | BD35: 1.60227218 | BE35: 1.60227218 | BF35: 1.60227218
A36: Local Revenue and Supply Chain Impacts | B36: =Calculations!AH48 -> 36.28828054 | C36: =Calculations!AI48 -> 1.523292128 | D36: =Calculations!AJ48 -> 5.846613185 | E36: =Calculations!AK48 -> 3.181194208 | BB36: Local Revenue and Supply Chain Impacts | BC36: =B36 -> 36.28828054 | BD36: 1.523292128 | BE36: 5.846613185 | BF36: 3.181194208
A37: Induced Impacts | B37: =Calculations!AH49 -> 7.076881215 | C37: =Calculations!AI49 -> 0.2760392525 | D37: =Calculations!AJ49 -> 0.9203396667 | E37: =Calculations!AK49 -> 0.5276306989 | BB37: Induced Impacts | BC37: =B37 -> 7.076881215 | BD37: 0.2760392525 | BE37: 0.9203396667 | BF37: 0.5276306989
A38: Total Impacts | B38: =Calculations!AH50 -> 68.68917703 | C38: =Calculations!AI50 -> 3.401603561 | D38: =Calculations!AJ50 -> 8.369225032 | E38: =Calculations!AK50 -> 5.311097086 | AE38: =ProjectData!B26 -> N | BB38: Total Impacts | BC38: =B38 -> 68.68917703 | BD38: 3.401603561 | BE38: 8.369225032 | BF38: 5.311097086
A39: =CONCATENATE("Notes: Earnings and Output values are millions of dollars in year ",C13, " dollars. Construction period related jobs are full-") -> Notes: Earnings and Output values are millions of dollars in year 2010 dollars. Construction period related jobs are full- | BB39: Notes: Earnings and Output values are millions of dollars in year 2010 dollars. Construction period related jobs are full-
A40: =CONCATENATE(" time equivalent for the ",C7," months (an annual average of approximately ", Z28," full-time equivalent jobs). Plant workers") -> time equivalent for the 36 months (an annual average of approximately 430 full-time equivalent jobs). Plant workers | AE40: =IF(AE38="Y","model default","User modifications to default") -> User modifications to default | BB40: time equivalent for the 36 months (an annual average of approximately 430 full-time equivalent jobs). Plant workers
A41: includes operators, maintenance, administration and management. Economic impacts "During operating years" | BB41: includes operators, maintenance, administration and management. Economic impacts "During operating years"
A42: represent impacts that occur from plant operations/expenditures. The analysis does not include impacts associated | BB42: represent impacts that occur from plant operations/expenditures. The analysis does not include impacts associated
A43: with spending of plant "profits" and assumes no tax abatement unless noted. Totals may not add up due to independent rounding. | BB43: with spending of plant "profits" and assumes no tax abatement unless noted. Totals may not add up due to independent rounding.
A46: =Calculations!AB3 -> Detailed Gas Project Data | C46: =Calculations!AC3 -> WYOMING | BB46: Detailed Gas Project Data | BD46: WYOMING
A48: =Calculations!AB6 -> Construction Costs | C48: =Calculations!AC6 -> Cost | D48: =Calculations!AD6 -> Local Share | BB48: Construction Costs | BD48: Cost | BE48: Local Share
A49: =Calculations!AB7 -> Facility and Equipment | BB49: Facility and Equipment
A50: =Calculations!AB8 -> Power Generation | C50: =Calculations!AC8 -> 220588235.3 | D50: =Calculations!AD8 -> 0 | BB50: Power Generation | BD50: 220588235.3 | BE50: 0
A51: =Calculations!AB9 -> General facilities | C51: =Calculations!AC9 -> 55147058.82 | D51: =Calculations!AD9 -> 0.75 | BB51: General facilities | BD51: 55147058.82 | BE51: 0.75
A52: =Calculations!AB10 -> Plant Equipment | C52: =Calculations!AC10 -> 99264705.88 | D52: =Calculations!AD10 -> 0.05 | BB52: Plant Equipment | BD52: 99264705.88 | BE52: 0.05
A53: =Calculations!AB11 -> Subtotal | C53: =Calculations!AC11 -> 375000000 | BB53: Subtotal | BD53: 375000000
A54: =Calculations!AB12 -> Labor and Management | BB54: Labor and Management
A55: =Calculations!AB13 -> Construction Labor | C55: =Calculations!AC13 -> 106617647.1 | D55: =Calculations!AD13 -> 0.5 | BB55: Construction Labor | BD55: 106617647.1 | BE55: 0.5
A56: =Calculations!AB14 -> Project management (contruction and owner's) | C56: =Calculations!AC14 -> 58823529.41 | D56: =Calculations!AD14 -> 0 | BB56: Project management (contruction and owner's) | BD56: 58823529.41 | BE56: 0
A57: =Calculations!AB16 -> Subtotal | C57: =Calculations!AC16 -> 169117647.1 | D57: =Calculations!AD16 -> 0 | BB57: Subtotal | BD57: 169117647.1
A58: =Calculations!AB17 -> Construction Subtotal | C58: =Calculations!AC17 -> 544117647.1 | BB58: Construction Subtotal | BD58: 544117647.1
A59: =Calculations!AB18 -> Other Costs | BB59: Other Costs
A60: =Calculations!AB19 -> Engineering/Design | C60: =Calculations!AC19 -> 14705882.35 | D60: =Calculations!AD19 -> 0 | BB60: Engineering/Design | BD60: 14705882.35 | BE60: 0
A61: =Calculations!AB20 -> Construction insurance | C61: =Calculations!AC20 -> 3676470.588 | D61: =Calculations!AD20 -> 0 | BB61: Construction insurance | BD61: 3676470.588 | BE61: 0
A62: =Calculations!AB21 -> Land | C62: =Calculations!AC21 -> 29411764.71 | D62: =Calculations!AD21 -> 1 | BB62: Land | BD62: 29411764.71 | BE62: 1
A63: =Calculations!AB22 -> Permitting Fees | C63: =Calculations!AC22 -> 14705882.35 | D63: =Calculations!AD22 -> 1 | BB63: Permitting Fees | BD63: 14705882.35 | BE63: 1
A64: =Calculations!AB23 -> Grid intertie | C64: =Calculations!AC23 -> 14705882.35 | D64: =Calculations!AD23 -> 0.25 | BB64: Grid intertie | BD64: 14705882.35 | BE64: 0.25
A65: =Calculations!AB24 -> Spare Parts | C65: =Calculations!AC24 -> 3676470.588 | D65: =Calculations!AD24 -> 0.05 | BB65: Spare Parts | BD65: =C65 -> 3676470.588 | BE65: =D65 -> 0.05
A66: =Calculations!AB25 -> Other Subtotal | C66: =Calculations!AC25 -> 80882352.94 | BB66: =A66 -> Other Subtotal | BD66: =C66 -> 80882352.94
A67: =Calculations!AB26 -> Subtotal All Costs (without sales tax) | C67: =Calculations!AC26 -> 625000000 | BB67: =A67 -> Subtotal All Costs (without sales tax) | BD67: =C67 -> 625000000
A68: =Calculations!AB27 -> Sales Tax (Materials & Equipment Purchases) | C68: =Calculations!AC27 -> 15147058.82 | D68: =Calculations!AD27 -> 1 | BB68: =A68 -> Sales Tax (Materials & Equipment Purchases) | BD68: =C68 -> 15147058.82 | BE68: =D68 -> 1
A69: =Calculations!AB28 -> Total Project Cost | C69: =Calculations!AC28 -> 640147058.8 | BB69: =A69 -> Total Project Cost | BD69: =C69 -> 640147058.8
A72: =Calculations!AB31 -> Annual Operating and Maintenance Costs | C72: =Calculations!AC32 -> Cost | D72: =Calculations!AD32 -> Local Share | BB72: =A72 -> Annual Operating and Maintenance Costs | BD72: =C72 -> Cost | BE72: =D72 -> Local Share
A73: =Calculations!AB32 -> Fixed Costs | BB73: Fixed Costs
A74: =Calculations!AB33 -> Labor | C74: =Calculations!AC33 -> 1725075 | D74: =Calculations!AD33 -> 1 | BB74: Labor | BD74: =C74 -> 1725075 | BE74: 1
A75: =Calculations!AB34 -> Materials | C75: =Calculations!AC34 -> 249992.1875 | D75: =Calculations!AD34 -> 0.25 | BB75: Materials | BD75: 249992.1875 | BE75: 0.25
A76: =Calculations!AB35 -> Services | C76: =Calculations!AC35 -> 2149932.812 | D76: =Calculations!AD35 -> 0.85 | BB76: Services | BD76: 2149932.812 | BE76: 0.85
A77: =Calculations!AB36 -> Fixed Subtotal | C77: =Calculations!AC36 -> 4125000 | BB77: Fixed Subtotal | BD77: =C77 -> 4125000
A78: =Calculations!AB37 -> Variable Costs | BB78: Variable Costs
A79: =Calculations!AB39 -> Water | C79: =Calculations!AC39 -> 427050 | D79: =Calculations!AD39 -> 1 | BB79: Water | BD79: =C79 -> 427050 | BE79: =D79 -> 1
A80: =Calculations!AB40 -> Catalysts & chemicals | C80: =Calculations!AC40 -> 854100 | D80: =Calculations!AD40 -> 0.85 | BB80: Catalysts & chemicals | BD80: =C80 -> 854100 | BE80: =D80 -> 0.85
A81: =Calculations!AB41 -> Variable Subtotal | C81: =Calculations!AC41 -> 8256300 | BB81: Variable Subtotal | BD81: =C81 -> 8256300
A82: =Calculations!AB42 -> Fuel Cost | C82: =Calculations!AC42 -> 64769250 | D82: =Calculations!AD42 -> 0 | BB82: Fuel Cost | BD82: 64769250 | BE82: =D82 -> 0
A83: =Calculations!AB43 -> Sales Tax (Materials & Equipment Purchases) | C83: =Calculations!AC43 -> 61245.6875 | D83: =Calculations!AD43 -> 1 | BB83: Sales Tax (Materials & Equipment Purchases) | BD83: 61245.6875 | BE83: =D83 -> 1
A84: =Calculations!AB44 -> Other Taxes/Payments | C84: =Calculations!AC44 -> 0 | D84: =Calculations!AD44 -> 1 | BB84: Other Taxes/Payments | BD84: 0 | BE84: =D84 -> 1
A85: =Calculations!AB45 -> Total (with Sales Tax and Other Taxes/Payments | C85: =Calculations!AC45 -> 77211795.69 | BB85: Total (with Sales Tax and Other Taxes/Payments | BD85: 77211795.69
A86: =Calculations!AB46 -> Financing (avg ann debt payment) | C86: =Calculations!AC46 -> 48750000 | D86: =Calculations!AD46 -> 0 | BB86: Financing (avg ann debt payment) | BD86: 48750000 | BE86: =D86 -> 0
A87: =Calculations!AB47 -> Equity Payment - Individuals (avg ann payment) | C87: =Calculations!AC47 -> 0 | D87: =Calculations!AD47 -> 1 | BB87: Equity Payment - Individuals (avg ann payment) | BD87: 0 | BE87: =D87 -> 1
A88: =Calculations!AB48 -> Equity Payment - Corporations (avg ann payment) | C88: =Calculations!AC48 -> 21500000 | D88: =Calculations!AD48 -> 0 | BB88: Equity Payment - Corporations (avg ann payment) | BD88: 21500000 | BE88: =D88 -> 0
A89: =Calculations!AB49 -> Property Tax | C89: =Calculations!AC49 -> 0 | D89: =Calculations!AD49 -> 1 | BB89: Property Tax | BD89: 0 | BE89: =D89 -> 1
A90: =Calculations!AB50 -> Land Lease | C90: =Calculations!AC50 -> 0 | D90: =Calculations!AD50 -> 1 | BB90: Land Lease | BD90: 0 | BE90: =D90 -> 1
A91: =Calculations!AB51 -> Total (with financing) | C91: =Calculations!AC51 -> 147461795.7 | BB91: Total (with financing) | BD91: 147461795.7
A92: =Calculations!AB52 -> Total (without debt, equity,taxes, lease payments) | C92: =Calculations!AC52 -> 77150550
A94: =Calculations!AB54 -> Other Parameters | D94: =Calculations!AD54 -> Local Share | BB94: =A94 -> Other Parameters | BE94: =D94 -> Local Share
A95: =Calculations!AB55 -> Financial Parameters | BB95: Financial Parameters
A96: =Calculations!AB56 -> Debt Financing | BB96: Debt Financing
A97: =Calculations!AB57 -> Percentage financed | C97: =Calculations!AC57 -> 0.8 | D97: =Calculations!AD57 -> 0 | BB97: Percentage financed | BD97: =C97 -> 0.8 | BE97: =D97 -> 0
A98: =Calculations!AB58 -> Years financed (term) | C98: =Calculations!AC58 -> 20 | BB98: Years financed (term) | BD98: =C98 -> 20
A99: =Calculations!AB59 -> Interest rate | C99: =Calculations!AC59 -> 0.1 | BB99: Interest rate | BD99: =C99 -> 0.1
A100: =Calculations!AB60 -> Equity Financing/Repayment | BB100: Equity Financing/Repayment
A101: =Calculations!AB61 -> Percentage equity | C101: =Calculations!AC61 -> 0.2 | BB101: Percentage equity | BD101: =C101 -> 0.2
A102: =Calculations!AB62 -> Individual Investors (percent of equity) | C102: =Calculations!AC62 -> 0 | D102: =Calculations!AD62 -> 1 | BB102: Individual Investors (percent of equity) | BD102: =C102 -> 0 | BE102: =D102 -> 1
A103: =Calculations!AB63 -> Corporate Investors (percent of equity) | C103: =Calculations!AC63 -> 1 | D103: =Calculations!AD63 -> 0 | BB103: Corporate Investors (percent of equity) | BD103: =C103 -> 1 | BE103: =D103 -> 0
A104: =Calculations!AB64 -> Return on equity | C104: =Calculations!AC64 -> 0.16 | BB104: Return on equity | BD104: =C104 -> 0.16
A105: =Calculations!AB65 -> Repayment term (years) | C105: =Calculations!AC65 -> 10 | BB105: Repayment term (years)
A106: =Calculations!AB66 -> Tax Parameters | BB106: Tax Parameters
A107: =Calculations!AB67 -> Local Property/Other Tax Rate (percent of taxable value) | C107: =Calculations!AC67 -> 0 | BB107: Local Property/Other Tax Rate (percent of taxable value) | BD107: =C107 -> 0
A108: =Calculations!AB68 -> Assessed Value (percent of construction cost) | C108: =Calculations!AC68 -> 1 | BB108: Assessed Value (percent of construction cost) | BD108: 1
A109: =Calculations!AB69 -> Taxable Value (percent of assessed value) | C109: =Calculations!AC69 -> 1 | BB109: Taxable Value (percent of assessed value) | BD109: 1
A110: =Calculations!AB70 -> Taxable Value | C110: =Calculations!AC70 -> 625000000 | BB110: Taxable Value | BD110: 625000000
A111: =Calculations!AB71 -> Local Taxes | C111: =Calculations!AC71 -> 0 | D111: =Calculations!AD71 -> 1 | BB111: Local Taxes | BD111: 0 | BE111: =D111 -> 1
A112: =Calculations!AB72 -> Local Sales Tax Rate | C112: =Calculations!AC72 -> 0.04 | BB112: Local Sales Tax Rate | BD112: 0.04
A113: =Calculations!AB73 -> Land Lease Parameters | BB113: Land Lease Parameters
A114: =Calculations!AB74 -> Land Lease (total cost) | C114: =Calculations!AC74 -> 0 | BB114: Land Lease (total cost) | BD114: =C114 -> 0
A115: =Calculations!AB75 -> Lease Payment Recipient (F = farmer/household, O = Other) | C115: =Calculations!AC75 -> O | D115: =Calculations!AD75 -> 1 | BB115: Lease Payment Recipient (F = farmer/household, O = Other) | BD115: =C115 -> O | BE115: =D115 -> 1
A116: =Calculations!AB76 -> Payroll Parameters | C116: Wage per hour | D116: Employer Payroll Overhead | BB116: Payroll Parameters | BD116: =C116 -> Wage per hour | BE116: =D116 -> Employer Payroll Overhead
A117: =Calculations!AB77 -> Labor (average wage per hour for all plant workers) | C117: =Calculations!AC77 -> 23.79985773 | D117: =Calculations!$AE77 -> 0.3760611025 | BB117: Labor (average wage per hour for all plant workers) | BD117: =C117 -> 23.79985773 | BE117: =D117 -> 0.3760611025

Sheet Household Exp (hidden)
C1: Personal Consumption Expenditures
C2: Year of Data | D2: 2014
D3: Alabama | E3: Alaska | F3: Arizona | G3: Arkansas | H3: California | I3: Colorado | J3: Connecticut | K3: Delaware | L3: District of Columbia | M3: Florida | N3: Georgia | O3: Hawaii | P3: Idaho | Q3: Illinois | R3: Indiana | S3: Iowa | T3: Kansas | U3: Kentucky | V3: Louisiana | W3: Maine | X3: Maryland | Y3: Massachusetts | Z3: Michigan | AA3: Minnesota | AB3: Mississippi | AC3: Missouri | AD3: Montana | AE3: ='User Add-in Location'!E8 -> MyCounty | AF3: ='User Add-in Location'!F8 -> MyRegion | AG3: Nebraska | AH3: Nevada | AI3: New Hampshire | AJ3: New Jersey | AK3: New Mexico | AL3: New York | AM3: North Carolina | AN3: North Dakota | AO3: Ohio | AP3: Oklahoma | AQ3: Oregon | AR3: Pennsylvania | AS3: Rhode Island | AT3: South Carolina | AU3: South Dakota | AV3: Tennessee | AW3: Texas | AX3: United States | AY3: Utah | AZ3: Vermont | BA3: Virginia | BB3: Washington | BC3: West Virginia | BD3: Wisconsin | BE3: Wyoming
C4: Agriculture | D4: 0.004384330381 | E4: 0.001411951342 | F4: 0.004564238075 | G4: 0.008178632879 | H4: 0.003979249239 | I4: 0.007019546287 | J4: 0.0007608607585 | K4: 0.005151456372 | L4: 0.0004292289416 | M4: 0.003458368365 | N4: 0.004508102546 | O4: 0.004942989179 | P4: 0.009491750692 | Q4: 0.002866761014 | R4: 0.002545043718 | S4: 0.00939347376 | T4: 0.008790065648 | U4: 0.003175961094 | V4: 0.001639637082 | W4: 0.004067660925 | X4: 0.002083186058 | Y4: 0.0006372773432 | Z4: 0.002381238121 | AA4: 0.005639805481 | AB4: 0.006386139845 | AC4: 0.004104364189 | AD4: 0.006243838265 | AE4: ='User Add-in Location'!E9 -> 0 | AF4: ='User Add-in Location'!F9 -> 0 | AG4: 0.008887131788 | AH4: 0.00253756422 | AI4: 0.001388857498 | AJ4: 0.0005516395517 | AK4: 0.006979170237 | AL4: 0.002880344653 | AM4: 0.004607794108 | AN4: 0.005609597272 | AO4: 0.002063641271 | AP4: 0.004905058883 | AQ4: 0.006340977661 | AR4: 0.002903552179 | AS4: 0.0005167988573 | AT4: 0.002462276783 | AU4: 0.009496244544 | AV4: 0.002096612765 | AW4: 0.003014855509 | AX4: 0.005526011436 | AY4: 0.003326996211 | AZ4: 0.008753813665 | BA4: 0.003736384389 | BB4: 0.003850574353 | BC4: 0.002707634016 | BD4: 0.007505445268 | BE4: 0.003989125579
A5: Warning | C5: Mining | D5: 3.677333795e-06 | E5: 2.363481662e-05 | F5: 4.428329713e-06 | G5: 6.797702789e-06 | H5: 7.635991695e-06 | I5: 1.285516538e-05 | J5: 1.442187022e-06 | K5: 6.185274109e-07 | L5: 4.082166389e-07 | M5: 3.620128991e-06 | N5: 1.558401713e-06 | O5: 2.020136929e-06 | P5: 3.672698612e-06 | Q5: 2.302590235e-06 | R5: 2.00895267e-06 | S5: 1.286750495e-06 | T5: 1.11851766e-05 | U5: 3.426991232e-06 | V5: 2.114691262e-05 | W5: 1.233221425e-06 | X5: 1.991835158e-06 | Y5: 1.274897916e-06 | Z5: 2.444063022e-06 | AA5: 1.445369735e-06 | AB5: 6.815324922e-06 | AC5: 1.683675783e-06 | AD5: 1.167053079e-05 | AE5: ='User Add-in Location'!E10 -> 0 | AF5: ='User Add-in Location'!F10 -> 0 | AG5: 2.010026498e-06 | AH5: 1.12494696e-05 | AI5: 1.717982414e-06 | AJ5: 1.254319065e-06 | AK5: 2.348061397e-05 | AL5: 1.632789003e-06 | AM5: 1.421748408e-06 | AN5: 1.777251441e-05 | AO5: 4.497899189e-06 | AP5: 2.062758352e-05 | AQ5: 2.110349725e-06 | AR5: 7.603598691e-06 | AS5: 9.475994394e-07 | AT5: 1.25061441e-06 | AU5: 3.304554079e-06 | AV5: 1.620804846e-06 | AW5: 2.145813723e-05 | AX5: 1.192597005e-05 | AY5: 1.005186848e-05 | AZ5: 2.124491659e-06 | BA5: 3.091334567e-06 | BB5: 1.606151154e-06 | BC5: 1.335015412e-05 | BD5: 1.162093327e-06 | BE5: 2.707344934e-05
C6: Construction | D6: 0 | E6: 0 | F6: 0 | G6: 0 | H6: 0 | I6: 0 | J6: 0 | K6: 0 | L6: 0 | M6: 0 | N6: 0 | O6: 0 | P6: 0 | Q6: 0 | R6: 0 | S6: 0 | T6: 0 | U6: 0 | V6: 0 | W6: 0 | X6: 0 | Y6: 0 | Z6: 0 | AA6: 0 | AB6: 0 | AC6: 0 | AD6: 0 | AE6: ='User Add-in Location'!E11 -> 0 | AF6: ='User Add-in Location'!F11 -> 0 | AG6: 0 | AH6: 0 | AI6: 0 | AJ6: 0 | AK6: 0 | AL6: 0 | AM6: 0 | AN6: 0 | AO6: 0 | AP6: 0 | AQ6: 0 | AR6: 0 | AS6: 0 | AT6: 0 | AU6: 0 | AV6: 0 | AW6: 0 | AX6: 0 | AY6: 0 | AZ6: 0 | BA6: 0 | BB6: 0 | BC6: 0 | BD6: 0 | BE6: 0
A7: This Worksheet contains Data and Formulas that are an integral part of the JEDI model. | C7: Manufacturing | D7: 0.04538769938 | E7: 0.04751615439 | F7: 0.02601601984 | G7: 0.03871614099 | H7: 0.08424695211 | I7: 0.04678531296 | J7: 0.02691443385 | K7: 0.02705081818 | L7: 0.001406269771 | M7: 0.03588294144 | N7: 0.0410778666 | O7: 0.04771712351 | P7: 0.03484069858 | Q7: 0.05361990316 | R7: 0.05450634659 | S7: 0.03447882879 | T7: 0.04344903928 | U7: 0.04175371942 | V7: 0.05444260812 | W7: 0.03338105864 | X7: 0.02171790025 | Y7: 0.03500828748 | Z7: 0.05973790234 | AA7: 0.05856184383 | AB7: 0.0396461678 | AC7: 0.03229916169 | AD7: 0.0413166807 | AE7: ='User Add-in Location'!E12 -> 0 | AF7: ='User Add-in Location'!F12 -> 0 | AG7: 0.02751341254 | AH7: 0.01636506977 | AI7: 0.01746298532 | AJ7: 0.03947687808 | AK7: 0.03449942446 | AL7: 0.03029455747 | AM7: 0.05098974521 | AN7: 0.03093297646 | AO7: 0.06105505725 | AP7: 0.0440218515 | AQ7: 0.03783917751 | AR7: 0.05278222274 | AS7: 0.01426469323 | AT7: 0.03476185021 | AU7: 0.01765264397 | AV7: 0.04081066686 | AW7: 0.08837585581 | AX7: 0.1437582122 | AY7: 0.0577237525 | AZ7: 0.02215678822 | BA7: 0.03094563227 | BB7: 0.06532834545 | BC7: 0.01903501173 | BD7: 0.04879692887 | BE7: 0.03716154501
C8: Fabricated Metals | D8: 1.124576773e-06 | E8: 4.390845948e-07 | F8: 9.565433436e-07 | G8: 6.010669205e-07 | H8: 1.859574413e-06 | I8: 1.223899791e-06 | J8: 6.605104667e-07 | K8: 1.605972056e-07 | L8: 4.762379372e-10 | M8: 9.658091649e-07 | N8: 7.556860275e-07 | O8: 2.81068995e-07 | P8: 5.338386941e-07 | Q8: 1.02481144e-06 | R8: 1.066130651e-06 | S8: 6.078364364e-07 | T8: 6.578107747e-07 | U8: 4.918720961e-07 | V8: 1.193632829e-06 | W8: 3.587796833e-07 | X8: 2.364265729e-07 | Y8: 8.710747453e-07 | Z8: 1.320824718e-06 | AA8: 1.43898867e-06 | AB8: 4.438984913e-07 | AC8: 4.881579697e-07 | AD8: 2.968145928e-07 | AE8: ='User Add-in Location'!E13 -> 0 | AF8: ='User Add-in Location'!F13 -> 0 | AG8: 7.868117458e-07 | AH8: 2.892156947e-07 | AI8: 6.236808163e-07 | AJ8: 5.276479165e-07 | AK8: 2.485846872e-07 | AL8: 7.205077775e-07 | AM8: 1.174243993e-06 | AN8: 2.19869449e-07 | AO8: 1.21269199e-06 | AP8: 1.349960827e-06 | AQ8: 1.245413612e-06 | AR8: 1.386643675e-06 | AS8: 1.424880068e-07 | AT8: 1.01362734e-06 | AU8: 3.369006909e-07 | AV8: 8.38763205e-07 | AW8: 2.42447799e-06 | AX8: 3.410079261e-06 | AY8: 1.811724918e-06 | AZ8: 2.150720866e-07 | BA8: 9.552529812e-07 | BB8: 1.413516415e-06 | BC8: 2.14343243e-07 | BD8: 1.301580095e-06 | BE8: 1.011573689e-07
A9: Although the data and formulas are available for review they must not be changed. | C9: Machinery | D9: 1.307928247e-05 | E9: 2.900514522e-08 | F9: 5.103683399e-06 | G9: 1.391998166e-05 | H9: 1.210247519e-05 | I9: 8.706528041e-06 | J9: 1.570700562e-06 | K9: 9.758902935e-07 | L9: 1.606295756e-08 | M9: 3.301582381e-06 | N9: 1.035649193e-05 | O9: 2.520304913e-06 | P9: 1.886711376e-05 | Q9: 1.484023893e-05 | R9: 1.819948194e-05 | S9: 2.203164679e-05 | T9: 1.877686928e-05 | U9: 7.584942784e-06 | V9: 8.161308805e-06 | W9: 1.70012645e-06 | X9: 8.199209748e-07 | Y9: 1.423799777e-06 | Z9: 9.153174283e-06 | AA9: 1.663820865e-05 | AB9: 1.177562923e-05 | AC9: 5.427090201e-06 | AD9: 3.251735408e-06 | AE9: ='User Add-in Location'!E14 -> 0 | AF9: ='User Add-in Location'!F14 -> 0 | AG9: 2.383829285e-05 | AH9: 3.121221969e-07 | AI9: 1.011786691e-06 | AJ9: 1.546109172e-06 | AK9: 3.616975678e-06 | AL9: 5.591949379e-06 | AM9: 9.547878173e-06 | AN9: 2.835510013e-05 | AO9: 1.252876363e-05 | AP9: 6.62272691e-06 | AQ9: 1.634150813e-05 | AR9: 8.659070921e-06 | AS9: 3.41083948e-07 | AT9: 4.936522279e-06 | AU9: 2.363174601e-05 | AV9: 4.939401124e-06 | AW9: 1.130864428e-05 | AX9: 4.373952927e-05 | AY9: 2.372495433e-06 | AZ9: 6.296237229e-07 | BA9: 3.759250661e-06 | BB9: 8.426869107e-06 | BC9: 4.133355552e-07 | BD9: 2.046187369e-05 | BE9: 2.331583356e-06
C10: Electrical Equipment | D10: 2.918616822e-07 | E10: 5.499958101e-09 | F10: 2.186621283e-05 | G10: 6.000474649e-07 | H10: 3.252797091e-05 | I10: 9.854241956e-06 | J10: 2.417312934e-06 | K10: 4.735816086e-08 | L10: 2.792982139e-09 | M10: 1.238023624e-05 | N10: 1.481671304e-06 | O10: 1.895089834e-07 | P10: 2.402038417e-05 | Q10: 1.924691101e-06 | R10: 5.235843839e-07 | S10: 4.195261504e-07 | T10: 1.624167057e-06 | U10: 3.069342669e-07 | V10: 6.250753927e-08 | W10: 2.94946301e-06 | X10: 9.738756564e-07 | Y10: 2.266155337e-05 | Z10: 1.536595897e-06 | AA10: 8.834900949e-06 | AB10: 2.713905008e-07 | AC10: 4.145611169e-06 | AD10: 1.167844336e-07 | AE10: ='User Add-in Location'!E15 -> 0 | AF10: ='User Add-in Location'!F15 -> 0 | AG10: 3.727665999e-07 | AH10: 1.69319091e-05 | AI10: 5.549750234e-06 | AJ10: 3.311717294e-06 | AK10: 2.261643457e-05 | AL10: 8.19297219e-06 | AM10: 1.016658211e-05 | AN10: 2.442368364e-07 | AO10: 2.181530376e-06 | AP10: 2.837204351e-07 | AQ10: 2.987625035e-05 | AR10: 3.145417892e-06 | AS10: 1.253802612e-06 | AT10: 4.721131875e-07 | AU10: 7.020724617e-07 | AV10: 3.45949342e-07 | AW10: 2.206647345e-05 | AX10: 2.912657396e-05 | AY10: 6.855421196e-06 | AZ10: 1.563965999e-05 | BA10: 4.791699098e-06 | BB10: 4.679602927e-06 | BC10: 8.159716628e-08 | BD10: 1.344261444e-06 | BE10: 3.113559667e-09
A11: Any changes to the data or formulas will impact the analysis and may invalidate the model results. | C11: TCPU | D11: 0.04910826769 | E11: 0.04835386398 | F11: 0.04216965163 | G11: 0.04794139656 | H11: 0.02876079667 | I11: 0.0400811386 | J11: 0.03439142139 | K11: 0.03415905229 | L11: 0.02616570636 | M11: 0.0403257064 | N11: 0.04115556621 | O11: 0.03535262521 | P11: 0.0449418335 | Q11: 0.04044798461 | R11: 0.04401526211 | S11: 0.04636094916 | T11: 0.03601811672 | U11: 0.04388881668 | V11: 0.04192266253 | W11: 0.04142866034 | X11: 0.03738629091 | Y11: 0.03318106721 | Z11: 0.04059482442 | AA11: 0.04620491451 | AB11: 0.05042339249 | AC11: 0.04488649008 | AD11: 0.05237250038 | AE11: ='User Add-in Location'!E16 -> 0 | AF11: ='User Add-in Location'!F16 -> 0 | AG11: 0.04382999187 | AH11: 0.06021540961 | AI11: 0.03388921465 | AJ11: 0.03734646317 | AK11: 0.04115653129 | AL11: 0.03844284718 | AM11: 0.037083272 | AN11: 0.05218752319 | AO11: 0.04175786561 | AP11: 0.05035585175 | AQ11: 0.0447057481 | AR11: 0.03895277857 | AS11: 0.03128476433 | AT11: 0.03862322921 | AU11: 0.04531526911 | AV11: 0.04065908017 | AW11: 0.04501976605 | AX11: 0.04060037507 | AY11: 0.03851929391 | AZ11: 0.04674274773 | BA11: 0.04197815136 | BB11: 0.03879307875 | BC11: 0.0449439744 | BD11: 0.04122486426 | BE11: 0.05499510085
C12: Wholesale Trade | D12: 0.04078921789 | E12: 0.02951692186 | F12: 0.04754833718 | G12: 0.0474622171 | H12: 0.04446895456 | I12: 0.04756537449 | J12: 0.04947347602 | K12: 0.03700805424 | L12: 0.02273244424 | M12: 0.04818623027 | N12: 0.04745430716 | O12: 0.03917455688 | P12: 0.04587526894 | Q12: 0.04676870526 | R12: 0.03965390501 | S12: 0.04203630956 | T12: 0.04117300303 | U12: 0.0451014901 | V12: 0.03432619036 | W12: 0.04270168495 | X12: 0.04397547696 | Y12: 0.04923105077 | Z12: 0.04424976936 | AA12: 0.0478424641 | AB12: 0.03513748371 | AC12: 0.04626068316 | AD12: 0.04312295421 | AE12: ='User Add-in Location'!E17 -> 0 | AF12: ='User Add-in Location'!F17 -> 0 | AG12: 0.04386616679 | AH12: 0.1037791601 | AI12: 0.05338174907 | AJ12: 0.04921855155 | AK12: 0.03771081743 | AL12: 0.04738991625 | AM12: 0.0469533378 | AN12: 0.05924934108 | AO12: 0.04438023987 | AP12: 0.0455380824 | AQ12: 0.04558880983 | AR12: 0.04674839908 | AS12: 0.04882621324 | AT12: 0.04330633857 | AU12: 0.05310626102 | AV12: 0.04711474199 | AW12: 0.04387452626 | AX12: 0.03921366992 | AY12: 0.04178039593 | AZ12: 0.03629905598 | BA12: 0.04218881739 | BB12: 0.04500803773 | BC12: 0.0415127776 | BD12: 0.04531418813 | BE12: 0.042292843
C13: Retail Trade | D13: 0.1151295514 | E13: 0.1090847846 | F13: 0.1092415844 | G13: 0.1092664302 | H13: 0.0958165568 | I13: 0.09414097933 | J13: 0.1006055347 | K13: 0.1076609856 | L13: 0.07824600187 | M13: 0.1047842408 | N13: 0.1032883753 | O13: 0.1129557974 | P13: 0.1185999134 | Q13: 0.09538325744 | R13: 0.1118705409 | S13: 0.1126937907 | T13: 0.1135284211 | U13: 0.1104511696 | V13: 0.1121974306 | W13: 0.1129882696 | X13: 0.09801724209 | Y13: 0.08809832473 | Z13: 0.1070901649 | AA13: 0.09800682089 | AB13: 0.1191690879 | AC13: 0.1038885433 | AD13: 0.112637871 | AE13: ='User Add-in Location'!E18 -> 0 | AF13: ='User Add-in Location'!F18 -> 0 | AG13: 0.1129912306 | AH13: 0.7945738712 | AI13: 0.1103240457 | AJ13: 0.1004493015 | AK13: 0.1178309824 | AL13: 0.09394311761 | AM13: 0.1003219116 | AN13: 0.1153770187 | AO13: 0.1035244776 | AP13: 0.1083776876 | AQ13: 0.1011224312 | AR13: 0.09763034216 | AS13: 0.09537728365 | AT13: 0.1166012205 | AU13: 0.1190922675 | AV13: 0.1110808563 | AW13: 0.1006792258 | AX13: 0.08667908637 | AY13: 0.1018476793 | AZ13: 0.1087484127 | BA13: 0.1039600408 | BB13: 0.1008403261 | BC13: 0.1236364348 | BD13: 0.1040048097 | BE13: 0.1153686743
C14: FIRE | D14: 0.1249465985 | E14: 0.1141976709 | F14: 0.140537736 | G14: 0.1136069109 | H14: 0.1195631163 | I14: 0.1306090754 | J14: 0.1414132647 | K14: 0.1612698163 | L14: 0.1625997792 | M14: 0.1333966401 | N14: 0.1287445953 | O14: 0.1250249885 | P14: 0.1340643121 | Q14: 0.1370516427 | R14: 0.117816163 | S14: 0.1426880107 | T14: 0.1222340576 | U14: 0.1185538929 | V14: 0.1118676834 | W14: 0.1335688862 | X14: 0.1321333103 | Y14: 0.1414593148 | Z14: 0.1197437119 | AA14: 0.1308916887 | AB14: 0.1151213884 | AC14: 0.1258752802 | AD14: 0.1272501893 | AE14: ='User Add-in Location'!E19 -> 0 | AF14: ='User Add-in Location'!F19 -> 0 | AG14: 0.1345509208 | AH14: 0.01108952917 | AI14: 0.1429205652 | AJ14: 0.1353698486 | AK14: 0.1237713709 | AL14: 0.1432728602 | AM14: 0.129960827 | AN14: 0.1311120114 | AO14: 0.1311621089 | AP14: 0.120536059 | AQ14: 0.1252608657 | AR14: 0.1291927022 | AS14: 0.151296094 | AT14: 0.1201525482 | AU14: 0.1419129173 | AV14: 0.1206724579 | AW14: 0.1255628291 | AX14: 0.1200748833 | AY14: 0.1352166842 | AZ14: 0.1314002906 | BA14: 0.1285480146 | BB14: 0.1192889483 | BC14: 0.1113922117 | BD14: 0.1299396082 | BE14: 0.1330434427
C15: Misc. Services | D15: 0.6018238326 | E15: 0.6334737062 | F15: 0.613332561 | G15: 0.6190500136 | H15: 0.606319932 | I15: 0.6163870582 | J15: 0.6283612429 | K15: 0.6090744044 | L15: 0.6896865499 | M15: 0.6174779079 | N15: 0.6180286829 | O15: 0.6204023664 | P15: 0.5945808906 | Q15: 0.6067366571 | R15: 0.612340947 | S15: 0.5965963501 | T15: 0.6177794415 | U15: 0.6202673616 | V15: 0.6259100026 | W15: 0.6147601995 | X15: 0.6465592442 | Y15: 0.6335044281 | Z15: 0.6084009495 | AA15: 0.596166288 | AB15: 0.617747213 | AC15: 0.6257068968 | AD15: 0.5999510311 | AE15: ='User Add-in Location'!E20 -> 0 | AF15: ='User Add-in Location'!F20 -> 0 | AG15: 0.6123817683 | AH15: 0.01141061326 | AI15: 0.6224434252 | AJ15: 0.6195378096 | AK15: 0.6191561379 | AL15: 0.6256972783 | AM15: 0.613204367 | AN15: 0.5899893759 | AO15: 0.5995911005 | AP15: 0.6099028098 | AQ15: 0.6216366078 | AR15: 0.6137686639 | AS15: 0.6413069436 | AT15: 0.6262824194 | AU15: 0.5977993414 | AV15: 0.6204157343 | AW15: 0.5771804508 | AX15: 0.5490881243 | AY15: 0.6049829643 | AZ15: 0.62756152 | BA15: 0.6304515603 | BB15: 0.6090215844 | BC15: 0.6371578019 | BD15: 0.606554321 | BE15: 0.5960737486
C16: Professional Services | D16: 0.00934341492 | E16: 0.007512323512 | F16: 0.008757965134 | G16: 0.006907223896 | H16: 0.009913895599 | I16: 0.0100882752 | J16: 0.01032451331 | K16: 0.01092017967 | L16: 0.009569306515 | M16: 0.009259718899 | N16: 0.008817609427 | O16: 0.0060651887 | P16: 0.008700813603 | Q16: 0.01021379651 | R16: 0.009104180137 | S16: 0.007077533703 | T16: 0.008608287113 | U16: 0.007619201119 | V16: 0.008484477275 | W16: 0.008606286097 | X16: 0.01023903517 | Y16: 0.01166573006 | Z16: 0.01008650401 | AA16: 0.009151465092 | AB16: 0.006820621005 | AC16: 0.008988197697 | AD16: 0.007868477056 | AE16: ='User Add-in Location'!E21 -> 0 | AF16: ='User Add-in Location'!F21 -> 0 | AG16: 0.007832492896 | AH16: 0 | AI16: 0.01006916311 | AJ16: 0.01083201281 | AK16: 0.009281309958 | AL16: 0.01049806108 | AM16: 0.009353089705 | AN16: 0.006444352277 | AO16: 0.009014277993 | AP16: 0.007686993373 | AQ16: 0.009288579202 | AR16: 0.01033121994 | AS16: 0.009493852475 | AT16: 0.008993842757 | AU16: 0.006569221685 | AV16: 0.009028809194 | AW16: 0.0088012448 | AX16: 0.008905399586 | AY16: 0.009233047842 | AZ16: 0.009866140945 | BA16: 0.009805343665 | BB16: 0.01007900324 | BC16: 0.009346395967 | BD16: 0.008463657009 | BE16: 0.006544897326
C17: Government | D17: 0.009068914188 | E17: 0.008908514871 | F17: 0.007799551977 | G17: 0.008849115104 | H17: 0.006876420645 | I17: 0.007290599771 | J17: 0.007749161625 | K17: 0.007703430608 | L17: 0.009164285633 | M17: 0.007207978093 | N17: 0.006910742365 | O17: 0.008359353228 | P17: 0.008857424526 | Q17: 0.006891199812 | R17: 0.008125813337 | S17: 0.008650407803 | T17: 0.008387324013 | U17: 0.009176576679 | V17: 0.009178743736 | W17: 0.008491052168 | X17: 0.007884292005 | Y17: 0.007188288222 | Z17: 0.007700480933 | AA17: 0.007506351909 | AB17: 0.009529199643 | AC17: 0.00797863831 | AD17: 0.009221122133 | AE17: ='User Add-in Location'!E22 -> 0 | AF17: ='User Add-in Location'!F22 -> 0 | AG17: 0.008119876567 | AH17: 0 | AI17: 0.008111091045 | AJ17: 0.007210855321 | AK17: 0.009564292753 | AL17: 0.007564879108 | AM17: 0.007503345123 | AN17: 0.009051211995 | AO17: 0.007430810136 | AP17: 0.008646721594 | AQ17: 0.00816722948 | AR17: 0.007669324536 | AS17: 0.007630671708 | AT17: 0.008808601474 | AU17: 0.009027858199 | AV17: 0.008113295549 | AW17: 0.007433988167 | AX17: 0.00606603566 | AY17: 0.007348094254 | AZ17: 0.008452621276 | BA17: 0.008373457733 | BB17: 0.007773975567 | BC17: 0.01025369845 | BD17: 0.008171907784 | BE17: 0.01050111326
A18: To view the data and formulas simply scroll over to the adjacent columns to the right. | C18: Total | D18: =SUM(D4:D17) -> 1 | E18: =SUM(E4:E17) -> 1 | F18: 1 | G18: 1 | H18: 1 | I18: 1 | J18: 1 | K18: 1 | L18: 1 | M18: 1 | N18: 1 | O18: 1 | P18: 1 | Q18: 1 | R18: 1 | S18: 1 | T18: 1 | U18: 1 | V18: 1 | W18: 1 | X18: 1 | Y18: 1 | Z18: 1 | AA18: 1 | AB18: 1 | AC18: 1 | AD18: 1 | AE18: 0 | AF18: 0 | AG18: 1 | AH18: 1 | AI18: 1 | AJ18: 1 | AK18: 1 | AL18: 1 | AM18: 1 | AN18: 1 | AO18: 1 | AP18: 1 | AQ18: 1 | AR18: 1 | AS18: 1 | AT18: 1 | AU18: 1 | AV18: 1 | AW18: 1 | AX18: 1 | AY18: 1 | AZ18: 1 | BA18: 1 | BB18: 1 | BC18: 1 | BD18: 1 | BE18: 1
C20: =CONCATENATE("Source: All values are averages for $25,000-$150,000 income classes and are derived from IMPLAN™ using ", D2," state data.") -> Source: All values are averages for $25,000-$150,000 income classes and are derived from IMPLAN™ using 2014 state data.

Sheet User Add-in Location
A1: Multipliers For Economic Input-Output Analysis
A3: MyCounty (name) | C3: Year of Data | E3: =IF(B3="","",IF(D3="","Enter Year of Data",IF(D3>2006,IF(D3<2016,"","ERROR - Deflators Data Not Current"),"ERROR - Deflators Data Not Current"))) -> 
A4: MyRegion (includes) | C4: Year of Data | E4: =IF(B4="","",IF(D4="","Enter Year of Data",IF(D4>2006,IF(D4<2016,"","ERROR - Deflators Data Not Current"),"ERROR - Deflators Data Not Current"))) -> 
A5: Natural Gas Price - in year of Data ($/mmbtu)
A6: Sales Tax Rate (percentage)
A7: Jobs Per Million Dollars Change in Final Demand | D7: Personal Consumption Expenditures (PCE)
A8: Jobs Direct Multipliers | B8: MyCounty | C8: MyRegion | E8: =B8 -> MyCounty | F8: =C8 -> MyRegion
A9: Agriculture | B9: 0 | C9: 0 | E9: 0 | F9: 0
A10: Mining | B10: 0 | C10: 0 | E10: 0 | F10: 0
A11: Construction | B11: 0 | C11: 0 | E11: 0 | F11: 0
A12: Manufacturing | B12: 0 | C12: 0 | E12: 0 | F12: 0
A13: Fabricated Metals | B13: 0 | C13: 0 | E13: 0 | F13: 0
A14: Machinery | B14: 0 | C14: 0 | E14: 0 | F14: 0
A15: Electrical Equipment | B15: 0 | C15: 0 | E15: 0 | F15: 0
A16: TCPU | B16: 0 | C16: 0 | E16: 0 | F16: 0
A17: Wholesale Trade | B17: 0 | C17: 0 | E17: 0 | F17: 0
A18: Retail Trade | B18: 0 | C18: 0 | E18: 0 | F18: 0
A19: FIRE | B19: 0 | C19: 0 | E19: 0 | F19: 0
A20: Misc. Services | B20: 0 | C20: 0 | E20: 0 | F20: 0
A21: Professional Services | B21: 0 | C21: 0 | E21: 0 | F21: 0
A22: Government | B22: 0 | C22: 0 | E22: 0 | F22: 0
D23: Total | E23: =SUM(E9:E22) -> 0 | F23: =SUM(F9:F22) -> 0
A24: Jobs Per Million Dollars Change in Final Demand
A25: Jobs Indirect Multipliers | B25: =B8 -> MyCounty | C25: MyRegion
A26: Agriculture | B26: 0 | C26: 0
A27: Mining | B27: 0 | C27: 0
A28: Construction | B28: 0 | C28: 0
A29: Manufacturing | B29: 0 | C29: 0
A30: Fabricated Metals | B30: 0 | C30: 0
A31: Machinery | B31: 0 | C31: 0
A32: Electrical Equipment | B32: 0 | C32: 0
A33: TCPU | B33: 0 | C33: 0
A34: Wholesale Trade | B34: 0 | C34: 0
A35: Retail Trade | B35: 0 | C35: 0
A36: FIRE | B36: 0 | C36: 0
A37: Misc. Services | B37: 0 | C37: 0
A38: Professional Services | B38: 0 | C38: 0
A39: Government | B39: 0 | C39: 0
A41: Jobs Per Million Dollars Change in Final Demand
A42: Jobs Induced Multipliers | B42: =B25 -> MyCounty | C42: =C25 -> MyRegion
A43: Agriculture | B43: 0 | C43: 0
A44: Mining | B44: 0 | C44: 0
A45: Construction | B45: 0 | C45: 0
A46: Manufacturing | B46: 0 | C46: 0
A47: Fabricated Metals | B47: 0 | C47: 0
A48: Machinery | B48: 0 | C48: 0
A49: Electrical Equipment | B49: 0 | C49: 0
A50: TCPU | B50: 0 | C50: 0
A51: Wholesale Trade | B51: 0 | C51: 0
A52: Retail Trade | B52: 0 | C52: 0
A53: FIRE | B53: 0 | C53: 0
A54: Misc. Services | B54: 0 | C54: 0
A55: Professional Services | B55: 0 | C55: 0
A56: Government | B56: 0 | C56: 0
A58: Earnings Per Million Dollars Change in Final Demand
A59: Earnings Direct Multipliers | B59: =B42 -> MyCounty | C59: =C42 -> MyRegion
A60: Agriculture | B60: 0 | C60: 0
A61: Mining | B61: 0 | C61: 0
A62: Construction | B62: 0 | C62: 0
A63: Manufacturing | B63: 0 | C63: 0
A64: Fabricated Metals | B64: 0 | C64: 0
A65: Machinery | B65: 0 | C65: 0
A66: Electrical Equipment | B66: 0 | C66: 0
A67: TCPU | B67: 0 | C67: 0
A68: Wholesale Trade | B68: 0 | C68: 0
A69: Retail Trade | B69: 0 | C69: 0
A70: FIRE | B70: 0 | C70: 0
A71: Misc. Services | B71: 0 | C71: 0
A72: Professional Services | B72: 0 | C72: 0
A73: Government | B73: 0 | C73: 0
A75: Earnings Per Million Dollars Change in Final Demand
A76: Earnings Indirect Multipliers | B76: =B59 -> MyCounty | C76: =C59 -> MyRegion
A77: Agriculture | B77: 0 | C77: 0
A78: Mining | B78: 0 | C78: 0
A79: Construction | B79: 0 | C79: 0
A80: Manufacturing | B80: 0 | C80: 0
A81: Fabricated Metals | B81: 0 | C81: 0
A82: Machinery | B82: 0 | C82: 0
A83: Electrical Equipment | B83: 0 | C83: 0
A84: TCPU | B84: 0 | C84: 0
A85: Wholesale Trade | B85: 0 | C85: 0
A86: Retail Trade | B86: 0 | C86: 0
A87: FIRE | B87: 0 | C87: 0
A88: Misc. Services | B88: 0 | C88: 0
A89: Professional Services | B89: 0 | C89: 0
A90: Government | B90: 0 | C90: 0
A92: Earnings Per Million Dollars Change in Final Demand
A93: Earnings Induced Multipliers | B93: =B76 -> MyCounty | C93: =C76 -> MyRegion
A94: Agriculture | B94: 0 | C94: 0
A95: Mining | B95: 0 | C95: 0
A96: Construction | B96: 0 | C96: 0
A97: Manufacturing | B97: 0 | C97: 0
A98: Fabricated Metals | B98: 0 | C98: 0
A99: Machinery | B99: 0 | C99: 0
A100: Electrical Equipment | B100: 0 | C100: 0
A101: TCPU | B101: 0 | C101: 0
A102: Wholesale Trade | B102: 0 | C102: 0
A103: Retail Trade | B103: 0 | C103: 0
A104: FIRE | B104: 0 | C104: 0
A105: Misc. Services | B105: 0 | C105: 0
A106: Professional Services | B106: 0 | C106: 0
A107: Government | B107: 0 | C107: 0
A109: Output Per Million Dollars Change in Final Demand
A110: Output Direct Multipliers | B110: =B93 -> MyCounty | C110: =C93 -> MyRegion
A111: Agriculture | B111: 0 | C111: 0
A112: Mining | B112: 0 | C112: 0
A113: Construction | B113: 0 | C113: 0
A114: Manufacturing | B114: 0 | C114: 0
A115: Fabricated Metals | B115: 0 | C115: 0
A116: Machinery | B116: 0 | C116: 0
A117: Electrical Equipment | B117: 0 | C117: 0
A118: TCPU | B118: 0 | C118: 0
A119: Wholesale Trade | B119: 0 | C119: 0
A120: Retail Trade | B120: 0 | C120: 0
A121: FIRE | B121: 0 | C121: 0
A122: Misc. Services | B122: 0 | C122: 0
A123: Professional Services | B123: 0 | C123: 0
A124: Government | B124: 0 | C124: 0
A126: Output Per Million Dollars Change in Final Demand
A127: Output Indirect Multipliers | B127: =B110 -> MyCounty | C127: =C110 -> MyRegion
A128: Agriculture | B128: 0 | C128: 0
A129: Mining | B129: 0 | C129: 0
A130: Construction | B130: 0 | C130: 0
A131: Manufacturing | B131: 0 | C131: 0
A132: Fabricated Metals | B132: 0 | C132: 0
A133: Machinery | B133: 0 | C133: 0
A134: Electrical Equipment | B134: 0 | C134: 0
A135: TCPU | B135: 0 | C135: 0
A136: Wholesale Trade | B136: 0 | C136: 0
A137: Retail Trade | B137: 0 | C137: 0
A138: FIRE | B138: 0 | C138: 0
A139: Misc. Services | B139: 0 | C139: 0
A140: Professional Services | B140: 0 | C140: 0
A141: Government | B141: 0 | C141: 0
A143: Output Per Million Dollars Change in Final Demand
A144: Output Induced Multipliers | B144: =B127 -> MyCounty | C144: =C127 -> MyRegion
A145: Agriculture | B145: 0 | C145: 0
A146: Mining | B146: 0 | C146: 0
A147: Construction | B147: 0 | C147: 0
A148: Manufacturing | B148: 0 | C148: 0
A149: Fabricated Metals | B149: 0 | C149: 0
A150: Machinery | B150: 0 | C150: 0
A151: Electrical Equipment | B151: 0 | C151: 0
A152: TCPU | B152: 0 | C152: 0
A153: Wholesale Trade | B153: 0 | C153: 0
A154: Retail Trade | B154: 0 | C154: 0
A155: FIRE | B155: 0 | C155: 0
A156: Misc. Services | B156: 0 | C156: 0
A157: Professional Services | B157: 0 | C157: 0
A158: Government | B158: 0 | C158: 0
A160: Value Added Per Million Dollars Change in Final Demand
A161: Value Added Direct Multipliers | B161: MyCounty | C161: MyRegion
A162: Agriculture | B162: 0 | C162: 0
A163: Mining | B163: 0 | C163: 0
A164: Construction | B164: 0 | C164: 0
A165: Manufacturing | B165: 0 | C165: 0
A166: Fabricated Metals | B166: 0 | C166: 0
A167: Machinery | B167: 0 | C167: 0
A168: Electrical Equipment | B168: 0 | C168: 0
A169: TCPU | B169: 0 | C169: 0
A170: Wholesale Trade | B170: 0 | C170: 0
A171: Retail Trade | B171: 0 | C171: 0
A172: FIRE | B172: 0 | C172: 0
A173: Misc. Services | B173: 0 | C173: 0
A174: Professional Services | B174: 0 | C174: 0
A175: Government | B175: 0 | C175: 0
A177: Value Added Per Million Dollars Change in Final Demand
A178: Value Added Indirect Multipliers | B178: MyCounty | C178: MyRegion
A179: Agriculture | B179: 0 | C179: 0
A180: Mining | B180: 0 | C180: 0
A181: Construction | B181: 0 | C181: 0
A182: Manufacturing | B182: 0 | C182: 0
A183: Fabricated Metals | B183: 0 | C183: 0
A184: Machinery | B184: 0 | C184: 0
A185: Electrical Equipment | B185: 0 | C185: 0
A186: TCPU | B186: 0 | C186: 0
A187: Wholesale Trade | B187: 0 | C187: 0
A188: Retail Trade | B188: 0 | C188: 0
A189: FIRE | B189: 0 | C189: 0
A190: Misc. Services | B190: 0 | C190: 0
A191: Professional Services | B191: 0 | C191: 0
A192: Government | B192: 0 | C192: 0
A194: Value Added Per Million Dollars Change in Final Demand
A195: Value Added Induced Multipliers | B195: MyCounty | C195: MyRegion
A196: Agriculture | B196: 0 | C196: 0
A197: Mining | B197: 0 | C197: 0
A198: Construction | B198: 0 | C198: 0
A199: Manufacturing | B199: 0 | C199: 0
A200: Fabricated Metals | B200: 0 | C200: 0
A201: Machinery | B201: 0 | C201: 0
A202: Electrical Equipment | B202: 0 | C202: 0
A203: TCPU | B203: 0 | C203: 0
A204: Wholesale Trade | B204: 0 | C204: 0
A205: Retail Trade | B205: 0 | C205: 0
A206: FIRE | B206: 0 | C206: 0
A207: Misc. Services | B207: 0 | C207: 0
A208: Professional Services | B208: 0 | C208: 0
A209: Government | B209: 0 | C209: 0

Sheet DefaultData
D1: Capacity Factor | E1: Heat Rate | F1: Construction Period | G1: Total MW | I1: Per MW | J1: 0.05064803055
D2: =ProjectData!B16 -> 0.65 | E2: =ProjectData!B17 -> 7000 | F2: =ProjectData!B18 -> 36 | G2: =ProjectData!B15 -> 500
F3: Construction
D4: Total KW | E4: Total MWH | F4: Cost Per KW | G4: Project Cost
A5: Warning | D5: =ProjectData!B15*1000 -> 500000 | E5: =G2*D2*8760 -> 2847000 | F5: =ProjectData!B19 -> 1250 | G5: =F5*D5 -> 625000000
A7: This Worksheet contains Data and Formulas that are an integral part of the JEDI model. | D7: Fuel | E7: Fixed O&M | F7: Variable O&M | G7: Fuel
D8: Cost Per mmbtu | E8: Cost Per KW | F8: Cost Per MWh | G8: Cost Per MWH
A9: Although the data and formulas are available for review they must not be changed. | D9: =ProjectData!B20 -> 3.25 | E9: =ProjectData!B22 -> 8.25 | F9: =ProjectData!B23 -> 2.9 | G9: =D57/E5 -> 22.75
A11: Any changes to the data or formulas will impact the analysis and may invalidate the model results. | D11: Default Values - Based on Cost Per KW from Project Data sheet
H12: Very Small | I12: Small | J12: Medium | K12: Large
C13: Project Cost Data - Default Values | H13: 30000 | I13: 100000 | J13: 300000 | K13: 400000 | M13: =ProjectData!F13 -> 0
C14: Construction Costs | D14: Cost | E14: Cost | F14: Percent | G14: State | H14: County | I14: County | J14: County | K14: County | O14: 30000
C15: Facility and Equipment | E15: Per KW | F15: of Cost | G15: Local Share | H15: Local Share | I15: Local Share | J15: Local Share | K15: Local Share | O15: 100000 | R15: 300000 | U15: 400000
C16: Power Generation | D16: =G$5*F16 -> 220588235.3 | E16: =D16/D$5 -> 441.1764706 | F16: 0.3529411765 | G16: =IF(ProjectData!$B$13="UNITED STATES",1,0) -> 0 | H16: 0 | I16: 0 | J16: 0 | K16: 0 | M16: =(M$13-H$13)/(I$13-H$13) -> -0.4285714286 | N16: =+I16-H16 -> 0 | O16: =H16+(N16*M16) -> 0 | P16: =(M$13-I$13)/(J$13-I$13) -> -0.5 | Q16: =J16-I16 -> 0 | R16: =I16+(P16*Q16) -> 0 | S16: =IF((M$13-J$13)/(K$13-J$13)>1,1,(M$13-J$13)/(K$13-J$13)) -> -3 | T16: =K16-J16 -> 0 | U16: =J16+(S16*T16) -> 0
C17: General facilities | D17: =G$5*F17 -> 55147058.82 | E17: =D17/D$5 -> 110.2941176 | F17: 0.08823529412 | G17: =IF(ProjectData!$B$13="UNITED STATES",1,0.75) -> 0.75 | H17: 0.005019685039 | I17: 0.04517716535 | J17: 0.75 | K17: 0.75 | M17: =(M$13-H$13)/(I$13-H$13) -> -0.4285714286 | N17: =+I17-H17 -> 0.04015748031 | O17: =H17+(N17*M17) -> -0.01219066367 | P17: =(M$13-I$13)/(J$13-I$13) -> -0.5 | Q17: =J17-I17 -> 0.7048228346 | R17: =I17+(P17*Q17) -> -0.307234252 | S17: =IF((M$13-J$13)/(K$13-J$13)>1,1,(M$13-J$13)/(K$13-J$13)) -> -3 | T17: =K17-J17 -> 0 | U17: =J17+(S17*T17) -> 0.75
A18: To view the data and formulas simply scroll over to the adjacent columns to the right. | C18: Plant Equipment | D18: =G$5*F18 -> 99264705.88 | E18: =D18/D$5 -> 198.5294118 | F18: 0.1588235294 | G18: =IF(ProjectData!$B$13="UNITED STATES",1,0.05) -> 0.05 | H18: 0 | I18: 0 | J18: 0.05 | K18: 0.05 | M18: =(M$13-H$13)/(I$13-H$13) -> -0.4285714286 | N18: =+I18-H18 -> 0 | O18: =H18+(N18*M18) -> 0 | P18: =(M$13-I$13)/(J$13-I$13) -> -0.5 | Q18: =J18-I18 -> 0.05 | R18: =I18+(P18*Q18) -> -0.025 | S18: =IF((M$13-J$13)/(K$13-J$13)>1,1,(M$13-J$13)/(K$13-J$13)) -> -3 | T18: =K18-J18 -> 0 | U18: =J18+(S18*T18) -> 0.05
C19: Subtotal | D19: =SUM(D16:D18) -> 375000000 | E19: =D19/D$5 -> 750 | F19: =SUM(F16:F18) -> 0.6 | M19: =(M$13-H$13)/(I$13-H$13) -> -0.4285714286 | N19: =+I19-H19 -> 0 | O19: =H19+(N19*M19) -> 0 | P19: =(M$13-I$13)/(J$13-I$13) -> -0.5 | Q19: =J19-I19 -> 0 | R19: =I19+(P19*Q19) -> 0 | S19: =IF((M$13-J$13)/(K$13-J$13)>1,1,(M$13-J$13)/(K$13-J$13)) -> -3 | T19: =K19-J19 -> 0 | U19: =J19+(S19*T19) -> 0
C20: Labor and Management
C21: Construction Labor | D21: =G$5*F21 -> 106617647.1 | E21: =D21/D$5 -> 213.2352941 | F21: 0.1705882353 | G21: =IF(ProjectData!$B$13="UNITED STATES",1,0.5) -> 0.5 | H21: 0.005019685039 | I21: 0.04517716535 | J21: 0.5 | K21: 0.5 | M21: =(M$13-H$13)/(I$13-H$13) -> -0.4285714286 | N21: =+I21-H21 -> 0.04015748031 | O21: =H21+(N21*M21) -> -0.01219066367 | P21: =(M$13-I$13)/(J$13-I$13) -> -0.5 | Q21: =J21-I21 -> 0.4548228346 | R21: =I21+(P21*Q21) -> -0.182234252 | S21: =IF((M$13-J$13)/(K$13-J$13)>1,1,(M$13-J$13)/(K$13-J$13)) -> -3 | T21: =K21-J21 -> 0 | U21: =J21+(S21*T21) -> 0.5
C22: Project management (contruction and owner's) | D22: =G$5*F22 -> 58823529.41 | E22: =D22/D$5 -> 117.6470588 | F22: 0.09411764706 | G22: =IF(ProjectData!$B$13="UNITED STATES",1,0) -> 0 | H22: 0 | I22: 0 | J22: 0 | K22: 0 | M22: =(M$13-H$13)/(I$13-H$13) -> -0.4285714286 | N22: =+I22-H22 -> 0 | O22: =H22+(N22*M22) -> 0 | P22: =(M$13-I$13)/(J$13-I$13) -> -0.5 | Q22: =J22-I22 -> 0 | R22: =I22+(P22*Q22) -> 0 | S22: =IF((M$13-J$13)/(K$13-J$13)>1,1,(M$13-J$13)/(K$13-J$13)) -> -3 | T22: =K22-J22 -> 0 | U22: =J22+(S22*T22) -> 0
C23: Construction Utilities | D23: =G$5*F23 -> 3676470.588 | E23: =D23/D$5 -> 7.352941176 | F23: 0.005882352941 | G23: 1
C24: Subtotal | D24: =SUM(D21:D23) -> 169117647.1 | E24: =D24/D$5 -> 338.2352941 | F24: =F22+F21+F23 -> 0.2705882353
C25: Construction Subtotal | D25: =D24+D19 -> 544117647.1 | E25: =D25/D$5 -> 1088.235294 | F25: =F24+F19 -> 0.8705882353
C26: Other Costs
C27: Engineering/Design | D27: =G$5*F27 -> 14705882.35 | E27: =D27/D$5 -> 29.41176471 | F27: 0.02352941176 | G27: =IF(ProjectData!$B$13="UNITED STATES",1,0) -> 0 | H27: 0 | I27: 0 | J27: 0 | K27: 0 | M27: =(M$13-H$13)/(I$13-H$13) -> -0.4285714286 | N27: =+I27-H27 -> 0 | O27: =H27+(N27*M27) -> 0 | P27: =(M$13-I$13)/(J$13-I$13) -> -0.5 | Q27: =J27-I27 -> 0 | R27: =I27+(P27*Q27) -> 0 | S27: =IF((M$13-J$13)/(K$13-J$13)>1,1,(M$13-J$13)/(K$13-J$13)) -> -3 | T27: =K27-J27 -> 0 | U27: =J27+(S27*T27) -> 0
C28: Construction insurance | D28: 3676470.588 | E28: 7.352941176 | F28: 0.005882352941 | G28: =IF(ProjectData!$B$13="UNITED STATES",1,0) -> 0 | H28: 0 | I28: 0 | J28: 0 | K28: 0 | M28: -0.4285714286 | N28: 0 | O28: 0 | P28: -0.5 | Q28: 0 | R28: 0 | S28: -3 | T28: 0 | U28: 0
C29: Land | D29: 29411764.71 | E29: 58.82352941 | F29: 0.04705882353 | G29: 1 | H29: 1 | I29: 1 | J29: 1 | K29: 1 | M29: -0.4285714286 | N29: 0 | O29: 1 | P29: -0.5 | Q29: 0 | R29: 1 | S29: -3 | T29: 0 | U29: 1
C30: Permitting Fees | D30: 14705882.35 | E30: 29.41176471 | F30: 0.02352941176 | G30: 1 | H30: 1 | I30: 1 | J30: 1 | K30: 1 | M30: -0.4285714286 | N30: 0 | O30: 1 | P30: -0.5 | Q30: 0 | R30: 1 | S30: -3 | T30: 0 | U30: 1
C31: Grid intertie | D31: 14705882.35 | E31: 29.41176471 | F31: 0.02352941176 | G31: =IF(ProjectData!$B$13="UNITED STATES",1,0.25) -> 0.25 | H31: 0 | I31: 0 | J31: 0.25 | K31: 0.25 | M31: -0.4285714286 | N31: 0 | O31: 0 | P31: -0.5 | Q31: 0.25 | R31: -0.125 | S31: -3 | T31: 0 | U31: 0.25
C32: Spare Parts | D32: 3676470.588 | E32: 7.352941176 | F32: 0.005882352941 | G32: =IF(ProjectData!$B$13="UNITED STATES",1,0.05) -> 0.05 | H32: 0 | I32: 0 | J32: 0.01 | K32: 0.02 | M32: -0.4285714286 | N32: 0 | O32: 0 | P32: -0.5 | Q32: 0.01 | R32: -0.005 | S32: -3 | T32: 0.01 | U32: -0.02
C33: Other Subtotal | D33: =SUM(D27:D32) -> 80882352.94 | E33: 161.7647059 | F33: =SUM(F27:F32) -> 0.1294117647
C34: Subtotal All Costs (without sales tax) | D34: =D33+D25 -> 625000000 | E34: =E33+E25 -> 1250 | F34: =F33+F25 -> 1
C35: Sales Tax (Materials & Equipment Purchases) | D35: =(D19+D32)*D87 -> 15147058.82 | G35: 1 | H35: 1 | I35: 1 | J35: 1 | K35: 1 | M35: =(M$13-H$13)/(I$13-H$13) -> -0.4285714286 | N35: =+I35-H35 -> 0 | O35: =H35+(N35*M35) -> 1 | P35: =(M$13-I$13)/(J$13-I$13) -> -0.5 | Q35: =J35-I35 -> 0 | R35: =I35+(P35*Q35) -> 1 | S35: =IF((M$13-J$13)/(K$13-J$13)>1,1,(M$13-J$13)/(K$13-J$13)) -> -3 | T35: =K35-J35 -> 0 | U35: =J35+(S35*T35) -> 1
C36: Total Project Cost | D36: =D35+D34 -> 640147058.8
H38: Very Small | I38: Small | J38: Medium | K38: Large
H39: 30000 | I39: 100000 | J39: 300000 | K39: 400000
H40: County | I40: County | J40: County | K40: County
C41: Annual Operating and Maintenance Costs | D41: Cost | E41: Cost | F41: Percent | G41: Local Share | H41: Local Share | I41: Local Share | J41: Local Share | K41: Local Share
C42: Fixed Costs | E42: Per KW | F42: of Cost
F43: =D44/D50 -> 0.4182
C44: Labor | D44: =G2*J1*K93 -> 1725075 | E44: =F44*E$9 -> 3.45 | F44: 0.4181818182 | G44: 1 | H44: 1 | I44: 1 | J44: 1 | K44: 1 | M44: =(M$13-H$13)/(I$13-H$13) -> -0.4285714286 | N44: =+I44-H44 -> 0 | O44: =H44+(N44*M44) -> 1 | P44: =(M$13-I$13)/(J$13-I$13) -> -0.5 | Q44: =J44-I44 -> 0 | R44: =I44+(P44*Q44) -> 1 | S44: =IF((M$13-J$13)/(K$13-J$13)>1,1,(M$13-J$13)/(K$13-J$13)) -> -3 | T44: =K44-J44 -> 0 | U44: =J44+(S44*T44) -> 1
D45: =+E45*D$5 -> 0 | E45: =F45*E$9 -> 0 | F45: 0 | G45: 1 | H45: 1 | I45: 1 | J45: 1 | K45: 1 | M45: =(M$13-H$13)/(I$13-H$13) -> -0.4285714286 | N45: =+I45-H45 -> 0 | O45: =H45+(N45*M45) -> 1 | P45: =(M$13-I$13)/(J$13-I$13) -> -0.5 | Q45: =J45-I45 -> 0 | R45: =I45+(P45*Q45) -> 1 | S45: =IF((M$13-J$13)/(K$13-J$13)>1,1,(M$13-J$13)/(K$13-J$13)) -> -3 | T45: =K45-J45 -> 0 | U45: =J45+(S45*T45) -> 1
D46: =+E46*D$5 -> 0 | E46: =F46*E$9 -> 0 | F46: 0 | G46: =IF(ProjectData!$B$13="UNITED STATES",1,0.9) -> 0.9 | H46: 0.9 | I46: 0.9 | J46: 0.9 | K46: 0.9 | M46: =(M$13-H$13)/(I$13-H$13) -> -0.4285714286 | N46: =+I46-H46 -> 0 | O46: =H46+(N46*M46) -> 0.9 | P46: =(M$13-I$13)/(J$13-I$13) -> -0.5 | Q46: =J46-I46 -> 0 | R46: =I46+(P46*Q46) -> 0.9 | S46: =IF((M$13-J$13)/(K$13-J$13)>1,1,(M$13-J$13)/(K$13-J$13)) -> -3 | T46: =K46-J46 -> 0 | U46: =J46+(S46*T46) -> 0.9
C47: Labor Subtotal | D47: =SUM(D44:D46) -> 1725075 | E47: =SUM(E44:E46) -> 3.45 | F47: =SUM(F44:F46) -> 0.4181818182
C48: Materials | D48: =((E$9*D$5)-D$47)*F51 -> 249992.1875 | E48: =F48*E$9 -> 0.5 | F48: 0.06060606061 | G48: =IF(ProjectData!$B$13="UNITED STATES",1,0.25) -> 0.25 | H48: 0 | I48: 0 | J48: 0 | K48: 0.25 | M48: =(M$13-H$13)/(I$13-H$13) -> -0.4285714286 | N48: =+I48-H48 -> 0 | O48: =H48+(N48*M48) -> 0 | P48: =(M$13-I$13)/(J$13-I$13) -> -0.5 | Q48: =J48-I48 -> 0 | R48: =I48+(P48*Q48) -> 0 | S48: =IF((M$13-J$13)/(K$13-J$13)>1,1,(M$13-J$13)/(K$13-J$13)) -> -3 | T48: =K48-J48 -> 0.25 | U48: =J48+(S48*T48) -> -0.75
C49: Services | D49: =((E$9*D$5)-D$47)*F52 -> 2149932.812 | E49: =F49*E$9 -> 4.3 | F49: 0.5212121212 | G49: =IF(ProjectData!$B$13="UNITED STATES",1,0.85) -> 0.85 | H49: 0 | I49: 0 | J49: 0.25 | K49: 0.85 | M49: =(M$13-H$13)/(I$13-H$13) -> -0.4285714286 | N49: =+I49-H49 -> 0 | O49: =H49+(N49*M49) -> 0 | P49: =(M$13-I$13)/(J$13-I$13) -> -0.5 | Q49: =J49-I49 -> 0.25 | R49: =I49+(P49*Q49) -> -0.125 | S49: =IF((M$13-J$13)/(K$13-J$13)>1,1,(M$13-J$13)/(K$13-J$13)) -> -3 | T49: =K49-J49 -> 0.6 | U49: =J49+(S49*T49) -> -1.55
C50: Fixed Subtotal | D50: =D49+D48+D47 -> 4125000 | E50: =+E49+E48+E47 -> 8.25 | F50: =F49+F48+F47 -> 1
E51: Cost | F51: =F48/(F48+F49) -> 0.1041666667
C52: Variable Costs | E52: Per MWh | F52: =1-F51 -> 0.8958333333
C53: Routine Turbine Maintenance | D53: =+E53*E$5 -> 6975150 | E53: =F53*F$9 -> 2.45 | F53: 0.8448275862 | G53: =IF(ProjectData!$B$13="UNITED STATES",1,0.05) -> 0.05 | H53: 0 | I53: 0 | J53: 0.05 | K53: 0.05 | M53: =(M$13-H$13)/(I$13-H$13) -> -0.4285714286 | N53: =+I53-H53 -> 0 | O53: =H53+(N53*M53) -> 0 | P53: =(M$13-I$13)/(J$13-I$13) -> -0.5 | Q53: =J53-I53 -> 0.05 | R53: =I53+(P53*Q53) -> -0.025 | S53: =IF((M$13-J$13)/(K$13-J$13)>1,1,(M$13-J$13)/(K$13-J$13)) -> -3 | T53: =K53-J53 -> 0 | U53: =J53+(S53*T53) -> 0.05
C54: Water | D54: =+E54*E$5 -> 427050 | E54: =F54*F$9 -> 0.15 | F54: 0.05172413793 | G54: 1 | H54: 1 | I54: 1 | J54: 1 | K54: 1 | M54: =(M$13-H$13)/(I$13-H$13) -> -0.4285714286 | N54: =+I54-H54 -> 0 | O54: =H54+(N54*M54) -> 1 | P54: =(M$13-I$13)/(J$13-I$13) -> -0.5 | Q54: =J54-I54 -> 0 | R54: =I54+(P54*Q54) -> 1 | S54: =IF((M$13-J$13)/(K$13-J$13)>1,1,(M$13-J$13)/(K$13-J$13)) -> -3 | T54: =K54-J54 -> 0 | U54: =J54+(S54*T54) -> 1
C55: Catalysts & chemicals | D55: =+E55*E$5 -> 854100 | E55: =F55*F$9 -> 0.3 | F55: 0.1034482759 | G55: =IF(ProjectData!$B$13="UNITED STATES",1,0.85) -> 0.85 | H55: 0 | I55: 0 | J55: 0.85 | K55: 0.85 | M55: =(M$13-H$13)/(I$13-H$13) -> -0.4285714286 | N55: =+I55-H55 -> 0 | O55: =H55+(N55*M55) -> 0 | P55: =(M$13-I$13)/(J$13-I$13) -> -0.5 | Q55: =J55-I55 -> 0.85 | R55: =I55+(P55*Q55) -> -0.425 | S55: =IF((M$13-J$13)/(K$13-J$13)>1,1,(M$13-J$13)/(K$13-J$13)) -> -3 | T55: =K55-J55 -> 0 | U55: =J55+(S55*T55) -> 0.85
C56: Variable Subtotal | D56: =SUM(D53:D55) -> 8256300 | E56: =SUM(E53:E55) -> 2.9 | F56: =SUM(F53:F55) -> 1
C57: Fuel Cost | D57: =G2*D2*8.76*E2*D9 -> 64769250 | E57: =D57/E5 -> 22.75 | G57: =ProjectData!B21 -> 0 | H57: =IF(ProjectData!$B$13="UNITED STATES",1,0) -> 0
C58: Sales Tax (Materials & Equipment Purchases) | D58: =(D48+D54+D55)*D87 -> 61245.6875 | G58: 1 | H58: =IF(ProjectData!B26="Y",1,ProjectData!$D$94) -> 1
C59: Other Taxes/Payments | D59: 0 | G59: 1
C60: Total (with Sales Tax and Other Taxes/Payments | D60: =SUM(D56:D59)+D50 -> 77211795.69
C62: Financing (avg ann debt payment) | D62: =Calculations!F199 -> 48750000
C63: Equity Payment - Individuals (avg ann payment)
C64: Equity Payment - Corporations (avg ann payment)
C65: Land Lease | D65: =D89 -> 0
C66: Total (with financing) | D66: =+D65+D62+D60 -> 125961795.7
C68: Other Parameters
C69: Financial Parameters | F69: Local Share
C70: Debt Financing
C71: Percentage financed | D71: 0.8 | F71: =IF(ProjectData!$B$13="UNITED STATES",1,0) -> 0
C72: Years financed (term) | D72: 20
C73: Interest rate | D73: 0.1
C74: Average Annual Payment (Interest and Principal) | D74: =D62 -> 48750000
C75: Equity Financing/Repayment | F75: Local Share
C76: Percentage equity | D76: =1-D71 -> 0.2
C77: Individual Investors (percent of equity) | D77: 0 | F77: 1
C78: Corporate Investors (percent of equity) | D78: =1-D77 -> 1 | F78: =IF(ProjectData!$B$13="UNITED STATES",1,0) -> 0
C79: Return on equity | D79: 0.16
C80: Repayment term (years) | D80: 10
C81: Tax Parameters
C82: Local Property/Other Tax Rate (percent of taxable value) | D82: 0
C83: Assessed Value (percent of construction cost) | D83: 1
C84: Taxable Value (percent of assessed value) | D84: 1
C85: Taxable Value | D85: =+D34*D83*D84 -> 625000000
C86: Local Taxes | D86: =+D82*D85 -> 0 | F86: 1 | K86: 79720
C87: Local Sales Tax Rate | D87: =AJ113 -> 0.04 | F87: 1
C88: Land Lease Parameters | I88: =80*26 -> 2080 | J88: 38.32692308 | K88: =J88*I88 -> 79720 | L88: =J88*J89 -> 23.91365813 | M88: 14 | N88: =M88+L88 -> 37.91365813
C89: Land Lease (total cost) | D89: 0 | J89: =1-M93 -> 0.6239388975
C90: Lease Payment Recipient (F = farmer/household, O = Other) | D90: O | F90: 1 | L90: Payroll expense
E91: =27.854867731412 -> 27.85486773 | H91: Direct Plant Employees | L91: Govt | M91: 0.07118694551 | N91: User Revised | Q91: Govt | R91: =(M91/M$93)*R$93 -> 0.07118694551 | AJ91: Alabama | AK91: Alaska | AL91: Arizona | AM91: Arkansas | AN91: California | AO91: Colorado | AP91: Connecticut | AQ91: Delaware | AR91: District of Columbia | AS91: Florida | AT91: Georgia | AU91: Hawaii | AV91: Idaho | AW91: Illinois | AX91: Indiana | AY91: Iowa | AZ91: Kansas | BA91: Kentucky | BB91: Louisiana | BC91: Maine | BD91: Maryland | BE91: Massachusetts | BF91: Michigan | BG91: Minnesota | BH91: Mississippi | BI91: Missouri | BJ91: Montana | BK91: MyCounty | BL91: MyRegion | BM91: Nebraska | BN91: Nevada | BO91: New Hampshire | BP91: New Jersey | BQ91: New Mexico | BR91: New York | BS91: North Carolina | BT91: North Dakota | BU91: Ohio | BV91: Oklahoma | BW91: Oregon | BX91: Pennsylvania | BY91: Rhode Island | BZ91: South Carolina | CA91: South Dakota | CB91: Tennessee | CC91: Texas | CD91: Utah | CE91: Vermont | CF91: Virginia | CG91: Washington | CH91: West Virginia | CI91: Wisconsin | CJ91: Wyoming
C92: Payroll Parameters | D92: Payroll Cost | E92: wage/hour | F92: Payroll expense | G92: Payroll expense | H92: Default | I92: User Revised | L92: Health/Ins/Misc | M92: 0.304874157 | N92: Payroll Cost | O92: wage/hour | P92: Payroll expense | Q92: Health/Ins/Misc | R92: =(M92/M$93)*R$93 -> 0.304874157 | AH92: 2
C93: Labor (average for all plant workers) | D93: =(E93+F93) -> 32.75005846 | E93: 23.79985773 | F93: =+E93*G93 -> 8.950200735 | G93: =M93 -> 0.3760611025 | H93: =(DefaultData!D44*G44)/(D93*(52*40)) -> 25.32401528 | I93: =(Calculations!D67*Calculations!E67)/(N93*52*40) -> 25.32401528 | K93: =D93*52*40 -> 68120.1216 | L93: Total | M93: =M92+M91 -> 0.3760611025 | N93: =O93+P93 -> 32.75005846 | O93: =ProjectData!B99 -> 23.79985773 | P93: =+O93*ProjectData!D99 -> 8.950200735 | Q93: Total | R93: =ProjectData!D99 -> 0.3760611025 | AH93: =AH92+1 -> 3
D94: =(E94+F94) -> 0 | F94: =+E94*G94 -> 0 | G94: =G93 -> 0.3760611025 | K94: =D94*80*26 -> 0 | AH94: =AH93+1 -> 4
D95: =(E95+F95) -> 0 | F95: =+E95*G95 -> 0 | G95: =G94 -> 0.3760611025 | K95: =D95*80*26 -> 0 | AH95: 5
D96: =(E96+F96) -> 32.75005846 | E96: =ProjectData!B99 -> 23.79985773 | F96: =+E96*G96 -> 8.950200735 | G96: =M93 -> 0.3760611025 | H96: =SUM(H93:H95) -> 25.32401528 | I96: =SUM(I93:I95) -> 25.32401528 | AH96: 6
AH97: 7
C98: Margins | AH98: 8 | AI98: State | AJ98: =ProjectData!B13 -> WYOMING
D99: Agriculture | E99: Mining | F99: Construction | G99: Other Manufacturing | H99: Fabricated Metals | I99: Machinery | J99: Electrical Equipment | K99: TCPU | L99: Wholesale Trade | M99: Retail Trade | N99: FIRE | O99: Other Services | P99: Professional Services | Q99: Government | R99: Total | AH99: 9 | AI99: MW | AJ99: =ProjectData!B15 -> 500
C100: Agriculture | D100: 0.583669 | E100: 0 | F100: 0 | G100: 0 | H100: 0 | I100: 0 | J100: 0 | K100: 0.051572 | L100: 0.07245 | M100: 0.292309 | N100: 0 | O100: 0 | P100: 0 | Q100: 0 | R100: =SUM(D100:Q100) -> 1 | AH100: 10
C101: Mining | D101: 0 | E101: 0.362051 | F101: 0 | G101: 0 | H101: 0 | I101: 0 | J101: 0 | K101: =0.284423+0.346126 -> 0.630549 | L101: 0.0074 | M101: 0 | N101: 0 | O101: 0 | P101: 0 | Q101: 0 | R101: =SUM(D101:Q101) -> 1 | AH101: 11
C102: Construction | D102: 0 | E102: 0 | F102: 1 | G102: 0 | H102: 0 | I102: 0 | J102: 0 | K102: 0 | L102: 0 | M102: 0 | N102: 0 | O102: 0 | P102: 0 | Q102: 0 | R102: 1 | AH102: 12
C103: Manufacturing | D103: 0 | E103: 0 | F103: 0 | G103: 0.558412 | H103: 0 | I103: 0 | J103: 0 | K103: 0.023014 | L103: =0.080398+0.338175 -> 0.418573 | M103: 0 | N103: 0 | O103: 0 | P103: 0 | Q103: 0 | R103: 0.999999 | AH103: 13
C104: Fabricated Metals | D104: 0 | E104: 0 | F104: 0 | G104: 0 | H104: 1 | I104: 0 | J104: 0 | K104: 0 | L104: 0 | M104: 0 | N104: 0 | O104: 0 | P104: 0 | Q104: 0 | R104: 1 | AH104: 14
C105: Machinery | D105: 0 | E105: 0 | F105: 0 | G105: 0 | H105: 0 | I105: 0.631251 | J105: 0 | K105: =0.000889 -> 0.000889 | L105: =0.1018+0.266059 -> 0.367859 | M105: 0 | N105: 0 | O105: 0 | P105: 0 | Q105: 0 | R105: 0.999999 | AH105: 15 | AI105: Sales Tax Rate | AJ105: 0.04 | AK105: 0 | AL105: 0.056 | AM105: 0.065 | AN105: 0.075 | AO105: 0.029 | AP105: 0.0635 | AQ105: 0 | AR105: 0.0575 | AS105: 0.06 | AT105: 0.04 | AU105: 0.04 | AV105: 0.06 | AW105: 0.0625 | AX105: 0.07 | AY105: 0.06 | AZ105: 0.065 | BA105: 0.06 | BB105: 0.05 | BC105: 0.055 | BD105: 0.06 | BE105: 0.0625 | BF105: 0.06 | BG105: 0.06875 | BH105: 0.07 | BI105: 0.04225 | BJ105: 0 | BK105: ='User Add-in Location'!$B$6 -> 0 | BL105: ='User Add-in Location'!B6 -> 0 | BM105: 0.055 | BN105: 0.0685 | BO105: 0 | BP105: 0.07 | BQ105: 0.05125 | BR105: 0.04 | BS105: 0.0475 | BT105: 0.05 | BU105: 0.0575 | BV105: 0.045 | BW105: 0 | BX105: 0.06 | BY105: 0.07 | BZ105: 0.06 | CA105: 0.045 | CB105: 0.07 | CC105: 0.0625 | CD105: 0.047 | CE105: 0.06 | CF105: 0.043 | CG105: 0.065 | CH105: 0.06 | CI105: 0.05 | CJ105: 0.04 | CK105: 0.0515
C106: Electrical Equipment | D106: 0 | E106: 0 | F106: 0 | G106: 0 | H106: 0 | I106: 0 | J106: 0.512774 | K106: 0.012136 | L106: =0.075345+0.399745 -> 0.47509 | M106: 0 | N106: 0 | O106: 0 | P106: 0 | Q106: 0 | R106: 1 | AH106: 16 | AI106: Comm | AJ106: 0.04 | AK106: 0 | AL106: 0.056 | AM106: 0.065 | AN106: 0.075 | AO106: 0.029 | AP106: 0.0635 | AQ106: 0 | AR106: 0.0575 | AS106: 0.06 | AT106: 0.04 | AU106: 0.04 | AV106: 0.06 | AW106: 0.0625 | AX106: 0.07 | AY106: 0.06 | AZ106: 0.065 | BA106: 0.06 | BB106: 0.05 | BC106: 0.055 | BD106: 0.06 | BE106: 0.0625 | BF106: 0.06 | BG106: 0.06875 | BH106: 0.07 | BI106: 0.04225 | BJ106: 0 | BK106: ='User Add-in Location'!$B$6 -> 0 | BL106: ='User Add-in Location'!$B$6 -> 0 | BM106: 0.055 | BN106: 0.0685 | BO106: 0 | BP106: 0.07 | BQ106: 0.05125 | BR106: 0.04 | BS106: 0.0475 | BT106: 0.05 | BU106: 0.0575 | BV106: 0.045 | BW106: 0 | BX106: 0.06 | BY106: 0.07 | BZ106: 0.06 | CA106: 0.045 | CB106: 0.07 | CC106: 0.0625 | CD106: 0.047 | CE106: 0.06 | CF106: 0.043 | CG106: 0.065 | CH106: 0.06 | CI106: 0.05 | CJ106: 0.04 | CK106: 0.0515
C107: TCPU | D107: 0 | E107: 0 | F107: 0 | G107: 0 | H107: 0 | I107: 0 | J107: 0 | K107: 1 | L107: 0 | M107: 0 | N107: 0 | O107: 0 | P107: 0 | Q107: 0 | R107: 1 | AH107: 17 | AI107: PropertyTax Exemption
C108: Wholesale Trade | D108: 0 | E108: 0 | F108: 0 | G108: 0 | H108: 0 | I108: 0 | J108: 0 | K108: 0 | L108: 1 | M108: 0 | N108: 0 | O108: 0 | P108: 0 | Q108: 0 | R108: 1 | AH108: 18 | AI108: Comm
C109: Retail Trade | D109: 0 | E109: 0 | F109: 0 | G109: 0 | H109: 0 | I109: 0 | J109: 0 | K109: 0 | L109: =1-M109 -> 0.688714 | M109: 0.311286 | N109: 0 | O109: 0 | P109: 0 | Q109: 0 | R109: 1
C110: FIRE | D110: 0 | E110: 0 | F110: 0 | G110: 0 | H110: 0 | I110: 0 | J110: 0 | K110: 0 | L110: 0 | M110: 0 | N110: 1 | O110: 0 | P110: 0 | Q110: 0 | R110: 1 | AI110: Prop Tax Exemption | AJ110: =HLOOKUP(AJ$98,AJ$91:CJ$108,AJ111) -> 0 | AK110: Tax Rate | AL110: =1-AJ110 -> 1
C111: Misc. Services | D111: 0 | E111: 0 | F111: 0 | G111: 0 | H111: 0 | I111: 0 | J111: 0 | K111: 0.042428 | L111: 0.092083 | M111: 0.361097 | N111: 0 | O111: 0.504392 | P111: 0 | Q111: 0 | R111: 1 | AI111: Offset | AJ111: =IF(AJ99<10,AH107,AH108) -> 18
C112: Professional Services | D112: 0 | E112: 0 | F112: 0 | G112: 0 | H112: 0 | I112: 0 | J112: 0 | K112: 0 | L112: 0 | M112: 0 | N112: 0 | O112: 0 | P112: 1 | Q112: 0 | R112: 1
C113: Government | D113: 0 | E113: 0 | F113: 0 | G113: 0 | H113: 0 | I113: 0 | J113: 0 | K113: 0 | L113: 0 | M113: 0 | N113: 0 | O113: 0 | P113: 0 | Q113: 1 | R113: 1 | AI113: Sales Tax Rate | AJ113: =HLOOKUP(AJ$98,AJ$91:CJ$108,AJ114) -> 0.04
AI114: Offset | AJ114: =AH106 -> 16
AI116: Sales Tax updated 2010

Sheet Deflators
C2: =CONCATENATE("Conversion to Year ",E4," dollars and back for consistency with multiplier data.") -> Conversion to Year 2014 dollars and back for consistency with multiplier data.
C4: Year of Multiplier Data | E4: =IF(ProjectData!B13="MYCOUNTY",'User Add-in Location'!D3,IF(ProjectData!B13="MYREGION",'User Add-in Location'!D4,Multipliers!D2)) -> 2014 | F4: =IF(E4=0,"ERROR","") ->  | G4: Region of Analysis | I4: =ProjectData!B13 -> WYOMING
A5: Warning | C5: Year of Construction $s | E5: =+ProjectData!B24 -> 2010
A7: This Worksheet contains Data and Formulas that are an integral part of the JEDI model. | D7: Deflator | F7: =HLOOKUP($E$5,$D$11:$AM$39,$D$51) -> 1.074841396
D8: Inflator | F8: =HLOOKUP($E$5,$D$11:$AM$39,$D$52) -> 0.9303698238
A9: Although the data and formulas are available for review they must not be changed.
A11: Any changes to the data or formulas will impact the analysis and may invalidate the model results. | D11: 2005 | E11: 2006 | F11: 2007 | G11: 2008 | H11: 2009 | I11: 2010 | J11: 2011 | K11: 2012 | L11: 2013 | M11: 2014 | N11: 2015 | O11: 2016 | P11: 2017 | Q11: 2018 | R11: 2019 | S11: 2020 | T11: 2021 | U11: 2022 | V11: 2023 | W11: 2024 | X11: 2025 | Y11: 2026 | Z11: 2027 | AA11: 2028 | AB11: 2029 | AC11: 2030 | AD11: 2031 | AE11: 2032 | AF11: 2033 | AG11: 2034 | AH11: 2035 | AI11: 2036 | AJ11: 2037 | AK11: 2038 | AL11: 2039 | AM11: 2040
C12: 2007$ | D12: 0.9428954977 | E12: 0.9735646427 | F12: 1 | G12: 1.020755886 | H12: 1.032631144 | I12: 1.041718298 | J12: 1.062887237 | K12: 1.082300702 | L12: 1.100888063 | M12: 1.11968195 | N12: 1.134861627 | O12: 1.152829409 | P12: 1.173482032 | Q12: 1.196199917 | R12: 1.22015696 | S12: 1.244630318 | T12: 1.26664615 | U12: 1.289051411 | V12: 1.311852992 | W12: 1.335057902 | X12: 1.358673275 | Y12: 1.382706373 | Z12: 1.407164583 | AA12: 1.432055427 | AB12: 1.457386556 | AC12: 1.483165758 | AD12: 1.50940096 | AE12: 1.536100227 | AF12: 1.563271768 | AG12: 1.590923936 | AH12: 1.619065235 | AI12: 1.647704315 | AJ12: 1.676849982 | AK12: 1.706511196 | AL12: 1.736697077 | AM12: 1.767416906
D13: 1.060562918 | E13: 1.027153161 | F13: 1 | G13: 0.9796661608 | H13: 0.9684 | I13: 0.9599524187 | J13: 0.9408335762 | K13: 0.9239576376 | L13: 0.908357565 | M13: 0.8931107627 | N13: 0.8811646952 | O13: 0.8674310283 | P13: 0.8521647307 | Q13: 0.835980663 | R13: 0.8195666892 | S13: 0.8034514229 | T13: 0.7894864721 | U13: 0.775764249 | V13: 0.7622805346 | W13: 0.7490311833 | X13: 0.7360121216 | Y13: 0.7232193469 | Z13: 0.710648926 | AA13: 0.6982969941 | AB13: 0.6861597536 | AC13: 0.674233473 | AD13: 0.6625144854 | AE13: 0.6509991879 | AF13: 0.6396840401 | AG13: 0.6285655631 | AH13: 0.6176403387 | AI13: 0.6069050077 | AJ13: 0.5963562697 | AK13: 0.5859908815 | AL13: 0.5758056561 | AM13: 0.5657974622
C14: 2008$ | D14: 0.9237228123 | E14: 0.9537683359 | F14: 0.9796661608 | G14: 1 | H14: 1.011633789 | I14: 1.020536166 | J14: 1.041274659 | K14: 1.060293374 | L14: 1.078502782 | M14: 1.096914517 | N14: 1.111785534 | O14: 1.129387962 | P14: 1.149620637 | Q14: 1.171876581 | R14: 1.195346485 | S14: 1.219322205 | T14: 1.24089037 | U14: 1.262840047 | V14: 1.285177984 | W14: 1.307911049 | X14: 1.331046231 | Y14: 1.354590644 | Z14: 1.378551525 | AA14: 1.402936242 | AB14: 1.427752292 | AC14: 1.453007304 | AD14: 1.478709043 | AE14: 1.504865412 | AF14: 1.531484451 | AG14: 1.558574345 | AH14: 1.586143423 | AI14: 1.61420016 | AJ14: 1.642753184 | AK14: 1.671811272 | AL14: 1.701383358 | AM14: 1.731478535
D15: 1.082575841 | E15: 1.048472635 | F15: 1.020755886 | G15: 1 | H15: 0.9885 | I15: 0.9798770817 | J15: 0.9603614107 | K15: 0.943135197 | L15: 0.927211331 | M15: 0.9116480679 | N15: 0.8994540491 | O15: 0.8854353278 | P15: 0.8698521647 | Q15: 0.8533321823 | R15: 0.836577522 | S15: 0.820127769 | T15: 0.8058729633 | U15: 0.7918659233 | V15: 0.7781023424 | W15: 0.7645779891 | X15: 0.7512887053 | Y15: 0.7382304053 | Z15: 0.7253990741 | AA15: 0.7127907669 | AB15: 0.7004016073 | AC15: 0.6882277861 | AD15: 0.6762655605 | AE15: 0.6645112528 | AF15: 0.6529612491 | AG15: 0.6416119983 | AH15: 0.6304600111 | AI15: 0.6195018589 | AJ15: 0.6087341725 | AK15: 0.5981536414 | AL15: 0.5877570127 | AM15: 0.5775410898
C16: 2009$ | D16: 0.9131 | E16: 0.9428 | F16: 0.9684 | G16: 0.9885 | H16: 1 | I16: 1.0088 | J16: 1.0293 | K16: 1.0481 | L16: 1.0661 | M16: 1.0843 | N16: 1.099 | O16: 1.1164 | P16: 1.1364 | Q16: 1.1584 | R16: 1.1816 | S16: 1.2053 | T16: 1.226620131 | U16: 1.248317387 | V16: 1.270398437 | W16: 1.292870072 | X16: 1.3157392 | Y16: 1.339012851 | Z16: 1.362698183 | AA16: 1.386802475 | AB16: 1.411333141 | AC16: 1.43629772 | AD16: 1.461703889 | AE16: 1.487559459 | AF16: 1.51387238 | AG16: 1.54065074 | AH16: 1.567902773 | AI16: 1.595636859 | AJ16: 1.623861522 | AK16: 1.652585442 | AL16: 1.68181745 | AM16: 1.711566532
D17: 1.095170299 | E17: 1.060670344 | F17: 1.032631144 | G17: 1.011633789 | H17: 1 | I17: 0.9912767645 | J17: 0.9715340523 | K17: 0.9541074325 | L17: 0.9379983116 | M17: 0.9222539887 | N17: 0.9099181074 | O17: 0.8957362952 | P17: 0.8799718409 | Q17: 0.8632596685 | R17: 0.846310088 | S17: 0.8296689621 | T17: 0.815248319 | U17: 0.801078324 | V17: 0.7871546206 | W17: 0.7734729278 | X17: 0.7600290393 | Y17: 0.7468188217 | Z17: 0.7338382136 | AA17: 0.721083224 | AB17: 0.7085499315 | AC17: 0.6962344826 | AD17: 0.6841330911 | AE17: 0.6722420362 | AF17: 0.6605576622 | AG17: 0.6490763766 | AH17: 0.6377946496 | AI17: 0.6267090125 | AJ17: 0.6158160571 | AK17: 0.6051124344 | AL17: 0.5945948535 | AM17: 0.5842600808
A18: To view the data and formulas simply scroll over to the adjacent columns to the right. | C18: 2010$ | D18: 0.9051348136 | E18: 0.9345757335 | F18: 0.9599524187 | G18: 0.9798770817 | H18: 0.9912767645 | I18: 1 | J18: 1.020321174 | K18: 1.038957177 | L18: 1.056800159 | M18: 1.074841396 | N18: 1.089413164 | O18: 1.10666138 | P18: 1.126486915 | Q18: 1.148295004 | R18: 1.171292625 | S18: 1.194785884 | T18: 1.215920035 | U18: 1.23742802 | V18: 1.259316453 | W18: 1.281592062 | X18: 1.304261697 | Y18: 1.327332327 | Z18: 1.350811045 | AA18: 1.374705071 | AB18: 1.399021749 | AC18: 1.423768557 | AD18: 1.448953102 | AE18: 1.474583128 | AF18: 1.500666514 | AG18: 1.527211281 | AH18: 1.554225588 | AI18: 1.581717742 | AJ18: 1.609696196 | AK18: 1.63816955 | AL18: 1.66714656 | AM18: 1.696636134
D19: 1.104807798 | E19: 1.070004243 | F19: 1.041718298 | G19: 1.020536166 | H19: 1.0088 | I19: 1 | J19: 0.9800835519 | K19: 0.9625035779 | L19: 0.9462526967 | M19: 0.9303698238 | N19: 0.9179253867 | O19: 0.9036187746 | P19: 0.8877155931 | Q19: 0.8708563536 | R19: 0.8537576168 | S19: 0.836970049 | T19: 0.8224225042 | U19: 0.8081278133 | V19: 0.7940815812 | W19: 0.7802794896 | X19: 0.7667172948 | Y19: 0.7533908273 | Z19: 0.7402959899 | AA19: 0.7274287564 | AB19: 0.7147851709 | AC19: 0.7023613461 | AD19: 0.6901534623 | AE19: 0.6781577661 | AF19: 0.6663705696 | AG19: 0.6547882487 | AH19: 0.6434072425 | AI19: 0.6322240518 | AJ19: 0.6212352384 | AK19: 0.6104374238 | AL19: 0.5998272882 | AM19: 0.5894015695
C20: 2011$ | D20: 0.8871077431 | E20: 0.9159623045 | F20: 0.9408335762 | G20: 0.9603614107 | H20: 0.9715340523 | I20: 0.9800835519 | J20: 1 | K20: 1.01826484 | L20: 1.035752453 | M20: 1.053434373 | N20: 1.067715923 | O20: 1.084620616 | P20: 1.104051297 | Q20: 1.125425046 | R20: 1.147964636 | S20: 1.170989993 | T20: 1.191703227 | U20: 1.212782849 | V20: 1.234235342 | W20: 1.2560673 | X20: 1.278285437 | Y20: 1.300896582 | Z20: 1.323907687 | AA20: 1.347325829 | AB20: 1.371158205 | AC20: 1.395412144 | AD20: 1.420095103 | AE20: 1.44521467 | AF20: 1.470778568 | AG20: 1.496794657 | AH20: 1.523270935 | AI20: 1.550215543 | AJ20: 1.577636765 | AK20: 1.605543031 | AL20: 1.633942922 | AM20: 1.662845168
D21: 1.127258789 | E21: 1.091747985 | F21: 1.062887237 | G21: 1.041274659 | H21: 1.0293 | I21: 1.020321174 | J21: 1 | K21: 0.9820627803 | L21: 0.9654816621 | M21: 0.9492760306 | N21: 0.9365787079 | O21: 0.9219813687 | P21: 0.9057550158 | Q21: 0.8885531768 | R21: 0.8711069736 | S21: 0.8539782627 | T21: 0.8391350947 | U21: 0.8245499189 | V21: 0.8102182509 | W21: 0.7961356846 | X21: 0.7822978901 | Y21: 0.7687006132 | Z21: 0.7553396732 | AA21: 0.7422109625 | AB21: 0.7293104445 | AC21: 0.716634153 | AD21: 0.7041781906 | AE21: 0.6919387279 | AF21: 0.6799120017 | AG21: 0.6680943145 | AH21: 0.6564820328 | AI21: 0.6450715866 | AJ21: 0.6338594676 | AK21: 0.6228422287 | AL21: 0.6120164827 | AM21: 0.6013789011
C22: 2012$ | D22: 0.8711954966 | E22: 0.8995324874 | F22: 0.9239576376 | G22: 0.943135197 | H22: 0.9541074325 | I22: 0.9625035779 | J22: 0.9820627803 | K22: 1 | L22: 1.017173934 | M22: 1.034538689 | N22: 1.048564068 | O22: 1.065165538 | P22: 1.084247686 | Q22: 1.10523805 | R22: 1.127373342 | S22: 1.149985688 | T22: 1.170327384 | U22: 1.191028897 | V22: 1.212096591 | W22: 1.233536945 | X22: 1.25535655 | Y22: 1.277562114 | Z22: 1.300160464 | AA22: 1.323158549 | AB22: 1.346563439 | AC22: 1.37038233 | AD22: 1.394622545 | AE22: 1.419291537 | AF22: 1.444396889 | AG22: 1.469946322 | AH22: 1.49594769 | AI22: 1.522408986 | AJ22: 1.549338348 | AK22: 1.576744053 | AL22: 1.604634529 | AM22: 1.633018349
D23: 1.14784799 | E23: 1.111688587 | F23: 1.082300702 | G23: 1.060293374 | H23: 1.0481 | I23: 1.038957177 | J23: 1.01826484 | K23: 1 | L23: 0.9831160304 | M23: 0.9666144056 | N23: 0.9536851683 | O23: 0.938821211 | P23: 0.9222984864 | Q23: 0.9047824586 | R23: 0.8870176032 | S23: 0.8695760392 | T23: 0.8544617631 | U23: 0.8396101914 | V23: 0.8250167578 | W23: 0.8106769756 | X23: 0.7965864361 | Y23: 0.782740807 | Z23: 0.7691358317 | AA23: 0.7557673271 | AB23: 0.7426311832 | AC23: 0.7297233612 | AD23: 0.7170398927 | AE23: 0.7045768782 | AF23: 0.6923304857 | AG23: 0.6802969503 | AH23: 0.6684725722 | AI23: 0.656853716 | AJ23: 0.6454368095 | AK23: 0.6342183425 | AL23: 0.6231948659 | AM23: 0.6123629906
C24: 2013$ | D24: 0.8564862583 | E24: 0.8843448082 | F24: 0.908357565 | G24: 0.927211331 | H24: 0.9379983116 | I24: 0.9462526967 | J24: 0.9654816621 | K24: 0.9831160304 | L24: 1 | M24: 1.017071569 | N24: 1.030860144 | O24: 1.047181315 | P24: 1.065941281 | Q24: 1.086577244 | R24: 1.108338805 | S24: 1.130569365 | T24: 1.150567612 | U24: 1.170919601 | V24: 1.191631589 | W24: 1.212709945 | X24: 1.234161148 | Y24: 1.255991794 | Z24: 1.278208595 | AA24: 1.30081838 | AB24: 1.323828103 | AC24: 1.347244836 | AD24: 1.37107578 | AE24: 1.395328261 | AF24: 1.420009736 | AG24: 1.445127793 | AH24: 1.470690154 | AI24: 1.496704679 | AJ24: 1.523179366 | AK24: 1.550122355 | AL24: 1.577541928 | AM24: 1.605446517
D25: 1.167561056 | E25: 1.130780653 | F25: 1.100888063 | G25: 1.078502782 | H25: 1.0661 | I25: 1.056800159 | J25: 1.035752453 | K25: 1.017173934 | L25: 1 | M25: 0.9832149774 | N25: 0.9700636943 | O25: 0.9549444643 | P25: 0.9381379796 | Q25: 0.9203211326 | R25: 0.9022511848 | S25: 0.8845100805 | T25: 0.8691362329 | U25: 0.8540296012 | V25: 0.839185541 | W25: 0.8245994883 | X25: 0.8102669588 | Y25: 0.7961835458 | Z25: 0.7823449195 | AA25: 0.7687468251 | AB25: 0.7553850819 | AC25: 0.7422555819 | AD25: 0.7293542884 | AE25: 0.7166772348 | AF25: 0.7042205237 | AG25: 0.6919803251 | AH25: 0.6799528759 | AI25: 0.6681344782 | AJ25: 0.6565214985 | AK25: 0.6451103663 | AL25: 0.6338975733 | AM25: 0.6228796721
C26: 2014$ | D26: 0.8421101171 | E26: 0.8695010606 | F26: 0.8931107627 | G26: 0.9116480679 | H26: 0.9222539887 | I26: 0.9303698238 | J26: 0.9492760306 | K26: 0.9666144056 | L26: 0.9832149774 | M26: 1 | N26: 1.013557134 | O26: 1.029604353 | P26: 1.048049433 | Q26: 1.068339021 | R26: 1.089735313 | S26: 1.111592733 | T26: 1.131255309 | U26: 1.151265689 | V26: 1.171630026 | W26: 1.192354581 | X26: 1.213445725 | Y26: 1.234909943 | Z26: 1.256753834 | AA26: 1.278984115 | AB26: 1.301607618 | AC26: 1.324631301 | AD26: 1.348062242 | AE26: 1.371907645 | AF26: 1.396174841 | AG26: 1.42087129 | AH26: 1.446004587 | AI26: 1.471582457 | AJ26: 1.497612766 | AK26: 1.524103516 | AL26: 1.551062851 | AM26: 1.578499061
D27: 1.187493155 | E27: 1.150084854 | F27: 1.11968195 | G27: 1.096914517 | H27: 1.0843 | I27: 1.074841396 | J27: 1.053434373 | K27: 1.034538689 | L27: 1.017071569 | M27: 1 | N27: 0.9866242038 | O27: 0.9712468649 | P27: 0.9541534671 | Q27: 0.9360324586 | R27: 0.9176540284 | S27: 0.8996100556 | T27: 0.8839737523 | U27: 0.8686092267 | V27: 0.8535117551 | W27: 0.8386766956 | X27: 0.8240994873 | Y27: 0.8097756484 | Z27: 0.795700775 | AA27: 0.7818705398 | AB27: 0.7682806907 | AC27: 0.7549270495 | AD27: 0.7418055106 | AE27: 0.7289120399 | AF27: 0.7162426731 | AG27: 0.7037935152 | AH27: 0.6915607385 | AI27: 0.6795405823 | AJ27: 0.6677293507 | AK27: 0.6561234126 | AL27: 0.6447191996 | AM27: 0.6335132056
C28: 2015$ | D28: 0.8308462238 | E28: 0.8578707916 | F28: 0.8811646952 | G28: 0.8994540491 | H28: 0.9099181074 | I28: 0.9179253867 | J28: 0.9365787079 | K28: 0.9536851683 | L28: 0.9700636943 | M28: 0.9866242038 | N28: 1 | O28: 1.015832575 | P28: 1.034030937 | Q28: 1.054049136 | R28: 1.075159236 | S28: 1.096724295 | T28: 1.116123868 | U28: 1.135866594 | V28: 1.155958542 | W28: 1.176405889 | X28: 1.197214923 | Y28: 1.21839204 | Z28: 1.239943751 | AA28: 1.261876684 | AB28: 1.28419758 | AC28: 1.306913303 | AD28: 1.330030836 | AE28: 1.353557288 | AF28: 1.377499891 | AG28: 1.401866006 | AH28: 1.426663124 | AI28: 1.45189887 | AJ28: 1.477581003 | AK28: 1.503717418 | AL28: 1.530316151 | AM28: 1.557385379
D29: 1.203592159 | E29: 1.165676708 | F29: 1.134861627 | G29: 1.111785534 | H29: 1.099 | I29: 1.089413164 | J29: 1.067715923 | K29: 1.048564068 | L29: 1.030860144 | M29: 1.013557134 | N29: 1 | O29: 0.9844141885 | P29: 0.9670890532 | Q29: 0.9487223757 | R29: 0.9300947867 | S29: 0.9118061893 | T29: 0.8959579026 | U29: 0.8803850781 | V29: 0.865082928 | W29: 0.8500467477 | X29: 0.8352719142 | Y29: 0.8207538851 | Z29: 0.8064881967 | AA29: 0.7924704632 | AB29: 0.7786963747 | AC29: 0.7651616964 | AD29: 0.7518622671 | AE29: 0.7387939978 | AF29: 0.7259528708 | AG29: 0.7133349379 | AH29: 0.7009363199 | AI29: 0.6887532048 | AJ29: 0.6767818468 | AK29: 0.6650185654 | AL29: 0.653459744 | AM29: 0.6421018288
C30: 2016$ | D30: 0.8178968112 | E30: 0.8445001791 | F30: 0.8674310283 | G30: 0.8854353278 | H30: 0.8957362952 | I30: 0.9036187746 | J30: 0.9219813687 | K30: 0.938821211 | L30: 0.9549444643 | M30: 0.9712468649 | N30: 0.9844141885 | O30: 1 | P30: 1.017914726 | Q30: 1.037620924 | R30: 1.058402006 | S30: 1.079630957 | T30: 1.098728172 | U30: 1.118163191 | V30: 1.13794199 | W30: 1.158070649 | X30: 1.178555356 | Y30: 1.199402411 | Z30: 1.220618222 | AA30: 1.242209312 | AB30: 1.264182319 | AC30: 1.286543999 | AD30: 1.309301227 | AE30: 1.332460999 | AF30: 1.356030437 | AG30: 1.380016786 | AH30: 1.404427422 | AI30: 1.429269848 | AJ30: 1.454551704 | AK30: 1.480280762 | AL30: 1.506464932 | AM30: 1.533112264
D31: 1.222648122 | E31: 1.184132372 | F31: 1.152829409 | G31: 1.129387962 | H31: 1.1164 | I31: 1.10666138 | J31: 1.084620616 | K31: 1.065165538 | L31: 1.047181315 | M31: 1.029604353 | N31: 1.015832575 | O31: 1 | P31: 0.9824005632 | Q31: 0.9637430939 | R31: 0.9448205823 | S31: 0.9262424293 | T31: 0.9101432233 | U31: 0.8943238409 | V31: 0.8787794184 | W31: 0.8635051766 | X31: 0.8484964195 | Y31: 0.8337485326 | Z31: 0.8192569816 | AA31: 0.8050173113 | AB31: 0.7910251435 | AC31: 0.7772761764 | AD31: 0.7637661829 | AE31: 0.7504910092 | AF31: 0.7374465741 | AG31: 0.7246288669 | AH31: 0.7120339468 | AI31: 0.6996579416 | AJ31: 0.6874970462 | AK31: 0.6755475218 | AL31: 0.6638056944 | AM31: 0.6522679542
C32: 2017$ | D32: 0.8035022879 | E32: 0.8296374516 | F32: 0.8521647307 | G32: 0.8698521647 | H32: 0.8799718409 | I32: 0.8877155931 | J32: 0.9057550158 | K32: 0.9222984864 | L32: 0.9381379796 | M32: 0.9541534671 | N32: 0.9670890532 | O32: 0.9824005632 | P32: 1 | Q32: 1.01935938 | R32: 1.039774727 | S32: 1.06063006 | T32: 1.079391175 | U32: 1.098484149 | V32: 1.117914852 | W32: 1.137689257 | X32: 1.157813446 | Y32: 1.178293604 | Z32: 1.199136028 | AA32: 1.220347127 | AB32: 1.241933422 | AC32: 1.263901549 | AD32: 1.286258262 | AE32: 1.309010436 | AF32: 1.332165065 | AG32: 1.355729268 | AH32: 1.37971029 | AI32: 1.404115504 | AJ32: 1.428952413 | AK32: 1.454228654 | AL32: 1.479951997 | AM32: 1.506130352
D33: 1.244551528 | E33: 1.205345779 | F33: 1.173482032 | G33: 1.149620637 | H33: 1.1364 | I33: 1.126486915 | J33: 1.104051297 | K33: 1.084247686 | L33: 1.065941281 | M33: 1.048049433 | N33: 1.034030937 | O33: 1.017914726 | P33: 1 | Q33: 0.9810082873 | R33: 0.961746784 | S33: 0.9428358085 | T33: 0.9264481897 | U33: 0.9103454074 | V33: 0.8945225108 | W33: 0.8789746352 | X33: 0.8636970002 | Y33: 0.848684909 | Z33: 0.8339337459 | AA33: 0.8194389758 | AB33: 0.8051961421 | AC33: 0.791200866 | AD33: 0.7774488447 | AE33: 0.76393585 | AF33: 0.7506577273 | AG33: 0.7376103944 | AH33: 0.7247898398 | AI33: 0.7121921218 | AJ33: 0.6998133673 | AK33: 0.6876497705 | AL33: 0.6756975915 | AM33: 0.6639531558
C34: 2018$ | D34: 0.7882424033 | E34: 0.8138812155 | F34: 0.835980663 | G34: 0.8533321823 | H34: 0.8632596685 | I34: 0.8708563536 | J34: 0.8885531768 | K34: 0.9047824586 | L34: 0.9203211326 | M34: 0.9360324586 | N34: 0.9487223757 | O34: 0.9637430939 | P34: 0.9810082873 | Q34: 1 | R34: 1.020027624 | S34: 1.040486878 | T34: 1.058891688 | U34: 1.077622053 | V34: 1.096683734 | W34: 1.11608259 | X34: 1.135824585 | Y34: 1.15591579 | Z34: 1.176362381 | AA34: 1.197170645 | AB34: 1.218346979 | AC34: 1.239897894 | AD34: 1.261830015 | AE34: 1.284150086 | AF34: 1.306864969 | AG34: 1.329981647 | AH34: 1.353507228 | AI34: 1.377448946 | AJ34: 1.401814159 | AK34: 1.426610361 | AL34: 1.451845174 | AM34: 1.477526357
D35: 1.268645274 | E35: 1.228680526 | F35: 1.196199917 | G35: 1.171876581 | H35: 1.1584 | I35: 1.148295004 | J35: 1.125425046 | K35: 1.10523805 | L35: 1.086577244 | M35: 1.068339021 | N35: 1.054049136 | O35: 1.037620924 | P35: 1.01935938 | Q35: 1 | R35: 0.980365606 | S35: 0.9610885257 | T35: 0.9443836527 | U35: 0.9279691305 | V35: 0.9118399125 | W35: 0.8959910396 | X35: 0.8804176391 | Y35: 0.8651149231 | Z35: 0.8500781866 | AA35: 0.8353028067 | AB35: 0.8207842406 | AC35: 0.8065180247 | AD35: 0.7924997727 | AE35: 0.7787251748 | AF35: 0.7651899959 | AG35: 0.7518900747 | AH35: 0.7388213221 | AI35: 0.7259797201 | AJ35: 0.7133613206 | AK35: 0.700962244 | AL35: 0.6887786783 | AM35: 0.6768068775
C36: 2019$ | D36: 0.7727657414 | E36: 0.797901151 | F36: 0.8195666892 | G36: 0.836577522 | H36: 0.846310088 | I36: 0.8537576168 | J36: 0.8711069736 | K36: 0.8870176032 | L36: 0.9022511848 | M36: 0.9176540284 | N36: 0.9300947867 | O36: 0.9448205823 | P36: 0.961746784 | Q36: 0.980365606 | R36: 1 | S36: 1.020057549 | T36: 1.038100991 | U36: 1.056463597 | V36: 1.075151013 | W36: 1.094168985 | X36: 1.113523358 | Y36: 1.133220084 | Z36: 1.153265219 | AA36: 1.173664925 | AB36: 1.194425474 | AC36: 1.21555325 | AD36: 1.237054747 | AE36: 1.258936577 | AF36: 1.281205467 | AG36: 1.303868263 | AH36: 1.326931934 | AI36: 1.35040357 | AJ36: 1.374290388 | AK36: 1.398599731 | AL36: 1.423339074 | AM36: 1.448516022
D37: 1.294053225 | E37: 1.253288078 | F37: 1.22015696 | G37: 1.195346485 | H37: 1.1816 | I37: 1.171292625 | J37: 1.147964636 | K37: 1.127373342 | L37: 1.108338805 | M37: 1.089735313 | N37: 1.075159236 | O37: 1.058402006 | P37: 1.039774727 | Q37: 1.020027624 | R37: 1 | S37: 0.9803368456 | T37: 0.9632974137 | U37: 0.9465541477 | V37: 0.9301018997 | W37: 0.9139356115 | X37: 0.8980503128 | Y37: 0.8824411197 | Z37: 0.8671032332 | AA37: 0.8520319375 | AB37: 0.837222599 | AC37: 0.8226706647 | AD37: 0.8083716604 | AE37: 0.79432119 | AF37: 0.7805149336 | AG37: 0.7669486466 | AH37: 0.753618158 | AI37: 0.7405193692 | AJ37: 0.7276482531 | AK37: 0.7150008525 | AL37: 0.7025732789 | AM37: 0.6903617114
C38: 2020$ | D38: 0.7575707293 | E38: 0.7822118975 | F38: 0.8034514229 | G38: 0.820127769 | H38: 0.8296689621 | I38: 0.836970049 | J38: 0.8539782627 | K38: 0.8695760392 | L38: 0.8845100805 | M38: 0.8996100556 | N38: 0.9118061893 | O38: 0.9262424293 | P38: 0.9428358085 | Q38: 0.9610885257 | R38: 0.9803368456 | S38: 1 | T38: 1.017688651 | U38: 1.035690191 | V38: 1.054010153 | W38: 1.072654171 | X38: 1.091627976 | Y38: 1.110937403 | Z38: 1.130588387 | AA38: 1.15058697 | AB38: 1.170939302 | AC38: 1.191651639 | AD38: 1.212730349 | AE38: 1.234181913 | AF38: 1.256012926 | AG38: 1.2782301 | AH38: 1.300840267 | AI38: 1.323850376 | AJ38: 1.347267504 | AK38: 1.371098849 | AL38: 1.395351738 | AM38: 1.420033628
D39: 1.320008761 | E39: 1.278425965 | F39: 1.244630318 | G39: 1.219322205 | H39: 1.2053 | I39: 1.194785884 | J39: 1.170989993 | K39: 1.149985688 | L39: 1.130569365 | M39: 1.111592733 | N39: 1.096724295 | O39: 1.079630957 | P39: 1.06063006 | Q39: 1.040486878 | R39: 1.020057549 | S39: 1 | T39: 0.9826187989 | U39: 0.9655397039 | V39: 0.9487574642 | W39: 0.9322669199 | X39: 0.9160630011 | Y39: 0.9001407258 | Z39: 0.8844951988 | AA39: 0.8691216099 | AB39: 0.8540152324 | AC39: 0.8391714219 | AD39: 0.8245856147 | AE39: 0.8102533263 | AF39: 0.7961701502 | AG39: 0.7823317567 | AH39: 0.7687338911 | AI39: 0.7553723728 | AJ39: 0.7422430937 | AK39: 0.7293420172 | AL39: 0.7166651769 | AM39: 0.7042086753
C43: Source: Deflators and Inflators derived from data contained in the Budget of the United States Government: Table 10.1 - Gross Domestic Product and Deflators Used in the Historical Tables 1940-2021.
C44: https://www.whitehouse.gov/omb/budget/Historicals
C45: Updated November 2016. Deflators for 2016-2040 assume average annual inflation rate derived from 2013-2020 GDP values.
D51: =HLOOKUP($E$4,E$51:R$53,3) -> 17 | E51: 2007 | F51: 2008 | G51: 2009 | H51: 2010 | I51: 2011 | J51: 2012 | K51: 2013 | L51: 2014 | M51: 2015 | N51: 2016 | O51: 2017 | P51: 2018 | Q51: 2019 | R51: 2020
D52: =HLOOKUP($E$4,E$51:R$53,2) -> 16 | E52: 2 | F52: 4 | G52: 6 | H52: 8 | I52: 10 | J52: 12 | K52: 14 | L52: 16 | M52: 18 | N52: 20 | O52: 22 | P52: 24 | Q52: 26 | R52: 28
E53: 3 | F53: 5 | G53: 7 | H53: 9 | I53: 11 | J53: 13 | K53: 15 | L53: 17 | M53: 19 | N53: 21 | O53: 23 | P53: 25 | Q53: 27 | R53: 29
C55: =C53*100 -> 0

Sheet Calculations
C1: Economic Impact Analysis for | E1: =ProjectData!B13 -> WYOMING | F1: =Project_Data -> Natural Gas Combined Cycle Plant Project Data
AB3: Detailed Gas Project Data | AC3: =IF(ProjectData!B$13="MyCounty",'User Add-in Location'!B$3,IF(ProjectData!B$13="MyRegion",'User Add-in Location'!B4,ProjectData!B$13)) -> WYOMING | AD3: =ProjectData!_xlnm.Print_Area -> 2014
A5: Warning | C5: Project Cost Data
C6: =DefaultData!C14 -> Construction Costs | D6: Cost | E6: Purchased Local | G6: Local $ Spending | AB6: =C6 -> Construction Costs | AC6: Cost | AD6: Local Share
A7: This Worksheet contains Data and Formulas that are an integral part of the JEDI model. | C7: =DefaultData!C15 -> Facility and Equipment | AB7: =C7 -> Facility and Equipment
C8: =DefaultData!C16 -> Power Generation | D8: =IF(ProjectData!$B$26="y",DefaultData!D16,ProjectData!B34) -> 220588235.3 | E8: =IF(ProjectData!$B$26="y",IF(ProjectData!T$12=0,DefaultData!G16,ProjectData!T34),ProjectData!E34) -> 0 | G8: =+E8*D8 -> 0 | AB8: =C8 -> Power Generation | AC8: =D8 -> 220588235.3 | AD8: =E8 -> 0
A9: Although the data and formulas are available for review they must not be changed. | C9: =DefaultData!C17 -> General facilities | D9: =IF(ProjectData!$B$26="y",DefaultData!D17,ProjectData!B35) -> 55147058.82 | E9: =IF(ProjectData!$B$26="y",IF(ProjectData!T$12=0,DefaultData!G17,ProjectData!T35),ProjectData!E35) -> 0.75 | G9: =+E9*D9 -> 41360294.12 | AB9: General facilities | AC9: 55147058.82 | AD9: 0.75
C10: =DefaultData!C18 -> Plant Equipment | D10: =IF(ProjectData!$B$26="y",DefaultData!D18,ProjectData!B36) -> 99264705.88 | E10: =IF(ProjectData!$B$26="y",IF(ProjectData!T$12=0,DefaultData!G18,ProjectData!T36),ProjectData!E36) -> 0.05 | G10: =+E10*D10 -> 4963235.294 | AB10: Plant Equipment | AC10: 99264705.88 | AD10: 0.05
A11: Any changes to the data or formulas will impact the analysis and may invalidate the model results. | C11: =DefaultData!C19 -> Subtotal | D11: =SUM(D8:D10) -> 375000000 | G11: =SUM(G8:G10) -> 46323529.41 | AB11: Subtotal | AC11: 375000000 | AD11: 0
C12: =DefaultData!C20 -> Labor and Management | AB12: Labor and Management
C13: =DefaultData!C21 -> Construction Labor | D13: =IF(ProjectData!$B$26="y",DefaultData!D21,ProjectData!B39) -> 106617647.1 | E13: =IF(ProjectData!$B$26="y",IF(ProjectData!T$12=0,DefaultData!G21,ProjectData!T39),ProjectData!E39) -> 0.5 | G13: =+E13*D13 -> 53308823.53 | AB13: Construction Labor | AC13: 106617647.1 | AD13: 0.5
C14: =DefaultData!C22 -> Project management (contruction and owner's) | D14: =IF(ProjectData!$B$26="y",DefaultData!D22,ProjectData!B40) -> 58823529.41 | E14: =IF(ProjectData!$B$26="y",IF(ProjectData!T$12=0,DefaultData!G22,ProjectData!T40),ProjectData!E40) -> 0 | G14: =+E14*D14 -> 0 | AB14: Project management (contruction and owner's) | AC14: 58823529.41 | AD14: 0
C15: =DefaultData!C23 -> Construction Utilities | D15: =IF(ProjectData!$B$26="y",DefaultData!D23,ProjectData!B41) -> 3676470.588 | E15: =IF(ProjectData!$B$26="y",IF(ProjectData!T$12=0,DefaultData!G23,ProjectData!T41),ProjectData!E41) -> 1 | G15: =+E15*D15 -> 3676470.588 | AB15: =C15 -> Construction Utilities | AC15: =D15 -> 3676470.588 | AD15: =E15 -> 1
C16: =DefaultData!C24 -> Subtotal | D16: =SUM(D13:D15) -> 169117647.1 | G16: =SUM(G13:G15) -> 56985294.12 | AB16: Subtotal | AC16: 169117647.1 | AD16: 0
C17: =DefaultData!C25 -> Construction Subtotal | D17: =D16+D11 -> 544117647.1 | G17: =G16+G11 -> 103308823.5 | AB17: Construction Subtotal | AC17: 544117647.1 | AD17: 0
C18: =DefaultData!C26 -> Other Costs | AB18: Other Costs
A19: To view the data and formulas simply scroll over to the adjacent columns to the right. | C19: =DefaultData!C27 -> Engineering/Design | D19: =IF(ProjectData!$B$26="y",DefaultData!D27,ProjectData!B45) -> 14705882.35 | E19: =IF(ProjectData!$B$26="y",IF(ProjectData!T$12=0,DefaultData!G27,ProjectData!T45),ProjectData!E45) -> 0 | G19: =+E19*D19 -> 0 | AB19: Engineering/Design | AC19: 14705882.35 | AD19: 0
C20: =DefaultData!C28 -> Construction insurance | D20: =IF(ProjectData!$B$26="y",DefaultData!D28,ProjectData!B46) -> 3676470.588 | E20: =IF(ProjectData!$B$26="y",IF(ProjectData!T$12=0,DefaultData!G28,ProjectData!T46),ProjectData!E46) -> 0 | G20: 0 | AB20: Construction insurance | AC20: 3676470.588 | AD20: 0
C21: =DefaultData!C29 -> Land | D21: =IF(ProjectData!$B$26="y",DefaultData!D29,ProjectData!B47) -> 29411764.71 | E21: =IF(ProjectData!$B$26="y",IF(ProjectData!T$12=0,DefaultData!G29,ProjectData!T47),ProjectData!E47) -> 1 | G21: 29411764.71 | AB21: Land | AC21: 29411764.71 | AD21: 1
C22: =DefaultData!C30 -> Permitting Fees | D22: =IF(ProjectData!$B$26="y",DefaultData!D30,ProjectData!B48) -> 14705882.35 | E22: =IF(ProjectData!$B$26="y",IF(ProjectData!T$12=0,DefaultData!G30,ProjectData!T48),ProjectData!E48) -> 1 | G22: 14705882.35 | AB22: Permitting Fees | AC22: 14705882.35 | AD22: 1
C23: =DefaultData!C31 -> Grid intertie | D23: =IF(ProjectData!$B$26="y",DefaultData!D31,ProjectData!B49) -> 14705882.35 | E23: =IF(ProjectData!$B$26="y",IF(ProjectData!T$12=0,DefaultData!G31,ProjectData!T49),ProjectData!E49) -> 0.25 | G23: 3676470.588 | AB23: Grid intertie | AC23: 14705882.35 | AD23: 0.25
C24: =DefaultData!C32 -> Spare Parts | D24: =IF(ProjectData!$B$26="y",DefaultData!D32,ProjectData!B50) -> 3676470.588 | E24: =IF(ProjectData!$B$26="y",IF(ProjectData!T$12=0,DefaultData!G32,ProjectData!T50),ProjectData!E50) -> 0.05 | G24: 183823.5294 | AB24: Spare Parts | AC24: 3676470.588 | AD24: 0.05
C25: =DefaultData!C33 -> Other Subtotal | D25: =SUM(D19:D24) -> 80882352.94 | G25: =SUM(G19:G24) -> 47977941.18 | AB25: Other Subtotal | AC25: 80882352.94 | AD25: 0
C26: =DefaultData!C34 -> Subtotal All Costs (without sales tax) | D26: =D25+D17 -> 625000000 | G26: =G25+G17 -> 151286764.7 | AB26: Subtotal All Costs (without sales tax) | AC26: 625000000
C27: =DefaultData!C35 -> Sales Tax (Materials & Equipment Purchases) | D27: =IF(ProjectData!$B$26="y",DefaultData!D35,ProjectData!B53) -> 15147058.82 | E27: =IF(ProjectData!$B$26="y",IF(ProjectData!T$12=0,DefaultData!G35,ProjectData!T53),ProjectData!E53) -> 1 | G27: =+E27*D27 -> 15147058.82 | AB27: =C27 -> Sales Tax (Materials & Equipment Purchases) | AC27: =D27 -> 15147058.82 | AD27: =E27 -> 1
C28: =DefaultData!C36 -> Total Project Cost | D28: =IF(ProjectData!$B$26="y",DefaultData!D36,ProjectData!B54) -> 640147058.8 | AB28: =C28 -> Total Project Cost | AC28: =D28 -> 640147058.8
AB31: =C64 -> Annual Operating and Maintenance Costs
AB32: =C65 -> Fixed Costs | AC32: Cost | AD32: Local Share
AB33: =C67 -> Labor | AC33: =D67 -> 1725075 | AD33: =E67 -> 1
AB34: =C71 -> Materials | AC34: 249992.1875 | AD34: 0.25
AB35: Services | AC35: 2149932.812 | AD35: 0.85 | AG35: Local Economic Impacts - Summary Results
AB36: =C73 -> Fixed Subtotal | AC36: =D73 -> 4125000 | AH36: Jobs | AI36: Earnings | AJ36: Output | AK36: Value Added
AB37: =C75 -> Variable Costs | AG37: During construction period
H38: Eng. & Prof. Svcs. | I38: =I58 -> 0 | L38: Eng. & Prof. Svcs. | M38: =M58*G63 -> 0 | P38: Eng. & Prof. Svcs. | Q38: =Q58*$G63 -> 0 | R38: =(Q60-Q38-Q48)*$G63 -> 38.23529412 | T38: Eng. & Prof. Svcs. | U38: =U58*$G63 -> 0 | V38: =(U60-U38-U48)*$G63 -> 18.1875 | AB38: Routine Turbine Maintenance | AC38: =D76 -> 6975150 | AD38: 0.05 | AG38: Direct Impacts | AH38: =AH39+AH40 -> 544.1740212 | AI38: =AI39+AI40 -> 69.64154412 | AJ38: =AJ39+AJ40 -> 98.34558824 | AK38: =AK39+AK40 -> 76.83823529
H39: Other Sectors (not Construction) | I39: =I60-I48-I40-I38 -> 188.4094225 | L39: Other Sectors (not Construction) | M39: =((M60-M48)*G63)-M40-M38 -> 6.051470588 | P39: Other Sectors (not Construction) | Q39: =((Q60-Q48)*$G63)-Q40-Q38 -> 33.08823529 | T39: Other Sectors (not Construction) | U39: =((U60-U48)*$G63)-U40-U38 -> 17.51838235 | AB39: Water | AC39: 427050 | AD39: 1 | AG39: Onsite Construction Only (labor and interconnection) | AH39: =I48 -> 544.1740212 | AI39: =M48*G63 -> 69.64154412 | AJ39: =Q48*G63 -> 98.34558824 | AK39: =U48*G63 -> 76.83823529
H40: Manufacturing Jobs | I40: =I49+I50+I51+I52 -> 12.90679032 | J40: =J49+J50+J51+J52 -> 7.629002936 | L40: Mfg W&S Earnings | M40: =(M49+M50+M51+M52)*$G63 -> 0.5816176471 | N40: =(N49+N50+N51+N52)*$G63 -> 0.3654411765 | P40: Mfg Output | Q40: =(Q49+Q50+Q51+Q52)*$G63 -> 5.147058824 | R40: =(R49+R50+R51+R52)*$G63 -> 1.441176471 | T40: Mfg Output | U40: =(U49+U50+U51+U52)*$G63 -> 0.6691176471 | V40: =(V49+V50+V51+V52)*$G63 -> 0.7205882353 | AB40: Catalysts & chemicals | AC40: 854100 | AD40: 0.85 | AG40: Other Onsite Construction Related Services (Engin. and Prof. Services) | AH40: =I38 -> 0 | AI40: =M38 -> 0 | AJ40: =Q38 -> 0 | AK40: =U38 -> 0
AB41: Variable Subtotal | AC41: =D79 -> 8256300 | AG41: Indirect Impacts | AH41: =I39+I40+J60 -> 503.1888172 | AI41: =M39+M40+N63 -> 18.53533088 | AJ41: =+Q39+Q40+R63 -> 80.38268382 | AK41: =+U39+U40+V63 -> 41.37419118
C42: Year | D42: =+ProjectData!B24 -> 2010 | F42: =CONCATENATE("Convert to ",Deflators!E4, " dollars") -> Convert to 2014 dollars | G42: =Deflators!F7 -> 1.074841396 | AB42: Fuel Cost | AC42: 64769250 | AD42: =E80 -> 0 | AG42: Induced Impacts | AH42: =K60 -> 232.3911025 | AI42: =O63 -> 9.095845588 | AJ42: =S63 -> 30.32268382 | AK42: =W63 -> 17.35113971
C43: Installation Costs Local Demand - margined | M43: =Deflators!E4 -> 2014 | N43: Dollars | Q43: =M43 -> 2014 | U43: =Q43 -> 2014 | AB43: =C81 -> Sales Tax (Materials & Equipment Purchases) | AC43: 61245.6875 | AD43: =E81 -> 1 | AG43: Total Impacts (Direct, Indirect, Induced) | AH43: =AH42+AH41+AH38 -> 1279.753941 | AI43: =AI42+AI41+AI38 -> 97.27272059 | AJ43: =AJ42+AJ41+AJ38 -> 209.0509559 | AK43: =AK42+AK41+AK38 -> 135.5635662
D44: Demand | F44: Total | G44: Adj Demand | I44: Jobs | J44: Jobs | K44: Jobs | L44: Jobs | M44: Earnings | Q44: Output | U44: Value Added | AB44: Other Taxes/Payments | AC44: 0 | AD44: =E82 -> 1
I45: Direct | J45: Indirect | K45: Induced | L45: Total | M45: Direct | N45: Indirect | O45: Induced | P45: Total | Q45: Direct | R45: Indirect | S45: Induced | T45: Total | U45: Direct | V45: Indirect | W45: Induced | X45: Total | AB45: Total (with Sales Tax and Other Taxes/Payments | AC45: 77211795.69 | AG45: During operating years (annual)
C46: Agriculture | D46: =E143 -> 0 | F46: =D46 -> 0 | G46: =F46*G$42/10^6 -> 0 | I46: =+G46*Multipliers!D213 -> 0 | J46: =+$G46*Multipliers!E213 -> 0 | K46: =+$G46*Multipliers!F213 -> 0 | L46: =+K46+J46+I46 -> 0 | M46: =+$G46*Multipliers!H213 -> 0 | N46: =+$G46*Multipliers!I213 -> 0 | O46: =+$G46*Multipliers!J213 -> 0 | P46: =+O46+N46+M46 -> 0 | Q46: =+$G46*Multipliers!L213 -> 0 | R46: =+$G46*Multipliers!M213 -> 0 | S46: =+$G46*Multipliers!N213 -> 0 | T46: =+S46+R46+Q46 -> 0 | U46: =+$G46*Multipliers!P213 -> 0 | V46: =+$G46*Multipliers!Q213 -> 0 | W46: =+$G46*Multipliers!R213 -> 0 | X46: =+W46+V46+U46 -> 0 | AB46: Financing (avg ann debt payment) | AC46: 48750000 | AD46: =E84 -> 0 | AG46: Direct Impacts | AH46: =AH47 -> 25.32401528 | AI46: =AI47 -> 1.60227218 | AJ46: =AJ47 -> 1.60227218 | AK46: =AK47 -> 1.60227218
C47: Mining | D47: =E144 -> 0 | F47: =D47 -> 0 | G47: 0 | H47: Const | I47: =+G47*Multipliers!D214 -> 0 | J47: =+$G47*Multipliers!E214 -> 0 | K47: =+$G47*Multipliers!F214 -> 0 | L47: =+K47+J47+I47 -> 0 | M47: =+$G47*Multipliers!H214 -> 0 | N47: =+$G47*Multipliers!I214 -> 0 | O47: =+$G47*Multipliers!J214 -> 0 | P47: =+O47+N47+M47 -> 0 | Q47: =+$G47*Multipliers!L214 -> 0 | R47: =+$G47*Multipliers!M214 -> 0 | S47: =+$G47*Multipliers!N214 -> 0 | T47: =+S47+R47+Q47 -> 0 | U47: =+$G47*Multipliers!P214 -> 0 | V47: =+$G47*Multipliers!Q214 -> 0 | W47: =+$G47*Multipliers!R214 -> 0 | X47: =+W47+V47+U47 -> 0 | AB47: Equity Payment - Individuals (avg ann payment) | AC47: 0 | AD47: =E85 -> 1 | AG47: Onsite Plant Labor Only | AH47: =L139 -> 25.32401528 | AI47: =P141 -> 1.60227218 | AJ47: =T141 -> 1.60227218 | AK47: =X141 -> 1.60227218
C48: Construction | D48: 98345588.24 | F48: 98345588.24 | G48: 105.7059093 | H48: =G16*G42/10^6 -> 61.25015306 | I48: =+G48*Multipliers!D215 -> 544.1740212 | J48: =+$G48*Multipliers!E215 -> 201.8982868 | K48: =+$G48*Multipliers!F215 -> 127.7984444 | L48: 873.8707524 | M48: =H48+($H49*Multipliers!H215) -> 74.85361448 | N48: =+$G48*Multipliers!I215 -> 8.350766836 | O48: =+$G48*Multipliers!J215 -> 5.179589557 | P48: 88.38397087 | Q48: =+$G48*Multipliers!L215 -> 105.7059093 | R48: =+$G48*Multipliers!M215 -> 27.80065415 | S48: =+$G48*Multipliers!N215 -> 17.23006322 | T48: 150.7366267 | U48: =+H48+($H49*Multipliers!P215) -> 82.58891607 | V48: =+$G48*Multipliers!Q215 -> 15.43306276 | W48: =+$G48*Multipliers!R215 -> 9.830649567 | X48: 107.8526284 | AB48: Equity Payment - Corporations (avg ann payment) | AC48: 21500000 | AD48: =E86 -> 0 | AG48: Indirect Impacts | AH48: =(L161-AH47)+M161 -> 36.28828054 | AI48: =P162-AI47+Q162 -> 1.523292128 | AJ48: =T162-AJ47+U162 -> 5.846613185 | AK48: =X162-AK47+Y162 -> 3.181194208
C49: Manufacturing | D49: 0 | F49: 0 | G49: 0 | H49: =G48-H48 -> 44.45575626 | I49: =+G49*Multipliers!D216 -> 0 | J49: =+$G49*Multipliers!E216 -> 0 | K49: =+$G49*Multipliers!F216 -> 0 | L49: 0 | M49: =+$G49*Multipliers!H216 -> 0 | N49: =+$G49*Multipliers!I216 -> 0 | O49: =+$G49*Multipliers!J216 -> 0 | P49: 0 | Q49: =+$G49*Multipliers!L216 -> 0 | R49: =+$G49*Multipliers!M216 -> 0 | S49: =+$G49*Multipliers!N216 -> 0 | T49: 0 | U49: =+$G49*Multipliers!P216 -> 0 | V49: =+$G49*Multipliers!Q216 -> 0 | W49: =+$G49*Multipliers!R216 -> 0 | X49: 0 | AB49: Property Tax | AC49: 0 | AD49: =E87 -> 1 | AG49: Induced Impacts | AH49: =N161 -> 7.076881215 | AI49: =R162 -> 0.2760392525 | AJ49: =V162 -> 0.9203396667 | AK49: =Z162 -> 0.5276306989
C50: Fabricated Metals | D50: 0 | F50: 0 | G50: 0 | I50: =+G50*Multipliers!D217 -> 0 | J50: =+$G50*Multipliers!E217 -> 0 | K50: =+$G50*Multipliers!F217 -> 0 | L50: 0 | M50: =+$G50*Multipliers!H217 -> 0 | N50: =+$G50*Multipliers!I217 -> 0 | O50: =+$G50*Multipliers!J217 -> 0 | P50: 0 | Q50: =+$G50*Multipliers!L217 -> 0 | R50: =+$G50*Multipliers!M217 -> 0 | S50: =+$G50*Multipliers!N217 -> 0 | T50: 0 | U50: =+$G50*Multipliers!P217 -> 0 | V50: =+$G50*Multipliers!Q217 -> 0 | W50: =+$G50*Multipliers!R217 -> 0 | X50: 0 | AB50: Land Lease | AC50: 0 | AD50: =E88 -> 1 | AG50: Total Impacts (Direct, Indirect, Induced) | AH50: =SUM(AH47:AH49) -> 68.68917703 | AI50: =SUM(AI47:AI49) -> 3.401603561 | AJ50: =SUM(AJ47:AJ49) -> 8.369225032 | AK50: =SUM(AK47:AK49) -> 5.311097086
C51: Machinery | D51: 5147058.824 | F51: 5147058.824 | G51: 5.53227189 | I51: =+G51*Multipliers!D218 -> 12.90679032 | J51: =+$G51*Multipliers!E218 -> 7.629002936 | K51: =+$G51*Multipliers!F218 -> 3.264040415 | L51: 23.79983367 | M51: =+$G51*Multipliers!H218 -> 0.6251467235 | N51: =+$G51*Multipliers!I218 -> 0.3927913042 | O51: =+$G51*Multipliers!J218 -> 0.1272422535 | P51: 1.145180281 | Q51: =+$G51*Multipliers!L218 -> 5.53227189 | R51: =+$G51*Multipliers!M218 -> 1.549036129 | S51: =+$G51*Multipliers!N218 -> 0.4315172074 | T51: 7.512825226 | U51: =+$G51*Multipliers!P218 -> 0.7191953457 | V51: =+$G51*Multipliers!Q218 -> 0.7745180646 | W51: =+$G51*Multipliers!R218 -> 0.2434199631 | X51: 1.737133373 | AB51: Total (with financing) | AC51: 147461795.7
C52: Electrical Equipment | D52: 0 | F52: 0 | G52: 0 | I52: =+G52*Multipliers!D219 -> 0 | J52: =+$G52*Multipliers!E219 -> 0 | K52: =+$G52*Multipliers!F219 -> 0 | L52: 0 | M52: =+$G52*Multipliers!H219 -> 0 | N52: =+$G52*Multipliers!I219 -> 0 | O52: =+$G52*Multipliers!J219 -> 0 | P52: 0 | Q52: =+$G52*Multipliers!L219 -> 0 | R52: =+$G52*Multipliers!M219 -> 0 | S52: =+$G52*Multipliers!N219 -> 0 | T52: 0 | U52: =+$G52*Multipliers!P219 -> 0 | V52: =+$G52*Multipliers!Q219 -> 0 | W52: =+$G52*Multipliers!R219 -> 0 | X52: 0 | AB52: Total (without debt, equity,taxes, lease payments) | AC52: 77150550
C53: TCPU | D53: 3676470.588 | F53: 3676470.588 | G53: 3.951622778 | I53: =+G53*Multipliers!D220 -> 8.341875685 | J53: =+$G53*Multipliers!E220 -> 6.765178197 | K53: =+$G53*Multipliers!F220 -> 3.8686387 | L53: 18.97569258 | M53: =+$G53*Multipliers!H220 -> 0.8140342923 | N53: =+$G53*Multipliers!I220 -> 0.4030655234 | O53: =+$G53*Multipliers!J220 -> 0.1541132884 | P53: 1.371213104 | Q53: =+$G53*Multipliers!L220 -> 3.951622778 | R53: =+$G53*Multipliers!M220 -> 1.624116962 | S53: =+$G53*Multipliers!N220 -> 0.5137109612 | T53: 6.089450701 | U53: =+$G53*Multipliers!P220 -> 1.790085119 | V53: =+$G53*Multipliers!Q220 -> 0.8851635024 | W53: =+$G53*Multipliers!R220 -> 0.2963717084 | X53: 2.971620329
C54: Wholesale Trade | D54: 0 | F54: 0 | G54: 0 | I54: =+G54*Multipliers!D221 -> 0 | J54: =+$G54*Multipliers!E221 -> 0 | K54: =+$G54*Multipliers!F221 -> 0 | L54: 0 | M54: =+$G54*Multipliers!H221 -> 0 | N54: =+$G54*Multipliers!I221 -> 0 | O54: =+$G54*Multipliers!J221 -> 0 | P54: 0 | Q54: =+$G54*Multipliers!L221 -> 0 | R54: =+$G54*Multipliers!M221 -> 0 | S54: =+$G54*Multipliers!N221 -> 0 | T54: 0 | U54: =+$G54*Multipliers!P221 -> 0 | V54: =+$G54*Multipliers!Q221 -> 0 | W54: =+$G54*Multipliers!R221 -> 0 | X54: 0 | AB54: Other Parameters | AD54: Local Share
C55: Retail Trade | D55: 0 | F55: 0 | G55: 0 | I55: =+G55*Multipliers!D222 -> 0 | J55: =+$G55*Multipliers!E222 -> 0 | K55: =+$G55*Multipliers!F222 -> 0 | L55: 0 | M55: =+$G55*Multipliers!H222 -> 0 | N55: =+$G55*Multipliers!I222 -> 0 | O55: =+$G55*Multipliers!J222 -> 0 | P55: 0 | Q55: =+$G55*Multipliers!L222 -> 0 | R55: =+$G55*Multipliers!M222 -> 0 | S55: =+$G55*Multipliers!N222 -> 0 | T55: 0 | U55: =+$G55*Multipliers!P222 -> 0 | V55: =+$G55*Multipliers!Q222 -> 0 | W55: =+$G55*Multipliers!R222 -> 0 | X55: 0 | AB55: Financial Parameters
C56: FIRE | D56: 29411764.71 | F56: 29411764.71 | G56: 31.61298223 | I56: =+G56*Multipliers!D223 -> 180.0675468 | J56: =+$G56*Multipliers!E223 -> 72.48856825 | K56: =+$G56*Multipliers!F223 -> 27.06071279 | L56: 279.6168278 | M56: =+$G56*Multipliers!H223 -> 5.690336801 | N56: =+$G56*Multipliers!I223 -> 2.908394365 | O56: =+$G56*Multipliers!J223 -> 1.074841396 | P56: 9.673572561 | Q56: =+$G56*Multipliers!L223 -> 31.61298223 | R56: =+$G56*Multipliers!M223 -> 11.69680342 | S56: =+$G56*Multipliers!N223 -> 3.635492956 | T56: 46.94527861 | U56: =+$G56*Multipliers!P223 -> 17.03939742 | V56: =+$G56*Multipliers!Q223 -> 6.417435392 | W56: =+$G56*Multipliers!R223 -> 2.086456827 | X56: 25.54328964 | AB56: =DefaultData!C70 -> Debt Financing
C57: Misc. Services | D57: 0 | F57: 0 | G57: 0 | I57: =+G57*Multipliers!D224 -> 0 | J57: =+$G57*Multipliers!E224 -> 0 | K57: =+$G57*Multipliers!F224 -> 0 | L57: 0 | M57: =+$G57*Multipliers!H224 -> 0 | N57: =+$G57*Multipliers!I224 -> 0 | O57: =+$G57*Multipliers!J224 -> 0 | P57: 0 | Q57: =+$G57*Multipliers!L224 -> 0 | R57: =+$G57*Multipliers!M224 -> 0 | S57: =+$G57*Multipliers!N224 -> 0 | T57: 0 | U57: =+$G57*Multipliers!P224 -> 0 | V57: =+$G57*Multipliers!Q224 -> 0 | W57: =+$G57*Multipliers!R224 -> 0 | X57: 0 | AB57: =DefaultData!C71 -> Percentage financed | AC57: =IF(ProjectData!$B$26="y",DefaultData!D71,ProjectData!B79) -> 0.8 | AD57: =IF(ProjectData!$B$26="y",DefaultData!F71,ProjectData!D79) -> 0
C58: Professional Services | D58: 0 | F58: 0 | G58: 0 | I58: =+G58*Multipliers!D225 -> 0 | J58: =+$G58*Multipliers!E225 -> 0 | K58: =+$G58*Multipliers!F225 -> 0 | L58: 0 | M58: =+$G58*Multipliers!H225 -> 0 | N58: =+$G58*Multipliers!I225 -> 0 | O58: =+$G58*Multipliers!J225 -> 0 | P58: 0 | Q58: =+$G58*Multipliers!L225 -> 0 | R58: =+$G58*Multipliers!M225 -> 0 | S58: =+$G58*Multipliers!N225 -> 0 | T58: 0 | U58: =+$G58*Multipliers!P225 -> 0 | V58: =+$G58*Multipliers!Q225 -> 0 | W58: =+$G58*Multipliers!R225 -> 0 | X58: 0 | AB58: =DefaultData!C72 -> Years financed (term) | AC58: =IF(ProjectData!$B$26="y",DefaultData!D72,ProjectData!B80) -> 20
C59: Government | D59: 29852941.18 | F59: 29852941.18 | G59: 32.08717696 | J59: =+$G59*Multipliers!E226 -> 13.0915682 | K59: =+$G59*Multipliers!F226 -> 70.39926625 | L59: 83.49083445 | N59: =+$G59*Multipliers!I226 -> 0.7380050701 | O59: =+$G59*Multipliers!J226 -> 3.240804873 | P59: 3.978809943 | R59: =+$G59*Multipliers!M226 -> 2.631148511 | S59: =+$G59*Multipliers!N226 -> 10.78129146 | T59: 13.41243997 | V59: =+$G59*Multipliers!Q226 -> 1.411835786 | W59: =+$G59*Multipliers!R226 -> 6.192825153 | X59: 7.60466094 | AB59: =DefaultData!C73 -> Interest rate | AC59: =IF(ProjectData!$B$26="y",DefaultData!D73,ProjectData!B81) -> 0.1
C60: Total | D60: =SUM(D46:D59) -> 166433823.5 | F60: =SUM(F46:F59) -> 166433823.5 | G60: =SUM(G46:G59) -> 178.8899632 | I60: =SUM(I46:I59) -> 745.490234 | J60: 301.8726044 | K60: 232.3911025 | L60: 1279.753941 | M60: 81.9831323 | N60: 12.7930231 | O60: 9.776591367 | P60: 104.5527468 | Q60: 146.8027862 | R60: 45.30175918 | S60: 32.5920758 | T60: 224.6966212 | U60: =SUM(U46:U59) -> 102.137594 | V60: 24.92201551 | W60: 18.64972322 | X60: 145.7093327 | AB60: =DefaultData!C75 -> Equity Financing/Repayment
AB61: =DefaultData!C76 -> Percentage equity | AC61: =IF(ProjectData!$B$26="y",DefaultData!D76,ProjectData!B83) -> 0.2
F62: Inflator to | G62: =D42 -> 2010 | H62: Dollars | AB62: =DefaultData!C77 -> Individual Investors (percent of equity) | AC62: =IF(ProjectData!$B$26="y",DefaultData!D77,ProjectData!B84) -> 0 | AD62: =IF(ProjectData!$B$26="y",DefaultData!F77,ProjectData!D84) -> 1
G63: =Deflators!F8 -> 0.9303698238 | M63: =M60*$G63 -> 76.27463235 | N63: 11.90224265 | O63: 9.095845588 | P63: 97.27272059 | Q63: 136.5808824 | R63: 42.14738971 | S63: 30.32268382 | T63: 209.0509559 | U63: =U60*$G63 -> 95.02573529 | V63: 23.18669118 | W63: 17.35113971 | X63: 135.5635662 | AB63: =DefaultData!C78 -> Corporate Investors (percent of equity) | AC63: =IF(ProjectData!$B$26="y",DefaultData!D78,ProjectData!B85) -> 1 | AD63: =IF(ProjectData!$B$26="y",DefaultData!F78,ProjectData!D85) -> 0
C64: =DefaultData!C41 -> Annual Operating and Maintenance Costs | AB64: =DefaultData!C79 -> Return on equity | AC64: =IF(ProjectData!$B$26="y",DefaultData!D79,ProjectData!B86) -> 0.16
C65: =DefaultData!C42 -> Fixed Costs | F65: Gross minus employer costs | H65: Gross incl benefits | AB65: =DefaultData!C80 -> Repayment term (years) | AC65: =IF(ProjectData!$B$26="y",DefaultData!D80,ProjectData!B87) -> 10
D66: Cost | E66: Local Share | F66: Empl Earnings | G66: Local $ Spending | H66: Empl Earnings | I66: Govt Share | J66: Health Ben, etc. | AB66: =DefaultData!C81 -> Tax Parameters
C67: =DefaultData!C44 -> Labor | D67: =IF(ProjectData!$B$26="y",DefaultData!D44,ProjectData!B60) -> 1725075 | E67: =IF(ProjectData!$B$26="y",IF(ProjectData!T$12=0,DefaultData!G44,ProjectData!T60),ProjectData!E60) -> 1 | F67: =D67*(1-DefaultData!M$93) -> 1076341.394 | G67: =F67*E67 -> 1076341.394 | H67: =D67*E67*(1-DefaultData!M91) -> 1602272.18 | I67: =D67*E67*DefaultData!M$91 -> 122802.82 | J67: =D67*E67*DefaultData!M$92 -> 525930.7863 | AB67: =DefaultData!C82 -> Local Property/Other Tax Rate (percent of taxable value) | AC67: =IF(ProjectData!$B$26="y",DefaultData!D82,ProjectData!B89) -> 0
AB68: =DefaultData!C83 -> Assessed Value (percent of construction cost) | AC68: =IF(ProjectData!$B$26="y",DefaultData!D83,ProjectData!B90) -> 1
AB69: =DefaultData!C84 -> Taxable Value (percent of assessed value) | AC69: =IF(ProjectData!$B$26="y",DefaultData!D84,ProjectData!B91) -> 1
C70: =DefaultData!C47 -> Labor Subtotal | D70: =SUM(D67:D69) -> 1725075 | F70: =SUM(F67:F69) -> 1076341.394 | G70: =SUM(G67:G69) -> 1076341.394 | H70: =SUM(H67:H69) -> 1602272.18 | I70: =SUM(I67:I69) -> 122802.82 | J70: =SUM(J67:J69) -> 525930.7863 | K70: =J70+I70+G70 -> 1725075 | AB70: =DefaultData!C85 -> Taxable Value | AC70: =IF(ProjectData!$B$26="y",DefaultData!D85,ProjectData!B92) -> 625000000
C71: =DefaultData!C48 -> Materials | D71: =IF(ProjectData!$B$26="y",DefaultData!D48,ProjectData!B61) -> 249992.1875 | E71: =IF(ProjectData!$B$26="y",IF(ProjectData!T$12=0,DefaultData!G48,ProjectData!T61),ProjectData!E61) -> 0.25 | G71: =D71*E71 -> 62498.04687 | AB71: =DefaultData!C86 -> Local Taxes | AC71: =IF(ProjectData!$B$26="y",DefaultData!D86,ProjectData!B93) -> 0 | AD71: =IF(ProjectData!$B$26="y",DefaultData!F86,ProjectData!D93) -> 1
C72: =DefaultData!C49 -> Services | D72: =IF(ProjectData!$B$26="y",DefaultData!D49,ProjectData!B62) -> 2149932.812 | E72: =IF(ProjectData!$B$26="y",IF(ProjectData!T$12=0,DefaultData!G49,ProjectData!T62),ProjectData!E62) -> 0.85 | G72: =D72*E72 -> 1827442.891 | AB72: =DefaultData!C87 -> Local Sales Tax Rate | AC72: =IF(ProjectData!$B$26="y",DefaultData!D87,ProjectData!B94) -> 0.04
C73: =DefaultData!C50 -> Fixed Subtotal | D73: =SUM(D70:D72) -> 4125000 | G73: =SUM(G70:G72) -> 2966282.331 | AB73: =DefaultData!C88 -> Land Lease Parameters
AB74: =DefaultData!C89 -> Land Lease (total cost) | AC74: =IF(ProjectData!$B$26="y",DefaultData!D89,ProjectData!B96) -> 0
C75: =DefaultData!C52 -> Variable Costs | AB75: =DefaultData!C90 -> Lease Payment Recipient (F = farmer/household, O = Other) | AC75: =IF(ProjectData!$B$26="y",DefaultData!D90,ProjectData!B97) -> O | AD75: =IF(ProjectData!$B$26="y",DefaultData!F90,ProjectData!D97) -> 1
C76: =DefaultData!C53 -> Routine Turbine Maintenance | D76: =IF(ProjectData!$B$26="y",DefaultData!D53,ProjectData!B67) -> 6975150 | E76: =IF(ProjectData!$B$26="y",IF(ProjectData!T$12=0,DefaultData!G53,ProjectData!T67),ProjectData!E67) -> 0.05 | G76: =D76*E76 -> 348757.5 | AB76: =DefaultData!C92 -> Payroll Parameters
C77: =DefaultData!C54 -> Water | D77: =IF(ProjectData!$B$26="y",DefaultData!D54,ProjectData!B68) -> 427050 | E77: =IF(ProjectData!$B$26="y",IF(ProjectData!T$12=0,DefaultData!G54,ProjectData!T68),ProjectData!E68) -> 1 | G77: =D77*E77 -> 427050 | AB77: Labor (average wage per hour for all plant workers) | AC77: =IF(ProjectData!$B$26="y",DefaultData!E93,ProjectData!B99) -> 23.79985773 | AE77: =IF(ProjectData!$B$26="y",DefaultData!G93,ProjectData!D99) -> 0.3760611025
C78: =DefaultData!C55 -> Catalysts & chemicals | D78: =IF(ProjectData!$B$26="y",DefaultData!D55,ProjectData!B69) -> 854100 | E78: =IF(ProjectData!$B$26="y",IF(ProjectData!T$12=0,DefaultData!G55,ProjectData!T69),ProjectData!E69) -> 0.85 | G78: =D78*E78 -> 725985
C79: =DefaultData!C56 -> Variable Subtotal | D79: =SUM(D76:D78) -> 8256300 | G79: =SUM(G76:G78) -> 1501792.5
C80: =DefaultData!C57 -> Fuel Cost | D80: =IF(ProjectData!$B$26="y",DefaultData!D57,ProjectData!B71) -> 64769250 | E80: =IF(ProjectData!$B$26="y",IF(ProjectData!T$12=0,DefaultData!G57,ProjectData!T71),ProjectData!E71) -> 0 | G80: =D80*E80 -> 0
C81: =DefaultData!C58 -> Sales Tax (Materials & Equipment Purchases) | D81: =IF(ProjectData!$B$26="y",DefaultData!D58,ProjectData!B72) -> 61245.6875 | E81: =IF(ProjectData!$B$26="y",IF(ProjectData!T$12=0,DefaultData!G58,ProjectData!T72),ProjectData!E72) -> 1 | G81: =D81*E81 -> 61245.6875
C82: =DefaultData!C59 -> Other Taxes/Payments | D82: =IF(ProjectData!$B$26="y",DefaultData!D59,ProjectData!B73) -> 0 | E82: =IF(ProjectData!$B$26="y",IF(ProjectData!T$12=0,DefaultData!G59,ProjectData!T73),ProjectData!E73) -> 1 | G82: =D82*E82 -> 0
C83: =DefaultData!C60 -> Total (with Sales Tax and Other Taxes/Payments | D83: =SUM(D79:D82)+D73 -> 77211795.69 | G83: =SUM(G79:G82)+G73 -> 4529320.519
C84: =DefaultData!C62 -> Financing (avg ann debt payment) | D84: =IF(ProjectData!$B$26="y",F199,Calculations!F235) -> 48750000 | E84: =IF(ProjectData!$B$26="y",DefaultData!G62,ProjectData!D79) -> 0 | G84: 0 | H84: =IF(ProjectData!$B$26="y",Calculations!D199,D235)*E84 -> 0 | I84: Debt Pmt - Local share Avg Ann Interest
C85: =DefaultData!C63 -> Equity Payment - Individuals (avg ann payment) | D85: =IF(ProjectData!$B$26="y",K199,Calculations!K235) -> 0 | E85: =IF(ProjectData!$B$26="y",DefaultData!F77,ProjectData!D84) -> 1 | G85: 0 | H85: =IF(ProjectData!$B$26="y",Calculations!I199,I235)*E85 -> 0 | I85: Equity Pmt - Individual Share Avg Ann Interest
C86: =DefaultData!C64 -> Equity Payment - Corporations (avg ann payment) | D86: =IF(ProjectData!$B$26="y",P199,Calculations!P235) -> 21500000 | E86: =IF(ProjectData!$B$26="y",DefaultData!F78,ProjectData!D85) -> 0 | G86: 0 | H86: =IF(ProjectData!$B$26="y",Calculations!N199,N235)*E86 -> 0 | I86: Equity Pmt - Corporate Share Avg Ann Interest | L86: Default Land Lease (below) | O86: User Land Lease (below)
C87: Property Tax | D87: =IF(ProjectData!$B$26="y",DefaultData!D86,ProjectData!B93) -> 0 | E87: =IF(ProjectData!$B$26="y",DefaultData!F86,ProjectData!D93) -> 1 | G87: 0 | I87: Y | K87: Y | L87: F | M87: 0 | O87: F | P87: O
C88: =DefaultData!C65 -> Land Lease | D88: =IF(ProjectData!$B$26="y",DefaultData!D89,ProjectData!B96) -> 0 | E88: =IF(ProjectData!$B$26="y",DefaultData!F90,ProjectData!D97) -> 1 | G88: 0 | H88: =IF(ProjectData!B26="Y",Calculations!L88,O88) -> 0 | I88: To House | J88: =IF(ProjectData!B26="Y",Calculations!M88,P88) -> 0 | K88: To FIRE | L88: 0 | M88: =DefaultData!D89*DefaultData!F90 -> 0 | O88: =IF(ProjectData!B26="N",IF(ProjectData!B97="F",Calculations!G88,0),0) -> 0 | P88: =IF(ProjectData!B26="N",IF(ProjectData!B97="O",Calculations!G88,0),0) -> 0
C89: =DefaultData!C66 -> Total (with financing) | D89: =SUM(D83:D88) -> 147461795.7 | G89: =G73+SUM(G79:G88) -> 9058641.037
C90: Total (without debt, equity,taxes, lease payments) | D90: =D80+D79+D73 -> 77150550 | E90: =D89-D90 -> 70311245.69 | G90: =G80+G79+G73 -> 4468074.831 | H90: =G89-G90 -> 4590566.206
C91: Total cost per KW | D91: =D90/DefaultData!D5 -> 154.3011
D96: Local Adj | E96: 0.85 | F96: 0.5 | I96: 0.5 | L96: Without Plant Employees
C97: Annual Operations and Maintenance Costs Local Demand - margined | O97: =M43 -> 2014 | P97: =N43 -> Dollars
D98: Demand | E98: PCE-Land Lease | F98: PCE -Equity | G98: Total | H98: Adj Demand - Million | I98: Multiplier Yr Fuel Price Impact Adj. | L98: Jobs | P98: Earnings | T98: Output | X98: Value Added
E99: To Farm/House | F99: To Individuals | G99: w/o Plant Empl | H99: =M43 -> 2014 | I99: =N43 -> Dollars | L99: Direct | M99: Indirect | N99: Induced | O99: Total | P99: Direct | Q99: Indirect | R99: Induced | S99: Total | T99: Direct | U99: Indirect | V99: Induced | W99: Total | X99: Direct | Y99: Indirect | Z99: Induced | AA99: Total
C100: Agriculture | D100: =$D$143*DefaultData!D100+$D$144*DefaultData!D101+$D$145*DefaultData!D102+$D$146*DefaultData!D103+$D$147*DefaultData!D104+$D$148*DefaultData!D105+$D$149*DefaultData!D106+$D$150*DefaultData!D107+$D$151*DefaultData!D108+$D$152*DefaultData!D109+$D$153*DefaultData!D110+$D$154*DefaultData!D111+$D$155*DefaultData!D112+$D$156*DefaultData!D113 -> 0 | E100: =(H$88*Multipliers!U213)*E$96 -> 0 | F100: =H$85*Multipliers!U213*F$96 -> 0 | G100: =F100+E100+D100 -> 0 | H100: =G100*G$42/10^6 -> 0 | I100: =((G100*G$42)+(I143*I$96))/10^6 -> 0 | L100: =$H100*Multipliers!D213 -> 0 | M100: =$H100*Multipliers!E213 -> 0 | N100: =$I100*Multipliers!F213 -> 0 | O100: =+N100+M100+L100 -> 0 | P100: =$H100*Multipliers!H213 -> 0 | Q100: =$H100*Multipliers!I213 -> 0 | R100: =$I100*Multipliers!J213 -> 0 | S100: =+R100+Q100+P100 -> 0 | T100: =$I100*Multipliers!L213 -> 0 | U100: =$I100*Multipliers!M213 -> 0 | V100: =$I100*Multipliers!N213 -> 0 | W100: =+V100+U100+T100 -> 0 | X100: =$I100*Multipliers!P213 -> 0 | Y100: =$I100*Multipliers!Q213 -> 0 | Z100: =$I100*Multipliers!R213 -> 0 | AA100: =+Z100+Y100+X100 -> 0
C101: Mining | D101: =$D$143*DefaultData!E100+$D$144*DefaultData!E101+$D$145*DefaultData!E102+$D$146*DefaultData!E103+$D$147*DefaultData!E104+$D$148*DefaultData!E105+$D$149*DefaultData!E106+$D$150*DefaultData!E107+$D$151*DefaultData!E108+$D$152*DefaultData!E109+$D$153*DefaultData!E110+$D$154*DefaultData!E111+$D$155*DefaultData!E112+$D$156*DefaultData!E113 -> 0 | E101: =(H$88*Multipliers!U214)*E$96 -> 0 | F101: =H$85*Multipliers!U214*F$96 -> 0 | G101: =F101+E101+D101 -> 0 | H101: 0 | I101: 0 | L101: =$H101*Multipliers!D214 -> 0 | M101: =$H101*Multipliers!E214 -> 0 | N101: =$I101*Multipliers!F214 -> 0 | O101: =+N101+M101+L101 -> 0 | P101: =$H101*Multipliers!H214 -> 0 | Q101: =$H101*Multipliers!I214 -> 0 | R101: =$I101*Multipliers!J214 -> 0 | S101: =+R101+Q101+P101 -> 0 | T101: =$I101*Multipliers!L214 -> 0 | U101: =$I101*Multipliers!M214 -> 0 | V101: =$I101*Multipliers!N214 -> 0 | W101: =+V101+U101+T101 -> 0 | X101: =$I101*Multipliers!P214 -> 0 | Y101: =$I101*Multipliers!Q214 -> 0 | Z101: =$I101*Multipliers!R214 -> 0 | AA101: =+Z101+Y101+X101 -> 0
C102: Construction | D102: =$D$143*DefaultData!F100+$D$144*DefaultData!F101+$D$145*DefaultData!F102+$D$146*DefaultData!F103+$D$147*DefaultData!F104+$D$148*DefaultData!F105+$D$149*DefaultData!F106+$D$150*DefaultData!F107+$D$151*DefaultData!F108+$D$152*DefaultData!F109+$D$153*DefaultData!F110+$D$154*DefaultData!F111+$D$155*DefaultData!F112+$D$156*DefaultData!F113 -> 0 | E102: =(H$88*Multipliers!U215)*E$96 -> 0 | F102: =H$85*Multipliers!U215*F$96 -> 0 | G102: 0 | H102: 0 | I102: 0 | L102: =$H102*Multipliers!D215 -> 0 | M102: =$H102*Multipliers!E215 -> 0 | N102: =$I102*Multipliers!F215 -> 0 | O102: 0 | P102: =$H102*Multipliers!H215 -> 0 | Q102: =$H102*Multipliers!I215 -> 0 | R102: =$I102*Multipliers!J215 -> 0 | S102: 0 | T102: =$I102*Multipliers!L215 -> 0 | U102: =$I102*Multipliers!M215 -> 0 | V102: =$I102*Multipliers!N215 -> 0 | W102: 0 | X102: =$I102*Multipliers!P215 -> 0 | Y102: =$I102*Multipliers!Q215 -> 0 | Z102: =$I102*Multipliers!R215 -> 0 | AA102: 0
C103: Manufacturing | D103: =$D$143*DefaultData!G100+$D$144*DefaultData!G101+$D$145*DefaultData!G102+$D$146*DefaultData!G103+$D$147*DefaultData!G104+$D$148*DefaultData!G105+$D$149*DefaultData!G106+$D$150*DefaultData!G107+$D$151*DefaultData!G108+$D$152*DefaultData!G109+$D$153*DefaultData!G110+$D$154*DefaultData!G111+$D$155*DefaultData!G112+$D$156*DefaultData!G113 -> 405398.7358 | E103: =(H$88*Multipliers!U216)*E$96 -> 0 | F103: =H$85*Multipliers!U216*F$96 -> 0 | G103: 405398.7358 | H103: 0.435739343 | I103: 0.435739343 | L103: =$H103*Multipliers!D216 -> 0.3050175401 | M103: =$H103*Multipliers!E216 -> 0.6862894653 | N103: =$I103*Multipliers!F216 -> 0.195646965 | O103: 1.18695397 | P103: =$H103*Multipliers!H216 -> 0.02265844584 | Q103: =$H103*Multipliers!I216 -> 0.03921654087 | R103: =$I103*Multipliers!J216 -> 0.007843308175 | S103: 0.06971829488 | T103: =$I103*Multipliers!L216 -> 0.435739343 | U103: =$I103*Multipliers!M216 -> 0.1708098225 | V103: =$I103*Multipliers!N216 -> 0.02614436058 | W103: 0.6326935261 | X103: =$I103*Multipliers!P216 -> 0.05664611459 | Y103: =$I103*Multipliers!Q216 -> 0.09194100138 | Z103: =$I103*Multipliers!R216 -> 0.01481513766 | AA103: 0.1634022536
C104: Fabricated Metals | D104: =$D$143*DefaultData!H100+$D$144*DefaultData!H101+$D$145*DefaultData!H102+$D$146*DefaultData!H103+$D$147*DefaultData!H104+$D$148*DefaultData!H105+$D$149*DefaultData!H106+$D$150*DefaultData!H107+$D$151*DefaultData!H108+$D$152*DefaultData!H109+$D$153*DefaultData!H110+$D$154*DefaultData!H111+$D$155*DefaultData!H112+$D$156*DefaultData!H113 -> 0 | E104: =(H$88*Multipliers!U217)*E$96 -> 0 | F104: =H$85*Multipliers!U217*F$96 -> 0 | G104: 0 | H104: 0 | I104: 0 | L104: =$H104*Multipliers!D217 -> 0 | M104: =$H104*Multipliers!E217 -> 0 | N104: =$I104*Multipliers!F217 -> 0 | O104: 0 | P104: =$H104*Multipliers!H217 -> 0 | Q104: =$H104*Multipliers!I217 -> 0 | R104: =$I104*Multipliers!J217 -> 0 | S104: 0 | T104: =$I104*Multipliers!L217 -> 0 | U104: =$I104*Multipliers!M217 -> 0 | V104: =$I104*Multipliers!N217 -> 0 | W104: 0 | X104: =$I104*Multipliers!P217 -> 0 | Y104: =$I104*Multipliers!Q217 -> 0 | Z104: =$I104*Multipliers!R217 -> 0 | AA104: 0
C105: Machinery | D105: =$D$143*DefaultData!I100+$D$144*DefaultData!I101+$D$145*DefaultData!I102+$D$146*DefaultData!I103+$D$147*DefaultData!I104+$D$148*DefaultData!I105+$D$149*DefaultData!I106+$D$150*DefaultData!I107+$D$151*DefaultData!I108+$D$152*DefaultData!I109+$D$153*DefaultData!I110+$D$154*DefaultData!I111+$D$155*DefaultData!I112+$D$156*DefaultData!I113 -> 39451.95459 | E105: =(H$88*Multipliers!U218)*E$96 -> 0 | F105: =H$85*Multipliers!U218*F$96 -> 0 | G105: 39451.95459 | H105: 0.04240459393 | I105: 0.04240459393 | L105: =$H105*Multipliers!D218 -> 0.09892991765 | M105: =$H105*Multipliers!E218 -> 0.05847593503 | N105: =$I105*Multipliers!F218 -> 0.02501871042 | O105: 0.1824245631 | P105: =$H105*Multipliers!H218 -> 0.004791719114 | Q105: =$H105*Multipliers!I218 -> 0.003010726169 | R105: =$I105*Multipliers!J218 -> 0.0009753056605 | S105: 0.008777750944 | T105: =$I105*Multipliers!L218 -> 0.04240459393 | U105: =$I105*Multipliers!M218 -> 0.0118732863 | V105: =$I105*Multipliers!N218 -> 0.003307558327 | W105: 0.05758543856 | X105: =$I105*Multipliers!P218 -> 0.005512597211 | Y105: =$I105*Multipliers!Q218 -> 0.005936643151 | Z105: =$I105*Multipliers!R218 -> 0.001865802133 | AA105: 0.01331504249
C106: Electrical Equipment | D106: =$D$143*DefaultData!J100+$D$144*DefaultData!J101+$D$145*DefaultData!J102+$D$146*DefaultData!J103+$D$147*DefaultData!J104+$D$148*DefaultData!J105+$D$149*DefaultData!J106+$D$150*DefaultData!J107+$D$151*DefaultData!J108+$D$152*DefaultData!J109+$D$153*DefaultData!J110+$D$154*DefaultData!J111+$D$155*DefaultData!J112+$D$156*DefaultData!J113 -> 0 | E106: =(H$88*Multipliers!U219)*E$96 -> 0 | F106: =H$85*Multipliers!U219*F$96 -> 0 | G106: 0 | H106: 0 | I106: 0 | L106: =$H106*Multipliers!D219 -> 0 | M106: =$H106*Multipliers!E219 -> 0 | N106: =$I106*Multipliers!F219 -> 0 | O106: 0 | P106: =$H106*Multipliers!H219 -> 0 | Q106: =$H106*Multipliers!I219 -> 0 | R106: =$I106*Multipliers!J219 -> 0 | S106: 0 | T106: =$I106*Multipliers!L219 -> 0 | U106: =$I106*Multipliers!M219 -> 0 | V106: =$I106*Multipliers!N219 -> 0 | W106: 0 | X106: =$I106*Multipliers!P219 -> 0 | Y106: =$I106*Multipliers!Q219 -> 0 | Z106: =$I106*Multipliers!R219 -> 0 | AA106: 0
C107: TCPU | D107: =$D$143*DefaultData!K100+$D$144*DefaultData!K101+$D$145*DefaultData!K102+$D$146*DefaultData!K103+$D$147*DefaultData!K104+$D$148*DefaultData!K105+$D$149*DefaultData!K106+$D$150*DefaultData!K107+$D$151*DefaultData!K108+$D$152*DefaultData!K109+$D$153*DefaultData!K110+$D$154*DefaultData!K111+$D$155*DefaultData!K112+$D$156*DefaultData!K113 -> 458610.4628 | E107: =(H$88*Multipliers!U220)*E$96 -> 0 | F107: =H$85*Multipliers!U220*F$96 -> 0 | G107: 458610.4628 | H107: 0.4929335099 | I107: 0.4929335099 | L107: =$H107*Multipliers!D220 -> 1.040582639 | M107: =$H107*Multipliers!E220 -> 0.8439021689 | N107: =$I107*Multipliers!F220 -> 0.4825819062 | O107: 2.367066714 | P107: =$H107*Multipliers!H220 -> 0.101544303 | Q107: =$H107*Multipliers!I220 -> 0.05027921801 | R107: =$I107*Multipliers!J220 -> 0.01922440689 | S107: 0.1710479279 | T107: =$I107*Multipliers!L220 -> 0.4929335099 | U107: =$I107*Multipliers!M220 -> 0.2025956726 | V107: =$I107*Multipliers!N220 -> 0.06408135629 | W107: 0.7596105387 | X107: =$I107*Multipliers!P220 -> 0.22329888 | Y107: =$I107*Multipliers!Q220 -> 0.1104171062 | Z107: =$I107*Multipliers!R220 -> 0.03697001324 | AA107: 0.3706859994
C108: Wholesale Trade | D108: =$D$143*DefaultData!L100+$D$144*DefaultData!L101+$D$145*DefaultData!L102+$D$146*DefaultData!L103+$D$147*DefaultData!L104+$D$148*DefaultData!L105+$D$149*DefaultData!L106+$D$150*DefaultData!L107+$D$151*DefaultData!L108+$D$152*DefaultData!L109+$D$153*DefaultData!L110+$D$154*DefaultData!L111+$D$155*DefaultData!L112+$D$156*DefaultData!L113 -> 358982.8253 | E108: =(H$88*Multipliers!U221)*E$96 -> 0 | F108: =H$85*Multipliers!U221*F$96 -> 0 | G108: 358982.8253 | H108: 0.385849601 | I108: 0.385849601 | L108: =$H108*Multipliers!D221 -> 1.359348144 | M108: =$H108*Multipliers!E221 -> 0.5826328975 | N108: =$I108*Multipliers!F221 -> 0.4248204107 | O108: 2.366801452 | P108: =$H108*Multipliers!H221 -> 0.1215426243 | Q108: =$H108*Multipliers!I221 -> 0.02855287047 | R108: =$I108*Multipliers!J221 -> 0.01890663045 | S108: 0.1690021252 | T108: =$I108*Multipliers!L221 -> 0.385849601 | U108: =$I108*Multipliers!M221 -> 0.09414730264 | V108: =$I108*Multipliers!N221 -> 0.06366518416 | W108: 0.5436620878 | X108: =$I108*Multipliers!P221 -> 0.2496446918 | Y108: =$I108*Multipliers!Q221 -> 0.05440479374 | Z108: =$I108*Multipliers!R221 -> 0.03626986249 | AA108: 0.3403193481
C109: Retail Trade | D109: =$D$143*DefaultData!M100+$D$144*DefaultData!M101+$D$145*DefaultData!M102+$D$146*DefaultData!M103+$D$147*DefaultData!M104+$D$148*DefaultData!M105+$D$149*DefaultData!M106+$D$150*DefaultData!M107+$D$151*DefaultData!M108+$D$152*DefaultData!M109+$D$153*DefaultData!M110+$D$154*DefaultData!M111+$D$155*DefaultData!M112+$D$156*DefaultData!M113 -> 125935.287 | E109: =(H$88*Multipliers!U222)*E$96 -> 0 | F109: =H$85*Multipliers!U222*F$96 -> 0 | G109: 125935.287 | H109: 0.1353604596 | I109: 0.1353604596 | L109: =$H109*Multipliers!D222 -> 1.677116095 | M109: =$H109*Multipliers!E222 -> 0.231466386 | N109: =$I109*Multipliers!F222 -> 0.1984384338 | O109: 2.107020915 | P109: =$H109*Multipliers!H222 -> 0.05414418385 | Q109: =$H109*Multipliers!I222 -> 0.01001667401 | R109: =$I109*Multipliers!J222 -> 0.008121627578 | S109: 0.07228248544 | T109: =$I109*Multipliers!L222 -> 0.1353604596 | U109: =$I109*Multipliers!M222 -> 0.0358705218 | V109: =$I109*Multipliers!N222 -> 0.02707209193 | W109: 0.1983030734 | X109: =$I109*Multipliers!P222 -> 0.08676605462 | Y109: =$I109*Multipliers!Q222 -> 0.02016870848 | Z109: =$I109*Multipliers!R222 -> 0.01556645286 | AA109: 0.122501216
C110: FIRE | D110: =$D$143*DefaultData!N100+$D$144*DefaultData!N101+$D$145*DefaultData!N102+$D$146*DefaultData!N103+$D$147*DefaultData!N104+$D$148*DefaultData!N105+$D$149*DefaultData!N106+$D$150*DefaultData!N107+$D$151*DefaultData!N108+$D$152*DefaultData!N109+$D$153*DefaultData!N110+$D$154*DefaultData!N111+$D$155*DefaultData!N112+$D$156*DefaultData!N113 -> 525930.7863 | E110: =(H$88*Multipliers!U223)*E$96 -> 0 | F110: =H$85*Multipliers!U223*F$96 -> 0 | G110: 525930.7863 | H110: 0.5652921804 | I110: 0.5652921804 | L110: =($H110-(($H84+$H86)*$G42/10^6))*Multipliers!D223 -> 3.21990426 | M110: =$H110*Multipliers!E223 -> 1.29621497 | N110: =$I110*Multipliers!F223 -> 0.4838901065 | O110: 5.000009336 | P110: =($H110-(($H84+$H86)*$G42/10^6))*Multipliers!H223 -> 0.1017525925 | Q110: =$H110*Multipliers!I223 -> 0.0520068806 | R110: =$I110*Multipliers!J223 -> 0.01921993413 | S110: 0.1729794072 | T110: =$I110*Multipliers!L223 -> 0.5652921804 | U110: =$I110*Multipliers!M223 -> 0.2091581068 | V110: =$I110*Multipliers!N223 -> 0.06500860075 | W110: 0.8394588879 | X110: =$I110*Multipliers!P223 -> 0.3046924853 | Y110: =$I110*Multipliers!Q223 -> 0.1147543126 | Z110: =$I110*Multipliers!R223 -> 0.03730928391 | AA110: 0.4567560818
C111: Misc. Services | D111: =$D$143*DefaultData!O100+$D$144*DefaultData!O101+$D$145*DefaultData!O102+$D$146*DefaultData!O103+$D$147*DefaultData!O104+$D$148*DefaultData!O105+$D$149*DefaultData!O106+$D$150*DefaultData!O107+$D$151*DefaultData!O108+$D$152*DefaultData!O109+$D$153*DefaultData!O110+$D$154*DefaultData!O111+$D$155*DefaultData!O112+$D$156*DefaultData!O113 -> 175910.4929 | E111: =(H$88*Multipliers!U224)*E$96 -> 0 | F111: =H$85*Multipliers!U224*F$96 -> 0 | G111: 175910.4929 | H111: 0.1890758798 | I111: 0.1890758798 | L111: =$H111*Multipliers!D224 -> 1.266430243 | M111: =$H111*Multipliers!E224 -> 0.3484668464 | N111: =$I111*Multipliers!F224 -> 0.3023323317 | O111: 1.917229421 | P111: =$H111*Multipliers!H224 -> 0.08848751172 | Q111: =$H111*Multipliers!I224 -> 0.01720590506 | R111: =$I111*Multipliers!J224 -> 0.01342438746 | S111: 0.1191178042 | T111: =$I111*Multipliers!L224 -> 0.1890758798 | U111: =$I111*Multipliers!M224 -> 0.05634461217 | V111: =$I111*Multipliers!N224 -> 0.04462190762 | W111: 0.2900423995 | X111: =$I111*Multipliers!P224 -> 0.1039917339 | Y111: =$I111*Multipliers!Q224 -> 0.03157567192 | Z111: =$I111*Multipliers!R224 -> 0.02552524377 | AA111: 0.1610926495
C112: Professional Services | D112: =$D$143*DefaultData!P100+$D$144*DefaultData!P101+$D$145*DefaultData!P102+$D$146*DefaultData!P103+$D$147*DefaultData!P104+$D$148*DefaultData!P105+$D$149*DefaultData!P106+$D$150*DefaultData!P107+$D$151*DefaultData!P108+$D$152*DefaultData!P109+$D$153*DefaultData!P110+$D$154*DefaultData!P111+$D$155*DefaultData!P112+$D$156*DefaultData!P113 -> 1827442.891 | E112: =(H$88*Multipliers!U225)*E$96 -> 0 | F112: =H$85*Multipliers!U225*F$96 -> 0 | G112: 1827442.891 | H112: 1.964211267 | I112: 1.964211267 | L112: =$H112*Multipliers!D225 -> 16.38937881 | M112: =$H112*Multipliers!E225 -> 3.382371802 | N112: =$I112*Multipliers!F225 -> 2.441514605 | O112: 22.21326522 | P112: =$H112*Multipliers!H225 -> 0.6383686618 | Q112: =$H112*Multipliers!I225 -> 0.1453516338 | R112: =$I112*Multipliers!J225 -> 0.1001747746 | S112: 0.8838950702 | T112: =$I112*Multipliers!L225 -> 1.964211267 | U112: =$I112*Multipliers!M225 -> 0.5126591407 | V112: =$I112*Multipliers!N225 -> 0.3319517041 | W112: 2.808822112 | X112: =$I112*Multipliers!P225 -> 1.174598338 | Y112: =$I112*Multipliers!Q225 -> 0.2848106337 | Z112: =$I112*Multipliers!R225 -> 0.1905284929 | AA112: 1.649937464
C113: Government | D113: =$D$143*DefaultData!Q100+$D$144*DefaultData!Q101+$D$145*DefaultData!Q102+$D$146*DefaultData!Q103+$D$147*DefaultData!Q104+$D$148*DefaultData!Q105+$D$149*DefaultData!Q106+$D$150*DefaultData!Q107+$D$151*DefaultData!Q108+$D$152*DefaultData!Q109+$D$153*DefaultData!Q110+$D$154*DefaultData!Q111+$D$155*DefaultData!Q112+$D$156*DefaultData!Q113 -> 184048.5075 | E113: =(H$88*Multipliers!U226)*E$96 -> 0 | F113: =H$85*Multipliers!U226*F$96 -> 0 | G113: 184048.5075 | H113: 0.1978229547 | I113: 0.1978229547 | L113: 0 | M113: =$H113*Multipliers!E226 -> 0.08071176552 | N113: =$I113*Multipliers!F226 -> 0.4340235626 | O113: 0.5147353282 | P113: 0 | Q113: =$H113*Multipliers!I226 -> 0.004549927958 | R113: =$I113*Multipliers!J226 -> 0.01998011843 | S113: 0.02453004638 | T113: =$I113*Multipliers!L226 -> 0.1978229547 | U113: =$I113*Multipliers!M226 -> 0.01622148229 | V113: =$I113*Multipliers!N226 -> 0.06646851278 | W113: 0.2805129498 | X113: =$I113*Multipliers!P226 -> 0.1780406592 | Y113: =$I113*Multipliers!Q226 -> 0.008704210008 | Z113: =$I113*Multipliers!R226 -> 0.03817983026 | AA113: 0.2249246995
C114: Total | D114: =SUM(D100:D113) -> 4101711.943 | E114: =SUM(E100:E113) -> 0 | F114: =SUM(F100:F113) -> 0 | G114: 4101711.943 | H114: =SUM(H100:H113) -> 4.40868979 | I114: =SUM(I100:I113) -> 4.40868979 | K114: Total | L114: =SUM(L100:L113) -> 25.35670765 | M114: =SUM(M100:M113) -> 7.510532236 | N114: 4.988267032 | O114: 37.85550692 | P114: 1.133290042 | Q114: 0.3501903769 | R114: 0.2078704934 | S114: 1.691350912 | T114: 4.40868979 | U114: 1.309679948 | V114: 0.6923212766 | W114: 6.410691014 | X114: =SUM(X100:X113) -> 2.383191554 | Y114: 0.7227130813 | Z114: 0.3970301192 | AA114: 3.502934755
O115: Avg earning/job | P115: =P114*10^6/L114 -> 44693.89551
C116: Plant Employees | E116: Earnings - Gross | G116: =K70 -> 1725075 | H116: =G116*G42/10^6 -> 1.854182021
C117: Plant Employees | E117: Employee - (SSI, Medicare, etc.) | F117: =IF(ProjectData!$B$26="y",DefaultData!M91,DefaultData!R91) -> 0.07118694551 | G117: =F117*G116 -> 122802.82 | H117: 0 | O117: Inflate to | P117: =D42 -> 2010 | Q117: Dollars | T117: =P117 -> 2010 | U117: Dollars | X117: =T117 -> 2010 | Y117: Dollars
C118: Plant Operators | D118: =IF(ProjectData!$B$26="y",DefaultData!H93,DefaultData!I93) -> 25.32401528 | E118: Other benefits | F118: =IF(ProjectData!$B$26="y",DefaultData!M92,DefaultData!R92) -> 0.304874157 | G118: =F118*G116 -> 525930.7863 | H118: =IF(ProjectData!B13="MyCounty",0,IF(ProjectData!B13="MyRegion",0,1)) -> 1 | J118: Without Plant Employees | L118: =L114 -> 25.35670765 | M118: =M114 -> 7.510532236 | N118: =N114 -> 4.988267032 | O118: =O114 -> 37.85550692 | P118: =P114*$G63 -> 1.054378857 | Q118: =Q114*$G63 -> 0.3258065593 | R118: =R114*$G63 -> 0.1933964343 | S118: =+R118+Q118+P118 -> 1.573581851 | T118: =T114*$G63 -> 4.101711943 | U118: =U114*$G63 -> 1.218486702 | V118: =V114*$G63 -> 0.6441148241 | W118: =+V118+U118+T118 -> 5.964313469 | X118: =X114*$G63 -> 2.217249507 | Y118: =Y114*$G63 -> 0.6723904421 | Z118: =Z114*$G63 -> 0.3693848421 | AA118: =+Z118+Y118+X118 -> 3.259024791
C119: Maintenance | D119: =IF(ProjectData!$B$26="y",DefaultData!H94,DefaultData!I94) -> 0 | E119: Earnings (minus taxes, benefits, etc) | G119: =G116-G117-G118 -> 1076341.394 | J119: With Plant Employees | L119: =L118+L139 -> 50.68072293 | M119: =M118+M139 -> 10.93157288 | N119: =N118+N139 -> 7.076881215 | O119: =O118+O139 -> 68.68917703 | P119: =(P114+P139)*$G63 -> 2.656651037 | Q119: =(Q114+Q139)*$G63 -> 0.4689132712 | R119: =(R114+R139)*$G63 -> 0.2760392525 | S119: =+R119+Q119+P119 -> 3.401603561 | T119: =(T114+T139)*$G63 -> 5.703984123 | U119: =(U114+U139)*$G63 -> 1.744901242 | V119: =(V114+V139)*$G63 -> 0.9203396667 | W119: =+V119+U119+T119 -> 8.369225032 | X119: =(X114+X139)*$G63 -> 3.819521687 | Y119: =(Y114+Y139)*$G63 -> 0.9639447009 | Z119: =(Z114+Z139)*$G63 -> 0.5276306989 | AA119: =+Z119+Y119+X119 -> 5.311097086
C120: Manangement & Administration | D120: =IF(ProjectData!$B$26="y",DefaultData!H95,DefaultData!I95) -> 0
C121: Total | D121: =+D120+D119+D118 -> 25.32401528
L122: Plant Employees Only
C123: Plant Employee Spending | F123: PCE | H123: Adj Demand - Million | L123: Jobs | P123: Earnings | T123: Output | X123: Output
F124: Plant Emp | H124: =H99 -> 2014 | I124: Dollars | L124: Direct | M124: Indirect | N124: Induced | O124: Total | P124: Direct | Q124: Indirect | R124: Induced | S124: Total | T124: Direct | U124: Indirect | V124: Induced | W124: Total | X124: Direct | Y124: Indirect | Z124: Induced | AA124: Total
C125: Agriculture | F125: =G$119*Multipliers!U213 -> 4293.660986 | H125: =F125*G$42/10^6 -> 0.004615004566 | M125: =$H125*Multipliers!E213 -> 0.004190424146 | N125: =$H125*Multipliers!F213 -> 0.003087438055 | O125: =N125+M125 -> 0.007277862201 | Q125: =$H125*Multipliers!I213 -> 0.0001984451964 | R125: =$H125*Multipliers!J213 -> 0.000138450137 | S125: =R125+Q125 -> 0.0003368953333 | T125: =$H125*Multipliers!L213 -> 0.004615004566 | U125: =$H125*Multipliers!M213 -> 0.0009137709042 | V125: =$H125*Multipliers!N213 -> 0.0004615004566 | W125: =V125+U125 -> 0.001375271361 | Y125: =$H125*Multipliers!Q213 -> 0.0004661154612 | Z125: =$H125*Multipliers!R213 -> 0.0002630552603 | AA125: =Z125+Y125 -> 0.0007291707215
C126: Mining | F126: =G$119*Multipliers!U214 -> 29.14027419 | H126: =F126*G$42/10^6 -> 3.132117298e-05 | M126: =$H126*Multipliers!E214 -> 2.781320161e-05 | N126: =$H126*Multipliers!F214 -> 2.483769017e-05 | O126: =N126+M126 -> 5.265089178e-05 | Q126: =$H126*Multipliers!I214 -> 1.816628033e-06 | R126: =$H126*Multipliers!J214 -> 9.709563624e-07 | S126: =R126+Q126 -> 2.787584395e-06 | T126: =$H126*Multipliers!L214 -> 3.132117298e-05 | U126: =$H126*Multipliers!M214 -> 7.955577937e-06 | V126: =$H126*Multipliers!N214 -> 3.226080817e-06 | W126: =V126+U126 -> 1.118165875e-05 | Y126: =$H126*Multipliers!Q214 -> 4.72949712e-06 | Z126: =$H126*Multipliers!R214 -> 1.847949206e-06 | AA126: =Z126+Y126 -> 6.577446326e-06
C127: Construction | F127: =G$119*Multipliers!U215 -> 0 | H127: 0 | M127: =$H127*Multipliers!E215 -> 0 | N127: =$H127*Multipliers!F215 -> 0 | O127: 0 | Q127: =$H127*Multipliers!I215 -> 0 | R127: =$H127*Multipliers!J215 -> 0 | S127: 0 | T127: =$H127*Multipliers!L215 -> 0 | U127: =$H127*Multipliers!M215 -> 0 | V127: =$H127*Multipliers!N215 -> 0 | W127: 0 | Y127: =$H127*Multipliers!Q215 -> 0 | Z127: =$H127*Multipliers!R215 -> 0 | AA127: 0
C128: Manufacturing | F128: =G$119*Multipliers!U216 -> 39998.50915 | H128: 0.0429920534 | M128: =$H128*Multipliers!E216 -> 0.06771248411 | N128: =$H128*Multipliers!F216 -> 0.01930343198 | O128: 0.08701591608 | Q128: =$H128*Multipliers!I216 -> 0.003869284806 | R128: =$H128*Multipliers!J216 -> 0.0007738569612 | S128: 0.004643141767 | T128: =$H128*Multipliers!L216 -> 0.0429920534 | U128: =$H128*Multipliers!M216 -> 0.01685288493 | V128: =$H128*Multipliers!N216 -> 0.002579523204 | W128: 0.01943240814 | Y128: =$H128*Multipliers!Q216 -> 0.009071323268 | Z128: =$H128*Multipliers!R216 -> 0.001461729816 | AA128: 0.01053305308
C129: Fabricated Metals | F129: =G$119*Multipliers!U217 -> 0.1088798634 | H129: 1.170285843e-07 | M129: =$H129*Multipliers!E217 -> 1.296676714e-07 | N129: =$H129*Multipliers!F217 -> 1.022829827e-07 | O129: 2.319506541e-07 | Q129: =$H129*Multipliers!I217 -> 6.436572138e-09 | R129: =$H129*Multipliers!J217 -> 4.096000451e-09 | S129: 1.053257259e-08 | T129: =$H129*Multipliers!L217 -> 1.170285843e-07 | U129: =$H129*Multipliers!M217 -> 2.656548864e-08 | V129: =$H129*Multipliers!N217 -> 1.34582872e-08 | W129: 4.002377584e-08 | Y129: =$H129*Multipliers!Q217 -> 1.287314428e-08 | Z129: =$H129*Multipliers!R217 -> 7.723886565e-09 | AA129: 2.059703084e-08
C130: Machinery | F130: =G$119*Multipliers!U218 -> 2.509579679 | H130: 2.697400125e-06 | M130: =$H130*Multipliers!E218 -> 3.719714772e-06 | N130: =$H130*Multipliers!F218 -> 1.591466074e-06 | O130: 5.311180846e-06 | Q130: =$H130*Multipliers!I218 -> 1.915154089e-07 | R130: =$H130*Multipliers!J218 -> 6.204020287e-08 | S130: 2.535556117e-07 | T130: =$H130*Multipliers!L218 -> 2.697400125e-06 | U130: =$H130*Multipliers!M218 -> 7.552720349e-07 | V130: =$H130*Multipliers!N218 -> 2.103972097e-07 | W130: 9.656692447e-07 | Y130: =$H130*Multipliers!Q218 -> 3.776360175e-07 | Z130: =$H130*Multipliers!R218 -> 1.186856055e-07 | AA130: 4.96321623e-07
C131: Electrical Equipment | F131: =G$119*Multipliers!U219 -> 0.003351253151 | H131: 3.602065614e-09 | M131: =$H131*Multipliers!E219 -> 5.720080195e-09 | N131: =$H131*Multipliers!F219 -> 2.625905833e-09 | O131: 8.345986028e-09 | Q131: =$H131*Multipliers!I219 -> 2.917673148e-10 | R131: =$H131*Multipliers!J219 -> 1.044599028e-10 | S131: 3.962272176e-10 | T131: =$H131*Multipliers!L219 -> 3.602065614e-09 | U131: =$H131*Multipliers!M219 -> 1.048201094e-09 | V131: =$H131*Multipliers!N219 -> 3.45798299e-10 | W131: 1.393999393e-09 | Y131: =$H131*Multipliers!Q219 -> 5.547181046e-10 | Z131: =$H131*Multipliers!R219 -> 1.981136088e-10 | AA131: 7.528317134e-10
C132: TCPU | F132: =G$119*Multipliers!U220 -> 59193.50349 | H132: 0.06362362791 | M132: =$H132*Multipliers!E220 -> 0.108923651 | N132: =$H132*Multipliers!F220 -> 0.06228753173 | O132: 0.1712111827 | Q132: =$H132*Multipliers!I220 -> 0.006489610047 | R132: =$H132*Multipliers!J220 -> 0.002481321489 | S132: 0.008970931536 | T132: =$H132*Multipliers!L220 -> 0.06362362791 | U132: =$H132*Multipliers!M220 -> 0.02614931107 | V132: =$H132*Multipliers!N220 -> 0.008271071629 | W132: 0.0344203827 | Y132: =$H132*Multipliers!Q220 -> 0.01425169265 | Z132: =$H132*Multipliers!R220 -> 0.004771772093 | AA132: 0.01902346475
C133: Wholesale Trade | F133: =G$119*Multipliers!U221 -> 45521.53758 | H133: 0.04892843299 | M133: =$H133*Multipliers!E221 -> 0.07388193381 | N133: =$H133*Multipliers!F221 -> 0.05387020472 | O133: 0.1277521385 | Q133: =$H133*Multipliers!I221 -> 0.003620704041 | R133: =$H133*Multipliers!J221 -> 0.002397493216 | S133: 0.006018197257 | T133: =$H133*Multipliers!L221 -> 0.04892843299 | U133: =$H133*Multipliers!M221 -> 0.01193853765 | V133: =$H133*Multipliers!N221 -> 0.008073191443 | W133: 0.02001172909 | Y133: =$H133*Multipliers!Q221 -> 0.006898909051 | Z133: =$H133*Multipliers!R221 -> 0.004599272701 | AA133: 0.01149818175
C134: Retail Trade | F134: =G$119*Multipliers!U222 -> 124176.0797 | H134: 0.1334695908 | M134: =$H134*Multipliers!E222 -> 0.2282330003 | N134: =$H134*Multipliers!F222 -> 0.1956664201 | O134: 0.4238994204 | Q134: =$H134*Multipliers!I222 -> 0.00987674972 | R134: =$H134*Multipliers!J222 -> 0.008008175449 | S134: 0.01788492517 | T134: =$H134*Multipliers!L222 -> 0.1334695908 | U134: =$H134*Multipliers!M222 -> 0.03536944156 | V134: =$H134*Multipliers!N222 -> 0.02669391816 | W134: 0.06206335973 | Y134: =$H134*Multipliers!Q222 -> 0.01988696903 | Z134: =$H134*Multipliers!R222 -> 0.01534900294 | AA134: 0.03523597197
C135: FIRE | F135: =(G$119*Multipliers!U223)+(G118*H118) -> 669130.9509 | H135: 0.7192096452 | M135: =$H135*Multipliers!E223 -> 1.649147716 | N135: =$H135*Multipliers!F223 -> 0.6156434563 | O135: 2.264791173 | Q135: =$H135*Multipliers!I223 -> 0.06616728736 | R135: =$H135*Multipliers!J223 -> 0.02445312794 | S135: 0.09062041529 | T135: =$H135*Multipliers!L223 -> 0.7192096452 | U135: =$H135*Multipliers!M223 -> 0.2661075687 | V135: =$H135*Multipliers!N223 -> 0.0827091092 | W135: 0.3488166779 | Y135: =$H135*Multipliers!Q223 -> 0.145999558 | Z135: =$H135*Multipliers!R223 -> 0.04746783658 | AA135: 0.1934673946
C136: Misc. Services | F136: =G$119*Multipliers!U224 -> 641578.8493 | H136: 0.6895955058 | M136: =$H136*Multipliers!E224 -> 1.270924517 | N136: =$H136*Multipliers!F224 -> 1.102663214 | O136: 2.373587731 | Q136: =$H136*Multipliers!I224 -> 0.06275319103 | R136: =$H136*Multipliers!J224 -> 0.04896128091 | S136: 0.1117144719 | T136: =$H136*Multipliers!L224 -> 0.6895955058 | U136: =$H136*Multipliers!M224 -> 0.2054994607 | V136: =$H136*Multipliers!N224 -> 0.1627445394 | W136: 0.3682440001 | Y136: =$H136*Multipliers!Q224 -> 0.1151624495 | Z136: =$H136*Multipliers!R224 -> 0.09309539329 | AA136: 0.2082578428
C137: Professional Services | F137: =G$119*Multipliers!U225 -> 7044.543909 | H137: 0.007571767407 | M137: =$H137*Multipliers!E225 -> 0.01303858348 | N137: =$H137*Multipliers!F225 -> 0.009411706887 | O137: 0.02245029036 | Q137: =$H137*Multipliers!I225 -> 0.0005603107881 | R137: =$H137*Multipliers!J225 -> 0.0003861601378 | S137: 0.0009464709259 | T137: =$H137*Multipliers!L225 -> 0.007571767407 | U137: =$H137*Multipliers!M225 -> 0.001976231293 | V137: =$H137*Multipliers!N225 -> 0.001279628692 | W137: 0.003255859985 | Y137: =$H137*Multipliers!Q225 -> 0.001097906274 | Z137: =$H137*Multipliers!R225 -> 0.0007344614385 | AA137: 0.001832367713
C138: Government | F138: =(G$119*Multipliers!U226)+(G117*H117) -> 11302.78288 | H138: 0.01214869893 | M138: =$H138*Multipliers!E226 -> 0.004956669163 | N138: =$H138*Multipliers!F226 -> 0.02665424545 | O138: 0.03161091461 | Q138: =$H138*Multipliers!I226 -> 0.0002794200753 | R138: =$H138*Multipliers!J226 -> 0.001227018592 | S138: 0.001506438667 | T138: =$H138*Multipliers!L226 -> 0.01214869893 | U138: =$H138*Multipliers!M226 -> 0.0009961933121 | V138: =$H138*Multipliers!N226 -> 0.00408196284 | W138: 0.005078156152 | Y138: =$H138*Multipliers!Q226 -> 0.0005345427528 | Z138: =$H138*Multipliers!R226 -> 0.002344698893 | AA138: 0.002879241646
C139: Total | F139: =SUM(F125:F138) -> 1602272.18 | H139: =SUM(H125:H138) -> 1.722188466 | L139: =IF(L141=0,0,D121) -> 25.32401528 | M139: =SUM(M125:M138) -> 3.421040648 | N139: =SUM(N125:N138) -> 2.088614183 | O139: =N139+M139+L139 -> 30.83367011 | P139: =H139 -> 1.722188466 | Q139: =SUM(Q125:Q138) -> 0.1538170179 | R139: =SUM(R125:R138) -> 0.08882792203 | S139: =R139+Q139+P139 -> 1.964833406 | T139: =SUM(T125:T138) -> 1.722188466 | U139: =SUM(U125:U138) -> 0.5658121386 | V139: =SUM(V125:V138) -> 0.2968978953 | W139: =V139+U139+T139 -> 2.5848985 | X139: =P139 -> 1.722188466 | Y139: =SUM(Y125:Y138) -> 0.3133745865 | Z139: =SUM(Z125:Z138) -> 0.1700891976 | AA139: =Z139+Y139+X139 -> 2.20565225
O140: Inflate to | P140: =P117 -> 2010 | Q140: Dollars
C141: Annual O&M Costs Local Demand | E141: Construction Costs Local Demand | G141: Fuel | H141: Fuel Cost | I141: Fuel Cost Impact Adj | L141: =SUM(M146:M159) -> 10.93157288 | P141: =P139*$G63 -> 1.60227218 | Q141: 0.1431067119 | R141: 0.08264281817 | S141: 1.82802171 | T141: 1.60227218 | U141: 0.5264145398 | V141: 0.2762248425 | W141: 2.404911562 | X141: =X139*$G63 -> 1.60227218 | Y141: 0.2915542588 | Z141: 0.1582458568 | AA141: 2.052072296
D142: Demand | E142: Demand | G142: Demand | H142: Price Adj | I142: Demand | O142: Avg earning/job | P142: =P139*10^6/L139 -> 68006.13755
C143: Agriculture | D143: 0 | E143: 0 | L143: With Plant Employees
C144: Mining | D144: =G80*D241 -> 0 | E144: 0 | G144: =$G80 -> 0 | H144: =$G$80*DefaultData!$E$101*Calculations!D$241 -> 0 | I144: =(G144-H157) -> 0 | L144: Jobs | P144: Earnings | T144: Output | X144: Output
C145: Construction | D145: 0 | E145: =G9+G13+G23 -> 98345588.24 | L145: Direct | M145: Indirect | N145: Induced | O145: Total | P145: Direct | Q145: Indirect | R145: Induced | S145: Total | T145: Direct | U145: Indirect | V145: Induced | W145: Total | X145: Direct | Y145: Indirect | Z145: Induced | AA145: Total
C146: Manufacturing | D146: =G78 -> 725985 | E146: 0 | J146: Agriculture | L146: =L100+L125 -> 0 | M146: =M100+M125 -> 0.004190424146 | N146: 0.003087438055 | O146: =N146+M146+L146 -> 0.007277862201 | P146: 0 | Q146: 0.0001984451964 | R146: 0.000138450137 | S146: =R146+Q146+P146 -> 0.0003368953333 | T146: 0.004615004566 | U146: 0.0009137709042 | V146: 0.0004615004566 | W146: =V146+U146+T146 -> 0.005990275927 | X146: =X100+X125 -> 0 | Y146: 0.0004661154612 | Z146: 0.0002630552603 | AA146: =Z146+Y146+X146 -> 0.0007291707215
C147: Fabricated Metals | D147: 0 | E147: 0 | J147: Mining | L147: =L101+L126 -> 0 | M147: 2.781320161e-05 | N147: 2.483769017e-05 | O147: =N147+M147+L147 -> 5.265089178e-05 | P147: 0 | Q147: 1.816628033e-06 | R147: 9.709563624e-07 | S147: =R147+Q147+P147 -> 2.787584395e-06 | T147: 3.132117298e-05 | U147: 7.955577937e-06 | V147: 3.226080817e-06 | W147: =V147+U147+T147 -> 4.250283173e-05 | X147: =X101+X126 -> 0 | Y147: 4.72949712e-06 | Z147: 1.847949206e-06 | AA147: =Z147+Y147+X147 -> 6.577446326e-06
C148: Machinery | D148: =G71 -> 62498.04687 | E148: =G8+G10+G24 -> 5147058.824 | J148: Construction | L148: =L102+L127 -> 0 | M148: 0 | N148: 0 | O148: 0 | P148: 0 | Q148: 0 | R148: 0 | S148: 0 | T148: 0 | U148: 0 | V148: 0 | W148: 0 | X148: =X102+X127 -> 0 | Y148: 0 | Z148: 0 | AA148: 0
C149: Electrical Equipment | D149: 0 | E149: 0 | J149: Manufacturing | L149: =L103+L128 -> 0.3050175401 | M149: 0.7540019494 | N149: 0.214950397 | O149: 1.273969887 | P149: 0.02265844584 | Q149: 0.04308582568 | R149: 0.008617165136 | S149: 0.07436143665 | T149: 0.4787313964 | U149: 0.1876627074 | V149: 0.02872388379 | W149: 0.6951179876 | X149: =X103+X128 -> 0.05664611459 | Y149: 0.1010123246 | Z149: 0.01627686748 | AA149: 0.1739353067
C150: TCPU | D150: =+G77 -> 427050 | E150: =G15 -> 3676470.588 | H150: =$G$80*DefaultData!$K$101*Calculations!D$241 -> 0 | J150: Fabricated Metals | L150: =L104+L129 -> 0 | M150: 1.296676714e-07 | N150: 1.022829827e-07 | O150: 2.319506541e-07 | P150: 0 | Q150: 6.436572138e-09 | R150: 4.096000451e-09 | S150: 1.053257259e-08 | T150: 1.170285843e-07 | U150: 2.656548864e-08 | V150: 1.34582872e-08 | W150: 1.570523602e-07 | X150: =X104+X129 -> 0 | Y150: 1.287314428e-08 | Z150: 7.723886565e-09 | AA150: 2.059703084e-08
C151: Wholesale Trade | D151: 0 | E151: 0 | H151: =$G$80*DefaultData!$L$101*Calculations!D$241 -> 0 | J151: Machinery | L151: =L105+L130 -> 0.09892991765 | M151: 0.05847965475 | N151: 0.02502030189 | O151: 0.1824298743 | P151: 0.004791719114 | Q151: 0.003010917685 | R151: 0.0009753677007 | S151: 0.0087780045 | T151: 0.04240729133 | U151: 0.01187404157 | V151: 0.003307768724 | W151: 0.05758910163 | X151: =X105+X130 -> 0.005512597211 | Y151: 0.005937020787 | Z151: 0.001865920819 | AA151: 0.01331553882
C152: Retail Trade | D152: 0 | E152: 0 | J152: Electrical Equipment | L152: =L106+L131 -> 0 | M152: 5.720080195e-09 | N152: 2.625905833e-09 | O152: 8.345986028e-09 | P152: 0 | Q152: 2.917673148e-10 | R152: 1.044599028e-10 | S152: 3.962272176e-10 | T152: 3.602065614e-09 | U152: 1.048201094e-09 | V152: 3.45798299e-10 | W152: 4.996065007e-09 | X152: =X106+X131 -> 0 | Y152: 5.547181046e-10 | Z152: 1.981136088e-10 | AA152: 7.528317134e-10
C153: FIRE | D153: =H84+H85+H86+J88+IF(E1="MYCOUNTY",0,(D67*E67*DefaultData!M92)+(D68*E68*DefaultData!M92)+(D69*E69*DefaultData!M92)) -> 525930.7863 | E153: =G20+G21 -> 29411764.71 | J153: TCPU | L153: =L107+L132 -> 1.040582639 | M153: 0.9528258199 | N153: 0.5448694379 | O153: 2.538277897 | P153: 0.101544303 | Q153: 0.05676882806 | R153: 0.02170572837 | S153: 0.1800188595 | T153: 0.5565571378 | U153: 0.2287449836 | V153: 0.07235242791 | W153: 0.8576545493 | X153: =X107+X132 -> 0.22329888 | Y153: 0.1246687989 | Z153: 0.04174178533 | AA153: 0.3897094642
C154: Misc. Services | D154: =G76 -> 348757.5 | E154: 0 | J154: Wholesale Trade | L154: =L108+L133 -> 1.359348144 | M154: 0.6565148313 | N154: 0.4786906154 | O154: 2.494553591 | P154: 0.1215426243 | Q154: 0.03217357451 | R154: 0.02130412366 | S154: 0.1750203225 | T154: 0.434778034 | U154: 0.1060858403 | V154: 0.07173837561 | W154: 0.6126022499 | X154: =X108+X133 -> 0.2496446918 | Y154: 0.06130370279 | Z154: 0.04086913519 | AA154: 0.3518175298
C155: Professional Services | D155: =G72 -> 1827442.891 | E155: =G19+G14 -> 0 | J155: Retail Trade | L155: =L109+L134 -> 1.677116095 | M155: 0.4596993862 | N155: 0.3941048539 | O155: 2.530920335 | P155: 0.05414418385 | Q155: 0.01989342373 | R155: 0.01612980303 | S155: 0.09016741061 | T155: 0.2688300504 | U155: 0.07123996337 | V155: 0.05376601009 | W155: 0.3938360239 | X155: =X109+X134 -> 0.08676605462 | Y155: 0.04005567751 | Z155: 0.0309154558 | AA155: 0.1577371879
C156: Government | D156: =G81+G82+G87+IF(E1="MYCOUNTY",0,(D67*E67*DefaultData!M91)+(D68*E68*DefaultData!M91)+(D69*E69*DefaultData!M91)) -> 184048.5075 | E156: =G22+G27 -> 29852941.18 | J156: FIRE | L156: =L110+L135 -> 3.21990426 | M156: 2.945362686 | N156: 1.099533563 | O156: 7.264800509 | P156: 0.1017525925 | Q156: 0.118174168 | R156: 0.04367306207 | S156: 0.2635998225 | T156: 1.284501826 | U156: 0.4752656755 | V156: 0.1477177099 | W156: 1.907485211 | X156: =X110+X135 -> 0.3046924853 | Y156: 0.2607538706 | Z156: 0.08477712049 | AA156: 0.6502234763
C157: Total | D157: =SUM(D143:D156) -> 4101712.731 | E157: =SUM(E143:E156) -> 166433823.5 | G157: =SUM(G143:G156) -> 0 | H157: =SUM(H143:H156) -> 0 | I157: =SUM(I143:I156) -> 0 | J157: Misc. Services | L157: =L111+L136 -> 1.266430243 | M157: 1.619391364 | N157: 1.404995546 | O157: 4.290817152 | P157: 0.08848751172 | Q157: 0.07995909609 | R157: 0.06238566838 | S157: 0.2308322762 | T157: 0.8786713856 | U157: 0.2618440729 | V157: 0.207366447 | W157: 1.347881905 | X157: =X111+X136 -> 0.1039917339 | Y157: 0.1467381214 | Z157: 0.1186206371 | AA157: 0.3693504923
J158: Professional Services | L158: =L112+L137 -> 16.38937881 | M158: 3.395410386 | N158: 2.450926312 | O158: 22.23571551 | P158: 0.6383686618 | Q158: 0.1459119446 | R158: 0.1005609348 | S158: 0.8848415411 | T158: 1.971783035 | U158: 0.514635372 | V158: 0.3332313328 | W158: 2.819649739 | X158: =X112+X137 -> 1.174598338 | Y158: 0.28590854 | Z158: 0.1912629544 | AA158: 1.651769832
J159: Government | L159: =L113+L138 -> 0 | M159: 0.08566843469 | N159: 0.4606778081 | O159: 0.5463462428 | P159: 0 | Q159: 0.004829348034 | R159: 0.02120713702 | S159: 0.02603648505 | T159: 0.2099716536 | U159: 0.0172176756 | V159: 0.07055047562 | W159: 0.2977398049 | X159: =X113+X138 -> 0.1780406592 | Y159: 0.00923875276 | Z159: 0.04052452915 | AA159: 0.2278039412
J160: Plant Employees | L160: =L139 -> 25.32401528 | O160: 25.32401528 | P160: =P139 -> 1.722188466 | S160: 1.722188466 | W160: 0 | X160: =X139 -> 1.722188466 | AA160: 1.722188466
J161: Total | L161: =SUM(L146:L160) -> 50.68072293 | M161: =SUM(M146:M160) -> 10.93157288 | N161: 7.076881215 | O161: 68.68917703 | P161: 2.855478508 | Q161: 0.5040073949 | R161: 0.2966984154 | S161: 3.656184319 | T161: 6.130878256 | U161: 1.875492086 | V161: 0.9892191719 | W161: 8.995589514 | X161: =SUM(X146:X160) -> 4.105380021 | Y161: 1.036087668 | Z161: 0.5671193168 | AA161: 5.708587005
J162: Inflate to | K162: =P140 -> 2010 | L162: Dollars | P162: =P161*$G63 -> 2.656651037 | Q162: 0.4689132712 | R162: 0.2760392525 | S162: 3.401603561 | T162: 5.703984123 | U162: 1.744901242 | V162: 0.9203396667 | W162: 8.369225032 | X162: =X161*$G63 -> 3.819521687 | Y162: 0.9639447009 | Z162: 0.5276306989 | AA162: 5.311097086
C164: Default | H164: Default | M164: Default
C165: From DefaultData | H165: From DefaultData | M165: From DefaultData
C166: Debt - Loan Repayment Schedule | H166: Equity - Individual Investment Repayment Schedule | M166: Equity - Corporate Investment Repayment Schedule
C167: Year | D167: Interest Pmt | E167: Principal Pmt | F167: Total Pmt | H167: Year | I167: Interest Pmt | J167: Principal Pmt | K167: Total Pmt | M167: Year | N167: Interest Pmt | O167: Principal Pmt | P167: Total Pmt
C168: 1 | D168: =IF(C168<=DefaultData!D$72,-ISPMT(DefaultData!D$73,C168,DefaultData!D$72,DefaultData!D$34*DefaultData!D$71),0) -> 47500000 | E168: =IF(C168<=DefaultData!D$72,-PPMT(DefaultData!D$73,C168,DefaultData!D$72,DefaultData!D$71*DefaultData!D$34),0) -> 8729812.386 | F168: =E168+D168 -> 56229812.39 | H168: 1 | I168: =IF(H168<=DefaultData!$D$80,-ISPMT(DefaultData!$D$79,H168,DefaultData!$D$80,DefaultData!$D$34*DefaultData!$D$76*DefaultData!$D$77),0) -> 0 | J168: =IF(H168<=DefaultData!$D$80,-PPMT(DefaultData!$D$79,H168,DefaultData!$D$80,DefaultData!$D$76*DefaultData!$D$34*DefaultData!$D$77),0) -> 0 | K168: =J168+I168 -> 0 | M168: 1 | N168: =IF(M168<=DefaultData!$D$80,-ISPMT(DefaultData!$D$79,M168,DefaultData!$D$80,DefaultData!$D$34*DefaultData!$D$76*DefaultData!$D$78),0) -> 18000000 | O168: =IF(M168<=DefaultData!$D$80,-PPMT(DefaultData!$D$79,M168,DefaultData!$D$80,DefaultData!$D$76*DefaultData!$D$34*DefaultData!$D$78),0) -> 5862635.383 | P168: =O168+N168 -> 23862635.38
C169: 2 | D169: =IF(C169<=DefaultData!D$72,-ISPMT(DefaultData!D$73,C169,DefaultData!D$72,DefaultData!D$34*DefaultData!D$71),0) -> 45000000 | E169: =IF(C169<=DefaultData!D$72,-PPMT(DefaultData!D$73,C169,DefaultData!D$72,DefaultData!D$71*DefaultData!D$34),0) -> 9602793.625 | F169: 54602793.62 | H169: 2 | I169: =IF(H169<=DefaultData!$D$80,-ISPMT(DefaultData!$D$79,H169,DefaultData!$D$80,DefaultData!$D$34*DefaultData!$D$76*DefaultData!$D$77),0) -> 0 | J169: =IF(H169<=DefaultData!$D$80,-PPMT(DefaultData!$D$79,H169,DefaultData!$D$80,DefaultData!$D$76*DefaultData!$D$34*DefaultData!$D$77),0) -> 0 | K169: 0 | M169: 2 | N169: =IF(M169<=DefaultData!$D$80,-ISPMT(DefaultData!$D$79,M169,DefaultData!$D$80,DefaultData!$D$34*DefaultData!$D$76*DefaultData!$D$78),0) -> 16000000 | O169: =IF(M169<=DefaultData!$D$80,-PPMT(DefaultData!$D$79,M169,DefaultData!$D$80,DefaultData!$D$76*DefaultData!$D$34*DefaultData!$D$78),0) -> 6800657.045 | P169: 22800657.04
C170: 3 | D170: =IF(C170<=DefaultData!D$72,-ISPMT(DefaultData!D$73,C170,DefaultData!D$72,DefaultData!D$34*DefaultData!D$71),0) -> 42500000 | E170: =IF(C170<=DefaultData!D$72,-PPMT(DefaultData!D$73,C170,DefaultData!D$72,DefaultData!D$71*DefaultData!D$34),0) -> 10563072.99 | F170: 53063072.99 | H170: 3 | I170: =IF(H170<=DefaultData!$D$80,-ISPMT(DefaultData!$D$79,H170,DefaultData!$D$80,DefaultData!$D$34*DefaultData!$D$76*DefaultData!$D$77),0) -> 0 | J170: =IF(H170<=DefaultData!$D$80,-PPMT(DefaultData!$D$79,H170,DefaultData!$D$80,DefaultData!$D$76*DefaultData!$D$34*DefaultData!$D$77),0) -> 0 | K170: 0 | M170: 3 | N170: =IF(M170<=DefaultData!$D$80,-ISPMT(DefaultData!$D$79,M170,DefaultData!$D$80,DefaultData!$D$34*DefaultData!$D$76*DefaultData!$D$78),0) -> 14000000 | O170: =IF(M170<=DefaultData!$D$80,-PPMT(DefaultData!$D$79,M170,DefaultData!$D$80,DefaultData!$D$76*DefaultData!$D$34*DefaultData!$D$78),0) -> 7888762.172 | P170: 21888762.17
C171: 4 | D171: =IF(C171<=DefaultData!D$72,-ISPMT(DefaultData!D$73,C171,DefaultData!D$72,DefaultData!D$34*DefaultData!D$71),0) -> 40000000 | E171: =IF(C171<=DefaultData!D$72,-PPMT(DefaultData!D$73,C171,DefaultData!D$72,DefaultData!D$71*DefaultData!D$34),0) -> 11619380.29 | F171: 51619380.29 | H171: 4 | I171: =IF(H171<=DefaultData!$D$80,-ISPMT(DefaultData!$D$79,H171,DefaultData!$D$80,DefaultData!$D$34*DefaultData!$D$76*DefaultData!$D$77),0) -> 0 | J171: =IF(H171<=DefaultData!$D$80,-PPMT(DefaultData!$D$79,H171,DefaultData!$D$80,DefaultData!$D$76*DefaultData!$D$34*DefaultData!$D$77),0) -> 0 | K171: 0 | M171: 4 | N171: =IF(M171<=DefaultData!$D$80,-ISPMT(DefaultData!$D$79,M171,DefaultData!$D$80,DefaultData!$D$34*DefaultData!$D$76*DefaultData!$D$78),0) -> 12000000 | O171: =IF(M171<=DefaultData!$D$80,-PPMT(DefaultData!$D$79,M171,DefaultData!$D$80,DefaultData!$D$76*DefaultData!$D$34*DefaultData!$D$78),0) -> 9150964.119 | P171: 21150964.12
C172: 5 | D172: =IF(C172<=DefaultData!D$72,-ISPMT(DefaultData!D$73,C172,DefaultData!D$72,DefaultData!D$34*DefaultData!D$71),0) -> 37500000 | E172: =IF(C172<=DefaultData!D$72,-PPMT(DefaultData!D$73,C172,DefaultData!D$72,DefaultData!D$71*DefaultData!D$34),0) -> 12781318.31 | F172: 50281318.31 | H172: 5 | I172: =IF(H172<=DefaultData!$D$80,-ISPMT(DefaultData!$D$79,H172,DefaultData!$D$80,DefaultData!$D$34*DefaultData!$D$76*DefaultData!$D$77),0) -> 0 | J172: =IF(H172<=DefaultData!$D$80,-PPMT(DefaultData!$D$79,H172,DefaultData!$D$80,DefaultData!$D$76*DefaultData!$D$34*DefaultData!$D$77),0) -> 0 | K172: 0 | M172: 5 | N172: =IF(M172<=DefaultData!$D$80,-ISPMT(DefaultData!$D$79,M172,DefaultData!$D$80,DefaultData!$D$34*DefaultData!$D$76*DefaultData!$D$78),0) -> 10000000 | O172: =IF(M172<=DefaultData!$D$80,-PPMT(DefaultData!$D$79,M172,DefaultData!$D$80,DefaultData!$D$76*DefaultData!$D$34*DefaultData!$D$78),0) -> 10615118.38 | P172: 20615118.38
C173: 6 | D173: =IF(C173<=DefaultData!D$72,-ISPMT(DefaultData!D$73,C173,DefaultData!D$72,DefaultData!D$34*DefaultData!D$71),0) -> 35000000 | E173: =IF(C173<=DefaultData!D$72,-PPMT(DefaultData!D$73,C173,DefaultData!D$72,DefaultData!D$71*DefaultData!D$34),0) -> 14059450.15 | F173: 49059450.15 | H173: 6 | I173: =IF(H173<=DefaultData!$D$80,-ISPMT(DefaultData!$D$79,H173,DefaultData!$D$80,DefaultData!$D$34*DefaultData!$D$76*DefaultData!$D$77),0) -> 0 | J173: =IF(H173<=DefaultData!$D$80,-PPMT(DefaultData!$D$79,H173,DefaultData!$D$80,DefaultData!$D$76*DefaultData!$D$34*DefaultData!$D$77),0) -> 0 | K173: 0 | M173: 6 | N173: =IF(M173<=DefaultData!$D$80,-ISPMT(DefaultData!$D$79,M173,DefaultData!$D$80,DefaultData!$D$34*DefaultData!$D$76*DefaultData!$D$78),0) -> 8000000 | O173: =IF(M173<=DefaultData!$D$80,-PPMT(DefaultData!$D$79,M173,DefaultData!$D$80,DefaultData!$D$76*DefaultData!$D$34*DefaultData!$D$78),0) -> 12313537.32 | P173: 20313537.32
C174: 7 | D174: =IF(C174<=DefaultData!D$72,-ISPMT(DefaultData!D$73,C174,DefaultData!D$72,DefaultData!D$34*DefaultData!D$71),0) -> 32500000 | E174: =IF(C174<=DefaultData!D$72,-PPMT(DefaultData!D$73,C174,DefaultData!D$72,DefaultData!D$71*DefaultData!D$34),0) -> 15465395.16 | F174: 47965395.16 | H174: 7 | I174: =IF(H174<=DefaultData!$D$80,-ISPMT(DefaultData!$D$79,H174,DefaultData!$D$80,DefaultData!$D$34*DefaultData!$D$76*DefaultData!$D$77),0) -> 0 | J174: =IF(H174<=DefaultData!$D$80,-PPMT(DefaultData!$D$79,H174,DefaultData!$D$80,DefaultData!$D$76*DefaultData!$D$34*DefaultData!$D$77),0) -> 0 | K174: 0 | M174: 7 | N174: =IF(M174<=DefaultData!$D$80,-ISPMT(DefaultData!$D$79,M174,DefaultData!$D$80,DefaultData!$D$34*DefaultData!$D$76*DefaultData!$D$78),0) -> 6000000 | O174: =IF(M174<=DefaultData!$D$80,-PPMT(DefaultData!$D$79,M174,DefaultData!$D$80,DefaultData!$D$76*DefaultData!$D$34*DefaultData!$D$78),0) -> 14283703.29 | P174: 20283703.29
C175: 8 | D175: =IF(C175<=DefaultData!D$72,-ISPMT(DefaultData!D$73,C175,DefaultData!D$72,DefaultData!D$34*DefaultData!D$71),0) -> 30000000 | E175: =IF(C175<=DefaultData!D$72,-PPMT(DefaultData!D$73,C175,DefaultData!D$72,DefaultData!D$71*DefaultData!D$34),0) -> 17011934.68 | F175: 47011934.68 | H175: 8 | I175: =IF(H175<=DefaultData!$D$80,-ISPMT(DefaultData!$D$79,H175,DefaultData!$D$80,DefaultData!$D$34*DefaultData!$D$76*DefaultData!$D$77),0) -> 0 | J175: =IF(H175<=DefaultData!$D$80,-PPMT(DefaultData!$D$79,H175,DefaultData!$D$80,DefaultData!$D$76*DefaultData!$D$34*DefaultData!$D$77),0) -> 0 | K175: 0 | M175: 8 | N175: =IF(M175<=DefaultData!$D$80,-ISPMT(DefaultData!$D$79,M175,DefaultData!$D$80,DefaultData!$D$34*DefaultData!$D$76*DefaultData!$D$78),0) -> 4000000 | O175: =IF(M175<=DefaultData!$D$80,-PPMT(DefaultData!$D$79,M175,DefaultData!$D$80,DefaultData!$D$76*DefaultData!$D$34*DefaultData!$D$78),0) -> 16569095.82 | P175: 20569095.82
C176: 9 | D176: =IF(C176<=DefaultData!D$72,-ISPMT(DefaultData!D$73,C176,DefaultData!D$72,DefaultData!D$34*DefaultData!D$71),0) -> 27500000 | E176: =IF(C176<=DefaultData!D$72,-PPMT(DefaultData!D$73,C176,DefaultData!D$72,DefaultData!D$71*DefaultData!D$34),0) -> 18713128.14 | F176: 46213128.14 | H176: 9 | I176: =IF(H176<=DefaultData!$D$80,-ISPMT(DefaultData!$D$79,H176,DefaultData!$D$80,DefaultData!$D$34*DefaultData!$D$76*DefaultData!$D$77),0) -> 0 | J176: =IF(H176<=DefaultData!$D$80,-PPMT(DefaultData!$D$79,H176,DefaultData!$D$80,DefaultData!$D$76*DefaultData!$D$34*DefaultData!$D$77),0) -> 0 | K176: 0 | M176: 9 | N176: =IF(M176<=DefaultData!$D$80,-ISPMT(DefaultData!$D$79,M176,DefaultData!$D$80,DefaultData!$D$34*DefaultData!$D$76*DefaultData!$D$78),0) -> 2000000 | O176: =IF(M176<=DefaultData!$D$80,-PPMT(DefaultData!$D$79,M176,DefaultData!$D$80,DefaultData!$D$76*DefaultData!$D$34*DefaultData!$D$78),0) -> 19220151.15 | P176: 21220151.15
C177: 10 | D177: =IF(C177<=DefaultData!D$72,-ISPMT(DefaultData!D$73,C177,DefaultData!D$72,DefaultData!D$34*DefaultData!D$71),0) -> 25000000 | E177: =IF(C177<=DefaultData!D$72,-PPMT(DefaultData!D$73,C177,DefaultData!D$72,DefaultData!D$71*DefaultData!D$34),0) -> 20584440.96 | F177: 45584440.96 | H177: 10 | I177: =IF(H177<=DefaultData!$D$80,-ISPMT(DefaultData!$D$79,H177,DefaultData!$D$80,DefaultData!$D$34*DefaultData!$D$76*DefaultData!$D$77),0) -> 0 | J177: =IF(H177<=DefaultData!$D$80,-PPMT(DefaultData!$D$79,H177,DefaultData!$D$80,DefaultData!$D$76*DefaultData!$D$34*DefaultData!$D$77),0) -> 0 | K177: 0 | M177: 10 | N177: =IF(M177<=DefaultData!$D$80,-ISPMT(DefaultData!$D$79,M177,DefaultData!$D$80,DefaultData!$D$34*DefaultData!$D$76*DefaultData!$D$78),0) -> 0 | O177: =IF(M177<=DefaultData!$D$80,-PPMT(DefaultData!$D$79,M177,DefaultData!$D$80,DefaultData!$D$76*DefaultData!$D$34*DefaultData!$D$78),0) -> 22295375.33 | P177: 22295375.33
C178: 11 | D178: =IF(C178<=DefaultData!D$72,-ISPMT(DefaultData!D$73,C178,DefaultData!D$72,DefaultData!D$34*DefaultData!D$71),0) -> 22500000 | E178: =IF(C178<=DefaultData!D$72,-PPMT(DefaultData!D$73,C178,DefaultData!D$72,DefaultData!D$71*DefaultData!D$34),0) -> 22642885.05 | F178: 45142885.05 | H178: 11 | I178: =IF(H178<=DefaultData!$D$80,-ISPMT(DefaultData!$D$79,H178,DefaultData!$D$80,DefaultData!$D$34*DefaultData!$D$76*DefaultData!$D$77),0) -> 0 | J178: =IF(H178<=DefaultData!$D$80,-PPMT(DefaultData!$D$79,H178,DefaultData!$D$80,DefaultData!$D$76*DefaultData!$D$34*DefaultData!$D$77),0) -> 0 | K178: 0 | M178: 11 | N178: =IF(M178<=DefaultData!$D$80,-ISPMT(DefaultData!$D$79,M178,DefaultData!$D$80,DefaultData!$D$34*DefaultData!$D$76*DefaultData!$D$78),0) -> 0 | O178: =IF(M178<=DefaultData!$D$80,-PPMT(DefaultData!$D$79,M178,DefaultData!$D$80,DefaultData!$D$76*DefaultData!$D$34*DefaultData!$D$78),0) -> 0 | P178: 0
C179: 12 | D179: =IF(C179<=DefaultData!D$72,-ISPMT(DefaultData!D$73,C179,DefaultData!D$72,DefaultData!D$34*DefaultData!D$71),0) -> 20000000 | E179: =IF(C179<=DefaultData!D$72,-PPMT(DefaultData!D$73,C179,DefaultData!D$72,DefaultData!D$71*DefaultData!D$34),0) -> 24907173.56 | F179: 44907173.56 | H179: 12 | I179: =IF(H179<=DefaultData!$D$80,-ISPMT(DefaultData!$D$79,H179,DefaultData!$D$80,DefaultData!$D$34*DefaultData!$D$76*DefaultData!$D$77),0) -> 0 | J179: =IF(H179<=DefaultData!$D$80,-PPMT(DefaultData!$D$79,H179,DefaultData!$D$80,DefaultData!$D$76*DefaultData!$D$34*DefaultData!$D$77),0) -> 0 | K179: 0 | M179: 12 | N179: =IF(M179<=DefaultData!$D$80,-ISPMT(DefaultData!$D$79,M179,DefaultData!$D$80,DefaultData!$D$34*DefaultData!$D$76*DefaultData!$D$78),0) -> 0 | O179: =IF(M179<=DefaultData!$D$80,-PPMT(DefaultData!$D$79,M179,DefaultData!$D$80,DefaultData!$D$76*DefaultData!$D$34*DefaultData!$D$78),0) -> 0 | P179: 0
C180: 13 | D180: =IF(C180<=DefaultData!D$72,-ISPMT(DefaultData!D$73,C180,DefaultData!D$72,DefaultData!D$34*DefaultData!D$71),0) -> 17500000 | E180: =IF(C180<=DefaultData!D$72,-PPMT(DefaultData!D$73,C180,DefaultData!D$72,DefaultData!D$71*DefaultData!D$34),0) -> 27397890.92 | F180: 44897890.92 | H180: 13 | I180: =IF(H180<=DefaultData!$D$80,-ISPMT(DefaultData!$D$79,H180,DefaultData!$D$80,DefaultData!$D$34*DefaultData!$D$76*DefaultData!$D$77),0) -> 0 | J180: =IF(H180<=DefaultData!$D$80,-PPMT(DefaultData!$D$79,H180,DefaultData!$D$80,DefaultData!$D$76*DefaultData!$D$34*DefaultData!$D$77),0) -> 0 | K180: 0 | M180: 13 | N180: =IF(M180<=DefaultData!$D$80,-ISPMT(DefaultData!$D$79,M180,DefaultData!$D$80,DefaultData!$D$34*DefaultData!$D$76*DefaultData!$D$78),0) -> 0 | O180: =IF(M180<=DefaultData!$D$80,-PPMT(DefaultData!$D$79,M180,DefaultData!$D$80,DefaultData!$D$76*DefaultData!$D$34*DefaultData!$D$78),0) -> 0 | P180: 0
C181: 14 | D181: =IF(C181<=DefaultData!D$72,-ISPMT(DefaultData!D$73,C181,DefaultData!D$72,DefaultData!D$34*DefaultData!D$71),0) -> 15000000 | E181: =IF(C181<=DefaultData!D$72,-PPMT(DefaultData!D$73,C181,DefaultData!D$72,DefaultData!D$71*DefaultData!D$34),0) -> 30137680.01 | F181: 45137680.01 | H181: 14 | I181: =IF(H181<=DefaultData!$D$80,-ISPMT(DefaultData!$D$79,H181,DefaultData!$D$80,DefaultData!$D$34*DefaultData!$D$76*DefaultData!$D$77),0) -> 0 | J181: =IF(H181<=DefaultData!$D$80,-PPMT(DefaultData!$D$79,H181,DefaultData!$D$80,DefaultData!$D$76*DefaultData!$D$34*DefaultData!$D$77),0) -> 0 | K181: 0 | M181: 14 | N181: =IF(M181<=DefaultData!$D$80,-ISPMT(DefaultData!$D$79,M181,DefaultData!$D$80,DefaultData!$D$34*DefaultData!$D$76*DefaultData!$D$78),0) -> 0 | O181: =IF(M181<=DefaultData!$D$80,-PPMT(DefaultData!$D$79,M181,DefaultData!$D$80,DefaultData!$D$76*DefaultData!$D$34*DefaultData!$D$78),0) -> 0 | P181: 0
C182: 15 | D182: =IF(C182<=DefaultData!D$72,-ISPMT(DefaultData!D$73,C182,DefaultData!D$72,DefaultData!D$34*DefaultData!D$71),0) -> 12500000 | E182: =IF(C182<=DefaultData!D$72,-PPMT(DefaultData!D$73,C182,DefaultData!D$72,DefaultData!D$71*DefaultData!D$34),0) -> 33151448.01 | F182: 45651448.01 | H182: 15 | I182: =IF(H182<=DefaultData!$D$80,-ISPMT(DefaultData!$D$79,H182,DefaultData!$D$80,DefaultData!$D$34*DefaultData!$D$76*DefaultData!$D$77),0) -> 0 | J182: =IF(H182<=DefaultData!$D$80,-PPMT(DefaultData!$D$79,H182,DefaultData!$D$80,DefaultData!$D$76*DefaultData!$D$34*DefaultData!$D$77),0) -> 0 | K182: 0 | M182: 15 | N182: =IF(M182<=DefaultData!$D$80,-ISPMT(DefaultData!$D$79,M182,DefaultData!$D$80,DefaultData!$D$34*DefaultData!$D$76*DefaultData!$D$78),0) -> 0 | O182: =IF(M182<=DefaultData!$D$80,-PPMT(DefaultData!$D$79,M182,DefaultData!$D$80,DefaultData!$D$76*DefaultData!$D$34*DefaultData!$D$78),0) -> 0 | P182: 0
C183: 16 | D183: =IF(C183<=DefaultData!D$72,-ISPMT(DefaultData!D$73,C183,DefaultData!D$72,DefaultData!D$34*DefaultData!D$71),0) -> 10000000 | E183: =IF(C183<=DefaultData!D$72,-PPMT(DefaultData!D$73,C183,DefaultData!D$72,DefaultData!D$71*DefaultData!D$34),0) -> 36466592.81 | F183: 46466592.81 | H183: 16 | I183: =IF(H183<=DefaultData!$D$80,-ISPMT(DefaultData!$D$79,H183,DefaultData!$D$80,DefaultData!$D$34*DefaultData!$D$76*DefaultData!$D$77),0) -> 0 | J183: =IF(H183<=DefaultData!$D$80,-PPMT(DefaultData!$D$79,H183,DefaultData!$D$80,DefaultData!$D$76*DefaultData!$D$34*DefaultData!$D$77),0) -> 0 | K183: 0 | M183: 16 | N183: =IF(M183<=DefaultData!$D$80,-ISPMT(DefaultData!$D$79,M183,DefaultData!$D$80,DefaultData!$D$34*DefaultData!$D$76*DefaultData!$D$78),0) -> 0 | O183: =IF(M183<=DefaultData!$D$80,-PPMT(DefaultData!$D$79,M183,DefaultData!$D$80,DefaultData!$D$76*DefaultData!$D$34*DefaultData!$D$78),0) -> 0 | P183: 0
C184: 17 | D184: =IF(C184<=DefaultData!D$72,-ISPMT(DefaultData!D$73,C184,DefaultData!D$72,DefaultData!D$34*DefaultData!D$71),0) -> 7500000 | E184: =IF(C184<=DefaultData!D$72,-PPMT(DefaultData!D$73,C184,DefaultData!D$72,DefaultData!D$71*DefaultData!D$34),0) -> 40113252.09 | F184: 47613252.09 | H184: 17 | I184: =IF(H184<=DefaultData!$D$80,-ISPMT(DefaultData!$D$79,H184,DefaultData!$D$80,DefaultData!$D$34*DefaultData!$D$76*DefaultData!$D$77),0) -> 0 | J184: =IF(H184<=DefaultData!$D$80,-PPMT(DefaultData!$D$79,H184,DefaultData!$D$80,DefaultData!$D$76*DefaultData!$D$34*DefaultData!$D$77),0) -> 0 | K184: 0 | M184: 17 | N184: =IF(M184<=DefaultData!$D$80,-ISPMT(DefaultData!$D$79,M184,DefaultData!$D$80,DefaultData!$D$34*DefaultData!$D$76*DefaultData!$D$78),0) -> 0 | O184: =IF(M184<=DefaultData!$D$80,-PPMT(DefaultData!$D$79,M184,DefaultData!$D$80,DefaultData!$D$76*DefaultData!$D$34*DefaultData!$D$78),0) -> 0 | P184: 0
C185: 18 | D185: =IF(C185<=DefaultData!D$72,-ISPMT(DefaultData!D$73,C185,DefaultData!D$72,DefaultData!D$34*DefaultData!D$71),0) -> 5000000 | E185: =IF(C185<=DefaultData!D$72,-PPMT(DefaultData!D$73,C185,DefaultData!D$72,DefaultData!D$71*DefaultData!D$34),0) -> 44124577.3 | F185: 49124577.3 | H185: 18 | I185: =IF(H185<=DefaultData!$D$80,-ISPMT(DefaultData!$D$79,H185,DefaultData!$D$80,DefaultData!$D$34*DefaultData!$D$76*DefaultData!$D$77),0) -> 0 | J185: =IF(H185<=DefaultData!$D$80,-PPMT(DefaultData!$D$79,H185,DefaultData!$D$80,DefaultData!$D$76*DefaultData!$D$34*DefaultData!$D$77),0) -> 0 | K185: 0 | M185: 18 | N185: =IF(M185<=DefaultData!$D$80,-ISPMT(DefaultData!$D$79,M185,DefaultData!$D$80,DefaultData!$D$34*DefaultData!$D$76*DefaultData!$D$78),0) -> 0 | O185: =IF(M185<=DefaultData!$D$80,-PPMT(DefaultData!$D$79,M185,DefaultData!$D$80,DefaultData!$D$76*DefaultData!$D$34*DefaultData!$D$78),0) -> 0 | P185: 0
C186: 19 | D186: =IF(C186<=DefaultData!D$72,-ISPMT(DefaultData!D$73,C186,DefaultData!D$72,DefaultData!D$34*DefaultData!D$71),0) -> 2500000 | E186: =IF(C186<=DefaultData!D$72,-PPMT(DefaultData!D$73,C186,DefaultData!D$72,DefaultData!D$71*DefaultData!D$34),0) -> 48537035.03 | F186: 51037035.03 | H186: 19 | I186: =IF(H186<=DefaultData!$D$80,-ISPMT(DefaultData!$D$79,H186,DefaultData!$D$80,DefaultData!$D$34*DefaultData!$D$76*DefaultData!$D$77),0) -> 0 | J186: =IF(H186<=DefaultData!$D$80,-PPMT(DefaultData!$D$79,H186,DefaultData!$D$80,DefaultData!$D$76*DefaultData!$D$34*DefaultData!$D$77),0) -> 0 | K186: 0 | M186: 19 | N186: =IF(M186<=DefaultData!$D$80,-ISPMT(DefaultData!$D$79,M186,DefaultData!$D$80,DefaultData!$D$34*DefaultData!$D$76*DefaultData!$D$78),0) -> 0 | O186: =IF(M186<=DefaultData!$D$80,-PPMT(DefaultData!$D$79,M186,DefaultData!$D$80,DefaultData!$D$76*DefaultData!$D$34*DefaultData!$D$78),0) -> 0 | P186: 0
C187: 20 | D187: =IF(C187<=DefaultData!D$72,-ISPMT(DefaultData!D$73,C187,DefaultData!D$72,DefaultData!D$34*DefaultData!D$71),0) -> 0 | E187: =IF(C187<=DefaultData!D$72,-PPMT(DefaultData!D$73,C187,DefaultData!D$72,DefaultData!D$71*DefaultData!D$34),0) -> 53390738.53 | F187: 53390738.53 | H187: 20 | I187: =IF(H187<=DefaultData!$D$80,-ISPMT(DefaultData!$D$79,H187,DefaultData!$D$80,DefaultData!$D$34*DefaultData!$D$76*DefaultData!$D$77),0) -> 0 | J187: =IF(H187<=DefaultData!$D$80,-PPMT(DefaultData!$D$79,H187,DefaultData!$D$80,DefaultData!$D$76*DefaultData!$D$34*DefaultData!$D$77),0) -> 0 | K187: 0 | M187: 20 | N187: =IF(M187<=DefaultData!$D$80,-ISPMT(DefaultData!$D$79,M187,DefaultData!$D$80,DefaultData!$D$34*DefaultData!$D$76*DefaultData!$D$78),0) -> 0 | O187: =IF(M187<=DefaultData!$D$80,-PPMT(DefaultData!$D$79,M187,DefaultData!$D$80,DefaultData!$D$76*DefaultData!$D$34*DefaultData!$D$78),0) -> 0 | P187: 0
C188: 21 | D188: =IF(C188<=DefaultData!D$72,-ISPMT(DefaultData!D$73,C188,DefaultData!D$72,DefaultData!D$34*DefaultData!D$71),0) -> 0 | E188: =IF(C188<=DefaultData!D$72,-PPMT(DefaultData!D$73,C188,DefaultData!D$72,DefaultData!D$71*DefaultData!D$34),0) -> 0 | F188: 0 | H188: 21 | I188: =IF(H188<=DefaultData!$D$80,-ISPMT(DefaultData!$D$79,H188,DefaultData!$D$80,DefaultData!$D$34*DefaultData!$D$76*DefaultData!$D$77),0) -> 0 | J188: =IF(H188<=DefaultData!$D$80,-PPMT(DefaultData!$D$79,H188,DefaultData!$D$80,DefaultData!$D$76*DefaultData!$D$34*DefaultData!$D$77),0) -> 0 | K188: 0 | M188: 21 | N188: =IF(M188<=DefaultData!$D$80,-ISPMT(DefaultData!$D$79,M188,DefaultData!$D$80,DefaultData!$D$34*DefaultData!$D$76*DefaultData!$D$78),0) -> 0 | O188: =IF(M188<=DefaultData!$D$80,-PPMT(DefaultData!$D$79,M188,DefaultData!$D$80,DefaultData!$D$76*DefaultData!$D$34*DefaultData!$D$78),0) -> 0 | P188: 0
C189: 22 | D189: =IF(C189<=DefaultData!D$72,-ISPMT(DefaultData!D$73,C189,DefaultData!D$72,DefaultData!D$34*DefaultData!D$71),0) -> 0 | E189: =IF(C189<=DefaultData!D$72,-PPMT(DefaultData!D$73,C189,DefaultData!D$72,DefaultData!D$71*DefaultData!D$34),0) -> 0 | F189: 0 | H189: 22 | I189: =IF(H189<=DefaultData!$D$80,-ISPMT(DefaultData!$D$79,H189,DefaultData!$D$80,DefaultData!$D$34*DefaultData!$D$76*DefaultData!$D$77),0) -> 0 | J189: =IF(H189<=DefaultData!$D$80,-PPMT(DefaultData!$D$79,H189,DefaultData!$D$80,DefaultData!$D$76*DefaultData!$D$34*DefaultData!$D$77),0) -> 0 | K189: 0 | M189: 22 | N189: =IF(M189<=DefaultData!$D$80,-ISPMT(DefaultData!$D$79,M189,DefaultData!$D$80,DefaultData!$D$34*DefaultData!$D$76*DefaultData!$D$78),0) -> 0 | O189: =IF(M189<=DefaultData!$D$80,-PPMT(DefaultData!$D$79,M189,DefaultData!$D$80,DefaultData!$D$76*DefaultData!$D$34*DefaultData!$D$78),0) -> 0 | P189: 0
C190: 23 | D190: =IF(C190<=DefaultData!D$72,-ISPMT(DefaultData!D$73,C190,DefaultData!D$72,DefaultData!D$34*DefaultData!D$71),0) -> 0 | E190: =IF(C190<=DefaultData!D$72,-PPMT(DefaultData!D$73,C190,DefaultData!D$72,DefaultData!D$71*DefaultData!D$34),0) -> 0 | F190: 0 | H190: 23 | I190: =IF(H190<=DefaultData!$D$80,-ISPMT(DefaultData!$D$79,H190,DefaultData!$D$80,DefaultData!$D$34*DefaultData!$D$76*DefaultData!$D$77),0) -> 0 | J190: =IF(H190<=DefaultData!$D$80,-PPMT(DefaultData!$D$79,H190,DefaultData!$D$80,DefaultData!$D$76*DefaultData!$D$34*DefaultData!$D$77),0) -> 0 | K190: 0 | M190: 23 | N190: =IF(M190<=DefaultData!$D$80,-ISPMT(DefaultData!$D$79,M190,DefaultData!$D$80,DefaultData!$D$34*DefaultData!$D$76*DefaultData!$D$78),0) -> 0 | O190: =IF(M190<=DefaultData!$D$80,-PPMT(DefaultData!$D$79,M190,DefaultData!$D$80,DefaultData!$D$76*DefaultData!$D$34*DefaultData!$D$78),0) -> 0 | P190: 0
C191: 24 | D191: =IF(C191<=DefaultData!D$72,-ISPMT(DefaultData!D$73,C191,DefaultData!D$72,DefaultData!D$34*DefaultData!D$71),0) -> 0 | E191: =IF(C191<=DefaultData!D$72,-PPMT(DefaultData!D$73,C191,DefaultData!D$72,DefaultData!D$71*DefaultData!D$34),0) -> 0 | F191: 0 | H191: 24 | I191: =IF(H191<=DefaultData!$D$80,-ISPMT(DefaultData!$D$79,H191,DefaultData!$D$80,DefaultData!$D$34*DefaultData!$D$76*DefaultData!$D$77),0) -> 0 | J191: =IF(H191<=DefaultData!$D$80,-PPMT(DefaultData!$D$79,H191,DefaultData!$D$80,DefaultData!$D$76*DefaultData!$D$34*DefaultData!$D$77),0) -> 0 | K191: 0 | M191: 24 | N191: =IF(M191<=DefaultData!$D$80,-ISPMT(DefaultData!$D$79,M191,DefaultData!$D$80,DefaultData!$D$34*DefaultData!$D$76*DefaultData!$D$78),0) -> 0 | O191: =IF(M191<=DefaultData!$D$80,-PPMT(DefaultData!$D$79,M191,DefaultData!$D$80,DefaultData!$D$76*DefaultData!$D$34*DefaultData!$D$78),0) -> 0 | P191: 0
C192: 25 | D192: =IF(C192<=DefaultData!D$72,-ISPMT(DefaultData!D$73,C192,DefaultData!D$72,DefaultData!D$34*DefaultData!D$71),0) -> 0 | E192: =IF(C192<=DefaultData!D$72,-PPMT(DefaultData!D$73,C192,DefaultData!D$72,DefaultData!D$71*DefaultData!D$34),0) -> 0 | F192: 0 | H192: 25 | I192: =IF(H192<=DefaultData!$D$80,-ISPMT(DefaultData!$D$79,H192,DefaultData!$D$80,DefaultData!$D$34*DefaultData!$D$76*DefaultData!$D$77),0) -> 0 | J192: =IF(H192<=DefaultData!$D$80,-PPMT(DefaultData!$D$79,H192,DefaultData!$D$80,DefaultData!$D$76*DefaultData!$D$34*DefaultData!$D$77),0) -> 0 | K192: 0 | M192: 25 | N192: =IF(M192<=DefaultData!$D$80,-ISPMT(DefaultData!$D$79,M192,DefaultData!$D$80,DefaultData!$D$34*DefaultData!$D$76*DefaultData!$D$78),0) -> 0 | O192: =IF(M192<=DefaultData!$D$80,-PPMT(DefaultData!$D$79,M192,DefaultData!$D$80,DefaultData!$D$76*DefaultData!$D$34*DefaultData!$D$78),0) -> 0 | P192: 0
C193: 26 | D193: =IF(C193<=DefaultData!D$72,-ISPMT(DefaultData!D$73,C193,DefaultData!D$72,DefaultData!D$34*DefaultData!D$71),0) -> 0 | E193: =IF(C193<=DefaultData!D$72,-PPMT(DefaultData!D$73,C193,DefaultData!D$72,DefaultData!D$71*DefaultData!D$34),0) -> 0 | F193: 0 | H193: 26 | I193: =IF(H193<=DefaultData!$D$80,-ISPMT(DefaultData!$D$79,H193,DefaultData!$D$80,DefaultData!$D$34*DefaultData!$D$76*DefaultData!$D$77),0) -> 0 | J193: =IF(H193<=DefaultData!$D$80,-PPMT(DefaultData!$D$79,H193,DefaultData!$D$80,DefaultData!$D$76*DefaultData!$D$34*DefaultData!$D$77),0) -> 0 | K193: 0 | M193: 26 | N193: =IF(M193<=DefaultData!$D$80,-ISPMT(DefaultData!$D$79,M193,DefaultData!$D$80,DefaultData!$D$34*DefaultData!$D$76*DefaultData!$D$78),0) -> 0 | O193: =IF(M193<=DefaultData!$D$80,-PPMT(DefaultData!$D$79,M193,DefaultData!$D$80,DefaultData!$D$76*DefaultData!$D$34*DefaultData!$D$78),0) -> 0 | P193: 0
C194: 27 | D194: =IF(C194<=DefaultData!D$72,-ISPMT(DefaultData!D$73,C194,DefaultData!D$72,DefaultData!D$34*DefaultData!D$71),0) -> 0 | E194: =IF(C194<=DefaultData!D$72,-PPMT(DefaultData!D$73,C194,DefaultData!D$72,DefaultData!D$71*DefaultData!D$34),0) -> 0 | F194: 0 | H194: 27 | I194: =IF(H194<=DefaultData!$D$80,-ISPMT(DefaultData!$D$79,H194,DefaultData!$D$80,DefaultData!$D$34*DefaultData!$D$76*DefaultData!$D$77),0) -> 0 | J194: =IF(H194<=DefaultData!$D$80,-PPMT(DefaultData!$D$79,H194,DefaultData!$D$80,DefaultData!$D$76*DefaultData!$D$34*DefaultData!$D$77),0) -> 0 | K194: 0 | M194: 27 | N194: =IF(M194<=DefaultData!$D$80,-ISPMT(DefaultData!$D$79,M194,DefaultData!$D$80,DefaultData!$D$34*DefaultData!$D$76*DefaultData!$D$78),0) -> 0 | O194: =IF(M194<=DefaultData!$D$80,-PPMT(DefaultData!$D$79,M194,DefaultData!$D$80,DefaultData!$D$76*DefaultData!$D$34*DefaultData!$D$78),0) -> 0 | P194: 0
C195: 28 | D195: =IF(C195<=DefaultData!D$72,-ISPMT(DefaultData!D$73,C195,DefaultData!D$72,DefaultData!D$34*DefaultData!D$71),0) -> 0 | E195: =IF(C195<=DefaultData!D$72,-PPMT(DefaultData!D$73,C195,DefaultData!D$72,DefaultData!D$71*DefaultData!D$34),0) -> 0 | F195: 0 | H195: 28 | I195: =IF(H195<=DefaultData!$D$80,-ISPMT(DefaultData!$D$79,H195,DefaultData!$D$80,DefaultData!$D$34*DefaultData!$D$76*DefaultData!$D$77),0) -> 0 | J195: =IF(H195<=DefaultData!$D$80,-PPMT(DefaultData!$D$79,H195,DefaultData!$D$80,DefaultData!$D$76*DefaultData!$D$34*DefaultData!$D$77),0) -> 0 | K195: 0 | M195: 28 | N195: =IF(M195<=DefaultData!$D$80,-ISPMT(DefaultData!$D$79,M195,DefaultData!$D$80,DefaultData!$D$34*DefaultData!$D$76*DefaultData!$D$78),0) -> 0 | O195: =IF(M195<=DefaultData!$D$80,-PPMT(DefaultData!$D$79,M195,DefaultData!$D$80,DefaultData!$D$76*DefaultData!$D$34*DefaultData!$D$78),0) -> 0 | P195: 0
C196: 29 | D196: =IF(C196<=DefaultData!D$72,-ISPMT(DefaultData!D$73,C196,DefaultData!D$72,DefaultData!D$34*DefaultData!D$71),0) -> 0 | E196: =IF(C196<=DefaultData!D$72,-PPMT(DefaultData!D$73,C196,DefaultData!D$72,DefaultData!D$71*DefaultData!D$34),0) -> 0 | F196: 0 | H196: 29 | I196: =IF(H196<=DefaultData!$D$80,-ISPMT(DefaultData!$D$79,H196,DefaultData!$D$80,DefaultData!$D$34*DefaultData!$D$76*DefaultData!$D$77),0) -> 0 | J196: =IF(H196<=DefaultData!$D$80,-PPMT(DefaultData!$D$79,H196,DefaultData!$D$80,DefaultData!$D$76*DefaultData!$D$34*DefaultData!$D$77),0) -> 0 | K196: 0 | M196: 29 | N196: =IF(M196<=DefaultData!$D$80,-ISPMT(DefaultData!$D$79,M196,DefaultData!$D$80,DefaultData!$D$34*DefaultData!$D$76*DefaultData!$D$78),0) -> 0 | O196: =IF(M196<=DefaultData!$D$80,-PPMT(DefaultData!$D$79,M196,DefaultData!$D$80,DefaultData!$D$76*DefaultData!$D$34*DefaultData!$D$78),0) -> 0 | P196: 0
C197: 30 | D197: =IF(C197<=DefaultData!D$72,-ISPMT(DefaultData!D$73,C197,DefaultData!D$72,DefaultData!D$34*DefaultData!D$71),0) -> 0 | E197: =IF(C197<=DefaultData!D$72,-PPMT(DefaultData!D$73,C197,DefaultData!D$72,DefaultData!D$71*DefaultData!D$34),0) -> 0 | F197: 0 | H197: 30 | I197: =IF(H197<=DefaultData!$D$80,-ISPMT(DefaultData!$D$79,H197,DefaultData!$D$80,DefaultData!$D$34*DefaultData!$D$76*DefaultData!$D$77),0) -> 0 | J197: =IF(H197<=DefaultData!$D$80,-PPMT(DefaultData!$D$79,H197,DefaultData!$D$80,DefaultData!$D$76*DefaultData!$D$34*DefaultData!$D$77),0) -> 0 | K197: 0 | M197: 30 | N197: =IF(M197<=DefaultData!$D$80,-ISPMT(DefaultData!$D$79,M197,DefaultData!$D$80,DefaultData!$D$34*DefaultData!$D$76*DefaultData!$D$78),0) -> 0 | O197: =IF(M197<=DefaultData!$D$80,-PPMT(DefaultData!$D$79,M197,DefaultData!$D$80,DefaultData!$D$76*DefaultData!$D$34*DefaultData!$D$78),0) -> 0 | P197: 0
C198: Total | D198: =SUM(D168:D197) -> 475000000 | E198: =SUM(E168:E197) -> 500000000 | F198: 975000000 | H198: Total | I198: =SUM(I168:I197) -> 0 | J198: =SUM(J168:J197) -> 0 | K198: 0 | M198: Total | N198: =SUM(N168:N197) -> 90000000 | O198: =SUM(O168:O197) -> 125000000 | P198: 215000000
C199: AvgAnn | D199: =D198/DefaultData!$D72 -> 23750000 | E199: =E198/DefaultData!$D72 -> 25000000 | F199: 48750000 | H199: AvgAnn | I199: =I198/DefaultData!$D80 -> 0 | J199: =J198/DefaultData!$D80 -> 0 | K199: 0 | M199: AvgAnn | N199: =N198/DefaultData!$D80 -> 9000000 | O199: =O198/DefaultData!$D80 -> 12500000 | P199: 21500000
C201: User Modified (from Project Data worksheet - based on loan parameters) | H201: User Modified (from Project Data worksheet - based on equity investment parameters) | M201: User Modified (from Project Data worksheet - based on equity investment parameters)
C202: Loan Repayment Schedule | H202: Equity - Individual Investment Repayment Schedule | M202: Equity - Corporate Investment Repayment Schedule
D203: Interest Pmt | E203: Principal Pmt | F203: Total Pmt | I203: Interest Pmt | J203: Principal Pmt | K203: Total Pmt | N203: Interest Pmt | O203: Principal Pmt | P203: Total Pmt
C204: 1 | D204: =IF(C204<=ProjectData!B$80,-ISPMT(ProjectData!B$81,C204,ProjectData!B$80,ProjectData!B$79*ProjectData!B$52),0) -> 47500000 | E204: =IF(C204<=ProjectData!B$80,-PPMT(ProjectData!B$81,C204,ProjectData!B$80,ProjectData!B$52*ProjectData!B$79),0) -> 8729812.386 | F204: =E204+D204 -> 56229812.39 | H204: 1 | I204: =IF(H204<=ProjectData!B$87,-ISPMT(ProjectData!B$86,H204,ProjectData!B$87,ProjectData!B$52*ProjectData!B$83*ProjectData!B$84),0) -> 0 | J204: =IF(H204<=ProjectData!B$87,-PPMT(ProjectData!B$86,H204,ProjectData!B$87,ProjectData!B$83*ProjectData!B$52*ProjectData!B$84),0) -> 0 | K204: =J204+I204 -> 0 | M204: 1 | N204: =IF(M204<=ProjectData!$B$87,-ISPMT(ProjectData!$B$86,M204,ProjectData!$B$87,ProjectData!$B$52*ProjectData!$B$83*ProjectData!$B$85),0) -> 18000000 | O204: =IF(M204<=ProjectData!$B$87,-PPMT(ProjectData!$B$86,M204,ProjectData!$B$87,ProjectData!$B$83*ProjectData!$B$52*ProjectData!$B$85),0) -> 5862635.383 | P204: =O204+N204 -> 23862635.38
C205: 2 | D205: =IF(C205<=ProjectData!B$80,-ISPMT(ProjectData!B$81,C205,ProjectData!B$80,ProjectData!B$79*ProjectData!B$52),0) -> 45000000 | E205: =IF(C205<=ProjectData!B$80,-PPMT(ProjectData!B$81,C205,ProjectData!B$80,ProjectData!B$52*ProjectData!B$79),0) -> 9602793.625 | F205: 54602793.62 | H205: 2 | I205: =IF(H205<=ProjectData!B$87,-ISPMT(ProjectData!B$86,H205,ProjectData!B$87,ProjectData!B$52*ProjectData!B$83*ProjectData!B$84),0) -> 0 | J205: =IF(H205<=ProjectData!B$87,-PPMT(ProjectData!B$86,H205,ProjectData!B$87,ProjectData!B$83*ProjectData!B$52*ProjectData!B$84),0) -> 0 | K205: 0 | M205: 2 | N205: =IF(M205<=ProjectData!$B$87,-ISPMT(ProjectData!$B$86,M205,ProjectData!$B$87,ProjectData!$B$52*ProjectData!$B$83*ProjectData!$B$85),0) -> 16000000 | O205: =IF(M205<=ProjectData!$B$87,-PPMT(ProjectData!$B$86,M205,ProjectData!$B$87,ProjectData!$B$83*ProjectData!$B$52*ProjectData!$B$85),0) -> 6800657.045 | P205: 22800657.04
C206: 3 | D206: =IF(C206<=ProjectData!B$80,-ISPMT(ProjectData!B$81,C206,ProjectData!B$80,ProjectData!B$79*ProjectData!B$52),0) -> 42500000 | E206: =IF(C206<=ProjectData!B$80,-PPMT(ProjectData!B$81,C206,ProjectData!B$80,ProjectData!B$52*ProjectData!B$79),0) -> 10563072.99 | F206: 53063072.99 | H206: 3 | I206: =IF(H206<=ProjectData!B$87,-ISPMT(ProjectData!B$86,H206,ProjectData!B$87,ProjectData!B$52*ProjectData!B$83*ProjectData!B$84),0) -> 0 | J206: =IF(H206<=ProjectData!B$87,-PPMT(ProjectData!B$86,H206,ProjectData!B$87,ProjectData!B$83*ProjectData!B$52*ProjectData!B$84),0) -> 0 | K206: 0 | M206: 3 | N206: =IF(M206<=ProjectData!$B$87,-ISPMT(ProjectData!$B$86,M206,ProjectData!$B$87,ProjectData!$B$52*ProjectData!$B$83*ProjectData!$B$85),0) -> 14000000 | O206: =IF(M206<=ProjectData!$B$87,-PPMT(ProjectData!$B$86,M206,ProjectData!$B$87,ProjectData!$B$83*ProjectData!$B$52*ProjectData!$B$85),0) -> 7888762.172 | P206: 21888762.17
C207: 4 | D207: =IF(C207<=ProjectData!B$80,-ISPMT(ProjectData!B$81,C207,ProjectData!B$80,ProjectData!B$79*ProjectData!B$52),0) -> 40000000 | E207: =IF(C207<=ProjectData!B$80,-PPMT(ProjectData!B$81,C207,ProjectData!B$80,ProjectData!B$52*ProjectData!B$79),0) -> 11619380.29 | F207: 51619380.29 | H207: 4 | I207: =IF(H207<=ProjectData!B$87,-ISPMT(ProjectData!B$86,H207,ProjectData!B$87,ProjectData!B$52*ProjectData!B$83*ProjectData!B$84),0) -> 0 | J207: =IF(H207<=ProjectData!B$87,-PPMT(ProjectData!B$86,H207,ProjectData!B$87,ProjectData!B$83*ProjectData!B$52*ProjectData!B$84),0) -> 0 | K207: 0 | M207: 4 | N207: =IF(M207<=ProjectData!$B$87,-ISPMT(ProjectData!$B$86,M207,ProjectData!$B$87,ProjectData!$B$52*ProjectData!$B$83*ProjectData!$B$85),0) -> 12000000 | O207: =IF(M207<=ProjectData!$B$87,-PPMT(ProjectData!$B$86,M207,ProjectData!$B$87,ProjectData!$B$83*ProjectData!$B$52*ProjectData!$B$85),0) -> 9150964.119 | P207: 21150964.12
C208: 5 | D208: =IF(C208<=ProjectData!B$80,-ISPMT(ProjectData!B$81,C208,ProjectData!B$80,ProjectData!B$79*ProjectData!B$52),0) -> 37500000 | E208: =IF(C208<=ProjectData!B$80,-PPMT(ProjectData!B$81,C208,ProjectData!B$80,ProjectData!B$52*ProjectData!B$79),0) -> 12781318.31 | F208: 50281318.31 | H208: 5 | I208: =IF(H208<=ProjectData!B$87,-ISPMT(ProjectData!B$86,H208,ProjectData!B$87,ProjectData!B$52*ProjectData!B$83*ProjectData!B$84),0) -> 0 | J208: =IF(H208<=ProjectData!B$87,-PPMT(ProjectData!B$86,H208,ProjectData!B$87,ProjectData!B$83*ProjectData!B$52*ProjectData!B$84),0) -> 0 | K208: 0 | M208: 5 | N208: =IF(M208<=ProjectData!$B$87,-ISPMT(ProjectData!$B$86,M208,ProjectData!$B$87,ProjectData!$B$52*ProjectData!$B$83*ProjectData!$B$85),0) -> 10000000 | O208: =IF(M208<=ProjectData!$B$87,-PPMT(ProjectData!$B$86,M208,ProjectData!$B$87,ProjectData!$B$83*ProjectData!$B$52*ProjectData!$B$85),0) -> 10615118.38 | P208: 20615118.38
C209: 6 | D209: =IF(C209<=ProjectData!B$80,-ISPMT(ProjectData!B$81,C209,ProjectData!B$80,ProjectData!B$79*ProjectData!B$52),0) -> 35000000 | E209: =IF(C209<=ProjectData!B$80,-PPMT(ProjectData!B$81,C209,ProjectData!B$80,ProjectData!B$52*ProjectData!B$79),0) -> 14059450.15 | F209: 49059450.15 | H209: 6 | I209: =IF(H209<=ProjectData!B$87,-ISPMT(ProjectData!B$86,H209,ProjectData!B$87,ProjectData!B$52*ProjectData!B$83*ProjectData!B$84),0) -> 0 | J209: =IF(H209<=ProjectData!B$87,-PPMT(ProjectData!B$86,H209,ProjectData!B$87,ProjectData!B$83*ProjectData!B$52*ProjectData!B$84),0) -> 0 | K209: 0 | M209: 6 | N209: =IF(M209<=ProjectData!$B$87,-ISPMT(ProjectData!$B$86,M209,ProjectData!$B$87,ProjectData!$B$52*ProjectData!$B$83*ProjectData!$B$85),0) -> 8000000 | O209: =IF(M209<=ProjectData!$B$87,-PPMT(ProjectData!$B$86,M209,ProjectData!$B$87,ProjectData!$B$83*ProjectData!$B$52*ProjectData!$B$85),0) -> 12313537.32 | P209: 20313537.32
C210: 7 | D210: =IF(C210<=ProjectData!B$80,-ISPMT(ProjectData!B$81,C210,ProjectData!B$80,ProjectData!B$79*ProjectData!B$52),0) -> 32500000 | E210: =IF(C210<=ProjectData!B$80,-PPMT(ProjectData!B$81,C210,ProjectData!B$80,ProjectData!B$52*ProjectData!B$79),0) -> 15465395.16 | F210: 47965395.16 | H210: 7 | I210: =IF(H210<=ProjectData!B$87,-ISPMT(ProjectData!B$86,H210,ProjectData!B$87,ProjectData!B$52*ProjectData!B$83*ProjectData!B$84),0) -> 0 | J210: =IF(H210<=ProjectData!B$87,-PPMT(ProjectData!B$86,H210,ProjectData!B$87,ProjectData!B$83*ProjectData!B$52*ProjectData!B$84),0) -> 0 | K210: 0 | M210: 7 | N210: =IF(M210<=ProjectData!$B$87,-ISPMT(ProjectData!$B$86,M210,ProjectData!$B$87,ProjectData!$B$52*ProjectData!$B$83*ProjectData!$B$85),0) -> 6000000 | O210: =IF(M210<=ProjectData!$B$87,-PPMT(ProjectData!$B$86,M210,ProjectData!$B$87,ProjectData!$B$83*ProjectData!$B$52*ProjectData!$B$85),0) -> 14283703.29 | P210: 20283703.29
... 30 more rows

Sheet Multipliers (hidden)
C1: Multipliers For Economic Input-Output Analysis
C2: Year of Data | D2: 2014
C3: Jobs Per Million Dollars Change in Final Demand
C4: Jobs Direct Multipliers | D4: Alabama | E4: Alaska | F4: Arizona | G4: Arkansas | H4: California | I4: Colorado | J4: Connecticut | K4: Delaware | L4: District of Columbia | M4: Florida | N4: Georgia | O4: Hawaii | P4: Idaho | Q4: Illinois | R4: Indiana | S4: Iowa | T4: Kansas | U4: Kentucky | V4: Louisiana | W4: Maine | X4: Maryland | Y4: Massachusetts | Z4: Michigan | AA4: Minnesota | AB4: Mississippi | AC4: Missouri | AD4: Montana | AE4: MyCounty | AF4: MyRegion | AG4: Nebraska | AH4: Nevada | AI4: New Hampshire | AJ4: New Jersey | AK4: New Mexico | AL4: New York | AM4: North Carolina | AN4: North Dakota | AO4: Ohio | AP4: Oklahoma | AQ4: Oregon | AR4: Pennsylvania | AS4: Rhode Island | AT4: South Carolina | AU4: South Dakota | AV4: Tennessee | AW4: Texas | AX4: United States | AY4: Utah | AZ4: Vermont | BA4: Virginia | BB4: Washington | BC4: West Virginia | BD4: Wisconsin | BE4: Wyoming
A5: Warning | C5: Agriculture | D5: 6.566301505 | E5: 15.00798786 | F5: 7.084637135 | G5: 4.826203119 | H5: 6.406473951 | I5: 5.332756246 | J5: 10.92911051 | K5: 2.142725394 | L5: 32.54869104 | M5: 9.84666822 | N5: 5.300310796 | O5: 15.7001553 | P5: 4.394204329 | Q5: 3.975800704 | R5: 4.925988671 | S5: 2.856584219 | T5: 3.3648776 | U5: 11.00036025 | V5: 8.009157392 | W5: 12.25358869 | X5: 6.770732962 | Y5: 14.2032497 | Z5: 7.462780943 | AA5: 4.183273309 | AB5: 5.943993734 | AC5: 8.067411278 | AD5: 5.871679553 | AE5: ='User Add-in Location'!B9 -> 0 | AF5: ='User Add-in Location'!C9 -> 0 | AG5: 1.94 | AH5: 5.058 | AI5: 14.271 | AJ5: 14.399 | AK5: 7.201 | AL5: 7.848 | AM5: 4.672 | AN5: 3.677 | AO5: 7.389 | AP5: 9.556 | AQ5: 10.974 | AR5: 7.962 | AS5: 12.478 | AT5: 8.89 | AU5: 2.874 | AV5: 14.213 | AW5: 9.069 | AX5: 6.185 | AY5: 6.983 | AZ5: 8.758 | BA5: 10.059 | BB5: 8.553 | BC5: 18.068 | BD5: 6.072 | BE5: 6.087
C6: Mining | D6: 2.121725317 | E6: 1.154506435 | F6: 2.257920818 | G6: 3.381585273 | H6: 1.900933183 | I6: 2.470654419 | J6: 4.560099781 | K6: 4.344126743 | L6: 5.427036589 | M6: 3.862160282 | N6: 4.170659024 | O6: 5.132557634 | P6: 3.974133422 | Q6: 2.999673208 | R6: 2.51679321 | S6: 4.757555837 | T6: 4.857676022 | U6: 2.209793768 | V6: 2.309223161 | W6: 7.269813786 | X6: 3.08386688 | Y6: 3.960562886 | Z6: 4.143467668 | AA6: 2.358541005 | AB6: 3.56174451 | AC6: 3.018330229 | AD6: 2.715247624 | AE6: ='User Add-in Location'!B10 -> 0 | AF6: ='User Add-in Location'!C10 -> 0 | AG6: 4.363 | AH6: 2.315 | AI6: 5.067 | AJ6: 3.733 | AK6: 2.587 | AL6: 5.274 | AM6: 3.413 | AN6: 2.54 | AO6: 3.12 | AP6: 3.084 | AQ6: 5.289 | AR6: 2.283 | AS6: 5.234 | AT6: 4.848 | AU6: 4.918 | AV6: 3.489 | AW6: 1.876 | AX6: 2.301 | AY6: 2.686 | AZ6: 4.407 | BA6: 2.472 | BB6: 4.319 | BC6: 2.09 | BD6: 3.808 | BE6: 1.692
A7: This Worksheet contains Data and Formulas that are an integral part of the JEDI model. | C7: Construction | D7: 5.658464877 | E7: 4.605736505 | F7: 5.424763932 | G7: 5.864647721 | H7: 5.290770034 | I7: 5.648863013 | J7: 5.165300016 | K7: 5.752076231 | L7: 5.172071493 | M7: 5.679083343 | N7: 5.624088496 | O7: 4.746385538 | P7: 6.161492008 | Q7: 5.076730913 | R7: 5.737118538 | S7: 5.598390968 | T7: 5.830203625 | U7: 5.636659357 | V7: 5.459092594 | W7: 6.096579447 | X7: 5.354560075 | Y7: 5.231740932 | Z7: 5.650198221 | AA7: 5.140882706 | AB7: 5.682670408 | AC7: 5.812212401 | AD7: 5.7962149 | AE7: ='User Add-in Location'!B11 -> 0 | AF7: ='User Add-in Location'!C11 -> 0 | AG7: 5.474 | AH7: 5.32 | AI7: 5.792 | AJ7: 4.964 | AK7: 5.827 | AL7: 4.978 | AM7: 5.834 | AN7: 5.409 | AO7: 5.69 | AP7: 5.765 | AQ7: 5.626 | AR7: 5.575 | AS7: 5.035 | AT7: 5.725 | AU7: 6.014 | AV7: 5.783 | AW7: 5.177 | AX7: 5.44 | AY7: 5.594 | AZ7: 6.153 | BA7: 5.649 | BB7: 5.287 | BC7: 5.382 | BD7: 5.666 | BE7: 5.148
C8: Manufacturing | D8: 1.722263429 | E8: 2.026583535 | F8: 2.356520262 | G8: 2.108720256 | H8: 1.775246229 | I8: 2.085765814 | J8: 2.169984453 | K8: 1.528338099 | L8: 3.089486298 | M8: 2.451248791 | N8: 1.993219047 | O8: 1.99791402 | P8: 1.907363004 | Q8: 1.715457132 | R8: 1.65804698 | S8: 1.754338829 | T8: 1.633724235 | U8: 1.547241314 | V8: 0.6666777554 | W8: 2.413729585 | X8: 2.140737982 | Y8: 2.090552425 | Z8: 1.734994975 | AA8: 2.060976559 | AB8: 1.766480426 | AC8: 1.81842181 | AD8: 1.142202462 | AE8: ='User Add-in Location'!B12 -> 0 | AF8: ='User Add-in Location'!C12 -> 0 | AG8: 1.716 | AH8: 2.669 | AI8: 2.702 | AJ8: 1.618 | AK8: 1.639 | AL8: 2.23 | AM8: 1.823 | AN8: 1.713 | AO8: 1.811 | AP8: 1.82 | AQ8: 2.551 | AR8: 1.988 | AS8: 2.675 | AT8: 1.88 | AU8: 2.255 | AV8: 1.861 | AW8: 1.046 | AX8: 1.74 | AY8: 1.884 | AZ8: 2.516 | BA8: 2.07 | BB8: 1.575 | BC8: 1.388 | BD8: 2.3 | BE8: 0.7
A9: Although the data and formulas are available for review they must not be changed. | C9: Fabricated Metals | D9: 3.720983504 | E9: 4.038309568 | F9: 4.430362292 | G9: 3.585653411 | H9: 4.163223421 | I9: 3.70814309 | J9: 3.917571749 | K9: 4.144720426 | L9: 0 | M9: 4.178092585 | N9: 4.096107755 | O9: 4.56051251 | P9: 4.631162456 | Q9: 3.962268143 | R9: 3.973712765 | S9: 3.867207218 | T9: 3.953798003 | U9: 3.997935524 | V9: 3.471644522 | W9: 3.916482248 | X9: 4.112196994 | Y9: 3.784932533 | Z9: 4.069965751 | AA9: 4.114231994 | AB9: 4.104337122 | AC9: 4.067109805 | AD9: 4.133525838 | AE9: ='User Add-in Location'!B13 -> 0 | AF9: ='User Add-in Location'!C13 -> 0 | AG9: 3.686 | AH9: 4.061 | AI9: 3.824 | AJ9: 3.995 | AK9: 4.472 | AL9: 3.913 | AM9: 3.916 | AN9: 3.869 | AO9: 3.865 | AP9: 3.362 | AQ9: 3.91 | AR9: 3.981 | AS9: 4.538 | AT9: 3.647 | AU9: 3.73 | AV9: 3.714 | AW9: 3.678 | AX9: 3.869 | AY9: 3.816 | AZ9: 4.485 | BA9: 3.616 | BB9: 4.025 | BC9: 4.147 | BD9: 3.979 | BE9: 3.624
C10: Machinery | D10: 1.886453153 | E10: 2.3926353 | F10: 2.133516161 | G10: 2.373938912 | H10: 2.113626381 | I10: 1.671733698 | J10: 2.025134587 | K10: 2.981434556 | L10: 2.482101585 | M10: 2.296220139 | N10: 1.900483916 | O10: 1.895837443 | P10: 2.021468989 | Q10: 1.738677709 | R10: 1.371589495 | S10: 1.539954945 | T10: 2.011445987 | U10: 2.350756106 | V10: 2.137380697 | W10: 2.44305185 | X10: 1.463423528 | Y10: 2.484971202 | Z10: 2.293084266 | AA10: 2.234651032 | AB10: 1.49963951 | AC10: 1.672030595 | AD10: 2.074005137 | AE10: ='User Add-in Location'!B14 -> 0 | AF10: ='User Add-in Location'!C14 -> 0 | AG10: 1.541 | AH10: 2.193 | AI10: 2.734 | AJ10: 2.767 | AK10: 2.107 | AL10: 1.955 | AM10: 1.795 | AN10: 1.548 | AO10: 2.385 | AP10: 1.964 | AQ10: 2.48 | AR10: 2.249 | AS10: 3.265 | AT10: 1.841 | AU10: 1.887 | AV10: 1.798 | AW10: 2.051 | AX10: 1.905 | AY10: 1.866 | AZ10: 3.197 | BA10: 2.828 | BB10: 2.504 | BC10: 3.165 | BD10: 1.729 | BE10: 2.333
A11: Any changes to the data or formulas will impact the analysis and may invalidate the model results. | C11: Electrical Equipment | D11: 3.747754946 | E11: 0 | F11: 1.170886574 | G11: 3.016914665 | H11: 1.319321895 | I11: 1.513755961 | J11: 2.455377145 | K11: 3.570936006 | L11: 0.6757981732 | M11: 1.676763706 | N11: 2.53584118 | O11: 1.149847782 | P11: 1.124117735 | Q11: 3.009896796 | R11: 3.262094721 | S11: 2.501515165 | T11: 2.668945997 | U11: 3.702867134 | V11: 2.838088487 | W11: 1.522556992 | X11: 3.052604501 | Y11: 1.369327418 | Z11: 2.930208455 | AA11: 2.311043319 | AB11: 2.755542794 | AC11: 1.927473116 | AD11: 1.756795569 | AE11: ='User Add-in Location'!B15 -> 0 | AF11: ='User Add-in Location'!C15 -> 0 | AG11: 4.064 | AH11: 3.33 | AI11: 2.723 | AJ11: 2.342 | AK11: 0.984 | AL11: 1.835 | AM11: 1.326 | AN11: 3.221 | AO11: 2.313 | AP11: 3.187 | AQ11: 0.563 | AR11: 2.427 | AS11: 1.843 | AT11: 3.683 | AU11: 3.063 | AV11: 3.015 | AW11: 1.241 | AX11: 1.359 | AY11: 1.457 | AZ11: 1.46 | BA11: 1.696 | BB11: 1.836 | BC11: 2.477 | BD11: 3.44 | BE11: 5.032
C12: TCPU | D12: 2.283608886 | E12: 1.645986495 | F12: 2.459674264 | G12: 3.284334276 | H12: 3.202737095 | I12: 2.710833008 | J12: 3.011261121 | K12: 2.707828264 | L12: 4.166595066 | M12: 2.710778823 | N12: 2.804426209 | O12: 2.241599856 | P12: 3.414317561 | Q12: 3.452649813 | R12: 3.190412521 | S12: 3.26513922 | T12: 2.578994344 | U12: 2.854591237 | V12: 2.430578727 | W12: 3.315745535 | X12: 2.814767977 | Y12: 3.1121429 | Z12: 2.675160416 | AA12: 3.042009531 | AB12: 2.789842394 | AC12: 3.14421563 | AD12: 2.605081233 | AE12: ='User Add-in Location'!B16 -> 0 | AF12: ='User Add-in Location'!C16 -> 0 | AG12: 2.744 | AH12: 0 | AI12: 2.785 | AJ12: 3.518 | AK12: 2.673 | AL12: 3.564 | AM12: 3.051 | AN12: 2.75 | AO12: 3.011 | AP12: 2.13 | AQ12: 2.945 | AR12: 3.461 | AS12: 3.39 | AT12: 2.459 | AU12: 3.144 | AV12: 3.183 | AW12: 2.626 | AX12: 2.97 | AY12: 3.567 | AZ12: 2.615 | BA12: 3.268 | BB12: 2.961 | BC12: 2.501 | BD12: 3.306 | BE12: 2.111
C13: Wholesale Trade | D13: 3.940881736 | E13: 3.514911845 | F13: 3.685652831 | G13: 3.481172608 | H13: 3.375396676 | I13: 3.662646963 | J13: 3.025677558 | K13: 3.366370311 | L13: 3.137867347 | M13: 3.576838971 | N13: 3.462482362 | O13: 4.387286957 | P13: 4.234213406 | Q13: 3.389059468 | R13: 3.87941033 | S13: 3.999720777 | T13: 3.713357157 | U13: 3.667716795 | V13: 3.716003035 | W13: 3.915924831 | X13: 3.536271716 | Y13: 3.380872889 | Z13: 3.564893215 | AA13: 3.657934173 | AB13: 4.049456476 | AC13: 3.852700561 | AD13: 4.083031113 | AE13: ='User Add-in Location'!B17 -> 0 | AF13: ='User Add-in Location'!C17 -> 0 | AG13: 3.971 | AH13: 3.827 | AI13: 3.677 | AJ13: 3.13 | AK13: 4.385 | AL13: 3.206 | AM13: 3.827 | AN13: 3.558 | AO13: 3.767 | AP13: 3.814 | AQ13: 3.862 | AR13: 3.457 | AS13: 3.713 | AT13: 3.721 | AU13: 3.934 | AV13: 3.702 | AW13: 3.261 | AX13: 3.524 | AY13: 4.038 | AZ13: 4.188 | BA13: 3.64 | BB13: 3.456 | BC13: 3.926 | BD13: 3.973 | BE13: 3.523
C14: Retail Trade | D14: 11.95631014 | E14: 12.34929243 | F14: 11.11949076 | G14: 12.82827608 | H14: 10.24403121 | I14: 12.19017333 | J14: 11.05452269 | K14: 13.11178238 | L14: 11.22845538 | M14: 11.93067004 | N14: 12.37445878 | O14: 10.96384825 | P14: 12.6050209 | Q14: 11.98193502 | R14: 12.7164949 | S14: 13.69820281 | T14: 12.32988458 | U14: 13.61372301 | V14: 11.97193869 | W14: 12.81210034 | X14: 11.81415757 | Y14: 12.58433866 | Z14: 11.82613669 | AA14: 12.21553939 | AB14: 12.63467494 | AC14: 12.99716225 | AD14: 14.28571584 | AE14: ='User Add-in Location'!B18 -> 0 | AF14: ='User Add-in Location'!C18 -> 0 | AG14: 13.051 | AH14: 7.792 | AI14: 12.737 | AJ14: 10.862 | AK14: 12.952 | AL14: 10.887 | AM14: 13.453 | AN14: 12.232 | AO14: 12.205 | AP14: 12.485 | AQ14: 13.786 | AR14: 13.023 | AS14: 12.024 | AT14: 12.666 | AU14: 12.828 | AV14: 12.02 | AW14: 11.103 | AX14: 11.765 | AY14: 11.812 | AZ14: 12.469 | BA14: 12.34 | BB14: 9.576 | BC14: 12.811 | BD14: 12.845 | BE14: 12.39
C15: FIRE | D15: 5.57680298 | E15: 4.538493312 | F15: 5.628341884 | G15: 5.553065675 | H15: 4.406329268 | I15: 5.424818837 | J15: 3.437540676 | K15: 2.967515542 | L15: 3.269774774 | M15: 5.780774123 | N15: 4.710104015 | O15: 4.556523754 | P15: 5.707009331 | Q15: 4.129217207 | R15: 4.855444572 | S15: 4.085347867 | T15: 5.315893908 | U15: 5.191717741 | V15: 5.743036973 | W15: 4.561257007 | X15: 4.372383638 | Y15: 3.631232683 | Z15: 5.082985895 | AA15: 4.472011919 | AB15: 5.5064103 | AC15: 4.959296987 | AD15: 5.911714098 | AE15: ='User Add-in Location'!B19 -> 0 | AF15: ='User Add-in Location'!C19 -> 0 | AG15: 4.468 | AH15: 0 | AI15: 4.22 | AJ15: 4.307 | AK15: 5.01 | AL15: 2.828 | AM15: 4.252 | AN15: 4.955 | AO15: 4.06 | AP15: 5.57 | AQ15: 5.112 | AR15: 4.319 | AS15: 4.046 | AT15: 5.563 | AU15: 3.982 | AV15: 5.021 | AW15: 5.513 | AX15: 4.47 | AY15: 5.235 | AZ15: 4.655 | BA15: 4.598 | BB15: 4.492 | BC15: 5.065 | BD15: 4.323 | BE15: 5.696
C16: Misc. Services | D16: 5.966384458 | E16: 5.421060997 | F16: 6.186165631 | G16: 7.014538529 | H16: 5.033424977 | I16: 5.613721645 | J16: 5.238210305 | K16: 4.074880673 | L16: 3.300984228 | M16: 6.254501876 | N16: 6.054370402 | O16: 5.902937884 | P16: 5.926176543 | Q16: 4.899407697 | R16: 5.345679638 | S16: 6.279439239 | T16: 6.458609542 | U16: 6.631448385 | V16: 6.184171536 | W16: 6.463589402 | X16: 5.008065627 | Y16: 4.342149864 | Z16: 5.649893792 | AA16: 5.606170974 | AB16: 6.954467438 | AC16: 5.711629249 | AD16: 7.079556797 | AE16: ='User Add-in Location'!B20 -> 0 | AF16: ='User Add-in Location'!C20 -> 0 | AG16: 6.066 | AH16: 6.245 | AI16: 5.779 | AJ16: 4.924 | AK16: 4.868 | AL16: 4.574 | AM16: 5.484 | AN16: 5.984 | AO16: 5.926 | AP16: 6.711 | AQ16: 5.592 | AR16: 5.123 | AS16: 5.923 | AT16: 6.295 | AU16: 6.718 | AV16: 5.79 | AW16: 5.477 | AX16: 5.329 | AY16: 6.319 | AZ16: 6.514 | BA16: 5.019 | BB16: 5.317 | BC16: 6.07 | BD16: 5.947 | BE16: 6.698
C17: Professional Services | D17: 8.676103089 | E17: 7.050957372 | F17: 7.873900538 | G17: 7.724927774 | H17: 6.730931978 | I17: 7.01002572 | J17: 6.636015356 | K17: 7.565920304 | L17: 6.255980836 | M17: 8.215776058 | N17: 7.399140396 | O17: 8.055422579 | P17: 9.126508033 | Q17: 7.400240448 | R17: 8.566045667 | S17: 8.719636666 | T17: 7.72315742 | U17: 8.484307593 | V17: 8.181339305 | W17: 8.694315657 | X17: 7.102651242 | Y17: 6.917442091 | Z17: 8.33230856 | AA17: 7.572606203 | AB17: 8.973313448 | AC17: 7.515239094 | AD17: 9.292308615 | AE17: ='User Add-in Location'!B21 -> 0 | AF17: ='User Add-in Location'!C21 -> 0 | AG17: 8.277 | AH17: 7.906 | AI17: 7.551 | AJ17: 6.694 | AK17: 7.923 | AL17: 6.571 | AM17: 8.204 | AN17: 7.849 | AO17: 8.075 | AP17: 8.15 | AQ17: 8.061 | AR17: 7.436 | AS17: 7.519 | AT17: 8.465 | AU17: 8.546 | AV17: 7.997 | AW17: 7.504 | AX17: 7.445 | AY17: 7.942 | AZ17: 8.727 | BA17: 7.037 | BB17: 5.968 | BC17: 8.532 | BD17: 8.066 | BE17: 8.344
A18: To view the data and formulas simply scroll over to the adjacent columns to the right. | C18: Government | D18: 8.657383336 | E18: 7.868630479 | F18: 8.181833948 | G18: 11.91821956 | H18: 6.770617173 | I18: 9.711362017 | J18: 6.58025484 | K18: 8.582900024 | L18: 4.369121568 | M18: 8.689600875 | N18: 10.18366731 | O18: 8.098019677 | P18: 11.16642991 | Q18: 9.243610901 | R18: 11.81268678 | S18: 10.93198947 | T18: 11.40573171 | U18: 10.06286351 | V18: 10.26485663 | W18: 10.41489398 | X18: 5.81563841 | Y18: 6.468442506 | Z18: 9.650036194 | AA18: 9.588872337 | AB18: 11.85901764 | AC18: 10.39527543 | AD18: 10.62671193 | AE18: ='User Add-in Location'!B22 -> 0 | AF18: ='User Add-in Location'!C22 -> 0 | AG18: 11.165 | AH18: 7.31 | AI18: 8.182 | AJ18: 8.001 | AK18: 6.371 | AL18: 6.644 | AM18: 10.441 | AN18: 10.325 | AO18: 9.062 | AP18: 9.041 | AQ18: 8.745 | AR18: 8.422 | AS18: 6.856 | AT18: 10.175 | AU18: 10.57 | AV18: 9.989 | AW18: 9.54 | AX18: 8.37 | AY18: 10.32 | AZ18: 10.729 | BA18: 7.094 | BB18: 7.405 | BC18: 10.044 | BD18: 9.214 | BE18: 10.039
C20: Jobs Per Million Dollars Change in Final Demand
C21: Jobs Indirect Multipliers | D21: Alabama | E21: Alaska | F21: Arizona | G21: Arkansas | H21: California | I21: Colorado | J21: Connecticut | K21: Delaware | L21: District of Columbia | M21: Florida | N21: Georgia | O21: Hawaii | P21: Idaho | Q21: Illinois | R21: Indiana | S21: Iowa | T21: Kansas | U21: Kentucky | V21: Louisiana | W21: Maine | X21: Maryland | Y21: Massachusetts | Z21: Michigan | AA21: Minnesota | AB21: Mississippi | AC21: Missouri | AD21: Montana | AE21: MyCounty | AF21: MyRegion | AG21: Nebraska | AH21: Nevada | AI21: New Hampshire | AJ21: New Jersey | AK21: New Mexico | AL21: New York | AM21: North Carolina | AN21: North Dakota | AO21: Ohio | AP21: Oklahoma | AQ21: Oregon | AR21: Pennsylvania | AS21: Rhode Island | AT21: South Carolina | AU21: South Dakota | AV21: Tennessee | AW21: Texas | AX21: United States | AY21: Utah | AZ21: Vermont | BA21: Virginia | BB21: Washington | BC21: West Virginia | BD21: Wisconsin | BE21: Wyoming
C22: Agriculture | D22: 1.319513921 | E22: 0.5703235415 | F22: 1.165353439 | G22: 1.834331818 | H22: 0.7834669005 | I22: 2.026241145 | J22: 0.4780140413 | K22: 0.9070569782 | L22: 0.5029372137 | M22: 0.9565018046 | N22: 1.305311264 | O22: 1.165347712 | P22: 1.66038997 | Q22: 1.168718992 | R22: 0.9044684848 | S22: 1.210844038 | T22: 1.742841513 | U22: 1.22197098 | V22: 0.7252396053 | W22: 1.457319133 | X22: 0.8659669208 | Y22: 0.4385928514 | Z22: 1.00593579 | AA22: 1.436992863 | AB22: 1.358500661 | AC22: 1.47400249 | AD22: 1.824493293 | AE22: ='User Add-in Location'!B26 -> 0 | AF22: ='User Add-in Location'!C26 -> 0 | AG22: 1.366 | AH22: 0.504 | AI22: 0.867 | AJ22: 0.426 | AK22: 1.484 | AL22: 0.975 | AM22: 1.009 | AN22: 1.251 | AO22: 1.062 | AP22: 1.723 | AQ22: 1.678 | AR22: 1.163 | AS22: 0.483 | AT22: 0.96 | AU22: 1.491 | AV22: 1.286 | AW22: 1.528 | AX22: 2.516 | AY22: 1.235 | AZ22: 2.178 | BA22: 1.274 | BB22: 0.888 | BC22: 1.305 | BD22: 1.936 | BE22: 0.908
C23: Mining | D23: 1.346741372 | E23: 0.3854762229 | F23: 1.760999887 | G23: 1.57240124 | H23: 1.065665425 | I23: 1.442883395 | J23: 1.620188063 | K23: 1.49295829 | L23: 1.247215879 | M23: 2.813005724 | N23: 1.640434376 | O23: 1.758629343 | P23: 1.918676432 | Q23: 1.814276626 | R23: 1.691773373 | S23: 1.5867199 | T23: 2.89075083 | U23: 1.582600524 | V23: 0.9860352088 | W23: 2.762200093 | X23: 2.09805794 | Y23: 2.13432945 | Z23: 2.277222813 | AA23: 1.544520503 | AB23: 1.609170872 | AC23: 1.824329763 | AD23: 1.887356067 | AE23: ='User Add-in Location'!B27 -> 0 | AF23: ='User Add-in Location'!C27 -> 0 | AG23: 1.635 | AH23: 1.026 | AI23: 1.802 | AJ23: 1.842 | AK23: 1.413 | AL23: 1.902 | AM23: 1.592 | AN23: 0.986 | AO23: 1.965 | AP23: 1.876 | AQ23: 2.259 | AR23: 1.355 | AS23: 1.925 | AT23: 1.754 | AU23: 1.96 | AV23: 1.684 | AW23: 1.091 | AX23: 2.057 | AY23: 1.717 | AZ23: 1.507 | BA23: 1.589 | BB23: 1.71 | BC23: 1.549 | BD23: 1.401 | BE23: 0.888
C24: Construction | D24: 2.85242293 | E24: 1.94161881 | F24: 2.870700919 | G24: 3.019637513 | H24: 2.936072941 | I24: 3.169258981 | J24: 2.553290429 | K24: 2.694446186 | L24: 1.270779025 | M24: 3.406551081 | N24: 3.2325782 | O24: 2.220518683 | P24: 3.400061824 | Q24: 2.773124388 | R24: 2.961146494 | S24: 2.913186712 | T24: 3.055180497 | U24: 2.884599262 | V24: 2.396554365 | W24: 3.597705335 | X24: 2.365404662 | Y24: 2.630187595 | Z24: 3.145467919 | AA24: 2.977011292 | AB24: 2.789715416 | AC24: 3.261789625 | AD24: 3.215115969 | AE24: ='User Add-in Location'!B28 -> 0 | AF24: ='User Add-in Location'!C28 -> 0 | AG24: 2.917 | AH24: 1.029 | AI24: 3.318 | AJ24: 2.458 | AK24: 2.697 | AL24: 2.234 | AM24: 3.372 | AN24: 2.46 | AO24: 3.287 | AP24: 3.071 | AQ24: 3.126 | AR24: 3.112 | AS24: 2.486 | AT24: 2.983 | AU24: 3.095 | AV24: 3.281 | AW24: 2.882 | AX24: 4.536 | AY24: 3.204 | AZ24: 3.23 | BA24: 2.726 | BB24: 2.313 | BC24: 2.288 | BD24: 3.168 | BE24: 1.91
C25: Manufacturing | D25: 1.719606379 | E25: 1.513774018 | F25: 1.907002834 | G25: 1.943847292 | H25: 2.142555244 | I25: 2.206959301 | J25: 1.28778708 | K25: 1.381814646 | L25: 0.6678359406 | M25: 2.236954606 | N25: 1.827781666 | O25: 2.208179775 | P25: 2.185982146 | Q25: 1.843757361 | R25: 1.579410517 | S25: 1.722338655 | T25: 2.181515129 | U25: 1.709322278 | V25: 1.622698025 | W25: 2.099713503 | X25: 1.260373828 | Y25: 1.417690293 | Z25: 1.860247439 | AA25: 2.070162712 | AB25: 1.842514776 | AC25: 1.920575081 | AD25: 2.173145969 | AE25: ='User Add-in Location'!B29 -> 0 | AF25: ='User Add-in Location'!C29 -> 0 | AG25: 1.758 | AH25: 1.097 | AI25: 1.504 | AJ25: 1.539 | AK25: 2.085 | AL25: 1.537 | AM25: 1.687 | AN25: 1.827 | AO25: 1.971 | AP25: 2.327 | AQ25: 2.21 | AR25: 1.936 | AS25: 1.475 | AT25: 1.604 | AU25: 1.828 | AV25: 1.838 | AW25: 2.348 | AX25: 4.069 | AY25: 2.287 | AZ25: 2.196 | BA25: 1.44 | BB25: 1.656 | BC25: 1.633 | BD25: 2.063 | BE25: 1.575
C26: Fabricated Metals | D26: 1.535072799 | E26: 1.347216768 | F26: 1.931791671 | G26: 1.433570946 | H26: 2.231475737 | I26: 1.914001274 | J26: 1.353465771 | K26: 1.233500743 | L26: 0 | M26: 2.166902549 | N26: 1.770556644 | O26: 1.722141222 | P26: 1.86849412 | Q26: 1.800496389 | R26: 1.603295329 | S26: 1.520989853 | T26: 1.588079821 | U26: 1.477411899 | V26: 1.297191403 | W26: 1.732763509 | X26: 1.393661086 | Y26: 1.476599056 | Z26: 1.830308339 | AA26: 1.915584361 | AB26: 1.502996882 | AC26: 1.682244096 | AD26: 1.696523828 | AE26: ='User Add-in Location'!B30 -> 0 | AF26: ='User Add-in Location'!C30 -> 0 | AG26: 1.484 | AH26: 1.157 | AI26: 1.479 | AJ26: 1.503 | AK26: 1.578 | AL26: 1.469 | AM26: 1.873 | AN26: 1.391 | AO26: 1.865 | AP26: 1.538 | AQ26: 1.832 | AR26: 1.817 | AS26: 1.68 | AT26: 1.476 | AU26: 1.475 | AV26: 1.662 | AW26: 1.994 | AX26: 3.919 | AY26: 2.205 | AZ26: 1.592 | BA26: 1.332 | BB26: 1.54 | BC26: 1.297 | BD26: 1.781 | BE26: 1.108
C27: Machinery | D27: 1.782071681 | E27: 1.372440724 | F27: 1.820820224 | G27: 1.762615641 | H27: 2.173264845 | I27: 2.218861635 | J27: 1.458751404 | K27: 1.229152511 | L27: 1.06051477 | M27: 2.388286072 | N27: 1.868461982 | O27: 2.103107777 | P27: 2.057203412 | Q27: 1.769351187 | R27: 1.806685001 | S27: 1.52933606 | T27: 1.890685734 | U27: 1.699285579 | V27: 1.509961382 | W27: 1.885040977 | X27: 1.644895623 | Y27: 1.592356689 | Z27: 1.878113689 | AA27: 2.240593151 | AB27: 1.651137773 | AC27: 2.156241202 | AD27: 2.080329346 | AE27: ='User Add-in Location'!B31 -> 0 | AF27: ='User Add-in Location'!C31 -> 0 | AG27: 1.588 | AH27: 1.229 | AI27: 1.235 | AJ27: 1.517 | AK27: 1.679 | AL27: 1.51 | AM27: 1.73 | AN27: 1.602 | AO27: 1.994 | AP27: 1.59 | AQ27: 2.004 | AR27: 1.881 | AS27: 1.437 | AT27: 1.576 | AU27: 1.776 | AV27: 1.849 | AW27: 1.999 | AX27: 4.137 | AY27: 2.258 | AZ27: 1.444 | BA27: 1.51 | BB27: 1.701 | BC27: 1.246 | BD27: 2.01 | BE27: 1.379
C28: Electrical Equipment | D28: 2.00198344 | E28: 0 | F28: 2.419003066 | G28: 1.963623119 | H28: 2.46819347 | I28: 2.438621931 | J28: 1.785700478 | K28: 1.47690865 | L28: 0.6618369722 | M28: 2.743473702 | N28: 2.251517411 | O28: 1.951990281 | P28: 2.275527518 | Q28: 2.087844203 | R28: 1.784610541 | S28: 1.88823107 | T28: 1.767970339 | U28: 1.988752324 | V28: 1.56119283 | W28: 2.058046138 | X28: 1.786945553 | Y28: 2.1120939 | Z28: 2.371245305 | AA28: 2.717101753 | AB28: 2.042583125 | AC28: 1.676510469 | AD28: 2.424258186 | AE28: ='User Add-in Location'!B32 -> 0 | AF28: ='User Add-in Location'!C32 -> 0 | AG28: 1.851 | AH28: 1.1 | AI28: 2.056 | AJ28: 1.97 | AK28: 1.438 | AL28: 2.064 | AM28: 2.267 | AN28: 2.034 | AO28: 2.34 | AP28: 2.025 | AQ28: 1.102 | AR28: 2.072 | AS28: 2.174 | AT28: 1.676 | AU28: 2.139 | AV28: 1.94 | AW28: 2.238 | AX28: 3.585 | AY28: 2.796 | AZ28: 2.563 | BA28: 1.962 | BB28: 1.905 | BC28: 1.792 | BD28: 2.307 | BE28: 1.588
C29: TCPU | D29: 2.423218054 | E29: 1.234251262 | F29: 2.417477883 | G29: 2.386263388 | H29: 2.318381455 | I29: 2.517959473 | J29: 1.857720103 | K29: 1.964521829 | L29: 1.228023425 | M29: 2.761678793 | N29: 2.462624135 | O29: 2.006116664 | P29: 2.599194807 | Q29: 2.564059933 | R29: 2.422297138 | S29: 2.245537227 | T29: 2.314320102 | U29: 2.314607788 | V29: 2.274938129 | W29: 2.337000909 | X29: 1.973185009 | Y29: 2.08916582 | Z29: 2.470016262 | AA29: 2.743791067 | AB29: 2.421623269 | AC29: 2.428410865 | AD29: 2.500574795 | AE29: ='User Add-in Location'!B33 -> 0 | AF29: ='User Add-in Location'!C33 -> 0 | AG29: 1.578 | AH29: 0 | AI29: 2.071 | AJ29: 1.946 | AK29: 2.184 | AL29: 2.214 | AM29: 2.306 | AN29: 2.11 | AO29: 2.294 | AP29: 2.324 | AQ29: 2.254 | AR29: 2.345 | AS29: 2.036 | AT29: 2.263 | AU29: 2.397 | AV29: 2.59 | AW29: 2.447 | AX29: 3.725 | AY29: 2.921 | AZ29: 2.511 | BA29: 2.053 | BB29: 1.928 | BC29: 2.199 | BD29: 2.357 | BE29: 1.712
C30: Wholesale Trade | D30: 2.156728738 | E30: 1.537777259 | F30: 2.47446701 | G30: 1.852723479 | H30: 2.075659127 | I30: 2.38896365 | J30: 1.61628923 | K30: 1.630476529 | L30: 1.202688467 | M30: 2.662347239 | N30: 2.143685242 | O30: 2.375427584 | P30: 2.609572998 | Q30: 2.100241179 | R30: 2.16937998 | S30: 2.139098154 | T30: 2.093627304 | U30: 1.990510557 | V30: 1.916046836 | W30: 2.432676314 | X30: 1.886581866 | Y30: 1.921275535 | Z30: 2.191256579 | AA30: 2.314221912 | AB30: 2.114577724 | AC30: 2.360595193 | AD30: 2.413913185 | AE30: ='User Add-in Location'!B34 -> 0 | AF30: ='User Add-in Location'!C34 -> 0 | AG30: 2.299 | AH30: 1.749 | AI30: 2.104 | AJ30: 1.773 | AK30: 2.159 | AL30: 1.65 | AM30: 2.342 | AN30: 1.79 | AO30: 2.315 | AP30: 2.187 | AQ30: 2.353 | AR30: 2.04 | AS30: 2.225 | AT30: 2.113 | AU30: 2.124 | AV30: 2.247 | AW30: 2.027 | AX30: 2.737 | AY30: 2.782 | AZ30: 2.469 | BA30: 1.911 | BB30: 1.737 | BC30: 1.857 | BD30: 2.34 | BE30: 1.51
C31: Retail Trade | D31: 2.026087659 | E31: 1.648407043 | F31: 2.389389038 | G31: 2.094880694 | H31: 1.916296428 | I31: 2.515363178 | J31: 1.806047562 | K31: 1.961905006 | L31: 1.3182963 | M31: 2.79437014 | N31: 2.376148965 | O31: 1.819152405 | P31: 2.509192716 | Q31: 2.308811227 | R31: 2.232822305 | S31: 2.316977014 | T31: 2.173733642 | U31: 2.269804774 | V31: 1.89285136 | W31: 2.458237599 | X31: 1.947433527 | Y31: 2.140530468 | Z31: 2.232321683 | AA31: 2.456390938 | AB31: 2.045062052 | AC31: 2.501905481 | AD31: 2.65415916 | AE31: ='User Add-in Location'!B35 -> 0 | AF31: ='User Add-in Location'!C35 -> 0 | AG31: 2.397 | AH31: 1.717 | AI31: 2.236 | AJ31: 1.901 | AK31: 1.95 | AL31: 1.693 | AM31: 2.509 | AN31: 1.992 | AO31: 2.337 | AP31: 2.238 | AQ31: 2.619 | AR31: 2.39 | AS31: 2.191 | AT31: 2.194 | AU31: 2.171 | AV31: 2.247 | AW31: 2.184 | AX31: 2.852 | AY31: 2.691 | AZ31: 2.248 | BA31: 2.051 | BB31: 1.519 | BC31: 1.848 | BD31: 2.413 | BE31: 1.71
C32: FIRE | D32: 2.672926329 | E32: 1.515002523 | F32: 3.403565446 | G32: 2.485941434 | H32: 2.152271691 | I32: 3.38130586 | J32: 1.889472324 | K32: 1.191061131 | L32: 1.021411763 | M32: 3.878261446 | N32: 2.520645732 | O32: 1.910245539 | P32: 3.477491444 | Q32: 2.336089851 | R32: 2.322165144 | S32: 2.195485735 | T32: 2.730085117 | U32: 2.498029581 | V32: 2.42923894 | W32: 2.498142516 | X32: 1.962908785 | Y32: 1.916349723 | Z32: 2.691694037 | AA32: 2.743977493 | AB32: 2.641649245 | AC32: 2.607271457 | AD32: 2.812825968 | AE32: ='User Add-in Location'!B36 -> 0 | AF32: ='User Add-in Location'!C36 -> 0 | AG32: 2.527 | AH32: 0 | AI32: 2.271 | AJ32: 2.254 | AK32: 2.064 | AL32: 1.187 | AM32: 2.049 | AN32: 2.272 | AO32: 2.265 | AP32: 2.982 | AQ32: 2.591 | AR32: 2.478 | AS32: 2.197 | AT32: 2.692 | AU32: 1.758 | AV32: 2.53 | AW32: 3.319 | AX32: 3.031 | AY32: 3.25 | AZ32: 2.356 | BA32: 2.067 | BB32: 1.962 | BC32: 1.858 | BD32: 2.473 | BE32: 2.293
C33: Misc. Services | D33: 2.391045793 | E33: 1.68729931 | F33: 2.816766554 | G33: 2.447200266 | H33: 2.12953962 | I33: 2.645974761 | J33: 2.007974266 | K33: 1.601592508 | L33: 0.9365368548 | M33: 2.949056169 | N33: 2.350960338 | O33: 2.172193818 | P33: 2.847602633 | Q33: 2.051671434 | R33: 2.110613917 | S33: 2.326551286 | T33: 2.533646372 | U33: 2.364222314 | V33: 2.019686888 | W33: 2.837717381 | X33: 2.063325309 | Y33: 2.024249312 | Z33: 2.587198177 | AA33: 2.507469939 | AB33: 2.391963822 | AC33: 2.453167245 | AD33: 2.719559779 | AE33: ='User Add-in Location'!B37 -> 0 | AF33: ='User Add-in Location'!C37 -> 0 | AG33: 2.42 | AH33: 1.8 | AI33: 2.398 | AJ33: 1.95 | AK33: 2.217 | AL33: 1.586 | AM33: 2.429 | AN33: 1.998 | AO33: 2.551 | AP33: 2.43 | AQ33: 2.214 | AR33: 2.251 | AS33: 2.559 | AT33: 2.484 | AU33: 2.529 | AV33: 2.323 | AW33: 2.241 | AX33: 2.896 | AY33: 3.198 | AZ33: 2.749 | BA33: 1.832 | BB33: 2.019 | BC33: 2.003 | BD33: 2.527 | BE33: 1.843
C34: Professional Services | D34: 2.248534463 | E34: 1.694080487 | F34: 2.786096654 | G34: 2.068190855 | H34: 2.264161773 | I34: 2.558318385 | J34: 1.867994063 | K34: 1.776466339 | L34: 1.254010714 | M34: 3.029120683 | N34: 2.605051211 | O34: 2.091139681 | P34: 2.75474473 | Q34: 2.377903603 | R34: 2.265441563 | S34: 2.216481605 | T34: 2.312454583 | U34: 2.276239368 | V34: 2.054640669 | W34: 2.600950118 | X34: 2.027942568 | Y34: 2.075984915 | Z34: 2.496147897 | AA34: 2.473432415 | AB34: 2.297373694 | AC34: 2.561215368 | AD34: 2.654966169 | AE34: ='User Add-in Location'!B38 -> 0 | AF34: ='User Add-in Location'!C38 -> 0 | AG34: 2.414 | AH34: 1.615 | AI34: 2.146 | AJ34: 2.014 | AK34: 2.323 | AL34: 1.818 | AM34: 2.513 | AN34: 1.919 | AO34: 2.435 | AP34: 2.376 | AQ34: 2.505 | AR34: 2.213 | AS34: 2.294 | AT34: 2.433 | AU34: 2.256 | AV34: 2.374 | AW34: 2.468 | AX34: 3.151 | AY34: 2.923 | AZ34: 2.48 | BA34: 2.004 | BB34: 1.894 | BC34: 1.904 | BD34: 2.325 | BE34: 1.722
C35: Government | D35: 0.5341393522 | E35: 0.1736148769 | F35: 0.8388863152 | G35: 0.4782421612 | H35: 0.4838495129 | I35: 0.3816948612 | J35: 0.7452436203 | K35: 0.09223168162 | L35: 0.03468052929 | M35: 0.5094647703 | N35: 0.09014927011 | O35: 0.2726068163 | P35: 0.7045085394 | Q35: 0.2316607017 | R35: 0.3189855516 | S35: 0.4297921844 | T35: 0.5065916807 | U35: 0.4833245218 | V35: 0.6263016201 | W35: 0.5674986272 | X35: 0.1221430098 | Y35: 0.1649884273 | Z35: 0.3824695821 | AA35: 0.7699592919 | AB35: 0.401656491 | AC35: 0.4769121305 | AD35: 0.5883355082 | AE35: ='User Add-in Location'!B39 -> 0 | AF35: ='User Add-in Location'!C39 -> 0 | AG35: 0.435 | AH35: 0.764 | AI35: 0.324 | AJ35: 0.249 | AK35: 0.585 | AL35: 0.444 | AM35: 0.263 | AN35: 1.088 | AO35: 0.351 | AP35: 1.141 | AQ35: 0.592 | AR35: 0.47 | AS35: 0.213 | AT35: 0.495 | AU35: 1.216 | AV35: 0.654 | AW35: 0.438 | AX35: 0.611 | AY35: 0.367 | AZ35: 0.242 | BA35: 0.361 | BB35: 0.719 | BC35: 0.443 | BD35: 0.598 | BE35: 0.408
C37: Jobs Per Million Dollars Change in Final Demand
C38: Jobs Induced Multipliers | D38: Alabama | E38: Alaska | F38: Arizona | G38: Arkansas | H38: California | I38: Colorado | J38: Connecticut | K38: Delaware | L38: District of Columbia | M38: Florida | N38: Georgia | O38: Hawaii | P38: Idaho | Q38: Illinois | R38: Indiana | S38: Iowa | T38: Kansas | U38: Kentucky | V38: Louisiana | W38: Maine | X38: Maryland | Y38: Massachusetts | Z38: Michigan | AA38: Minnesota | AB38: Mississippi | AC38: Missouri | AD38: Montana | AE38: MyCounty | AF38: MyRegion | AG38: Nebraska | AH38: Nevada | AI38: New Hampshire | AJ38: New Jersey | AK38: New Mexico | AL38: New York | AM38: North Carolina | AN38: North Dakota | AO38: Ohio | AP38: Oklahoma | AQ38: Oregon | AR38: Pennsylvania | AS38: Rhode Island | AT38: South Carolina | AU38: South Dakota | AV38: Tennessee | AW38: Texas | AX38: United States | AY38: Utah | AZ38: Vermont | BA38: Virginia | BB38: Washington | BC38: West Virginia | BD38: Wisconsin | BE38: Wyoming
C39: Agriculture | D39: 1.794707312 | E39: 1.649150222 | F39: 2.026849456 | G39: 1.660150552 | H39: 2.369801004 | I39: 1.697127758 | J39: 1.250260933 | K39: 1.038418468 | L39: 0.4934282077 | M39: 2.78137248 | N39: 2.781269799 | O39: 2.35165496 | P39: 2.472046597 | Q39: 3.209408042 | R39: 2.223219869 | S39: 1.669330039 | T39: 1.63172601 | U39: 1.739775821 | V39: 1.955917782 | W39: 2.486824429 | X39: 1.323949643 | Y39: 1.981511447 | Z39: 1.928198301 | AA39: 1.924933997 | AB39: 1.98748022 | AC39: 1.844892994 | AD39: 1.406127815 | AE39: ='User Add-in Location'!B43 -> 0 | AF39: ='User Add-in Location'!C43 -> 0 | AG39: 1.763 | AH39: 0.975 | AI39: 1.651 | AJ39: 2.3 | AK39: 2.149 | AL39: 1.386 | AM39: 1.88 | AN39: 0.914 | AO39: 1.86 | AP39: 1.016 | AQ39: 2.528 | AR39: 1.465 | AS39: 1.693 | AT39: 1.812 | AU39: 1.915 | AV39: 1.534 | AW39: 1.406 | AX39: 3.634 | AY39: 1.255 | AZ39: 1.589 | BA39: 1.059 | BB39: 2.06 | BC39: 0.414 | BD39: 1.986 | BE39: 0.669
C40: Mining | D40: 1.099679643 | E40: 0.6885730426 | F40: 1.707639383 | G40: 1.441064427 | H40: 1.515722586 | I40: 2.719303325 | J40: 1.496216173 | K40: 2.415380257 | L40: 0.5136019112 | M40: 1.692070367 | N40: 1.992067904 | O40: 1.255637901 | P40: 1.659218042 | Q40: 1.599978171 | R40: 1.73549639 | S40: 1.291221321 | T40: 2.190045108 | U40: 1.224792633 | V40: 1.431481099 | W40: 1.459909536 | X40: 1.313443792 | Y40: 2.113530974 | Z40: 2.138847088 | AA40: 1.823352081 | AB40: 1.901089316 | AC40: 1.581514759 | AD40: 1.966055711 | AE40: ='User Add-in Location'!B44 -> 0 | AF40: ='User Add-in Location'!C44 -> 0 | AG40: 1.612 | AH40: 1.022 | AI40: 1.489 | AJ40: 2.555 | AK40: 1.471 | AL40: 2.142 | AM40: 1.118 | AN40: 1.393 | AO40: 2.075 | AP40: 2.498 | AQ40: 1.7 | AR40: 1.828 | AS40: 1.802 | AT40: 1.176 | AU40: 1.279 | AV40: 1.442 | AW40: 2.152 | AX40: 3.471 | AY40: 2.067 | AZ40: 1.196 | BA40: 1.694 | BB40: 1.015 | BC40: 1.252 | BD40: 1.551 | BE40: 0.793
C41: Construction | D41: 2.204880434 | E41: 1.804629556 | F41: 2.835806679 | G41: 1.904810606 | H41: 2.641936335 | I41: 2.861447173 | J41: 2.358399137 | K41: 2.067108369 | L41: 0.6188673921 | M41: 2.869501822 | N41: 2.598847018 | O41: 2.206407879 | P41: 2.222000455 | Q41: 2.792330388 | R41: 2.426059827 | S41: 2.2481988 | T41: 2.225542756 | U41: 2.089834628 | V41: 2.06649371 | W41: 2.593488234 | X41: 2.380628215 | Y41: 2.529597303 | Z41: 2.735324549 | AA41: 2.811133962 | AB41: 1.857113389 | AC41: 2.753917252 | AD41: 2.185272463 | AE41: ='User Add-in Location'!B45 -> 0 | AF41: ='User Add-in Location'!C45 -> 0 | AG41: 2.327 | AH41: 1.386 | AI41: 2.884 | AJ41: 2.569 | AK41: 1.809 | AL41: 1.92 | AM41: 2.597 | AN41: 1.88 | AO41: 2.897 | AP41: 2.335 | AQ41: 2.744 | AR41: 2.904 | AS41: 2.365 | AT41: 2.146 | AU41: 2.043 | AV41: 2.957 | AW41: 2.693 | AX41: 4.857 | AY41: 2.914 | AZ41: 2.419 | BA41: 2.214 | BB41: 2.059 | BC41: 1.924 | BD41: 2.646 | BE41: 1.209
C42: Manufacturing | D42: 1.108840482 | E42: 0.761504249 | F42: 1.962378256 | G42: 1.109171701 | H42: 1.771643505 | I42: 1.907725453 | J42: 1.528411843 | K42: 0.9562937588 | L42: 0.3781193517 | M42: 2.015255056 | N42: 1.583052335 | O42: 1.027393555 | P42: 1.295619405 | Q42: 1.681350079 | R42: 1.208193432 | S42: 1.230596676 | T42: 1.308644786 | U42: 1.05254184 | V42: 0.750603414 | W42: 1.649395724 | X42: 1.294634523 | Y42: 1.601032444 | Z42: 1.583512919 | AA42: 1.897472012 | AB42: 0.9788719595 | AC42: 1.4592328 | AD42: 0.9264163641 | AE42: ='User Add-in Location'!B46 -> 0 | AF42: ='User Add-in Location'!C46 -> 0 | AG42: 1.191 | AH42: 0.915 | AI42: 1.789 | AJ42: 1.443 | AK42: 0.955 | AL42: 1.157 | AM42: 1.396 | AN42: 0.853 | AO42: 1.606 | AP42: 1.402 | AQ42: 1.684 | AR42: 1.634 | AS42: 1.6 | AT42: 1.205 | AU42: 1.218 | AV42: 1.443 | AW42: 1.448 | AX42: 3.546 | AY42: 1.63 | AZ42: 1.443 | BA42: 1.193 | BB42: 1.166 | BC42: 0.895 | BD42: 1.664 | BE42: 0.449
C43: Fabricated Metals | D43: 1.643719843 | E43: 1.328822352 | F43: 2.48944252 | G43: 1.50071011 | H43: 2.366237929 | I43: 2.236813041 | J43: 1.921826534 | K43: 1.619745265 | L43: 0 | M43: 2.626277217 | N43: 2.121462071 | O43: 1.735244636 | P43: 1.835283557 | Q43: 2.469865535 | R43: 1.83875637 | S43: 1.709404989 | T43: 1.681272204 | U43: 1.832531097 | V43: 1.593608008 | W43: 2.107952815 | X43: 1.849339184 | Y43: 2.124156884 | Z43: 2.440352006 | AA43: 2.678483667 | AB43: 1.508825457 | AC43: 2.215696726 | AD43: 1.801379612 | AE43: ='User Add-in Location'!B47 -> 0 | AF43: ='User Add-in Location'!C47 -> 0 | AG43: 1.707 | AH43: 1.174 | AI43: 2.131 | AJ43: 2.201 | AK43: 1.311 | AL43: 1.62 | AM43: 2.113 | AN43: 1.296 | AO43: 2.427 | AP43: 1.85 | AQ43: 2.236 | AR43: 2.339 | AS43: 2.125 | AT43: 1.897 | AU43: 1.434 | AV43: 2.358 | AW43: 2.217 | AX43: 4.557 | AY43: 2.333 | AZ43: 2.038 | BA43: 1.952 | BB43: 1.65 | BC43: 1.376 | BD43: 2.297 | BE43: 0.874
C44: Machinery | D44: 1.151036095 | E44: 0.8607948244 | F44: 1.771327792 | G44: 1.132320441 | H44: 1.958005219 | I44: 1.737020285 | J44: 1.588572935 | K44: 1.426873392 | L44: 0.4038831908 | M44: 2.07952524 | N44: 1.594692287 | O44: 1.155651927 | P44: 1.228443811 | Q44: 1.700753467 | R44: 1.315361865 | S44: 1.122988148 | T44: 1.234265337 | U44: 1.3156063 | V44: 1.156282166 | W44: 1.882384224 | X44: 1.208707936 | Y44: 1.907682218 | Z44: 2.005459763 | AA44: 2.036388122 | AB44: 0.8553875961 | AC44: 1.416819401 | AD44: 1.019219389 | AE44: ='User Add-in Location'!B48 -> 0 | AF44: ='User Add-in Location'!C48 -> 0 | AG44: 1.057 | AH44: 0.911 | AI44: 2.694 | AJ44: 1.947 | AK44: 0.95 | AL44: 1.268 | AM44: 1.63 | AN44: 0.818 | AO44: 2.007 | AP44: 1.485 | AQ44: 1.778 | AR44: 1.858 | AS44: 1.879 | AT44: 1.519 | AU44: 1.032 | AV44: 1.547 | AW44: 1.727 | AX44: 3.812 | AY44: 1.685 | AZ44: 2.024 | BA44: 1.508 | BB44: 1.407 | BC44: 1.425 | BD44: 1.541 | BE44: 0.59
C45: Electrical Equipment | D45: 1.756674491 | E45: 0 | F45: 2.229686245 | G45: 1.422942424 | H45: 2.260849296 | I45: 1.889716669 | J45: 1.651631002 | K45: 1.658727256 | L45: 0.2462602235 | M45: 2.298121314 | N45: 1.733235948 | O45: 0.8944608819 | P45: 1.748062893 | Q45: 2.212259618 | R45: 1.791948252 | S45: 1.500831623 | T45: 1.584046746 | U45: 1.71725491 | V45: 1.493985224 | W45: 1.533903697 | X45: 1.597986251 | Y45: 1.773177401 | Z45: 2.308322442 | AA45: 2.205812846 | AB45: 1.137041489 | AC45: 1.84497793 | AD45: 1.114346445 | AE45: ='User Add-in Location'!B49 -> 0 | AF45: ='User Add-in Location'!C49 -> 0 | AG45: 1.799 | AH45: 1.033 | AI45: 2.097 | AJ45: 1.864 | AK45: 1.008 | AL45: 1.373 | AM45: 1.631 | AN45: 1.155 | AO45: 2.036 | AP45: 1.705 | AQ45: 0.987 | AR45: 2.001 | AS45: 1.401 | AT45: 1.948 | AU45: 1.328 | AV45: 2.011 | AW45: 1.805 | AX45: 3.598 | AY45: 1.842 | AZ45: 1.679 | BA45: 1.549 | BB45: 1.219 | BC45: 1.032 | BD45: 2.106 | BE45: 0.729
C46: TCPU | D46: 1.677560999 | E46: 0.8406013812 | F46: 2.297132878 | G46: 1.775493825 | H46: 2.331564266 | I46: 2.553394891 | J46: 1.729653729 | K46: 1.624755712 | L46: 0.6292101608 | M46: 2.351618475 | N46: 2.259518119 | O46: 1.467386129 | P46: 1.95517927 | Q46: 2.569748675 | R46: 1.957072532 | S46: 1.736733718 | T46: 1.74600028 | U46: 1.729568089 | V46: 1.59314631 | W46: 2.050317892 | X46: 1.670909439 | Y46: 1.976800484 | Z46: 2.259668965 | AA46: 2.444732735 | AB46: 1.504020392 | AC46: 2.175019512 | AD46: 1.906287476 | AE46: ='User Add-in Location'!B50 -> 0 | AF46: ='User Add-in Location'!C50 -> 0 | AG46: 1.964 | AH46: 0 | AI46: 1.903 | AJ46: 2.044 | AK46: 1.505 | AL46: 1.749 | AM46: 2.099 | AN46: 1.531 | AO46: 2.229 | AP46: 2.234 | AQ46: 2.042 | AR46: 2.498 | AS46: 1.93 | AT46: 1.643 | AU46: 1.64 | AV46: 2.322 | AW46: 2.501 | AX46: 4.155 | AY46: 2.69 | AZ46: 2.002 | BA46: 1.905 | BB46: 1.593 | BC46: 1.62 | BD46: 2.153 | BE46: 0.979
C47: Wholesale Trade | D47: 2.057628508 | E47: 1.224034827 | F47: 2.990613744 | G47: 1.733085966 | H47: 2.348860714 | I47: 2.926689517 | J47: 2.072876697 | K47: 2.011931641 | L47: 0.6279210326 | M47: 3.051366563 | N47: 2.636115505 | O47: 2.006384388 | P47: 2.254841371 | Q47: 2.757553378 | R47: 2.240631347 | S47: 2.134508199 | T47: 2.075224699 | U47: 1.918581138 | V47: 1.81982628 | W47: 2.561067496 | X47: 2.142257688 | Y47: 2.547726943 | Z47: 2.671515888 | AA47: 3.05284018 | AB47: 1.729185324 | AC47: 2.640487222 | AD47: 2.144447846 | AE47: ='User Add-in Location'!B51 -> 0 | AF47: ='User Add-in Location'!C51 -> 0 | AG47: 2.153 | AH47: 1.473 | AI47: 2.827 | AJ47: 2.326 | AK47: 1.642 | AL47: 1.819 | AM47: 2.708 | AN47: 1.561 | AO47: 2.729 | AP47: 1.966 | AQ47: 2.617 | AR47: 2.633 | AS47: 2.536 | AT47: 2.112 | AU47: 1.944 | AV47: 2.543 | AW47: 2.371 | AX47: 4.066 | AY47: 2.819 | AZ47: 2.287 | BA47: 2.257 | BB47: 1.836 | BC47: 1.712 | BD47: 2.558 | BE47: 1.101
C48: Retail Trade | D48: 2.447915957 | E48: 2.060249314 | F48: 3.543387168 | G48: 2.423430015 | H48: 2.875505218 | I48: 3.335433878 | J48: 2.727593251 | K48: 2.543114583 | L48: 0.6973198213 | M48: 3.825518319 | N48: 3.24995664 | O48: 2.374591796 | P48: 2.901553925 | Q48: 3.262442645 | R48: 2.718348977 | S48: 2.613935183 | T48: 2.4065817 | U48: 2.760955836 | V48: 2.256943526 | W48: 3.241743836 | X48: 2.614603053 | Y48: 3.126678607 | Z48: 3.065979041 | AA48: 3.352358317 | AB48: 2.29011737 | AC48: 3.216612862 | AD48: 3.144222107 | AE48: ='User Add-in Location'!B52 -> 0 | AF48: ='User Add-in Location'!C52 -> 0 | AG48: 2.581 | AH48: 1.172 | AI48: 3.535 | AJ48: 2.931 | AK48: 2.3 | AL48: 2.328 | AM48: 3.466 | AN48: 1.961 | AO48: 3.246 | AP48: 2.728 | AQ48: 3.555 | AR48: 3.33 | AS48: 3.187 | AT48: 2.722 | AU48: 2.452 | AV48: 3.292 | AW48: 2.841 | AX48: 4.925 | AY48: 3.473 | AZ48: 3.039 | BA48: 2.614 | BB48: 2.169 | BC48: 2.251 | BD48: 2.985 | BE48: 1.466
C49: FIRE | D49: 1.862114951 | E49: 1.178146577 | F49: 2.719650239 | G49: 1.50970209 | H49: 2.067046497 | I49: 2.441247622 | J49: 2.196553836 | K49: 1.305017475 | L49: 0.4982934449 | M49: 2.81601957 | N49: 2.223910526 | O49: 1.542936184 | P49: 1.770542968 | Q49: 2.39185289 | R49: 1.724722993 | S49: 1.763973837 | T49: 1.836843915 | U49: 1.858090501 | V49: 1.559414452 | W49: 2.097022552 | X49: 1.707456798 | Y49: 2.417769886 | Z49: 2.225714071 | AA49: 2.869705606 | AB49: 1.525015033 | AC49: 2.171066038 | AD49: 1.68444822 | AE49: ='User Add-in Location'!B53 -> 0 | AF49: ='User Add-in Location'!C53 -> 0 | AG49: 1.811 | AH49: 0 | AI49: 2.221 | AJ49: 2.037 | AK49: 1.164 | AL49: 1.871 | AM49: 2.554 | AN49: 1.365 | AO49: 2.177 | AP49: 1.826 | AQ49: 1.905 | AR49: 2.362 | AS49: 2.271 | AT49: 2.142 | AU49: 1.504 | AV49: 2.38 | AW49: 2.388 | AX49: 3.731 | AY49: 2.096 | AZ49: 1.847 | BA49: 1.763 | BB49: 1.423 | BC49: 1.389 | BD49: 1.983 | BE49: 0.856
C50: Misc. Services | D50: 2.95550471 | E50: 2.210429357 | F50: 4.135759744 | G50: 2.569134238 | H50: 3.503612044 | I50: 3.917657003 | J50: 3.001625614 | K50: 2.670117589 | L50: 0.8615015668 | M50: 4.35482354 | N50: 3.79035304 | O50: 2.732303786 | P50: 2.928540568 | Q50: 3.857410084 | R50: 2.642155572 | S50: 2.702527846 | T50: 2.89303967 | U50: 2.884902975 | V50: 2.702110823 | W50: 3.525691893 | X50: 2.976111535 | Y50: 3.290059522 | Z50: 3.836285911 | AA50: 3.896954817 | AB50: 2.444419289 | AC50: 3.510511945 | AD50: 2.963113508 | AE50: ='User Add-in Location'!B54 -> 0 | AF50: ='User Add-in Location'!C54 -> 0 | AG50: 2.77 | AH50: 2.153 | AI50: 3.404 | AJ50: 3.303 | AK50: 2.37 | AL50: 2.606 | AM50: 3.418 | AN50: 2.174 | AO50: 3.736 | AP50: 2.866 | AQ50: 3.045 | AR50: 3.579 | AS50: 3.309 | AT50: 3.132 | AU50: 2.442 | AV50: 3.607 | AW50: 3.462 | AX50: 5.636 | AY50: 3.776 | AZ50: 3.112 | BA50: 3.262 | BB50: 2.538 | BC50: 2.417 | BD50: 3.304 | BE50: 1.599
C51: Professional Services | D51: 2.360102091 | E51: 1.758851323 | F51: 3.448560208 | G51: 2.063254137 | H51: 2.891375248 | I51: 3.12836949 | J51: 2.550723209 | K51: 2.399505294 | L51: 0.7921214472 | M51: 3.606745117 | N51: 3.00312239 | O51: 2.402086271 | P51: 2.592202409 | Q51: 3.18994986 | R51: 2.611645215 | S51: 2.320866689 | T51: 2.350064232 | U51: 2.486840703 | V51: 2.126840007 | W51: 3.116677724 | X51: 2.508864936 | Y51: 2.945265618 | Z51: 3.141332036 | AA51: 3.359018614 | AB51: 2.039285443 | AC51: 2.98879041 | AD51: 2.518188122 | AE51: ='User Add-in Location'!B55 -> 0 | AF51: ='User Add-in Location'!C55 -> 0 | AG51: 2.511 | AH51: 1.671 | AI51: 3.031 | AJ51: 2.808 | AK51: 1.911 | AL51: 2.247 | AM51: 3.09 | AN51: 1.75 | AO51: 3.243 | AP51: 2.328 | AQ51: 3.079 | AR51: 3.214 | AS51: 2.968 | AT51: 2.473 | AU51: 2.278 | AV51: 3.231 | AW51: 2.776 | AX51: 4.864 | AY51: 3.086 | AZ51: 2.751 | BA51: 2.636 | BB51: 2.096 | BC51: 2.159 | BD51: 2.864 | BE51: 1.243
C52: Government | D52: 3.187812399 | E52: 2.783252898 | F52: 4.284317952 | G52: 3.46850332 | H52: 3.716983684 | I52: 4.306736987 | J52: 2.904248787 | K52: 2.923554377 | L52: 0.7540647474 | M52: 4.820780669 | N52: 4.480329524 | O52: 3.522922877 | P52: 3.86838657 | Q52: 4.488665553 | R52: 3.997331326 | S52: 3.578899056 | T52: 3.631443644 | U52: 3.693392195 | V52: 3.356791118 | W52: 4.538130805 | X52: 2.928325373 | Y52: 2.879406056 | Z52: 4.440258261 | AA52: 4.225297144 | AB52: 3.401229859 | AC52: 4.286926551 | AD52: 3.799006762 | AE52: ='User Add-in Location'!B56 -> 0 | AF52: ='User Add-in Location'!C56 -> 0 | AG52: 3.855 | AH52: 2.449 | AI52: 3.315 | AJ52: 3.776 | AK52: 2.273 | AL52: 2.813 | AM52: 4.509 | AN52: 2.648 | AO52: 4.336 | AP52: 3.241 | AQ52: 4.153 | AR52: 4.087 | AS52: 3.436 | AT52: 3.888 | AU52: 3.263 | AV52: 4.116 | AW52: 3.769 | AX52: 5.891 | AY52: 4.315 | AZ52: 4.149 | BA52: 3.181 | BB52: 2.834 | BC52: 3.034 | BD52: 4.031 | BE52: 2.194
C54: Earnings Per Million Dollars Change in Final Demand
C55: Earnings Direct Multipliers | D55: Alabama | E55: Alaska | F55: Arizona | G55: Arkansas | H55: California | I55: Colorado | J55: Connecticut | K55: Delaware | L55: District of Columbia | M55: Florida | N55: Georgia | O55: Hawaii | P55: Idaho | Q55: Illinois | R55: Indiana | S55: Iowa | T55: Kansas | U55: Kentucky | V55: Louisiana | W55: Maine | X55: Maryland | Y55: Massachusetts | Z55: Michigan | AA55: Minnesota | AB55: Mississippi | AC55: Missouri | AD55: Montana | AE55: MyCounty | AF55: MyRegion | AG55: Nebraska | AH55: Nevada | AI55: New Hampshire | AJ55: New Jersey | AK55: New Mexico | AL55: New York | AM55: North Carolina | AN55: North Dakota | AO55: Ohio | AP55: Oklahoma | AQ55: Oregon | AR55: Pennsylvania | AS55: Rhode Island | AT55: South Carolina | AU55: South Dakota | AV55: Tennessee | AW55: Texas | AX55: United States | AY55: Utah | AZ55: Vermont | BA55: Virginia | BB55: Washington | BC55: West Virginia | BD55: Wisconsin | BE55: Wyoming
C56: Agriculture | D56: 0.3103204668 | E56: 0.4505701661 | F56: 0.2704162896 | G56: 0.2665188313 | H56: 0.4341753721 | I56: 0.2026426941 | J56: 0.261302799 | K56: 0.1723911315 | L56: 0.1953337044 | M56: 0.3866027594 | N56: 0.4093496799 | O56: 0.472070992 | P56: 0.3647033572 | Q56: 0.5038968325 | R56: 0.3823819458 | S56: 0.2701869011 | T56: 0.2420204878 | U56: 0.3058318198 | V56: 0.4287427664 | W56: 0.3682408333 | X56: 0.2451748699 | Y56: 0.409360826 | Z56: 0.2866257131 | AA56: 0.2450836301 | AB56: 0.3635153174 | AC56: 0.2667572796 | AD56: 0.2006334513 | AE56: ='User Add-in Location'!B60 -> 0 | AF56: ='User Add-in Location'!C60 -> 0 | AG56: 0.258 | AH56: 0.264 | AI56: 0.276 | AJ56: 0.475 | AK56: 0.42 | AL56: 0.306 | AM56: 0.271 | AN56: 0.185 | AO56: 0.268 | AP56: 0.158 | AQ56: 0.387 | AR56: 0.217 | AS56: 0.302 | AT56: 0.31 | AU56: 0.313 | AV56: 0.228 | AW56: 0.209 | AX56: 0.313 | AY56: 0.16 | AZ56: 0.232 | BA56: 0.177 | BB56: 0.462 | BC56: 0.065 | BD56: 0.271 | BE56: 0.195
C57: Mining | D57: 0.1338330358 | E57: 0.150090307 | F57: 0.1470705569 | G57: 0.2025732845 | H57: 0.1975326687 | I57: 0.3306520581 | J57: 0.2011651993 | K57: 0.3922881782 | L57: 0.1434792429 | M57: 0.09550613165 | N57: 0.22085163 | O57: 0.149572432 | P57: 0.1952044666 | Q57: 0.1442947984 | R57: 0.2131534219 | S57: 0.1639134288 | T57: 0.266266346 | U57: 0.1439590752 | V57: 0.2308753133 | W57: 0.09461136907 | X57: 0.1272874773 | Y57: 0.2504967451 | Z57: 0.2074867487 | AA57: 0.1885863245 | AB57: 0.2901008129 | AC57: 0.1536700428 | AD57: 0.243768841 | AE57: ='User Add-in Location'!B61 -> 0 | AF57: ='User Add-in Location'!C61 -> 0 | AG57: 0.214 | AH57: 0.205 | AI57: 0.148 | AJ57: 0.361 | AK57: 0.217 | AL57: 0.358 | AM57: 0.09 | AN57: 0.284 | AO57: 0.208 | AP57: 0.342 | AQ57: 0.155 | AR57: 0.215 | AS57: 0.197 | AT57: 0.12 | AU57: 0.16 | AV57: 0.137 | AW57: 0.296 | AX57: 0.253 | AY57: 0.216 | AZ57: 0.131 | BA57: 0.222 | BB57: 0.115 | BC57: 0.167 | BD57: 0.179 | BE57: 0.186
C58: Construction | D58: 0.2988773584 | E58: 0.3873128593 | F58: 0.2783263028 | G58: 0.2579588592 | H58: 0.3143886328 | I58: 0.3060415983 | J58: 0.3574656844 | K58: 0.3182210922 | L58: 0.3712247908 | M58: 0.2458796352 | N58: 0.2664552927 | O58: 0.3389080763 | P58: 0.2508664131 | Q58: 0.3191417754 | R58: 0.3083456457 | S58: 0.3196384311 | T58: 0.304685235 | U58: 0.2731314003 | V58: 0.3333387375 | W58: 0.2547515035 | X58: 0.3610210419 | Y58: 0.3473448157 | Z58: 0.2896899581 | AA58: 0.2982232869 | AB58: 0.2665721178 | AC58: 0.3068892062 | AD58: 0.2647545636 | AE58: ='User Add-in Location'!B62 -> 0 | AF58: ='User Add-in Location'!C62 -> 0 | AG58: 0.325 | AH58: 0.319 | AI58: 0.336 | AJ58: 0.36 | AK58: 0.272 | AL58: 0.333 | AM58: 0.262 | AN58: 0.376 | AO58: 0.304 | AP58: 0.314 | AQ58: 0.31 | AR58: 0.339 | AS58: 0.294 | AT58: 0.259 | AU58: 0.289 | AV58: 0.332 | AW58: 0.339 | AX58: 0.311 | AY58: 0.305 | AZ58: 0.285 | BA58: 0.3 | BB58: 0.333 | BC58: 0.311 | BD58: 0.307 | BE58: 0.306
C59: Manufacturing | D59: 0.1214179397 | E59: 0.109378919 | F59: 0.1805358231 | G59: 0.121194154 | H59: 0.1701891869 | I59: 0.1675976366 | J59: 0.2308319658 | K59: 0.117952168 | L59: 0.2314223647 | M59: 0.1645846069 | N59: 0.1431550235 | O59: 0.09947200865 | P59: 0.1127753407 | Q59: 0.1523129344 | R59: 0.1283217072 | S59: 0.1415296197 | T59: 0.1311449409 | U59: 0.1137088984 | V59: 0.06138059869 | W59: 0.1578893065 | X59: 0.1807555407 | Y59: 0.2135095447 | Z59: 0.1457098722 | AA59: 0.1700723767 | AB59: 0.1061895862 | AC59: 0.1353948712 | AD59: 0.06170250103 | AE59: ='User Add-in Location'!B63 -> 0 | AF59: ='User Add-in Location'!C63 -> 0 | AG59: 0.121 | AH59: 0.181 | AI59: 0.219 | AJ59: 0.17 | AK59: 0.089 | AL59: 0.175 | AM59: 0.128 | AN59: 0.105 | AO59: 0.139 | AP59: 0.138 | AQ59: 0.164 | AR59: 0.154 | AS59: 0.193 | AT59: 0.135 | AU59: 0.143 | AV59: 0.137 | AW59: 0.098 | AX59: 0.141 | AY59: 0.13 | AZ59: 0.155 | BA59: 0.147 | BB59: 0.152 | BC59: 0.112 | BD59: 0.168 | BE59: 0.052
C60: Fabricated Metals | D60: 0.2285708934 | E60: 0.2686025202 | F60: 0.2505421638 | G60: 0.2233941108 | H60: 0.2694062889 | I60: 0.2384170592 | J60: 0.30066517 | K60: 0.2722953856 | L60: 0 | M60: 0.2452059984 | N60: 0.2315565944 | O60: 0.2487884611 | P60: 0.2286091298 | Q60: 0.2847034931 | R60: 0.2378993928 | S60: 0.2467499226 | T60: 0.2350469083 | U60: 0.2639053166 | V60: 0.2600204051 | W60: 0.2356425375 | X60: 0.2778027356 | Y60: 0.3058469296 | Z60: 0.278095305 | AA60: 0.2986805737 | AB60: 0.2304110229 | AC60: 0.2632962763 | AD60: 0.2411975265 | AE60: ='User Add-in Location'!B64 -> 0 | AF60: ='User Add-in Location'!C64 -> 0 | AG60: 0.239 | AH60: 0.246 | AI60: 0.271 | AJ60: 0.314 | AK60: 0.196 | AL60: 0.283 | AM60: 0.227 | AN60: 0.253 | AO60: 0.268 | AP60: 0.267 | AQ60: 0.261 | AR60: 0.274 | AS60: 0.268 | AT60: 0.257 | AU60: 0.21 | AV60: 0.285 | AW60: 0.267 | AX60: 0.264 | AY60: 0.239 | AZ60: 0.272 | BA60: 0.289 | BB60: 0.26 | BC60: 0.218 | BD60: 0.281 | BE60: 0.217
C61: Machinery | D61: 0.1224844679 | E61: 0.1463325173 | F61: 0.1503881961 | G61: 0.1335638762 | H61: 0.1969551891 | I61: 0.1369361281 | J61: 0.2215216607 | K61: 0.2302868962 | L61: 0.2382878512 | M61: 0.1560539007 | N61: 0.1411714554 | O61: 0.1161991805 | P61: 0.1131698564 | Q61: 0.1589814276 | R61: 0.1337418556 | S61: 0.1324631125 | T61: 0.1320614666 | U61: 0.1560935229 | V61: 0.157436341 | W61: 0.1921848655 | X61: 0.1334408373 | Y61: 0.2527794242 | Z61: 0.2046090961 | AA61: 0.1748321652 | AB61: 0.09405014664 | AC61: 0.1072865427 | AD61: 0.0832914412 | AE61: ='User Add-in Location'!B65 -> 0 | AF61: ='User Add-in Location'!C65 -> 0 | AG61: 0.111 | AH61: 0.169 | AI61: 0.381 | AJ61: 0.262 | AK61: 0.116 | AL61: 0.193 | AM61: 0.157 | AN61: 0.114 | AO61: 0.194 | AP61: 0.194 | AQ61: 0.176 | AR61: 0.188 | AS61: 0.238 | AT61: 0.185 | AU61: 0.114 | AV61: 0.142 | AW61: 0.176 | AX61: 0.161 | AY61: 0.136 | AZ61: 0.275 | BA61: 0.193 | BB61: 0.194 | BC61: 0.23 | BD61: 0.142 | BE61: 0.113
C62: Electrical Equipment | D62: 0.2242039591 | E62: 0 | F62: 0.1743480563 | G62: 0.1802202761 | H62: 0.2188074887 | I62: 0.145536676 | J62: 0.2122419626 | K62: 0.2627142966 | L62: 0.1415979564 | M62: 0.1642031819 | N62: 0.1419936717 | O62: 0.07111749053 | P62: 0.1828021258 | Q62: 0.2226409912 | R62: 0.2195072919 | S62: 0.1880030781 | T62: 0.2052273899 | U62: 0.2159354091 | V62: 0.2237429768 | W62: 0.1314069778 | X62: 0.1998688877 | Y62: 0.1813105345 | Z62: 0.2255058289 | AA62: 0.1725369841 | AB62: 0.1331822425 | AC62: 0.2007928789 | AD62: 0.08455710858 | AE62: ='User Add-in Location'!B66 -> 0 | AF62: ='User Add-in Location'!C66 -> 0 | AG62: 0.235 | AH62: 0.212 | AI62: 0.226 | AJ62: 0.213 | AK62: 0.134 | AL62: 0.177 | AM62: 0.129 | AN62: 0.175 | AO62: 0.18 | AP62: 0.213 | AQ62: 0.095 | AR62: 0.198 | AS62: 0.111 | AT62: 0.255 | AU62: 0.155 | AV62: 0.211 | AW62: 0.17 | AX62: 0.169 | AY62: 0.131 | AZ62: 0.156 | BA62: 0.168 | BB62: 0.139 | BC62: 0.12 | BD62: 0.22 | BE62: 0.144
C63: TCPU | D63: 0.1874801368 | E63: 0.1406342983 | F63: 0.1978434771 | G63: 0.2289703339 | H63: 0.266938597 | I63: 0.2485426813 | J63: 0.2338277847 | K63: 0.2259735614 | L63: 0.4079930186 | M63: 0.183489427 | N63: 0.2169969827 | O63: 0.1769845039 | P63: 0.2168765068 | Q63: 0.2605816722 | R63: 0.2191721797 | S63: 0.217830807 | T63: 0.2120184302 | U63: 0.2018236369 | V63: 0.2014839947 | W63: 0.2003278881 | X63: 0.2087401003 | Y63: 0.2406153232 | Z63: 0.2178488523 | AA63: 0.2190671712 | AB63: 0.1834149212 | AC63: 0.2189679444 | AD63: 0.2110751271 | AE63: ='User Add-in Location'!B67 -> 0 | AF63: ='User Add-in Location'!C67 -> 0 | AG63: 0.279 | AH63: 0 | AI63: 0.205 | AJ63: 0.263 | AK63: 0.197 | AL63: 0.262 | AM63: 0.205 | AN63: 0.259 | AO63: 0.216 | AP63: 0.277 | AQ63: 0.21 | AR63: 0.271 | AS63: 0.217 | AT63: 0.177 | AU63: 0.208 | AV63: 0.23 | AW63: 0.28 | AX63: 0.236 | AY63: 0.255 | AZ63: 0.214 | BA63: 0.238 | BB63: 0.229 | BC63: 0.215 | BD63: 0.23 | BE63: 0.206
C64: Wholesale Trade | D64: 0.3224702775 | E64: 0.2640612721 | F64: 0.3456988335 | G64: 0.2906990647 | H64: 0.3312979937 | I64: 0.3800239861 | J64: 0.3616425395 | K64: 0.3782734871 | L64: 0.4563544393 | M64: 0.3284571469 | N64: 0.341460079 | O64: 0.3052661419 | P64: 0.3157446384 | Q64: 0.3668238819 | R64: 0.3294171393 | S64: 0.3467967808 | T64: 0.3337201476 | U64: 0.2957050502 | V64: 0.3241221011 | W64: 0.3138951659 | X64: 0.3523882329 | Y64: 0.4102562666 | Z64: 0.3487550616 | AA64: 0.3902201951 | AB64: 0.289028585 | AC64: 0.3434925973 | AD64: 0.3158931136 | AE64: ='User Add-in Location'!B68 -> 0 | AF64: ='User Add-in Location'!C68 -> 0 | AG64: 0.328 | AH64: 0.339 | AI64: 0.409 | AJ64: 0.373 | AK64: 0.277 | AL64: 0.356 | AM64: 0.341 | AN64: 0.349 | AO64: 0.339 | AP64: 0.307 | AQ64: 0.345 | AR64: 0.359 | AS64: 0.352 | AT64: 0.308 | AU64: 0.325 | AV64: 0.327 | AW64: 0.355 | AX64: 0.346 | AY64: 0.338 | AZ64: 0.314 | BA64: 0.359 | BB64: 0.339 | BC64: 0.3 | BD64: 0.345 | BE64: 0.315
C65: Retail Trade | D65: 0.3794430494 | E65: 0.4652656317 | F65: 0.4075205028 | G65: 0.3976998329 | H65: 0.418053329 | I65: 0.4160890877 | J65: 0.4611852169 | K65: 0.4470197856 | L65: 0.4563129842 | M65: 0.4091368914 | N65: 0.403945297 | O65: 0.3839123845 | P65: 0.411400646 | Q65: 0.4125046134 | R65: 0.387717694 | S65: 0.4038746655 | T65: 0.3707221746 | U65: 0.4200717807 | V65: 0.395434618 | W65: 0.3958465457 | X65: 0.4206564128 | Y65: 0.4796203375 | Z65: 0.385607481 | AA65: 0.3999140561 | AB65: 0.3824397624 | AC65: 0.407521069 | AD65: 0.464210242 | AE65: ='User Add-in Location'!B69 -> 0 | AF65: ='User Add-in Location'!C69 -> 0 | AG65: 0.38 | AH65: 0.239 | AI65: 0.497 | AJ65: 0.46 | AK65: 0.406 | AL65: 0.449 | AM65: 0.426 | AN65: 0.417 | AO65: 0.395 | AP65: 0.431 | AQ65: 0.464 | AR65: 0.434 | AS65: 0.443 | AT65: 0.391 | AU65: 0.4 | AV65: 0.429 | AW65: 0.407 | AX65: 0.416 | AY65: 0.422 | AZ65: 0.434 | BA65: 0.397 | BB65: 0.404 | BC65: 0.392 | BD65: 0.389 | BE65: 0.4
C66: FIRE | D66: 0.232218191 | E66: 0.2257565558 | F66: 0.2360807806 | G66: 0.1970462203 | H66: 0.2499038577 | I66: 0.225764513 | J66: 0.3225631416 | K66: 0.2103273571 | L66: 0.3016846478 | M66: 0.2197901905 | N66: 0.2271909863 | O66: 0.2092150152 | P66: 0.1765767187 | Q66: 0.254878819 | R66: 0.2010090053 | S66: 0.2312632948 | T66: 0.2288453132 | U66: 0.2325569391 | V66: 0.2193280458 | W66: 0.2095508873 | X66: 0.2299554944 | Y66: 0.3342780173 | Z66: 0.2235332727 | AA66: 0.2928317487 | AB66: 0.2000757158 | AC66: 0.2256647199 | AD66: 0.1925100088 | AE66: ='User Add-in Location'!B70 -> 0 | AF66: ='User Add-in Location'!C70 -> 0 | AG66: 0.219 | AH66: 0 | AI66: 0.255 | AJ66: 0.254 | AK66: 0.16 | AL66: 0.355 | AM66: 0.291 | AN66: 0.239 | AO66: 0.222 | AP66: 0.218 | AQ66: 0.193 | AR66: 0.254 | AS66: 0.268 | AT66: 0.256 | AU66: 0.219 | AV66: 0.257 | AW66: 0.259 | AX66: 0.257 | AY66: 0.184 | AZ66: 0.213 | BA66: 0.227 | BB66: 0.209 | BC66: 0.205 | BD66: 0.21 | BE66: 0.18
C67: Misc. Services | D67: 0.4845773578 | E67: 0.531409502 | F67: 0.5004227161 | G67: 0.4401980639 | H67: 0.5467282534 | I67: 0.5291669965 | J67: 0.5375397801 | K67: 0.5207264423 | L67: 0.5938506126 | M67: 0.5006020069 | N67: 0.5207941532 | O67: 0.4667545557 | P67: 0.4236282408 | Q67: 0.5544348955 | R67: 0.4020648003 | S67: 0.4488164485 | T67: 0.4757006168 | U67: 0.467181623 | V67: 0.5144590139 | W67: 0.4474316835 | X67: 0.5117496252 | Y67: 0.5439003706 | Z67: 0.5148142576 | AA67: 0.5124021173 | AB67: 0.4266409278 | AC67: 0.4835698307 | AD67: 0.4559448659 | AE67: ='User Add-in Location'!B71 -> 0 | AF67: ='User Add-in Location'!C71 -> 0 | AG67: 0.443 | AH67: 0.528 | AI67: 0.491 | AJ67: 0.557 | AK67: 0.427 | AL67: 0.554 | AM67: 0.446 | AN67: 0.506 | AO67: 0.489 | AP67: 0.478 | AQ67: 0.423 | AR67: 0.51 | AS67: 0.471 | AT67: 0.476 | AU67: 0.409 | AV67: 0.505 | AW67: 0.548 | AX67: 0.521 | AY67: 0.468 | AZ67: 0.448 | BA67: 0.564 | BB67: 0.485 | BC67: 0.445 | BD67: 0.463 | BE67: 0.468
C68: Professional Services | D68: 0.3488491178 | E68: 0.3758065999 | F68: 0.3692492843 | G68: 0.3238660991 | H68: 0.3924670219 | I68: 0.3740850091 | J68: 0.415320456 | K68: 0.4200163782 | L68: 0.515476346 | M68: 0.3631107211 | N68: 0.3485263288 | O68: 0.3729102612 | P68: 0.3428356051 | Q68: 0.3911922574 | R68: 0.3634635806 | S68: 0.3489113748 | T68: 0.3493805528 | U68: 0.3651278019 | V68: 0.3561079502 | W68: 0.3670907915 | X68: 0.3897897005 | Y68: 0.44276914 | Z68: 0.3796377778 | AA68: 0.396429956 | AB68: 0.3193415701 | AC68: 0.3627329767 | AD68: 0.3477081656 | AE68: ='User Add-in Location'!B72 -> 0 | AF68: ='User Add-in Location'!C72 -> 0 | AG68: 0.364 | AH68: 0.371 | AI68: 0.409 | AJ68: 0.422 | AK68: 0.304 | AL68: 0.416 | AM68: 0.363 | AN68: 0.362 | AO68: 0.386 | AP68: 0.343 | AQ68: 0.386 | AR68: 0.42 | AS68: 0.395 | AT68: 0.332 | AU68: 0.359 | AV68: 0.409 | AW68: 0.374 | AX68: 0.385 | AY68: 0.345 | AZ68: 0.369 | BA68: 0.399 | BB68: 0.36 | BC68: 0.367 | BD68: 0.369 | BE68: 0.325
C69: Government | D69: 0.6595174074 | E69: 0.8400869966 | F69: 0.664452374 | G69: 0.761846602 | H69: 0.7424682975 | I69: 0.7746573687 | J69: 0.6432267427 | K69: 0.7389069796 | L69: 0.7407897711 | M69: 0.7333247066 | N69: 0.8089426756 | O69: 0.7725544572 | P69: 0.7327219844 | Q69: 0.83481884 | R69: 0.7921494842 | S69: 0.7658936977 | T69: 0.7744433284 | U69: 0.7678233981 | V69: 0.7660766244 | W69: 0.7714313865 | X69: 0.6640341878 | Y69: 0.6497858167 | Z69: 0.7869896293 | AA69: 0.7202278376 | AB69: 0.754275918 | AC69: 0.7725659609 | AD69: 0.7481476665 | AE69: ='User Add-in Location'!B73 -> 0 | AF69: ='User Add-in Location'!C73 -> 0 | AG69: 0.809 | AH69: 0.699 | AI69: 0.638 | AJ69: 0.825 | AK69: 0.51 | AL69: 0.758 | AM69: 0.802 | AN69: 0.72 | AO69: 0.757 | AP69: 0.644 | AQ69: 0.743 | AR69: 0.763 | AS69: 0.678 | AT69: 0.76 | AU69: 0.685 | AV69: 0.73 | AW69: 0.753 | AX69: 0.739 | AY69: 0.737 | AZ69: 0.813 | BA69: 0.682 | BB69: 0.675 | BC69: 0.698 | BD69: 0.737 | BE69: 0.77
C71: Earnings Per Million Dollars Change in Final Demand
C72: Earnings Indirect Multipliers | D72: Alabama | E72: Alaska | F72: Arizona | G72: Arkansas | H72: California | I72: Colorado | J72: Connecticut | K72: Delaware | L72: District of Columbia | M72: Florida | N72: Georgia | O72: Hawaii | P72: Idaho | Q72: Illinois | R72: Indiana | S72: Iowa | T72: Kansas | U72: Kentucky | V72: Louisiana | W72: Maine | X72: Maryland | Y72: Massachusetts | Z72: Michigan | AA72: Minnesota | AB72: Mississippi | AC72: Missouri | AD72: Montana | AE72: MyCounty | AF72: MyRegion | AG72: Nebraska | AH72: Nevada | AI72: New Hampshire | AJ72: New Jersey | AK72: New Mexico | AL72: New York | AM72: North Carolina | AN72: North Dakota | AO72: Ohio | AP72: Oklahoma | AQ72: Oregon | AR72: Pennsylvania | AS72: Rhode Island | AT72: South Carolina | AU72: South Dakota | AV72: Tennessee | AW72: Texas | AX72: United States | AY72: Utah | AZ72: Vermont | BA72: Virginia | BB72: Washington | BC72: West Virginia | BD72: Wisconsin | BE72: Wyoming
C73: Agriculture | D73: 0.07147512585 | E73: 0.02925610542 | F73: 0.05968598276 | G73: 0.102905944 | H73: 0.05904646218 | I73: 0.1098985374 | J73: 0.03657776862 | K73: 0.0732370168 | L73: 0.05488007143 | M73: 0.04751327634 | N73: 0.09386920184 | O73: 0.04558603466 | P73: 0.1140865758 | Q73: 0.1070611626 | R73: 0.06002099812 | S73: 0.09551490843 | T73: 0.118047297 | U73: 0.05260980874 | V73: 0.04360549897 | W73: 0.05995233357 | X73: 0.05420525372 | Y73: 0.03478594124 | Z73: 0.05778502673 | AA73: 0.1000378728 | AB73: 0.07790866494 | AC73: 0.07164432108 | AD73: 0.07969288528 | AE73: ='User Add-in Location'!B77 -> 0 | AF73: ='User Add-in Location'!C77 -> 0 | AG73: 0.124 | AH73: 0.03 | AI73: 0.047 | AJ73: 0.032 | AK73: 0.084 | AL73: 0.067 | AM73: 0.065 | AN73: 0.08 | AO73: 0.062 | AP73: 0.063 | AQ73: 0.074 | AR73: 0.065 | AS73: 0.031 | AT73: 0.047 | AU73: 0.126 | AV73: 0.055 | AW73: 0.082 | AX73: 0.166 | AY73: 0.056 | AZ73: 0.078 | BA73: 0.054 | BB73: 0.057 | BC73: 0.031 | BD73: 0.103 | BE73: 0.043
C74: Mining | D74: 0.0684351325 | E74: 0.02891918644 | F74: 0.09476059675 | G74: 0.07566723228 | H74: 0.07532095164 | I74: 0.1045308411 | J74: 0.1150982231 | K74: 0.0980097726 | L74: 0.1122249439 | M74: 0.1334124804 | N74: 0.08922974765 | O74: 0.09025412798 | P74: 0.0839869231 | Q74: 0.1157695949 | R74: 0.08644192666 | S74: 0.07915106416 | T74: 0.1516808271 | U74: 0.07839478552 | V74: 0.06394337118 | W74: 0.1241025031 | X74: 0.1304457933 | Y74: 0.1593701541 | Z74: 0.124616392 | AA74: 0.095216766 | AB74: 0.07733804733 | AC74: 0.09777931869 | AD74: 0.09756977856 | AE74: ='User Add-in Location'!B78 -> 0 | AF74: ='User Add-in Location'!C78 -> 0 | AG74: 0.087 | AH74: 0.061 | AI74: 0.105 | AJ74: 0.132 | AK74: 0.081 | AL74: 0.142 | AM74: 0.083 | AN74: 0.071 | AO74: 0.111 | AP74: 0.132 | AQ74: 0.114 | AR74: 0.09 | AS74: 0.111 | AT74: 0.082 | AU74: 0.092 | AV74: 0.094 | AW74: 0.091 | AX74: 0.142 | AY74: 0.094 | AZ74: 0.072 | BA74: 0.1 | BB74: 0.107 | BC74: 0.086 | BD74: 0.074 | BE74: 0.058
C75: Construction | D75: 0.1215518415 | E75: 0.09386964887 | F75: 0.1371481568 | G75: 0.1222056895 | H75: 0.1757407784 | I75: 0.1641420424 | J75: 0.1549798697 | K75: 0.1360883713 | L75: 0.08731483668 | M75: 0.1538388431 | N75: 0.1512059867 | O75: 0.09711305052 | P75: 0.1358499527 | Q75: 0.1495109797 | R75: 0.1241234243 | S75: 0.1191692278 | T75: 0.1308905482 | U75: 0.1185300648 | V75: 0.106158942 | W75: 0.1471273303 | X75: 0.1216208488 | Y75: 0.1621210575 | Z75: 0.1491463631 | AA75: 0.1541558802 | AB75: 0.1044978872 | AC75: 0.1459174454 | AD75: 0.1275596619 | AE75: ='User Add-in Location'!B79 -> 0 | AF75: ='User Add-in Location'!C79 -> 0 | AG75: 0.122 | AH75: 0.054 | AI75: 0.173 | AJ75: 0.149 | AK75: 0.107 | AL75: 0.139 | AM75: 0.153 | AN75: 0.117 | AO75: 0.155 | AP75: 0.141 | AQ75: 0.14 | AR75: 0.161 | AS75: 0.126 | AT75: 0.122 | AU75: 0.127 | AV75: 0.158 | AW75: 0.159 | AX75: 0.259 | AY75: 0.147 | AZ75: 0.139 | BA75: 0.134 | BB75: 0.133 | BC75: 0.092 | BD75: 0.14 | BE75: 0.079
C76: Manufacturing | D76: 0.08865008503 | E76: 0.09419683367 | F76: 0.1055390537 | G76: 0.09888717532 | H76: 0.1555612683 | I76: 0.1435986012 | J76: 0.09507960081 | K76: 0.09374250472 | L76: 0.06156931818 | M76: 0.1142922118 | N76: 0.109241426 | O76: 0.102459982 | P76: 0.1118065417 | Q76: 0.1277573109 | R76: 0.08602409065 | S76: 0.09735876322 | T76: 0.1236588508 | U76: 0.08386458457 | V76: 0.09694401175 | W76: 0.09677305818 | X76: 0.07977741212 | Y76: 0.1092159674 | Z76: 0.1071392745 | AA76: 0.134012863 | AB76: 0.08867628872 | AC76: 0.1033597514 | AD76: 0.1040739268 | AE76: ='User Add-in Location'!B80 -> 0 | AF76: ='User Add-in Location'!C80 -> 0 | AG76: 0.106 | AH76: 0.064 | AI76: 0.093 | AJ76: 0.114 | AK76: 0.11 | AL76: 0.111 | AM76: 0.094 | AN76: 0.119 | AO76: 0.114 | AP76: 0.133 | AQ76: 0.111 | AR76: 0.125 | AS76: 0.089 | AT76: 0.078 | AU76: 0.103 | AV76: 0.1 | AW76: 0.167 | AX76: 0.273 | AY76: 0.121 | AZ76: 0.097 | BA76: 0.085 | BB76: 0.11 | BC76: 0.075 | BD76: 0.111 | BE76: 0.09
C77: Fabricated Metals | D77: 0.07790318877 | E77: 0.07927661389 | F77: 0.1068226099 | G77: 0.06965832412 | H77: 0.1584904045 | I77: 0.1200569123 | J77: 0.1025256664 | K77: 0.08235821128 | L77: 0 | M77: 0.1123519838 | N77: 0.1009477898 | O77: 0.08679344505 | P77: 0.08455810696 | Q77: 0.1197479814 | R77: 0.0833138153 | S77: 0.0790053308 | T77: 0.08585808426 | U77: 0.07479380071 | V77: 0.0694789812 | W77: 0.08486051857 | X77: 0.0887953192 | Y77: 0.1158885658 | Z77: 0.1055993587 | AA77: 0.1238543689 | AB77: 0.06537078321 | AC77: 0.09353576601 | AD77: 0.07631128281 | AE77: ='User Add-in Location'!B81 -> 0 | AF77: ='User Add-in Location'!C81 -> 0 | AG77: 0.08 | AH77: 0.063 | AI77: 0.094 | AJ77: 0.111 | AK77: 0.073 | AL77: 0.112 | AM77: 0.104 | AN77: 0.081 | AO77: 0.108 | AP77: 0.083 | AQ77: 0.099 | AR77: 0.119 | AS77: 0.101 | AT77: 0.073 | AU77: 0.074 | AV77: 0.096 | AW77: 0.132 | AX77: 0.258 | AY77: 0.115 | AZ77: 0.078 | BA77: 0.085 | BB77: 0.105 | BC77: 0.065 | BD77: 0.099 | BE77: 0.055
C78: Machinery | D78: 0.09156352282 | E78: 0.07980134338 | F78: 0.1032135412 | G78: 0.08696512133 | H78: 0.1560798287 | I78: 0.1407294422 | J78: 0.1106742397 | K78: 0.08131083101 | L78: 0.09653050452 | M78: 0.1264305562 | N78: 0.1082606465 | O78: 0.1066420749 | P78: 0.09589529037 | Q78: 0.1186897159 | R78: 0.09534557909 | S78: 0.08098497987 | T78: 0.1029385552 | U78: 0.08671723306 | V78: 0.08127215505 | W78: 0.09324534237 | X78: 0.1053935587 | Y78: 0.1249552742 | Z78: 0.1098259538 | AA78: 0.1455569118 | AB78: 0.07317118347 | AC78: 0.1202889308 | AD78: 0.09584251046 | AE78: ='User Add-in Location'!B82 -> 0 | AF78: ='User Add-in Location'!C82 -> 0 | AG78: 0.086 | AH78: 0.07 | AI78: 0.08 | AJ78: 0.112 | AK78: 0.078 | AL78: 0.115 | AM78: 0.097 | AN78: 0.096 | AO78: 0.116 | AP78: 0.087 | AQ78: 0.11 | AR78: 0.123 | AS78: 0.088 | AT78: 0.079 | AU78: 0.091 | AV78: 0.107 | AW78: 0.134 | AX78: 0.275 | AY78: 0.118 | AZ78: 0.072 | BA78: 0.095 | BB78: 0.116 | BC78: 0.062 | BD78: 0.112 | BE78: 0.071
C79: Electrical Equipment | D79: 0.1007913798 | E79: 0 | F79: 0.1431902647 | G79: 0.09549652785 | H79: 0.1866893768 | I79: 0.1550123096 | J79: 0.1315076053 | K79: 0.09782421589 | L79: 0.06073151901 | M79: 0.1462344676 | N79: 0.1276739985 | O79: 0.1005154327 | P79: 0.1131548211 | Q79: 0.1366708726 | R79: 0.09100013971 | S79: 0.09579790384 | T79: 0.09469711035 | U79: 0.0994681865 | V79: 0.08275716752 | W79: 0.09999578446 | X79: 0.1142686233 | Y79: 0.1679256111 | Z79: 0.1345751584 | AA79: 0.1727436036 | AB79: 0.08797366917 | AC79: 0.09402158111 | AD79: 0.110304907 | AE79: ='User Add-in Location'!B83 -> 0 | AF79: ='User Add-in Location'!C83 -> 0 | AG79: 0.099 | AH79: 0.058 | AI79: 0.132 | AJ79: 0.145 | AK79: 0.071 | AL79: 0.155 | AM79: 0.124 | AN79: 0.121 | AO79: 0.133 | AP79: 0.108 | AQ79: 0.063 | AR79: 0.135 | AS79: 0.13 | AT79: 0.081 | AU79: 0.107 | AV79: 0.111 | AW79: 0.152 | AX79: 0.24 | AY79: 0.146 | AZ79: 0.13 | BA79: 0.126 | BB79: 0.128 | BC79: 0.09 | BD79: 0.125 | BE79: 0.081
C80: TCPU | D80: 0.1282751858 | E80: 0.08243434131 | F80: 0.1347127557 | G80: 0.1208625734 | H80: 0.1603189409 | I80: 0.1664202064 | J80: 0.1336013824 | K80: 0.1298511624 | L80: 0.1156917214 | M80: 0.1398880482 | N80: 0.1405858099 | O80: 0.1091838479 | P80: 0.1196507588 | Q80: 0.1644737422 | R80: 0.125582099 | S80: 0.1164890379 | T80: 0.125190869 | U80: 0.1202670559 | V80: 0.1324455887 | W80: 0.113965556 | X80: 0.1254951954 | Y80: 0.1543920785 | Z80: 0.140493989 | AA80: 0.1698901355 | AB80: 0.1138411611 | AC80: 0.1344339699 | AD80: 0.1276169717 | AE80: ='User Add-in Location'!B84 -> 0 | AF80: ='User Add-in Location'!C84 -> 0 | AG80: 0.093 | AH80: 0 | AI80: 0.126 | AJ80: 0.136 | AK80: 0.115 | AL80: 0.166 | AM80: 0.126 | AN80: 0.139 | AO80: 0.132 | AP80: 0.154 | AQ80: 0.121 | AR80: 0.154 | AS80: 0.121 | AT80: 0.112 | AU80: 0.122 | AV80: 0.149 | AW80: 0.177 | AX80: 0.245 | AY80: 0.156 | AZ80: 0.132 | BA80: 0.13 | BB80: 0.126 | BC80: 0.12 | BD80: 0.129 | BE80: 0.102
C81: Wholesale Trade | D81: 0.1116647646 | E81: 0.1002858952 | F81: 0.1399729997 | G81: 0.09218049794 | H81: 0.1498210728 | I81: 0.1509883404 | J81: 0.1312483251 | K81: 0.117391482 | L81: 0.1233229339 | M81: 0.1421113461 | N81: 0.1264350563 | O81: 0.1336847842 | P81: 0.1194929332 | Q81: 0.1443684399 | R81: 0.1132365018 | S81: 0.1138817519 | T81: 0.1148410365 | U81: 0.1054169238 | V81: 0.102832973 | W81: 0.1264856309 | X81: 0.1277630329 | Y81: 0.1612394303 | Z81: 0.1264297962 | AA81: 0.1545625329 | AB81: 0.09434480965 | AC81: 0.1376250088 | AD81: 0.1114991903 | AE81: ='User Add-in Location'!B85 -> 0 | AF81: ='User Add-in Location'!C85 -> 0 | AG81: 0.127 | AH81: 0.099 | AI81: 0.141 | AJ81: 0.136 | AK81: 0.104 | AL81: 0.144 | AM81: 0.138 | AN81: 0.106 | AO81: 0.139 | AP81: 0.115 | AQ81: 0.132 | AR81: 0.142 | AS81: 0.146 | AT81: 0.108 | AU81: 0.113 | AV81: 0.138 | AW81: 0.128 | AX81: 0.182 | AY81: 0.145 | AZ81: 0.13 | BA81: 0.13 | BB81: 0.121 | BC81: 0.097 | BD81: 0.133 | BE81: 0.074
C82: Retail Trade | D82: 0.09311914444 | E82: 0.09511110187 | F82: 0.1189127117 | G82: 0.09230414033 | H82: 0.1217784137 | I82: 0.1382021755 | J82: 0.1334671974 | K82: 0.1248991787 | L82: 0.1200716197 | M82: 0.1302360445 | N82: 0.1238736883 | O82: 0.09136181325 | P82: 0.1008361429 | Q82: 0.1406874508 | R82: 0.1035303026 | S82: 0.1121144667 | T82: 0.1055512875 | U82: 0.1070759445 | V82: 0.08954324573 | W82: 0.1138846725 | X82: 0.1157687008 | Y82: 0.1614227444 | Z82: 0.1131020561 | AA82: 0.1472177207 | AB82: 0.08188799024 | AC82: 0.1285540909 | AD82: 0.1087879092 | AE82: ='User Add-in Location'!B86 -> 0 | AF82: ='User Add-in Location'!C86 -> 0 | AG82: 0.12 | AH82: 0.081 | AI82: 0.133 | AJ82: 0.127 | AK82: 0.082 | AL82: 0.136 | AM82: 0.135 | AN82: 0.105 | AO82: 0.125 | AP82: 0.106 | AQ82: 0.129 | AR82: 0.147 | AS82: 0.13 | AT82: 0.1 | AU82: 0.105 | AV82: 0.122 | AW82: 0.122 | AX82: 0.169 | AY82: 0.123 | AZ82: 0.106 | BA82: 0.121 | BB82: 0.092 | BC82: 0.086 | BD82: 0.122 | BE82: 0.074
C83: FIRE | D83: 0.1212228537 | E83: 0.08737058192 | F83: 0.1613485068 | G83: 0.1030617356 | H83: 0.1331209242 | I83: 0.173035264 | J83: 0.1482337415 | K83: 0.07848651707 | L83: 0.09459725767 | M83: 0.1708479971 | N83: 0.1283653677 | O83: 0.09579340369 | P83: 0.1308367252 | Q83: 0.1438511312 | R83: 0.1054515988 | S83: 0.11123842 | T83: 0.128539294 | U83: 0.1162417829 | V83: 0.111141406 | W83: 0.1146736071 | X83: 0.1146174744 | Y83: 0.1525304019 | Z83: 0.1325515211 | AA83: 0.1677058488 | AB83: 0.1039609909 | AC83: 0.1300816834 | AD83: 0.1093060002 | AE83: ='User Add-in Location'!B87 -> 0 | AF83: ='User Add-in Location'!C87 -> 0 | AG83: 0.126 | AH83: 0 | AI83: 0.134 | AJ83: 0.147 | AK83: 0.083 | AL83: 0.107 | AM83: 0.117 | AN83: 0.118 | AO83: 0.122 | AP83: 0.136 | AQ83: 0.119 | AR83: 0.151 | AS83: 0.134 | AT83: 0.123 | AU83: 0.087 | AV83: 0.136 | AW83: 0.179 | AX83: 0.178 | AY83: 0.14 | AZ83: 0.11 | BA83: 0.117 | BB83: 0.112 | BC83: 0.085 | BD83: 0.124 | BE83: 0.092
C84: Misc. Services | D84: 0.1329475343 | E84: 0.1168466806 | F84: 0.1646040082 | G84: 0.1220547333 | H84: 0.1649078876 | I84: 0.1753379405 | J84: 0.1722532213 | K84: 0.1306597739 | L84: 0.105608359 | M84: 0.1643522978 | N84: 0.146239832 | O84: 0.1256912053 | P84: 0.1358927786 | Q84: 0.154742837 | R84: 0.114973858 | S84: 0.1290762573 | T84: 0.1436215639 | U84: 0.1286515892 | V84: 0.115167968 | W84: 0.1526355743 | X84: 0.1491688788 | Y84: 0.1857093722 | Z84: 0.1605597138 | AA84: 0.1760522574 | AB84: 0.1097985059 | AC84: 0.14981094 | AD84: 0.128538698 | AE84: ='User Add-in Location'!B88 -> 0 | AF84: ='User Add-in Location'!C88 -> 0 | AG84: 0.138 | AH84: 0.108 | AI84: 0.165 | AJ84: 0.159 | AK84: 0.117 | AL84: 0.152 | AM84: 0.153 | AN84: 0.121 | AO84: 0.161 | AP84: 0.132 | AQ84: 0.126 | AR84: 0.165 | AS84: 0.173 | AT84: 0.135 | AU84: 0.135 | AV84: 0.15 | AW84: 0.151 | AX84: 0.204 | AY84: 0.173 | AZ84: 0.15 | BA84: 0.136 | BB84: 0.145 | BC84: 0.11 | BD84: 0.149 | BE84: 0.091
C85: Professional Services | D85: 0.1041177511 | E85: 0.09882728755 | F85: 0.1399653107 | G85: 0.09061411768 | H85: 0.1468355954 | I85: 0.1426888406 | J85: 0.1370503753 | K85: 0.1144368798 | L85: 0.1148601472 | M85: 0.1428173929 | N85: 0.1363952458 | O85: 0.1050353721 | P85: 0.1120306551 | Q85: 0.1468188018 | R85: 0.1056713089 | S85: 0.10642609 | T85: 0.1127815396 | U85: 0.1068734825 | V85: 0.0985834673 | W85: 0.1200189143 | X85: 0.1220795289 | Y85: 0.1574207246 | Z85: 0.1282663792 | AA85: 0.148427844 | AB85: 0.09162449837 | AC85: 0.1323550642 | AD85: 0.1084489673 | AE85: ='User Add-in Location'!B89 -> 0 | AF85: ='User Add-in Location'!C89 -> 0 | AG85: 0.119 | AH85: 0.081 | AI85: 0.127 | AJ85: 0.137 | AK85: 0.1 | AL85: 0.144 | AM85: 0.134 | AN85: 0.101 | AO85: 0.131 | AP85: 0.112 | AQ85: 0.124 | AR85: 0.137 | AS85: 0.135 | AT85: 0.111 | AU85: 0.107 | AV85: 0.13 | AW85: 0.14 | AX85: 0.19 | AY85: 0.136 | AZ85: 0.116 | BA85: 0.12 | BB85: 0.117 | BC85: 0.089 | BD85: 0.118 | BE85: 0.074
C86: Government | D86: 0.03009634465 | E86: 0.01324761752 | F86: 0.04905066267 | G86: 0.02414056286 | H86: 0.03604725003 | I86: 0.02489183843 | J86: 0.06267315894 | K86: 0.006703048013 | L86: 0.003579186276 | M86: 0.02740789391 | N86: 0.005372933578 | O86: 0.01738242246 | P86: 0.03328505158 | Q86: 0.01690809056 | R86: 0.01793390885 | S86: 0.02515023388 | T86: 0.02902019396 | U86: 0.02645088919 | V86: 0.03822622821 | W86: 0.0294724796 | X86: 0.008795935661 | Y86: 0.01421568729 | Z86: 0.02309161797 | AA86: 0.05332803354 | AB86: 0.01965077966 | AC86: 0.0285322722 | AD86: 0.02914899215 | AE86: ='User Add-in Location'!B90 -> 0 | AF86: ='User Add-in Location'!C90 -> 0 | AG86: 0.026 | AH86: 0.048 | AI86: 0.022 | AJ86: 0.02 | AK86: 0.031 | AL86: 0.04 | AM86: 0.016 | AN86: 0.073 | AO86: 0.022 | AP86: 0.067 | AQ86: 0.034 | AR86: 0.034 | AS86: 0.014 | AT86: 0.026 | AU86: 0.066 | AV86: 0.042 | AW86: 0.031 | AX86: 0.043 | AY86: 0.021 | AZ86: 0.013 | BA86: 0.024 | BB86: 0.051 | BC86: 0.026 | BD86: 0.036 | BE86: 0.023
C88: Earnings Per Million Dollars Change in Final Demand
C89: Earnings Induced Multipliers | D89: Alabama | E89: Alaska | F89: Arizona | G89: Arkansas | H89: California | I89: Colorado | J89: Connecticut | K89: Delaware | L89: District of Columbia | M89: Florida | N89: Georgia | O89: Hawaii | P89: Idaho | Q89: Illinois | R89: Indiana | S89: Iowa | T89: Kansas | U89: Kentucky | V89: Louisiana | W89: Maine | X89: Maryland | Y89: Massachusetts | Z89: Michigan | AA89: Minnesota | AB89: Mississippi | AC89: Missouri | AD89: Montana | AE89: MyCounty | AF89: MyRegion | AG89: Nebraska | AH89: Nevada | AI89: New Hampshire | AJ89: New Jersey | AK89: New Mexico | AL89: New York | AM89: North Carolina | AN89: North Dakota | AO89: Ohio | AP89: Oklahoma | AQ89: Oregon | AR89: Pennsylvania | AS89: Rhode Island | AT89: South Carolina | AU89: South Dakota | AV89: Tennessee | AW89: Texas | AX89: United States | AY89: Utah | AZ89: Vermont | BA89: Virginia | BB89: Washington | BC89: West Virginia | BD89: Wisconsin | BE89: Wyoming
